Workbook

Sheet Contents
A1: Administrative Data Based Population Estimates, Scotland 2016-2018: Interactive Charts
A3: Disclaimer: These figures are statistical research and not the official statistics on Scotland's population. The official population estimates can be found at:
A5: https://www.nrscotland.gov.uk/statistics-and-data/statistics/statistics-by-theme/population/population-estimates
A7: All graphs show the ABPE and the MYE, or the difference between them
A8: All graphs show 2016, 2017 and 2018, either as an option or as separate series
A9: All graphs break down by sex either as an option or as separate series
A10: All graphs breakdown by ages, either on the x-axis or as an option
A11: The 'by' variable is what is shown along the x-axis
A13: Graph | B13: Sheet | C13: Related figures in main report | D13: Dropdown Options
A15: Council Area
A16: Population Pyramid for Council Area by single year of age | B16: Pyramid | C16: 3, 4 | D16: Council Area (inc Scotland), year
A17: Council Area Percentage Difference by 5-year age bands | B17: CA % 5-yr | C17: 10 (no age breakdown) | D17: Council Area (inc Scotland), year
A18: Council Area Absolute Difference by 5-year age bands | B18: CA abs 5-yr | D18: Council Area (inc Scotland), year
A19: Council Area Percentage Difference by single year of age | B19: CA % 1-yr | C19: 6, 7, 8 (Scotland level only) | D19: Council Area (inc Scotland), year
A20: Council Area Absolute Difference by single year of age | B20: CA abs 1-yr | D20: Council Area (inc Scotland), year
A21: Difference for Council Area between two years by single year cohort (age in 2016) | B21: CA change | C21: 9, 13, 14 | D21: Council Area (inc Scotland), year from, year to
A23: Council Area and SIMD
A24: Council Area Percentage Difference by SIMD Decile | B24: CA by SIMD | C24: 18, 19, 20 | D24: Council Area (inc Scotland), age band (inc all), year
A25: Spread of Percentage Difference Across Council Areas for age band by SIMD decile | B25: CA dist by SIMD | C25: 21, 22, 23, 24 | D25: Age band (inc all), sex (inc both), year
A27: SIMD
A28: SIMD Decile Percentage Difference by 5-year age bands | B28: SIMD % 5-yr | D28: SIMD decile, year
A29: SIMD Decile Absolute Difference by 5-year age bands | B29: SIMD abs 5-yr | D29: SIMD decile, year
A30: SIMD Decile Percentage Difference by single year of age | B30: SIMD % 1-yr | D30: SIMD decile, year
A31: SIMD Decile Absolute Difference by single year of age | B31: SIMD abs 1-yr | D31: SIMD decile, year
A33: Urban-Rural
A34: Urban-Rural Percentage Difference by 5-year age bands | B34: UR % 5-yr | D34: Urban-Rural 8-fold Classification, year
A35: Urban-Rural Absolute Difference by 5-year age bands | B35: UR abs 5-yr | D35: Urban-Rural 8-fold Classification, year
A36: Urban-Rural Percentage Difference by single year of age | B36: UR % 1-yr | D36: Urban-Rural 8-fold Classification, year
A37: Urban-Rural Absolute Difference by single year of age | B37: UR abs 1-yr | D37: Urban-Rural 8-fold Classification, year
A38: Percentage Difference for Age by Urban-Rural Classification | B38: Age by UR | C38: 15, 16, 17 | D38: Age band (inc all), sex (inc both)
A40: These figures are published in 'Administrative Data Based Population Estimates, Scotland 2016-2018', available from the National Records of Scotland website.
A41: ABPE = Administrative Data Based Population Estimates
A42: MYE = Mid-year estimates - the National Statistics for Scotland's population. Can be found at the Population Estimates section of the NRS website.
A44: © Crown Copyright 2021

Sheet Notes
A1: Administrative Data Based Population Estimates, Scotland 2016-2018: Interactive Charts
A3: Disclaimer: These figures are statistical research and not the official statistics on Scotland's population. The official population estimates can be found at:
A5: https://www.nrscotland.gov.uk/statistics-and-data/statistics/statistics-by-theme/population/population-estimates
A7: These figures are published in 'Administrative Data Based Population Estimates, Scotland 2016-2018', available from the National Records of Scotland website.
A8: The estimates presented in the above publication are based on version 2 of the ABPE methodology.
A9: A previous publication presented estimates for 2016. Those estimates were based on version 1 of the ABPE methodology.
A10: As the version 1 2016 ABPE (from the previous publication) should not be compared directly with the 2017 and 2018 estimates from this publication, as they are not
A11: calculated using the same methodology. The publication of the version 2 methodology includes estimates for 2016 (presented here).
A13: For single year of age graphs, the values for age 90 include all ages 90 and above.
A15: The SIMD deciles are based on SIMD 2016. The Urban-Rural classifications are based on data-zone-based 2016 classifications.
A17: The 2017 Electoral Register data for Fife was unavailable because of a clerical issue (see the Quality Assurance of Administrative Datasets (QAAD) document for further information).
A18: Graphs that specifically relate to Fife 2017 will show a caveat related to this.
A20: The change in the population by cohort extends to 87 years. The cohort that is aged 88 years in 2016 would be 90 in 2018.
A21: However, data for age exactly 90 is not available at council area level, as there is only data for ages 90+. Therefore the graph does not show cohorts aged 88 (or above) in the baseline year.
A23: Note that there are some council areas that do not have any data zones in some SIMD deciles.
A24: In particular, East Lothian, Moray and the island council areas do not have any data zones in SIMD decile 1, or some other deciles.
A25: Graphs that specifically relate to these council areas showing SIMD deciles will show a note related to this.
A27: In the box plot graphs of the distribution of the difference between the ABPE and MYE across council areas by SIMD decile, council areas that do not have data zones in a particular SIMD
A28: decile are not included in the calculation for that decile. The box shows the interquartile range, with the central line showing the median. The whisker shows the full range, excluding outliers.
A29: An outlier is defined as a council area that is more than 1.5 times the interquartile range below the lower quartile or above the upper quartile.
A30: Outlier council areas typically have very few datazones in the particular SIMD decile.
A32: ABPE = Administrative Data Based Population Estimates
A33: MYE = Mid-year estimates - the National Statistics for Scotland's population. Can be found at the Population Estimates section of the NRS website.

Sheet CA Comparison (hidden)
B1: UR | C1: =INDEX(O28:O60,O27) -> Scotland | H1: =CONCATENATE("Population Pyramid for ABPE and MYE for ",C1,", ",C2) -> Population Pyramid for ABPE and MYE for Scotland, 2016 | O1: 2016
B2: Year | C2: =INDEX(Years,O4) -> 2016 | H2: =IF(AND(C1="Fife",C2=2017),"Note that the 2017 ABPE estimates for Fife are affected by a clerical issue with ER data. See the accompanying QAAD document for further information","") ->  | O2: 2017 | Q2: =CONCATENATE("Percentage difference between ABPE and MYE for ",C1," by age and sex ",C2) -> Percentage difference between ABPE and MYE for Scotland by age and sex 2016 | R2: =CONCATENATE("Difference between ABPE and MYE for ",C1," by age and sex ",C2) -> Difference between ABPE and MYE for Scotland by age and sex 2016
O3: 2018 | Q3: =CONCATENATE("Percentage difference between ABPE and MYE for ",C1," by 5-year age band and sex ",C2) -> Percentage difference between ABPE and MYE for Scotland by 5-year age band and sex 2016 | R3: =CONCATENATE("Difference between ABPE and MYE for ",C1," by 5-year age band and sex ",C2) -> Difference between ABPE and MYE for Scotland by 5-year age band and sex 2016
B4: =CONCATENATE("'ABPE LA ",$C$2,"'!$B$7:$Ah$98") -> 'ABPE LA 2016'!$B$7:$Ah$98 | C4: =CONCATENATE("'ABPE LA ",$C$2,"'!$ai$7:$bo$98") -> 'ABPE LA 2016'!$ai$7:$bo$98 | H4: Absolute difference | K4: =89/90 -> 0.9888888889 | L4: Pyramid | O4: 1 | U4: Percenatge difference | W4: Absolute difference
A5: Age | B5: ABPE - F | C5: ABPE - M | D5: MYE - F | E5: MYE - M | F5: Females | G5: Males | H5: Females | I5: Males | J5: Baseline | L5: ABPE - F | M5: MYE - F | P5: Age range | Q5: ABPE - F | R5: ABPE - M | S5: MYE - F | T5: MYE - M | U5: Females | V5: Males | W5: Females | X5: Males
A6: 0 | B6: =HLOOKUP($C$1,INDIRECT(B$4),$A6+2,0) -> 26806 | C6: =HLOOKUP($C$1,INDIRECT(C$4),$A6+2,0) -> 28731 | D6: =IF($C$1="Scotland",SUM(INDIRECT("'MYE "&$C$2&" F'!D"&A6+10&":JHK"&A6+10)),SUMIF(INDIRECT("'MYE "&$C$2&" F'!$D$5:$JHK$5"),$C$1,INDIRECT("'MYE "&$C$2&" F'!D"&A6+10&":JHK"&A6+10))) -> 26819 | E6: =IF($C$1="Scotland",SUM(INDIRECT("'MYE "&$C$2&" M'!D"&A6+10&":JHK"&A6+10)),SUMIF(INDIRECT("'MYE "&$C$2&" M'!$D$5:$JHK$5"),$C$1,INDIRECT("'MYE "&$C$2&" M'!D"&A6+10&":JHK"&A6+10))) -> 28697 | F6: =(B6-D6)/D6 -> -0.0004847309743 | G6: =(C6-E6)/E6 -> 0.001184792835 | H6: =B6-D6 -> -13 | I6: =C6-E6 -> 34 | J6: 0 | K6: 0.5 | L6: =-B6 -> -26806 | M6: =-D6 -> -26819 | O6: 0 | P6: =CONCATENATE(O6," - ",O6+4) -> 0 - 4 | Q6: =SUMIFS(B$6:B$96,$A$6:$A$96,">=" & $O6,$A$6:$A$96,"<" & $O7) -> 138635 | R6: =SUMIFS(C$6:C$96,$A$6:$A$96,">=" & $O6,$A$6:$A$96,"<" & $O7) -> 146502 | S6: =SUMIFS(D$6:D$96,$A$6:$A$96,">=" & $O6,$A$6:$A$96,"<" & $O7) -> 139711 | T6: =SUMIFS(E$6:E$96,$A$6:$A$96,">=" & $O6,$A$6:$A$96,"<" & $O7) -> 147527 | U6: =(Q6-S6)/S6 -> -0.007701612615 | V6: =(R6-T6)/T6 -> -0.006947880727 | W6: =Q6-S6 -> -1076 | X6: =R6-T6 -> -1025
A7: 1 | B7: =HLOOKUP($C$1,INDIRECT(B$4),$A7+2,0) -> 27115 | C7: =HLOOKUP($C$1,INDIRECT(C$4),$A7+2,0) -> 28612 | D7: =IF($C$1="Scotland",SUM(INDIRECT("'MYE "&$C$2&" F'!D"&A7+10&":JHK"&A7+10)),SUMIF(INDIRECT("'MYE "&$C$2&" F'!$D$5:$JHK$5"),$C$1,INDIRECT("'MYE "&$C$2&" F'!D"&A7+10&":JHK"&A7+10))) -> 27567 | E7: =IF($C$1="Scotland",SUM(INDIRECT("'MYE "&$C$2&" M'!D"&A7+10&":JHK"&A7+10)),SUMIF(INDIRECT("'MYE "&$C$2&" M'!$D$5:$JHK$5"),$C$1,INDIRECT("'MYE "&$C$2&" M'!D"&A7+10&":JHK"&A7+10))) -> 29017 | F7: =(B7-D7)/D7 -> -0.016396416 | G7: =(C7-E7)/E7 -> -0.01395733536 | H7: =B7-D7 -> -452 | I7: =C7-E7 -> -405 | J7: 0 | K7: =K6+$K$4 -> 1.488888889 | L7: =-B7 -> -27115 | M7: =-D7 -> -27567 | O7: =O6+5 -> 5 | P7: =CONCATENATE(O7," - ",O7+4) -> 5 - 9 | Q7: 145579 | R7: 152021 | S7: 146570 | T7: 152292 | U7: =(Q7-S7)/S7 -> -0.006761274476 | V7: =(R7-T7)/T7 -> -0.001779476269 | W7: =Q7-S7 -> -991 | X7: =R7-T7 -> -271
A8: 2 | B8: 27508 | C8: 29058 | D8: 27788 | E8: 29377 | F8: -0.01007629192 | G8: -0.01085883514 | H8: -280 | I8: -319 | J8: 0 | K8: =K7+$K$4 -> 2.477777778 | L8: -27508 | M8: -27788 | O8: =O7+5 -> 10 | P8: 10 - 14 | Q8: 134127 | R8: 140628 | S8: 133997 | T8: 140381 | U8: 0.000970170974 | V8: 0.001759497368 | W8: 130 | X8: 247
A9: 3 | B9: 28242 | C9: 29500 | D9: 28504 | E9: 29728 | F9: -0.009191692394 | G9: -0.007669537137 | H9: -262 | I9: -228 | J9: 0 | K9: 3.466666667 | L9: -28242 | M9: -28504 | O9: 15 | P9: 15 - 19 | Q9: 144983 | R9: 149929 | S9: 146046 | T9: 152614 | U9: -0.007278528683 | V9: -0.01759340559 | W9: -1063 | X9: -2685
A10: 4 | B10: 28964 | C10: 30601 | D10: 29033 | E10: 30708 | F10: -0.002376605931 | G10: -0.003484434024 | H10: -69 | I10: -107 | J10: 0 | K10: 4.455555556 | L10: -28964 | M10: -29033 | O10: 20 | P10: 20 - 24 | Q10: 182507 | R10: 175722 | S10: 182279 | T10: 181688 | U10: 0.001250829772 | V10: -0.03283651094 | W10: 228 | X10: -5966
A11: 5 | B11: 28919 | C11: 30445 | D11: 30162 | E11: 31533 | F11: -0.04121079504 | G11: -0.03450353598 | H11: -1243 | I11: -1088 | J11: 0 | K11: 5.444444444 | L11: -28919 | M11: -30162 | O11: 25 | P11: 25 - 29 | Q11: 186618 | R11: 183493 | S11: 187975 | T11: 186149 | U11: -0.007219045086 | V11: -0.01426814004 | W11: =Q11-S11 -> -1357 | X11: -2656
A12: 6 | B12: 29416 | C12: 30426 | D12: 28855 | E12: 29946 | F12: 0.01944203778 | G12: 0.01602885193 | H12: 561 | I12: 480 | J12: 0 | K12: 6.433333333 | L12: -29416 | M12: -28855 | O12: 30 | P12: 30 - 34 | Q12: 182395 | R12: 178911 | S12: 179608 | T12: 172305 | U12: 0.01551712619 | V12: 0.0383389919 | W12: 2787 | X12: 6606
A13: 7 | B13: 29313 | C13: 30713 | D13: 29683 | E13: 30653 | F13: -0.01246504733 | G13: 0.001957394056 | H13: -370 | I13: 60 | J13: 0 | K13: 7.422222222 | L13: -29313 | M13: -29683 | O13: 35 | P13: 35 - 39 | Q13: 168397 | R13: 168280 | S13: 166485 | T13: 161268 | U13: 0.01148451812 | V13: 0.04348041769 | W13: 1912 | X13: 7012
A14: 8 | B14: 29574 | C14: 30551 | D14: 29598 | E14: 30586 | F14: -0.000810865599 | G14: -0.001144314392 | H14: -24 | I14: -35 | J14: 0 | K14: 8.411111111 | L14: -29574 | M14: -29598 | O14: 40 | P14: 40 - 44 | Q14: 172654 | R14: 170287 | S14: 172709 | T14: 164929 | U14: -0.0003184547418 | V14: 0.0324867064 | W14: -55 | X14: 5358
A15: 9 | B15: 28357 | C15: 29886 | D15: 28272 | E15: 29574 | F15: 0.003006508206 | G15: 0.01054980726 | H15: 85 | I15: 312 | J15: 0 | K15: 9.4 | L15: -28357 | M15: -28272 | O15: 45 | P15: 45 - 49 | Q15: 201423 | R15: 196925 | S15: 202829 | T15: 189422 | U15: -0.006931947601 | V15: 0.03960997139 | W15: -1406 | X15: 7503
A16: 10 | B16: 27647 | C16: 28871 | D16: 27796 | E16: 28838 | F16: -0.005360483523 | G16: 0.001144323462 | H16: -149 | I16: 33 | J16: 0 | K16: 10.38888889 | L16: -27647 | M16: -27796 | O16: 50 | P16: 50 - 54 | Q16: 209780 | R16: 208200 | S16: 209262 | T16: 197429 | U16: 0.002475365809 | V16: 0.05455632151 | W16: 518 | X16: 10771
A17: 11 | B17: 27118 | C17: 28853 | D17: 27257 | E17: 28885 | F17: -0.00509960744 | G17: -0.00110784144 | H17: -139 | I17: -32 | J17: 0 | K17: 11.37777778 | L17: -27118 | M17: -27257 | O17: 55 | P17: 55 - 59 | Q17: 190448 | R17: 186988 | S17: 190084 | T17: 180737 | U17: 0.001914942867 | V17: 0.03458616664 | W17: 364 | X17: 6251
A18: 12 | B18: 26919 | C18: 28443 | D18: 26739 | E18: 28344 | F18: 0.006731740155 | G18: 0.00349280271 | H18: 180 | I18: 99 | J18: 0 | K18: 12.36666667 | L18: -26919 | M18: -26739 | O18: 60 | P18: 60 - 64 | Q18: 163904 | R18: 159382 | S18: 165146 | T18: 156406 | U18: -0.00752061812 | V18: 0.01902740304 | W18: -1242 | X18: 2976
A19: 13 | B19: 26311 | C19: 27349 | D19: 26167 | E19: 27231 | F19: 0.00550311461 | G19: 0.00433329661 | H19: 144 | I19: 118 | J19: 0 | K19: 13.35555556 | L19: -26311 | M19: -26167 | O19: 65 | P19: 65 - 69 | Q19: 160518 | R19: 152410 | S19: 164057 | T19: 153467 | U19: -0.02157177079 | V19: -0.00688747418 | W19: -3539 | X19: -1057
A20: 14 | B20: 26132 | C20: 27112 | D20: 26038 | E20: 27083 | F20: 0.003610108303 | G20: 0.00107078241 | H20: 94 | I20: 29 | J20: 0 | K20: 14.34444444 | L20: -26132 | M20: -26038 | O20: 70 | P20: 70 - 74 | Q20: 123945 | R20: 110063 | S20: 127150 | T20: 111869 | U20: -0.02520644908 | V20: -0.01614388258 | W20: -3205 | X20: -1806
A21: 15 | B21: 27073 | C21: 28036 | D21: 27243 | E21: 28196 | F21: -0.006240135081 | G21: -0.005674563768 | H21: -170 | I21: -160 | J21: 0 | K21: 15.33333333 | L21: -27073 | M21: -27243 | O21: 75 | P21: 75 - 79 | Q21: 101720 | R21: 80698 | S21: 104331 | T21: 82515 | U21: -0.02502611879 | V21: -0.02202023874 | W21: -2611 | X21: -1817
A22: 16 | B22: 27274 | C22: 28830 | D22: 27563 | E22: 29300 | F22: -0.01048507057 | G22: -0.01604095563 | H22: -289 | I22: -470 | J22: 0 | K22: 16.32222222 | L22: -27274 | M22: -27563 | O22: 80 | P22: 80 - 84 | Q22: 77790 | R22: 54582 | S22: 80217 | T22: 56201 | U22: -0.03025543214 | V22: -0.0288073166 | W22: -2427 | X22: -1619
A23: 17 | B23: 28333 | C23: 29550 | D23: 28702 | E23: 30279 | F23: -0.01285624695 | G23: -0.02407609234 | H23: -369 | I23: -729 | J23: 0 | K23: 17.31111111 | L23: -28333 | M23: -28702 | O23: 85 | P23: 85 - 89 | Q23: 48445 | R23: 27487 | S23: 49691 | T23: 28287 | U23: -0.02507496327 | V23: -0.02828154276 | W23: -1246 | X23: -800
A24: 18 | B24: 29484 | C24: 30522 | D24: 29789 | E24: 31162 | F24: -0.01023867871 | G24: -0.02053783454 | H24: -305 | I24: -640 | J24: 0 | K24: 18.3 | L24: -29484 | M24: -29789 | O24: 90 | P24: 90+ | Q24: 27539 | R24: 10925 | S24: 29050 | T24: 12017 | U24: -0.05201376936 | V24: -0.09087126571 | W24: -1511 | X24: -1092
A25: 19 | B25: 32819 | C25: 32991 | D25: 32749 | E25: 33677 | F25: 0.002137469846 | G25: -0.02036998545 | H25: 70 | I25: -686 | J25: 0 | K25: 19.28888889 | L25: -32819 | M25: -32749 | O25: 95
A26: 20 | B26: 33726 | C26: 32725 | D26: 33871 | E26: 34653 | F26: -0.004280948304 | G26: -0.05563731856 | H26: -145 | I26: -1928 | J26: 0 | K26: 20.27777778 | L26: -33726 | M26: -33871
A27: 21 | B27: 35362 | C27: 33859 | D27: 34923 | E27: 35175 | F27: 0.01257051227 | G27: -0.03741293532 | H27: 439 | I27: -1316 | J27: 0 | K27: 21.26666667 | L27: -35362 | M27: -34923 | O27: 33
A28: 22 | B28: 37075 | C28: 35765 | D28: 36314 | E28: 36261 | F28: 0.02095610508 | G28: -0.01367860787 | H28: 761 | I28: -496 | J28: 0 | K28: 22.25555556 | L28: -37075 | M28: -36314 | O28: Aberdeen City
A29: 23 | B29: 37797 | C29: 35936 | D29: 37631 | E29: 36791 | F29: 0.004411256677 | G29: -0.0232393792 | H29: 166 | I29: -855 | J29: 0 | K29: 23.24444444 | L29: -37797 | M29: -37631 | O29: Aberdeenshire
A30: 24 | B30: 38547 | C30: 37437 | D30: 39540 | E30: 38808 | F30: -0.0251138088 | G30: -0.03532776747 | H30: -993 | I30: -1371 | J30: 0 | K30: 24.23333333 | L30: -38547 | M30: -39540 | O30: Angus
A31: 25 | B31: 38203 | C31: 37391 | D31: 38982 | E31: 39073 | F31: -0.01998358217 | G31: -0.0430476288 | H31: -779 | I31: -1682 | J31: 0 | K31: 25.22222222 | L31: -38203 | M31: -38982 | O31: Argyll and Bute
A32: 26 | B32: 36977 | C32: 36188 | D32: 37498 | E32: 37445 | F32: -0.01389407435 | G32: -0.03356923488 | H32: -521 | I32: -1257 | J32: 0 | K32: 26.21111111 | L32: -36977 | M32: -37498 | O32: City of Edinburgh
A33: 27 | B33: 36695 | C33: 36181 | D33: 37318 | E33: 37102 | F33: -0.01669435661 | G33: -0.02482345965 | H33: -623 | I33: -921 | J33: 0 | K33: 27.2 | L33: -36695 | M33: -37318 | O33: Clackmannanshire
A34: 28 | B34: 37529 | C34: 37083 | D34: 37556 | E34: 36957 | F34: -0.0007189264032 | G34: 0.003409367643 | H34: -27 | I34: 126 | J34: 0 | K34: 28.18888889 | L34: -37529 | M34: -37556 | O34: Dumfries and Galloway
A35: 29 | B35: 37214 | C35: 36650 | D35: 36621 | E35: 35572 | F35: 0.01619289479 | G35: 0.03030473406 | H35: 593 | I35: 1078 | J35: 0 | K35: 29.17777778 | L35: -37214 | M35: -36621 | O35: Dundee City
A36: 30 | B36: 36890 | C36: 36680 | D36: 36099 | E36: 35467 | F36: 0.02191196432 | G36: 0.03420080638 | H36: 791 | I36: 1213 | J36: 0 | K36: 30.16666667 | L36: -36890 | M36: -36099 | O36: East Ayrshire
A37: 31 | B37: 37148 | C37: 36177 | D37: 36312 | E37: 34774 | F37: 0.02302269222 | G37: 0.04034623569 | H37: 836 | I37: 1403 | J37: 0 | K37: 31.15555556 | L37: -37148 | M37: -36312 | O37: East Dunbartonshire
A38: 32 | B38: 35999 | C38: 35446 | D38: 35089 | E38: 33786 | F38: 0.02593405341 | G38: 0.04913277689 | H38: 910 | I38: 1660 | J38: 0 | K38: 32.14444444 | L38: -35999 | M38: -35089 | O38: East Lothian
A39: 33 | B39: =HLOOKUP($C$1,INDIRECT(B$4),$A39+2,0) -> 36102 | C39: 35124 | D39: 35723 | E39: 34032 | F39: 0.0106094113 | G39: 0.03208744711 | H39: 379 | I39: 1092 | J39: 0 | K39: 33.13333333 | L39: -36102 | M39: -35723 | O39: East Renfrewshire
A40: 34 | B40: 36256 | C40: 35484 | D40: 36385 | E40: 34246 | F40: -0.003545417067 | G40: 0.03615020732 | H40: -129 | I40: 1238 | J40: 0 | K40: 34.12222222 | L40: -36256 | M40: -36385 | O40: Falkirk
A41: 35 | B41: 36299 | C41: 36034 | D41: 35753 | E41: 34347 | F41: 0.01527144575 | G41: 0.04911637115 | H41: 546 | I41: 1687 | J41: 0 | K41: 35.11111111 | L41: -36299 | M41: -35753 | O41: Fife
A42: 36 | B42: 35467 | C42: 35400 | D42: 34995 | E42: 33701 | F42: 0.01348764109 | G42: 0.0504139343 | H42: 472 | I42: 1699 | J42: 0 | K42: 36.1 | L42: -35467 | M42: -34995 | O42: Glasgow City
A43: 37 | B43: 33974 | C43: 34448 | D43: 33471 | E43: 32926 | F43: 0.01502793463 | G43: 0.04622486789 | H43: 503 | I43: 1522 | J43: 0 | K43: 37.08888889 | L43: -33974 | M43: -33471 | O43: Highland
A44: 38 | B44: 32041 | C44: 31385 | D44: 31663 | E44: 30125 | F44: 0.01193822443 | G44: 0.04182572614 | H44: 378 | I44: 1260 | J44: 0 | K44: 38.07777778 | L44: -32041 | M44: -31663 | O44: Inverclyde
A45: 39 | B45: 30616 | C45: 31013 | D45: 30603 | E45: 30169 | F45: 0.0004247949547 | G45: 0.02797573668 | H45: 13 | I45: 844 | J45: 0 | K45: 39.06666667 | L45: -30616 | M45: -30603 | O45: Midlothian
A46: 40 | B46: 32723 | C46: 32492 | D46: 32622 | E46: 31504 | F46: 0.003096070137 | G46: 0.031361097 | H46: 101 | I46: 988 | J46: 0 | K46: 40.05555556 | L46: -32723 | M46: -32622 | O46: Moray
A47: 41 | B47: 33193 | C47: 32579 | D47: 33160 | E47: 31398 | F47: 0.0009951749095 | G47: 0.03761386076 | H47: 33 | I47: 1181 | J47: 0 | K47: 41.04444444 | L47: -33193 | M47: -33160 | O47: Na h-Eileanan Siar
A48: 42 | B48: 33333 | C48: 33261 | D48: 33272 | E48: 32214 | F48: 0.001833373407 | G48: 0.03250139691 | H48: 61 | I48: 1047 | J48: 0 | K48: 42.03333333 | L48: -33333 | M48: -33272 | O48: North Ayrshire
A49: 43 | B49: 35517 | C49: 35091 | D49: 35532 | E49: 34054 | F49: -0.0004221546775 | G49: 0.03045163564 | H49: -15 | I49: 1037 | J49: 0 | K49: 43.02222222 | L49: -35517 | M49: -35532 | O49: North Lanarkshire
A50: 44 | B50: 37888 | C50: 36864 | D50: 38123 | E50: 35759 | F50: -0.006164257797 | G50: 0.03090131156 | H50: -235 | I50: 1105 | J50: 0 | K50: 44.01111111 | L50: -37888 | M50: -38123 | O50: Orkney Islands
A51: 45 | B51: 39597 | C51: 38534 | D51: 39905 | E51: 36884 | F51: -0.007718331036 | G51: 0.04473484438 | H51: -308 | I51: 1650 | J51: 0 | K51: 45 | L51: -39597 | M51: -39905 | O51: Perth and Kinross
A52: 46 | B52: 39032 | C52: 38165 | D52: 39222 | E52: 36481 | F52: -0.004844220081 | G52: 0.04616101532 | H52: -190 | I52: 1684 | J52: 0 | K52: 45.98888889 | L52: -39032 | M52: -39222 | O52: Renfrewshire
A53: 47 | B53: 40400 | C53: 39581 | D53: 40801 | E53: 37985 | F53: -0.009828190486 | G53: 0.04201658549 | H53: -401 | I53: 1596 | J53: 0 | K53: 46.97777778 | L53: -40400 | M53: -40801 | O53: Scottish Borders
A54: 48 | B54: 41251 | C54: 39990 | D54: 41543 | E54: 38668 | F54: -0.007028861661 | G54: 0.03418847626 | H54: -292 | I54: 1322 | J54: 0 | K54: 47.96666667 | L54: -41251 | M54: -41543 | O54: Shetland Islands
A55: 49 | B55: 41143 | C55: 40655 | D55: 41358 | E55: 39404 | F55: -0.005198510566 | G55: 0.03174804588 | H55: -215 | I55: 1251 | J55: 0 | K55: 48.95555556 | L55: -41143 | M55: -41358 | O55: South Ayrshire
A56: 50 | B56: 41554 | C56: 41748 | D56: 41391 | E56: 38795 | F56: 0.003938054166 | G56: 0.07611805645 | H56: 163 | I56: 2953 | J56: 0 | K56: 49.94444444 | L56: -41554 | M56: -41391 | O56: South Lanarkshire
A57: 51 | B57: 42720 | C57: 42402 | D57: 42646 | E57: 40421 | F57: 0.001735215495 | G57: 0.0490091784 | H57: 74 | I57: 1981 | J57: 0 | K57: 50.93333333 | L57: -42720 | M57: -42646 | O57: Stirling
A58: 52 | B58: 42598 | C58: 41985 | D58: 42441 | E58: 39547 | F58: 0.003699253081 | G58: 0.06164816547 | H58: 157 | I58: 2438 | J58: 0 | K58: 51.92222222 | L58: -42598 | M58: -42441 | O58: West Dunbartonshire
A59: 53 | B59: 42092 | C59: 41146 | D59: 42060 | E59: 39588 | F59: 0.0007608178792 | G59: 0.03935536021 | H59: 32 | I59: 1558 | J59: 0 | K59: 52.91111111 | L59: -42092 | M59: -42060 | O59: West Lothian
A60: 54 | B60: 40816 | C60: 40919 | D60: 40724 | E60: 39078 | F60: 0.002259110107 | G60: 0.04711090639 | H60: 92 | I60: 1841 | J60: 0 | K60: 53.9 | L60: -40816 | M60: -40724 | O60: Scotland
A61: 55 | B61: 39998 | C61: 39333 | D61: 39939 | E61: 38031 | F61: 0.001477252811 | G61: 0.03423522916 | H61: 59 | I61: 1302 | J61: 0 | K61: 54.88888889 | L61: -39998 | M61: -39939
A62: 56 | B62: 38550 | C62: 38488 | D62: 38427 | E62: 36862 | F62: 0.003200874385 | G62: 0.04411046606 | H62: 123 | I62: 1626 | J62: 0 | K62: 55.87777778 | L62: -38550 | M62: -38427
A63: 57 | B63: 38514 | C63: 37579 | D63: 38397 | E63: 36217 | F63: 0.003047113056 | G63: 0.03760664881 | H63: 117 | I63: 1362 | J63: 0 | K63: 56.86666667 | L63: -38514 | M63: -38397
A64: 58 | B64: 37325 | C64: 36300 | D64: 37263 | E64: 35210 | F64: 0.001663848858 | G64: 0.03095711446 | H64: 62 | I64: 1090 | J64: 0 | K64: 57.85555556 | L64: -37325 | M64: -37263
A65: 59 | B65: 36061 | C65: 35288 | D65: 36058 | E65: 34417 | F65: 8.319929003e-05 | G65: 0.02530726095 | H65: 3 | I65: 871 | J65: 0 | K65: 58.84444444 | L65: -36061 | M65: -36058
A66: 60 | B66: 34760 | C66: 34097 | D66: 34941 | E66: 33311 | F66: -0.005180160843 | G66: 0.02359580919 | H66: -181 | I66: 786 | J66: 0 | K66: 59.83333333 | L66: -34760 | M66: -34941
A67: 61 | B67: 33595 | C67: 32480 | D67: 33606 | E67: 31726 | F67: -0.0003273225019 | G67: 0.02376599634 | H67: -11 | I67: 754 | J67: 0 | K67: 60.82222222 | L67: -33595 | M67: -33606
A68: 62 | B68: 32840 | C68: 31945 | D68: 33002 | E68: 31363 | F68: -0.004908793406 | G68: 0.01855689826 | H68: -162 | I68: 582 | J68: 0 | K68: 61.81111111 | L68: -32840 | M68: -33002
A69: 63 | B69: 32008 | C69: 31122 | D69: 32395 | E69: 30581 | F69: -0.01194628801 | G69: 0.017690723 | H69: -387 | I69: 541 | J69: 0 | K69: 62.8 | L69: -32008 | M69: -32395
A70: 64 | B70: 30701 | C70: 29738 | D70: 31202 | E70: 29425 | F70: -0.01605666303 | G70: 0.01063721325 | H70: -501 | I70: 313 | J70: 0 | K70: 63.78888889 | L70: -30701 | M70: -31202
A71: 65 | B71: =HLOOKUP($C$1,INDIRECT(B$4),$A71+2,0) -> 30930 | C71: 29528 | D71: =IF($C$1="Scotland",SUM(INDIRECT("'MYE "&$C$2&" F'!D"&A71+10&":JHK"&A71+10)),SUMIF(INDIRECT("'MYE "&$C$2&" F'!$D$5:$JHK$5"),$C$1,INDIRECT("'MYE "&$C$2&" F'!D"&A71+10&":JHK"&A71+10))) -> 31507 | E71: =IF($C$1="Scotland",SUM(INDIRECT("'MYE "&$C$2&" M'!D"&A71+10&":JHK"&A71+10)),SUMIF(INDIRECT("'MYE "&$C$2&" M'!$D$5:$JHK$5"),$C$1,INDIRECT("'MYE "&$C$2&" M'!D"&A71+10&":JHK"&A71+10))) -> 29569 | F71: =(B71-D71)/D71 -> -0.01831339068 | G71: =(C71-E71)/E71 -> -0.001386587304 | H71: =B71-D71 -> -577 | I71: =C71-E71 -> -41 | J71: 0 | K71: 64.77777778 | L71: =-B71 -> -30930 | M71: =-D71 -> -31507
A72: 66 | B72: 30532 | C72: 29443 | D72: 31414 | E72: 29668 | F72: -0.02807665372 | G72: -0.007583928812 | H72: -882 | I72: -225 | J72: 0 | K72: =K71+$K$4 -> 65.76666667 | L72: -30532 | M72: -31414
A73: 67 | B73: 31324 | C73: 29965 | D73: 32127 | E73: 30193 | F73: -0.02499455287 | G73: -0.007551419203 | H73: -803 | I73: -228 | J73: 0 | K73: 66.75555556 | L73: -31324 | M73: -32127
A74: 68 | B74: 32552 | C74: 30624 | D74: 33103 | E74: 30916 | F74: -0.01664501707 | G74: -0.0094449476 | H74: -551 | I74: -292 | J74: 0 | K74: 67.74444444 | L74: -32552 | M74: -33103
A75: 69 | B75: 35180 | C75: 32850 | D75: 35906 | E75: 33121 | F75: -0.02021946193 | G75: -0.008182120105 | H75: -726 | I75: -271 | J75: 0 | K75: 68.73333333 | L75: -35180 | M75: -35906
A76: 70 | B76: 26255 | C76: 24313 | D76: 26974 | E76: 24797 | F76: -0.02665529769 | G76: -0.01951849014 | H76: -719 | I76: -484 | J76: 0 | K76: 69.72222222 | L76: -26255 | M76: -26974
A77: 71 | B77: 25030 | C77: 22536 | D77: 25687 | E77: 22863 | F77: -0.02557714019 | G77: -0.01430258496 | H77: -657 | I77: -327 | J77: 0 | K77: 70.71111111 | L77: -25030 | M77: -25687
A78: 72 | B78: 25288 | C78: 22873 | D78: 25970 | E78: 23308 | F78: -0.02626107047 | G78: -0.01866311996 | H78: -682 | I78: -435 | J78: 0 | K78: 71.7 | L78: -25288 | M78: -25970
A79: 73 | B79: 24780 | C79: 21222 | D79: 25265 | E79: 21528 | F79: -0.01919651692 | G79: -0.01421404682 | H79: -485 | I79: -306 | J79: 0 | K79: 72.68888889 | L79: -24780 | M79: -25265
A80: 74 | B80: 22592 | C80: 19119 | D80: 23254 | E80: 19373 | F80: -0.02846822052 | G80: -0.01311103082 | H80: -662 | I80: -254 | J80: 0 | K80: 73.67777778 | L80: -22592 | M80: -23254
A81: 75 | B81: 21086 | C81: 17166 | D81: 21636 | E81: 17496 | F81: -0.0254205953 | G81: -0.01886145405 | H81: -550 | I81: -330 | J81: 0 | K81: 74.66666667 | L81: -21086 | M81: -21636
A82: 76 | B82: 21221 | C82: 17191 | D82: 21833 | E82: 17603 | F82: -0.0280309623 | G82: -0.0234051014 | H82: -612 | I82: -412 | J82: 0 | K82: 75.65555556 | L82: -21221 | M82: -21833
A83: 77 | B83: 20605 | C83: 16466 | D83: 21118 | E83: 16869 | F83: -0.02429207311 | G83: -0.0238899757 | H83: -513 | I83: -403 | J83: 0 | K83: 76.64444444 | L83: -20605 | M83: -21118
A84: 78 | B84: 19971 | C84: 15762 | D84: 20348 | E84: 16115 | F84: -0.01852761942 | G84: -0.0219050574 | H84: -377 | I84: -353 | J84: 0 | K84: 77.63333333 | L84: -19971 | M84: -20348
A85: 79 | B85: 18837 | C85: 14113 | D85: 19396 | E85: 14432 | F85: -0.02882037534 | G85: -0.02210365854 | H85: -559 | I85: -319 | J85: 0 | K85: 78.62222222 | L85: -18837 | M85: -19396
A86: 80 | B86: 17866 | C86: 13202 | D86: 18453 | E86: 13546 | F86: -0.03181054571 | G86: -0.02539495054 | H86: -587 | I86: -344 | J86: 0 | K86: 79.61111111 | L86: -17866 | M86: -18453
A87: 81 | B87: 16660 | C87: 12072 | D87: 17214 | E87: 12469 | F87: -0.03218310677 | G87: -0.03183896062 | H87: -554 | I87: -397 | J87: 0 | K87: 80.6 | L87: -16660 | M87: -17214
A88: 82 | B88: 15435 | C88: 10775 | D88: 15965 | E88: 11120 | F88: -0.03319761979 | G88: -0.03102517986 | H88: -530 | I88: -345 | J88: 0 | K88: 81.58888889 | L88: -15435 | M88: -15965
A89: 83 | B89: 14245 | C89: 9741 | D89: 14544 | E89: 9975 | F89: -0.02055830583 | G89: -0.02345864662 | H89: -299 | I89: -234 | J89: 0 | K89: 82.57777778 | L89: -14245 | M89: -14544
A90: 84 | B90: 13584 | C90: 8792 | D90: 14041 | E90: 9091 | F90: -0.03254753935 | G90: -0.0328896711 | H90: -457 | I90: -299 | J90: 0 | K90: 83.56666667 | L90: -13584 | M90: -14041
A91: 85 | B91: 12315 | C91: 7688 | D91: 12678 | E91: 7894 | F91: -0.02863227638 | G91: -0.02609576894 | H91: -363 | I91: -206 | J91: 0 | K91: 84.55555556 | L91: -12315 | M91: -12678
A92: 86 | B92: 10981 | C92: 6388 | D92: 11277 | E92: 6573 | F92: -0.02624811563 | G92: -0.02814544348 | H92: -296 | I92: -185 | J92: 0 | K92: 85.54444444 | L92: -10981 | M92: -11277
A93: 87 | B93: 9640 | C93: 5465 | D93: 9897 | E93: 5635 | F93: -0.02596746489 | G93: -0.03016858917 | H93: -257 | I93: -170 | J93: 0 | K93: 86.53333333 | L93: -9640 | M93: -9897
A94: 88 | B94: 8260 | C94: 4360 | D94: 8421 | E94: 4454 | F94: -0.01911886949 | G94: -0.02110462506 | H94: -161 | I94: -94 | J94: 0 | K94: 87.52222222 | L94: -8260 | M94: -8421
A95: 89 | B95: 7249 | C95: 3586 | D95: 7418 | E95: 3731 | F95: -0.02278242114 | G95: -0.03886357545 | H95: -169 | I95: -145 | J95: 0 | K95: 88.51111111 | L95: -7249 | M95: -7418
A96: 90 | B96: 27539 | C96: 10925 | D96: 29050 | E96: 12017 | F96: -0.05201376936 | G96: -0.09087126571 | H96: -1511 | I96: -1092 | J96: 0 | K96: 89.5 | L96: -27539 | M96: -29050

Sheet UR Comparison (hidden)
B1: Category | C1: =INDEX(L28:L35,L27) -> Large Urban Areas | L1: 2016
B2: Year | C2: =INDEX(L1:L3,L4) -> 2016 | L2: 2017 | N2: =CONCATENATE("Percentage difference between ABPE and MYE for ",C1," by age and sex ",C2) -> Percentage difference between ABPE and MYE for Large Urban Areas by age and sex 2016 | O2: =CONCATENATE("Difference between ABPE and MYE for ",C1," by age and sex ",C2) -> Difference between ABPE and MYE for Large Urban Areas by age and sex 2016
L3: 2018 | N3: =CONCATENATE("Percentage difference between ABPE and MYE for ",C1," by 5-year age band and sex ",C2) -> Percentage difference between ABPE and MYE for Large Urban Areas by 5-year age band and sex 2016 | O3: =CONCATENATE("Difference between ABPE and MYE for ",C1," by 5-year age band and sex ",C2) -> Difference between ABPE and MYE for Large Urban Areas by 5-year age band and sex 2016
B4: =CONCATENATE("'ABPE UR ",$C$2,"'!$B$7:$I$98") -> 'ABPE UR 2016'!$B$7:$I$98 | C4: =CONCATENATE("'ABPE UR ",$C$2,"'!$j$7:$bm$98") -> 'ABPE UR 2016'!$j$7:$bm$98 | H4: Absolute difference | L4: 1 | R4: Percenatge difference | T4: Absolute difference
A5: Age | B5: ABPE - F | C5: ABPE - M | D5: MYE - F | E5: MYE - M | F5: Females | G5: Males | H5: Females | I5: Males | J5: Baseline | M5: Age range | N5: ABPE - F | O5: ABPE - M | P5: MYE - F | Q5: MYE - M | R5: Females | S5: Males | T5: Females | U5: Males
A6: 0 | B6: =HLOOKUP($C$1,INDIRECT(B$4),$A6+2,0) -> 9793 | C6: =HLOOKUP($C$1,INDIRECT(C$4),$A6+2,0) -> 10361 | D6: =SUMIF(INDIRECT("'MYE "&$C$2&" F'!$D$7:$JHK$7"),$L$36,INDIRECT("'MYE "&$C$2&" F'!D"&$A6+10&":JHK"&$A6+10)) -> 9804 | E6: =SUMIF(INDIRECT("'MYE "&$C$2&" M'!$D$7:$JHK$7"),$L$36,INDIRECT("'MYE "&$C$2&" M'!D"&$A6+10&":JHK"&$A6+10)) -> 10314 | F6: =(B6-D6)/D6 -> -0.001121991024 | G6: =(C6-E6)/E6 -> 0.004556912934 | H6: =B6-D6 -> -11 | I6: =C6-E6 -> 47 | J6: 0 | L6: 0 | M6: =CONCATENATE(L6," - ",L6+4) -> 0 - 4 | N6: =SUMIFS(B$6:B$96,$A$6:$A$96,">=" & $L6,$A$6:$A$96,"<" & $L7) -> 48952 | O6: =SUMIFS(C$6:C$96,$A$6:$A$96,">=" & $L6,$A$6:$A$96,"<" & $L7) -> 51585 | P6: =SUMIFS(D$6:D$96,$A$6:$A$96,">=" & $L6,$A$6:$A$96,"<" & $L7) -> 49630 | Q6: =SUMIFS(E$6:E$96,$A$6:$A$96,">=" & $L6,$A$6:$A$96,"<" & $L7) -> 52025 | R6: =(N6-P6)/P6 -> -0.01366109208 | S6: =(O6-Q6)/Q6 -> -0.008457472369 | T6: =N6-P6 -> -678 | U6: =O6-Q6 -> -440
A7: 1 | B7: =HLOOKUP($C$1,INDIRECT(B$4),$A7+2,0) -> 9630 | C7: =HLOOKUP($C$1,INDIRECT(C$4),$A7+2,0) -> 10289 | D7: =SUMIF(INDIRECT("'MYE "&$C$2&" F'!$D$7:$JHK$7"),$L$36,INDIRECT("'MYE "&$C$2&" F'!D"&$A7+10&":JHK"&$A7+10)) -> 9795 | E7: =SUMIF(INDIRECT("'MYE "&$C$2&" M'!$D$7:$JHK$7"),$L$36,INDIRECT("'MYE "&$C$2&" M'!D"&$A7+10&":JHK"&$A7+10)) -> 10431 | F7: =(B7-D7)/D7 -> -0.01684532925 | G7: =(C7-E7)/E7 -> -0.01361326814 | H7: =B7-D7 -> -165 | I7: -142 | J7: 0 | L7: =L6+5 -> 5 | M7: =CONCATENATE(L7," - ",L7+4) -> 5 - 9 | N7: 48002 | O7: 49531 | P7: 47803 | Q7: 49126 | R7: =(N7-P7)/P7 -> 0.004162918645 | S7: =(O7-Q7)/Q7 -> 0.00824410699 | T7: =N7-P7 -> 199 | U7: 405
A8: 2 | B8: 9794 | C8: 10265 | D8: 9885 | E8: 10326 | F8: -0.009205867476 | G8: -0.005907418168 | H8: -91 | I8: -61 | J8: 0 | L8: =L7+5 -> 10 | M8: 10 - 14 | N8: 41501 | O8: 43709 | P8: 40687 | Q8: 43087 | R8: 0.02000639025 | S8: 0.01443590874 | T8: 814 | U8: 622
A9: 3 | B9: 9779 | C9: 10243 | D9: 10043 | E9: 10397 | F9: -0.02628696605 | G9: -0.01481196499 | H9: -264 | I9: -154 | J9: 0 | L9: 15 | M9: 15 - 19 | N9: 49302 | O9: 49008 | P9: 49744 | Q9: 50105 | R9: -0.008885493728 | S9: -0.02189402255 | T9: -442 | U9: -1097
A10: 4 | B10: 9956 | C10: 10427 | D10: 10103 | E10: 10557 | F10: -0.01455013362 | G10: -0.01231410439 | H10: -147 | I10: -130 | J10: 0 | L10: 20 | M10: 20 - 24 | N10: 84077 | O10: 72276 | P10: 83479 | Q10: 76493 | R10: 0.00716347824 | S10: -0.05512922751 | T10: 598 | U10: -4217
A11: 5 | B11: 9738 | C11: 10287 | D11: 10320 | E11: 10681 | F11: -0.05639534884 | G11: -0.03688793184 | H11: -582 | I11: -394 | J11: 0 | L11: 25 | M11: 25 - 29 | N11: 85370 | O11: 80216 | P11: 89199 | Q11: 88765 | R11: -0.04292649021 | S11: -0.09631048274 | T11: -3829 | U11: -8549
A12: 6 | B12: 9789 | C12: 10040 | D12: 9419 | E12: 9689 | F12: 0.03928230173 | G12: 0.03622664878 | H12: 370 | I12: 351 | J12: 0 | L12: 30 | M12: 30 - 34 | N12: 76783 | O12: 76735 | P12: 75565 | Q12: 76271 | R12: 0.01611857341 | S12: 0.006083570427 | T12: 1218 | U12: 464
A13: 7 | B13: 9620 | C13: 10042 | D13: 9579 | E13: 9871 | F13: 0.004280196263 | G13: 0.0173234728 | H13: 41 | I13: 171 | J13: 0 | L13: 35 | M13: 35 - 39 | N13: 63790 | O13: 66949 | P13: 62720 | Q13: 63747 | R13: 0.01705994898 | S13: 0.05022981474 | T13: 1070 | U13: 3202
A14: 8 | B14: 9746 | C14: 9820 | D14: 9553 | E14: 9725 | F14: 0.02020307757 | G14: 0.009768637532 | H14: 193 | I14: 95 | J14: 0 | L14: 40 | M14: 40 - 44 | N14: 57821 | O14: 60712 | P14: 57449 | Q14: 57417 | R14: 0.006475308535 | S14: 0.05738718498 | T14: 372 | U14: 3295
A15: 9 | B15: 9109 | C15: 9342 | D15: 8932 | E15: 9160 | F15: 0.01981639051 | G15: 0.01986899563 | H15: 177 | I15: 182 | J15: 0 | L15: 45 | M15: 45 - 49 | N15: 64095 | O15: 64947 | P15: 63917 | Q15: 61005 | R15: 0.002784861617 | S15: 0.06461765429 | T15: 178 | U15: 3942
A16: 10 | B16: 8603 | C16: 9138 | D16: 8565 | E16: 8949 | F16: 0.004436660829 | G16: 0.02111967818 | H16: 38 | I16: 189 | J16: 0 | L16: 50 | M16: 50 - 54 | N16: 67539 | O16: 68315 | P16: 66227 | Q16: 61883 | R16: 0.01981065124 | S16: 0.1039380767 | T16: 1312 | U16: 6432
A17: 11 | B17: 8422 | C17: 8986 | D17: 8310 | E17: 8891 | F17: 0.01347773767 | G17: 0.01068496232 | H17: 112 | I17: 95 | J17: 0 | L17: 55 | M17: 55 - 59 | N17: 60916 | O17: 61044 | P17: 60076 | Q17: 56320 | R17: 0.0139822891 | S17: 0.08387784091 | T17: 840 | U17: 4724
A18: 12 | B18: 8264 | C18: 8684 | D18: 8009 | E18: 8554 | F18: 0.03183918092 | G18: 0.01519756839 | H18: 255 | I18: 130 | J18: 0 | L18: 60 | M18: 60 - 64 | N18: 49471 | O18: 49104 | P18: 49103 | Q18: 47155 | R18: 0.007494450441 | S18: 0.04133177818 | T18: 368 | U18: 1949
A19: 13 | B19: 8083 | C19: 8470 | D19: 7856 | E19: 8294 | F19: 0.02889511202 | G19: 0.02122015915 | H19: 227 | I19: 176 | J19: 0 | L19: 65 | M19: 65 - 69 | N19: 46184 | O19: 43384 | P19: 46881 | Q19: 43025 | R19: -0.0148674303 | S19: 0.008343986055 | T19: -697 | U19: 359
A20: 14 | B20: 8129 | C20: 8431 | D20: 7947 | E20: 8399 | F20: 0.02290172392 | G20: 0.003809977378 | H20: 182 | I20: 32 | J20: 0 | L20: 70 | M20: 70 - 74 | N20: 34974 | O20: 30082 | P20: 35757 | Q20: 30354 | R20: -0.02189781022 | S20: -0.00896092772 | T20: -783 | U20: -272
A21: 15 | B21: 8360 | C21: 8656 | D21: 8360 | E21: 8701 | F21: 0 | G21: -0.005171819331 | H21: 0 | I21: -45 | J21: 0 | L21: 75 | M21: 75 - 79 | N21: 30974 | O21: 22838 | P21: 31974 | Q21: 23242 | R21: -0.03127541127 | S21: -0.0173823251 | T21: -1000 | U21: -404
A22: 16 | B22: 8446 | C22: 8965 | D22: 8437 | E22: 9144 | F22: 0.00106672988 | G22: -0.01957567804 | H22: 9 | I22: -179 | J22: 0 | L22: 80 | M22: 80 - 84 | N22: 25378 | O22: 16460 | P22: 26256 | Q22: 16824 | R22: -0.03343997562 | S22: -0.02163575844 | T22: -878 | U22: -364
A23: 17 | B23: 8734 | C23: 9005 | D23: 8862 | E23: 9242 | F23: -0.01444369217 | G23: -0.02564380004 | H23: -128 | I23: -237 | J23: 0 | L23: 85 | M23: 85 - 89 | N23: 16472 | O23: 8452 | P23: 17057 | Q23: 8625 | R23: -0.03429676965 | S23: -0.02005797101 | T23: -585 | U23: -173
A24: 18 | B24: 10384 | C24: 10131 | D24: 10586 | E24: 10479 | F24: -0.01908180616 | G24: -0.03320927569 | H24: -202 | I24: -348 | J24: 0 | L24: 90 | M24: 90+ | N24: 9354 | O24: 3478 | P24: 9834 | Q24: 3815 | R24: -0.04881025015 | S24: -0.08833551769 | T24: -480 | U24: -337
A25: 19 | B25: 13378 | C25: 12251 | D25: 13499 | E25: 12539 | F25: -0.008963626935 | G25: -0.02296833878 | H25: -121 | I25: -288 | J25: 0 | L25: 95
A26: 20 | B26: 14943 | C26: 12722 | D26: 14954 | E26: 13384 | F26: -0.00073558914 | G26: -0.04946204423 | H26: -11 | I26: -662 | J26: 0
A27: 21 | B27: 16105 | C27: 13580 | D27: 15349 | E27: 13819 | F27: 0.04925402306 | G27: -0.01729502858 | H27: 756 | I27: -239 | J27: 0 | L27: 1
A28: 22 | B28: 17138 | C28: 14849 | D28: 16195 | E28: 14827 | F28: 0.0582278481 | G28: 0.001483779591 | H28: 943 | I28: 22 | J28: 0 | L28: Large Urban Areas
A29: 23 | B29: 17860 | C29: 15197 | D29: 17627 | E29: 16190 | F29: 0.0132183582 | G29: -0.06133415689 | H29: 233 | I29: -993 | J29: 0 | L29: Other Urban Areas
A30: 24 | B30: 18031 | C30: 15928 | D30: 19354 | E30: 18273 | F30: -0.06835796218 | G30: -0.1283314179 | H30: -1323 | I30: -2345 | J30: 0 | L30: Accessible Small Towns
A31: 25 | B31: 17842 | C31: 16079 | D31: 19160 | E31: 18694 | F31: -0.06878914405 | G31: -0.1398844549 | H31: -1318 | I31: -2615 | J31: 0 | L31: Remote Small Towns
A32: 26 | B32: 17157 | C32: 15787 | D32: 18290 | E32: 18055 | F32: -0.06194641881 | G32: -0.1256161728 | H32: -1133 | I32: -2268 | J32: 0 | L32: Very Remote Small Towns
A33: 27 | B33: 16908 | C33: 16014 | D33: 17924 | E33: 18039 | F33: -0.05668377594 | G33: -0.112256777 | H33: -1016 | I33: -2025 | J33: 0 | L33: Accessible Rural
A34: 28 | B34: 16918 | C34: 16120 | D34: 17392 | E34: 17246 | F34: -0.02725390984 | G34: -0.06529050215 | H34: -474 | I34: -1126 | J34: 0 | L34: Remote Rural
A35: 29 | B35: 16545 | C35: 16216 | D35: 16433 | E35: 16731 | F35: 0.006815554068 | G35: -0.03078118463 | H35: 112 | I35: -515 | J35: 0 | L35: Very Remote Rural
A36: 30 | B36: 16188 | C36: 16039 | D36: 15864 | E36: 16208 | F36: 0.02042360061 | G36: -0.01042694965 | H36: 324 | I36: -169 | J36: 0 | L36: =VLOOKUP(C1,'Datazone 2016 UR lookup'!$H$8:$I$15,2,0) -> 1
A37: 31 | B37: 15996 | C37: 15992 | D37: 15758 | E37: 15960 | F37: 0.01510343952 | G37: 0.002005012531 | H37: 238 | I37: 32 | J37: 0
A38: 32 | B38: 15233 | C38: 15172 | D38: 14693 | E38: 14795 | F38: 0.03675219492 | G38: 0.02548158162 | H38: 540 | I38: 377 | J38: 0
A39: 33 | B39: =HLOOKUP($C$1,INDIRECT(B$4),$A39+2,0) -> 14925 | C39: 14901 | D39: 14739 | E39: 15004 | F39: 0.0126195807 | G39: -0.006864836044 | H39: 186 | I39: -103 | J39: 0
A40: 34 | B40: 14441 | C40: 14631 | D40: 14511 | E40: 14304 | F40: -0.004823926676 | G40: 0.02286073826 | H40: -70 | I40: 327 | J40: 0
A41: 35 | B41: 14142 | C41: 14718 | D41: 13892 | E41: 14194 | F41: 0.0179959689 | G41: 0.03691700719 | H41: 250 | I41: 524 | J41: 0
A42: 36 | B42: 13684 | C42: 14390 | D42: 13465 | E42: 13481 | F42: 0.01626438916 | G42: 0.06742823233 | H42: 219 | I42: 909 | J42: 0
A43: 37 | B43: 12909 | C43: 13622 | D43: 12582 | E43: 13059 | F43: 0.02598950882 | G43: 0.04311203002 | H43: 327 | I43: 563 | J43: 0
A44: 38 | B44: 11877 | C44: 12255 | D44: 11670 | E44: 11654 | F44: 0.0177377892 | G44: 0.0515702763 | H44: 207 | I44: 601 | J44: 0
A45: 39 | B45: 11178 | C45: 11964 | D45: 11111 | E45: 11359 | F45: 0.006030060301 | G45: 0.05326173079 | H45: 67 | I45: 605 | J45: 0
A46: 40 | B46: 11512 | C46: 12037 | D46: 11433 | E46: 11396 | F46: 0.006909822444 | G46: 0.05624780625 | H46: 79 | I46: 641 | J46: 0
A47: 41 | B47: 11265 | C47: 11859 | D47: 11152 | E47: 11163 | F47: 0.01013271162 | G47: 0.06234883096 | H47: 113 | I47: 696 | J47: 0
A48: 42 | B48: 11163 | C48: 11890 | D48: 10958 | E48: 11324 | F48: 0.01870779339 | G48: 0.0499823384 | H48: 205 | I48: 566 | J48: 0
A49: 43 | B49: 11597 | C49: 12205 | D49: 11581 | E49: 11556 | F49: 0.001381573267 | G49: 0.05616130149 | H49: 16 | I49: 649 | J49: 0
A50: 44 | B50: 12284 | C50: 12721 | D50: 12325 | E50: 11978 | F50: -0.003326572008 | G50: 0.06203038905 | H50: -41 | I50: 743 | J50: 0
A51: 45 | B51: 12795 | C51: 13033 | D51: 12752 | E51: 12168 | F51: 0.003372020075 | G51: 0.07108809993 | H51: 43 | I51: 865 | J51: 0
A52: 46 | B52: 12476 | C52: 12677 | D52: 12452 | E52: 11819 | F52: 0.001927401221 | G52: 0.07259497419 | H52: 24 | I52: 858 | J52: 0
A53: 47 | B53: 12887 | C53: 13063 | D53: 12875 | E53: 12196 | F53: 0.000932038835 | G53: 0.0710888816 | H53: 12 | I53: 867 | J53: 0
A54: 48 | B54: 13024 | C54: 13058 | D54: 12993 | E54: 12427 | F54: 0.0023859001 | G54: 0.05077653496 | H54: 31 | I54: 631 | J54: 0
A55: 49 | B55: 12913 | C55: 13116 | D55: 12845 | E55: 12395 | F55: 0.005293888673 | G55: 0.05816861638 | H55: 68 | I55: 721 | J55: 0
A56: 50 | B56: 13242 | C56: 13858 | D56: 12930 | E56: 12221 | F56: 0.02412993039 | G56: 0.1339497586 | H56: 312 | I56: 1637 | J56: 0
A57: 51 | B57: 13680 | C57: 13844 | D57: 13384 | E57: 12545 | F57: 0.02211595935 | G57: 0.10354723 | H57: 296 | I57: 1299 | J57: 0
A58: 52 | B58: 13874 | C58: 13677 | D58: 13580 | E58: 12172 | F58: 0.02164948454 | G58: 0.1236444298 | H58: 294 | I58: 1505 | J58: 0
A59: 53 | B59: 13417 | C59: 13608 | D59: 13244 | E59: 12604 | F59: 0.01306251888 | G59: 0.07965725167 | H59: 173 | I59: 1004 | J59: 0
A60: 54 | B60: 13326 | C60: 13328 | D60: 13089 | E60: 12341 | F60: 0.01810680724 | G60: 0.0799773114 | H60: 237 | I60: 987 | J60: 0
A61: 55 | B61: 13076 | C61: 12904 | D61: 12895 | E61: 11891 | F61: 0.01403644824 | G61: 0.0851904802 | H61: 181 | I61: 1013 | J61: 0
A62: 56 | B62: 12423 | C62: 12683 | D62: 12233 | E62: 11448 | F62: 0.01553175836 | G62: 0.1078791055 | H62: 190 | I62: 1235 | J62: 0
A63: 57 | B63: 12245 | C63: 12379 | D63: 11995 | E63: 11354 | F63: 0.02084201751 | G63: 0.09027655452 | H63: 250 | I63: 1025 | J63: 0
A64: 58 | B64: 11807 | C64: 11704 | D64: 11677 | E64: 10949 | F64: 0.01113299649 | G64: 0.06895606905 | H64: 130 | I64: 755 | J64: 0
A65: 59 | B65: 11365 | C65: 11374 | D65: 11276 | E65: 10678 | F65: 0.007892869812 | G65: 0.06518074546 | H65: 89 | I65: 696 | J65: 0
A66: 60 | B66: 10876 | C66: 10772 | D66: 10813 | E66: 10287 | F66: 0.00582632017 | G66: 0.04714688442 | H66: 63 | I66: 485 | J66: 0
A67: 61 | B67: 10297 | C67: 10215 | D67: 10079 | E67: 9724 | F67: 0.02162912987 | G67: 0.05049362402 | H67: 218 | I67: 491 | J67: 0
A68: 62 | B68: 9928 | C68: 9749 | D68: 9789 | E68: 9349 | F68: 0.01419961181 | G68: 0.04278532463 | H68: 139 | I68: 400 | J68: 0
A69: 63 | B69: 9385 | C69: 9495 | D69: 9355 | E69: 9139 | F69: 0.003206841261 | G69: 0.03895393369 | H69: 30 | I69: 356 | J69: 0
A70: 64 | B70: 8985 | C70: 8873 | D70: 9067 | E70: 8656 | F70: -0.009043785155 | G70: 0.02506931608 | H70: -82 | I70: 217 | J70: 0
A71: 65 | B71: =HLOOKUP($C$1,INDIRECT(B$4),$A71+2,0) -> 8919 | C71: 8752 | D71: =SUMIF(INDIRECT("'MYE "&$C$2&" F'!$D$7:$JHK$7"),$L$36,INDIRECT("'MYE "&$C$2&" F'!D"&$A71+10&":JHK"&$A71+10)) -> 9013 | E71: =SUMIF(INDIRECT("'MYE "&$C$2&" M'!$D$7:$JHK$7"),$L$36,INDIRECT("'MYE "&$C$2&" M'!D"&$A71+10&":JHK"&$A71+10)) -> 8565 | F71: =(B71-D71)/D71 -> -0.01042937978 | G71: =(C71-E71)/E71 -> 0.02183304145 | H71: =B71-D71 -> -94 | I71: 187 | J71: 0
A72: 66 | B72: 8940 | C72: 8409 | D72: 9127 | E72: 8380 | F72: -0.02048866002 | G72: 0.003460620525 | H72: -187 | I72: 29 | J72: 0
A73: 67 | B73: 9099 | C73: 8450 | D73: 9239 | E73: 8417 | F73: -0.0151531551 | G73: 0.003920636806 | H73: -140 | I73: 33 | J73: 0
A74: 68 | B74: 9263 | C74: 8579 | D74: 9374 | E74: 8499 | F74: -0.01184126307 | G74: 0.009412872103 | H74: -111 | I74: 80 | J74: 0
A75: 69 | B75: 9963 | C75: 9194 | D75: 10128 | E75: 9164 | F75: -0.01629146919 | G75: 0.003273679616 | H75: -165 | I75: 30 | J75: 0
A76: 70 | B76: 7555 | C76: 6680 | D76: 7651 | E76: 6751 | F76: -0.01254737943 | G76: -0.01051696045 | H76: -96 | I76: -71 | J76: 0
A77: 71 | B77: 7120 | C77: 6194 | D77: 7254 | E77: 6238 | F77: -0.01847256686 | G77: -0.007053542802 | H77: -134 | I77: -44 | J77: 0
A78: 72 | B78: 6949 | C78: 6217 | D78: 7176 | E78: 6279 | F78: -0.03163322185 | G78: -0.009874183787 | H78: -227 | I78: -62 | J78: 0
A79: 73 | B79: 6967 | C79: 5719 | D79: 7061 | E79: 5772 | F79: -0.01331256196 | G79: -0.009182259182 | H79: -94 | I79: -53 | J79: 0
A80: 74 | B80: 6383 | C80: 5272 | D80: 6615 | E80: 5314 | F80: -0.0350718065 | G80: -0.007903650734 | H80: -232 | I80: -42 | J80: 0
A81: 75 | B81: 6285 | C81: 4767 | D81: 6457 | E81: 4825 | F81: -0.02663775747 | G81: -0.01202072539 | H81: -172 | I81: -58 | J81: 0
A82: 76 | B82: 6358 | C82: 4870 | D82: 6575 | E82: 4948 | F82: -0.03300380228 | G82: -0.01576394503 | H82: -217 | I82: -78 | J82: 0
A83: 77 | B83: 6257 | C83: 4592 | D83: 6478 | E83: 4691 | F83: -0.03411546774 | G83: -0.02110424217 | H83: -221 | I83: -99 | J83: 0
A84: 78 | B84: 6215 | C84: 4573 | D84: 6432 | E84: 4619 | F84: -0.03373756219 | G84: -0.009958865555 | H84: -217 | I84: -46 | J84: 0
A85: 79 | B85: 5859 | C85: 4036 | D85: 6032 | E85: 4159 | F85: -0.02868037135 | G85: -0.02957441693 | H85: -173 | I85: -123 | J85: 0
A86: 80 | B86: 5620 | C86: 3878 | D86: 5831 | E86: 3984 | F86: -0.03618590293 | G86: -0.0266064257 | H86: -211 | I86: -106 | J86: 0
A87: 81 | B87: 5421 | C87: 3664 | D87: 5669 | E87: 3728 | F87: -0.04374669254 | G87: -0.01716738197 | H87: -248 | I87: -64 | J87: 0
A88: 82 | B88: 5045 | C88: 3245 | D88: 5260 | E88: 3313 | F88: -0.04087452471 | G88: -0.02052520374 | H88: -215 | I88: -68 | J88: 0
A89: 83 | B89: 4685 | C89: 2953 | D89: 4795 | E89: 3003 | F89: -0.02294056309 | G89: -0.01665001665 | H89: -110 | I89: -50 | J89: 0
A90: 84 | B90: 4607 | C90: 2720 | D90: 4701 | E90: 2796 | F90: -0.01999574559 | G90: -0.02718168813 | H90: -94 | I90: -76 | J90: 0
A91: 85 | B91: 4147 | C91: 2386 | D91: 4305 | E91: 2449 | F91: -0.03670150987 | G91: -0.02572478563 | H91: -158 | I91: -63 | J91: 0
A92: 86 | B92: 3709 | C92: 1925 | D92: 3874 | E92: 1940 | F92: -0.04259163655 | G92: -0.007731958763 | H92: -165 | I92: -15 | J92: 0
A93: 87 | B93: 3293 | C93: 1681 | D93: 3415 | E93: 1707 | F93: -0.03572474378 | G93: -0.01523140012 | H93: -122 | I93: -26 | J93: 0
A94: 88 | B94: 2788 | C94: 1345 | D94: 2880 | E94: 1398 | F94: -0.03194444444 | G94: -0.03791130186 | H94: -92 | I94: -53 | J94: 0
A95: 89 | B95: 2535 | C95: 1115 | D95: 2583 | E95: 1131 | F95: -0.01858304297 | G95: -0.01414677277 | H95: -48 | I95: -16 | J95: 0
A96: 90 | B96: 9354 | C96: 3478 | D96: 9834 | E96: 3815 | F96: -0.04881025015 | G96: -0.08833551769 | H96: -480 | I96: -337 | J96: 0

Sheet SIMD Comparison (hidden)
B1: SIMD | C1: 1 | L1: 2016
B2: Year | C2: =INDEX(L1:L3,L4) -> 2016 | L2: 2017 | N2: =CONCATENATE("Percentage difference between ABPE and MYE for SIMD decile ",C1," by age and sex ",C2) -> Percentage difference between ABPE and MYE for SIMD decile 1 by age and sex 2016 | O2: =CONCATENATE("Difference between ABPE and MYE for SIMD decile ",C1," by age and sex ",C2) -> Difference between ABPE and MYE for SIMD decile 1 by age and sex 2016
L3: 2018 | N3: =CONCATENATE("Percentage difference between ABPE and MYE for SIMD decile ",C1," by 5-year age band and sex ",C2) -> Percentage difference between ABPE and MYE for SIMD decile 1 by 5-year age band and sex 2016 | O3: =CONCATENATE("Difference between ABPE and MYE for SIMD decile ",C1," by 5-year age band and sex ",C2) -> Difference between ABPE and MYE for SIMD decile 1 by 5-year age band and sex 2016
B4: =CONCATENATE("'ABPE SIMD ",$C$2,"'!$B$7:$k$98") -> 'ABPE SIMD 2016'!$B$7:$k$98 | C4: =CONCATENATE("'ABPE SIMD ",$C$2,"'!$l$7:$u$98") -> 'ABPE SIMD 2016'!$l$7:$u$98 | H4: Absolute difference | L4: 1 | R4: Percenatge difference | T4: Absolute difference
A5: Age | B5: ABPE - F | C5: ABPE - M | D5: MYE - F | E5: MYE - M | F5: Females | G5: Males | H5: Females | I5: Males | J5: Baseline | M5: Age range | N5: ABPE - F | O5: ABPE - M | P5: MYE - F | Q5: MYE - M | R5: Females | S5: Males | T5: Females | U5: Males
A6: 0 | B6: =HLOOKUP($C$1,INDIRECT(B$4),$A6+2,0) -> 3423 | C6: =HLOOKUP($C$1,INDIRECT(C$4),$A6+2,0) -> 3592 | D6: =SUMIF(INDIRECT("'MYE "&$C$2&" F'!$D$6:$JHK$6"),$C$1,INDIRECT("'MYE "&$C$2&" F'!D"&$A6+10&":JHK"&$A6+10)) -> 3407 | E6: =SUMIF(INDIRECT("'MYE "&$C$2&" M'!$D$6:$JHK$6"),$C$1,INDIRECT("'MYE "&$C$2&" M'!D"&$A6+10&":JHK"&$A6+10)) -> 3568 | F6: =(B6-D6)/D6 -> 0.004696213678 | G6: =(C6-E6)/E6 -> 0.006726457399 | H6: =B6-D6 -> 16 | I6: =C6-E6 -> 24 | J6: 0 | L6: 0 | M6: =CONCATENATE(L6," - ",L6+4) -> 0 - 4 | N6: =SUMIFS(B$6:B$96,$A$6:$A$96,">=" & $L6,$A$6:$A$96,"<" & $L7) -> 17238 | O6: =SUMIFS(C$6:C$96,$A$6:$A$96,">=" & $L6,$A$6:$A$96,"<" & $L7) -> 18216 | P6: =SUMIFS(D$6:D$96,$A$6:$A$96,">=" & $L6,$A$6:$A$96,"<" & $L7) -> 17211 | Q6: =SUMIFS(E$6:E$96,$A$6:$A$96,">=" & $L6,$A$6:$A$96,"<" & $L7) -> 18243 | R6: =(N6-P6)/P6 -> 0.001568764162 | S6: =(O6-Q6)/Q6 -> -0.001480019734 | T6: =N6-P6 -> 27 | U6: =O6-Q6 -> -27
A7: 1 | B7: =HLOOKUP($C$1,INDIRECT(B$4),$A7+2,0) -> 3462 | C7: 3608 | D7: =SUMIF(INDIRECT("'MYE "&$C$2&" F'!$D$6:$JHK$6"),$C$1,INDIRECT("'MYE "&$C$2&" F'!D"&$A7+10&":JHK"&$A7+10)) -> 3512 | E7: =SUMIF(INDIRECT("'MYE "&$C$2&" M'!$D$6:$JHK$6"),$C$1,INDIRECT("'MYE "&$C$2&" M'!D"&$A7+10&":JHK"&$A7+10)) -> 3631 | F7: =(B7-D7)/D7 -> -0.01423690205 | G7: =(C7-E7)/E7 -> -0.006334343156 | H7: =B7-D7 -> -50 | I7: -23 | J7: 0 | L7: =L6+5 -> 5 | M7: =CONCATENATE(L7," - ",L7+4) -> 5 - 9 | N7: 16616 | O7: 17636 | P7: 16211 | Q7: 16876 | R7: =(N7-P7)/P7 -> 0.02498303621 | S7: =(O7-Q7)/Q7 -> 0.04503436833 | T7: =N7-P7 -> 405 | U7: 760
A8: 2 | B8: 3344 | C8: 3567 | D8: 3336 | E8: 3575 | F8: 0.002398081535 | G8: -0.002237762238 | H8: 8 | I8: -8 | J8: 0 | L8: =L7+5 -> 10 | M8: 10 - 14 | N8: 14512 | O8: 15071 | P8: 13947 | Q8: 14392 | R8: 0.04051050405 | S8: 0.04717898833 | T8: 565 | U8: 679
A9: 3 | B9: 3516 | C9: 3692 | D9: 3503 | E9: 3720 | F9: 0.003711104767 | G9: -0.00752688172 | H9: 13 | I9: -28 | J9: 0 | L9: 15 | M9: 15 - 19 | N9: 15234 | O9: 15761 | P9: 14825 | Q9: 15353 | R9: 0.02758853288 | S9: 0.02657461083 | T9: 409 | U9: 408
A10: 4 | B10: 3493 | C10: 3757 | D10: 3453 | E10: 3749 | F10: 0.01158412974 | G10: 0.002133902374 | H10: 40 | I10: 8 | J10: 0 | L10: 20 | M10: 20 - 24 | N10: 19496 | O10: 18973 | P10: 18388 | Q10: 18551 | R10: 0.06025668915 | S10: 0.02274809983 | T10: 1108 | U10: 422
A11: 5 | B11: 3372 | C11: 3706 | D11: 3444 | E11: 3770 | F11: -0.02090592334 | G11: -0.01697612732 | H11: -72 | I11: -64 | J11: 0 | L11: 25 | M11: 25 - 29 | N11: 22574 | O11: 22659 | P11: 22752 | Q11: 21633 | R11: -0.007823488045 | S11: 0.04742754126 | T11: -178 | U11: 1026
A12: 6 | B12: 3355 | C12: 3502 | D12: 3124 | E12: 3225 | F12: 0.07394366197 | G12: 0.08589147287 | H12: 231 | I12: 277 | J12: 0 | L12: 30 | M12: 30 - 34 | N12: 21644 | O12: 22384 | P12: 20134 | Q12: 18998 | R12: 0.07499751664 | S12: 0.1782292873 | T12: 1510 | U12: 3386
A13: 7 | B13: 3436 | C13: 3585 | D13: 3403 | E13: 3372 | F13: 0.009697325889 | G13: 0.06316725979 | H13: 33 | I13: 213 | J13: 0 | L13: 35 | M13: 35 - 39 | N13: 17728 | O13: 19283 | P13: 16950 | Q13: 16151 | R13: 0.04589970501 | S13: 0.1939198811 | T13: 778 | U13: 3132
A14: 8 | B14: 3344 | C14: 3503 | D14: 3252 | E14: 3361 | F14: 0.0282902829 | G14: 0.04224933056 | H14: 92 | I14: 142 | J14: 0 | L14: 40 | M14: 40 - 44 | N14: 16913 | O14: 18249 | P14: 16158 | Q14: 15517 | R14: 0.04672607996 | S14: 0.176064961 | T14: 755 | U14: 2732
A15: 9 | B15: 3109 | C15: 3340 | D15: 2988 | E15: 3148 | F15: 0.04049531459 | G15: 0.06099110546 | H15: 121 | I15: 192 | J15: 0 | L15: 45 | M15: 45 - 49 | N15: 19352 | O15: 20428 | P15: 18871 | Q15: 17538 | R15: 0.02548884532 | S15: 0.1647850382 | T15: 481 | U15: 2890
A16: 10 | B16: 3149 | C16: 3158 | D16: 3045 | E16: 3001 | F16: 0.0341543514 | G16: 0.0523158947 | H16: 104 | I16: 157 | J16: 0 | L16: 50 | M16: 50 - 54 | N16: 19776 | O16: 21152 | P16: 19214 | Q16: 17970 | R16: 0.02924950557 | S16: 0.1770728993 | T16: 562 | U16: 3182
A17: 11 | B17: 2925 | C17: 3163 | D17: 2876 | E17: 3031 | F17: 0.01703755216 | G17: 0.0435499835 | H17: 49 | I17: 132 | J17: 0 | L17: 55 | M17: 55 - 59 | N17: 17215 | O17: 18152 | P17: 17096 | Q17: 15939 | R17: 0.00696069256 | S17: 0.1388418345 | T17: 119 | U17: 2213
A18: 12 | B18: 2947 | C18: 3052 | D18: 2774 | E18: 2858 | F18: 0.06236481615 | G18: 0.06787963611 | H18: 173 | I18: 194 | J18: 0 | L18: 60 | M18: 60 - 64 | N18: 13478 | O18: 13932 | P18: 13466 | Q18: 13115 | R18: 0.0008911332244 | S18: 0.06229508197 | T18: 12 | U18: 817
A19: 13 | B19: 2765 | C19: 2887 | D19: 2586 | E19: 2789 | F19: 0.06921887084 | G19: 0.03513804231 | H19: 179 | I19: 98 | J19: 0 | L19: 65 | M19: 65 - 69 | N19: 12345 | O19: 11879 | P19: 12638 | Q19: 11908 | R19: -0.02318404811 | S19: -0.002435337588 | T19: -293 | U19: -29
A20: 14 | B20: 2726 | C20: 2811 | D20: 2666 | E20: 2713 | F20: 0.02250562641 | G20: 0.03612237376 | H20: 60 | I20: 98 | J20: 0 | L20: 70 | M20: 70 - 74 | N20: 9753 | O20: 8270 | P20: 10056 | Q20: 8477 | R20: -0.03013126492 | S20: -0.02441901616 | T20: -303 | U20: -207
A21: 15 | B21: 2897 | C21: 2958 | D21: 2839 | E21: 2867 | F21: 0.02042972878 | G21: 0.03174049529 | H21: 58 | I21: 91 | J21: 0 | L21: 75 | M21: 75 - 79 | N21: 8579 | O21: 6139 | P21: 8839 | Q21: 6333 | R21: -0.02941509221 | S21: -0.03063319122 | T21: -260 | U21: -194
A22: 16 | B22: 2907 | C22: 3039 | D22: 2881 | E22: 3031 | F22: 0.009024644221 | G22: 0.00263939294 | H22: 26 | I22: 8 | J22: 0 | L22: 80 | M22: 80 - 84 | N22: 6530 | O22: 3963 | P22: 6763 | Q22: 4108 | R22: -0.0344521662 | S22: -0.0352969815 | T22: -233 | U22: -145
A23: 17 | B23: 2982 | C23: 3060 | D23: 2977 | E23: 3019 | F23: 0.001679543164 | G23: 0.01358065585 | H23: 5 | I23: 41 | J23: 0 | L23: 85 | M23: 85 - 89 | N23: 3783 | O23: 1881 | P23: 4023 | Q23: 1980 | R23: -0.05965697241 | S23: -0.05 | T23: -240 | U23: -99
A24: 18 | B24: 3120 | C24: 3240 | D24: 3006 | E24: 3198 | F24: 0.0379241517 | G24: 0.01313320826 | H24: 114 | I24: 42 | J24: 0 | L24: 90 | M24: 90+ | N24: 1960 | O24: 670 | P24: 2109 | Q24: 823 | R24: -0.07064959697 | S24: -0.1859052248 | T24: -149 | U24: -153
A25: 19 | B25: 3328 | C25: 3464 | D25: 3122 | E25: 3238 | F25: 0.06598334401 | G25: 0.06979617048 | H25: 206 | I25: 226 | J25: 0 | L25: 95
A26: 20 | B26: 3373 | C26: 3302 | D26: 3014 | E26: 3214 | F26: 0.1191108162 | G26: 0.02738021157 | H26: 359 | I26: 88 | J26: 0
A27: 21 | B27: 3620 | C27: 3520 | D27: 3146 | E27: 3301 | F27: 0.1506675143 | G27: 0.06634353226 | H27: 474 | I27: 219 | J27: 0
A28: 22 | B28: 3863 | C28: 3791 | D28: 3324 | E28: 3397 | F28: 0.1621540313 | G28: 0.1159846924 | H28: 539 | I28: 394 | J28: 0 | L28: 1 - Most deprived
A29: 23 | B29: 4189 | C29: 4034 | D29: 4093 | E29: 4041 | F29: 0.02345467872 | G29: -0.001732244494 | H29: 96 | I29: -7 | J29: 0 | L29: 2
A30: 24 | B30: 4451 | C30: 4326 | D30: 4811 | E30: 4598 | F30: -0.07482851798 | G30: -0.05915615485 | H30: -360 | I30: -272 | J30: 0 | L30: =L29+1 -> 3
A31: 25 | B31: 4424 | C31: 4363 | D31: 4659 | E31: 4550 | F31: -0.05044000859 | G31: -0.0410989011 | H31: -235 | I31: -187 | J31: 0 | L31: =L30+1 -> 4
A32: 26 | B32: 4436 | C32: 4356 | D32: 4579 | E32: 4324 | F32: -0.0312295261 | G32: 0.007400555042 | H32: -143 | I32: 32 | J32: 0 | L32: 5
A33: 27 | B33: 4377 | C33: 4503 | D33: 4514 | E33: 4264 | F33: -0.03035002215 | G33: 0.05605065666 | H33: -137 | I33: 239 | J33: 0 | L33: 6
A34: 28 | B34: 4696 | C34: 4760 | D34: 4565 | E34: 4295 | F34: 0.0286966046 | G34: 0.1082654249 | H34: 131 | I34: 465 | J34: 0 | L34: 7
A35: 29 | B35: 4641 | C35: 4677 | D35: 4435 | E35: 4200 | F35: 0.04644870349 | G35: 0.1135714286 | H35: 206 | I35: 477 | J35: 0 | L35: 8
A36: 30 | B36: 4534 | C36: 4674 | D36: 4175 | E36: 4052 | F36: 0.08598802395 | G36: 0.1535044423 | H36: 359 | I36: 622 | J36: 0 | L36: 9
A37: 31 | B37: 4618 | C37: 4679 | D37: 4205 | E37: 3926 | F37: 0.09821640904 | G37: 0.191798268 | H37: 413 | I37: 753 | J37: 0 | L37: 10 - Least deprived
A38: 32 | B38: 4274 | C38: 4404 | D38: 3959 | E38: 3661 | F38: 0.07956554686 | G38: 0.2029500137 | H38: 315 | I38: 743 | J38: 0
A39: 33 | B39: =HLOOKUP($C$1,INDIRECT(B$4),$A39+2,0) -> 4115 | C39: 4401 | D39: 3956 | E39: 3738 | F39: 0.04019211325 | G39: 0.1773675762 | H39: 159 | I39: 663 | J39: 0
A40: 34 | B40: 4103 | C40: 4226 | D40: 3839 | E40: 3621 | F40: 0.06876790831 | G40: 0.1670809169 | H40: 264 | I40: 605 | J40: 0
A41: 35 | B41: 3968 | C41: 4297 | D41: 3733 | E41: 3670 | F41: 0.06295204929 | G41: 0.1708446866 | H41: 235 | I41: 627 | J41: 0
A42: 36 | B42: 3786 | C42: 4033 | D42: 3670 | E42: 3355 | F42: 0.03160762943 | G42: 0.2020864382 | H42: 116 | I42: 678 | J42: 0
A43: 37 | B43: 3587 | C43: 3893 | D43: 3454 | E43: 3259 | F43: 0.03850607991 | G43: 0.1945382019 | H43: 133 | I43: 634 | J43: 0
A44: 38 | B44: 3290 | C44: 3638 | D44: 3095 | E44: 3023 | F44: 0.06300484653 | G44: 0.2034402911 | H44: 195 | I44: 615 | J44: 0
A45: 39 | B45: 3097 | C45: 3422 | D45: 2998 | E45: 2844 | F45: 0.03302201468 | G45: 0.2032348805 | H45: 99 | I45: 578 | J45: 0
A46: 40 | B46: 3270 | C46: 3561 | D46: 3089 | E46: 3052 | F46: 0.05859501457 | G46: 0.1667758847 | H46: 181 | I46: 509 | J46: 0
A47: 41 | B47: 3324 | C47: 3648 | D47: 3132 | E47: 3091 | F47: 0.06130268199 | G47: 0.1802005823 | H47: 192 | I47: 557 | J47: 0
A48: 42 | B48: 3231 | C48: 3543 | D48: 3038 | E48: 2967 | F48: 0.06352863726 | G48: 0.1941354904 | H48: 193 | I48: 576 | J48: 0
A49: 43 | B49: 3467 | C49: 3698 | D49: 3365 | E49: 3225 | F49: 0.03031203566 | G49: 0.1466666667 | H49: 102 | I49: 473 | J49: 0
A50: 44 | B50: 3621 | C50: 3799 | D50: 3534 | E50: 3182 | F50: 0.0246179966 | G50: 0.1939032055 | H50: 87 | I50: 617 | J50: 0
A51: 45 | B51: 3832 | C51: 3978 | D51: 3691 | E51: 3413 | F51: 0.03820102953 | G51: 0.1655435101 | H51: 141 | I51: 565 | J51: 0
A52: 46 | B52: 3786 | C52: 3998 | D52: 3699 | E52: 3447 | F52: 0.02351987024 | G52: 0.1598491442 | H52: 87 | I52: 551 | J52: 0
A53: 47 | B53: 3862 | C53: 4095 | D53: 3879 | E53: 3486 | F53: -0.004382572828 | G53: 0.1746987952 | H53: -17 | I53: 609 | J53: 0
A54: 48 | B54: 4009 | C54: 4265 | D54: 3864 | E54: 3604 | F54: 0.03752587992 | G54: 0.1834073252 | H54: 145 | I54: 661 | J54: 0
A55: 49 | B55: 3863 | C55: 4092 | D55: 3738 | E55: 3588 | F55: 0.03344034243 | G55: 0.1404682274 | H55: 125 | I55: 504 | J55: 0
A56: 50 | B56: 4023 | C56: 4351 | D56: 3903 | E56: 3591 | F56: 0.03074558032 | G56: 0.2116402116 | H56: 120 | I56: 760 | J56: 0
A57: 51 | B57: 4049 | C57: 4316 | D57: 3877 | E57: 3696 | F57: 0.04436419912 | G57: 0.1677489177 | H57: 172 | I57: 620 | J57: 0
A58: 52 | B58: 3949 | C58: 4320 | D58: 3825 | E58: 3603 | F58: 0.03241830065 | G58: 0.1990008326 | H58: 124 | I58: 717 | J58: 0
A59: 53 | B59: 3889 | C59: 4050 | D59: 3779 | E59: 3563 | F59: 0.02910822969 | G59: 0.1366825709 | H59: 110 | I59: 487 | J59: 0
A60: 54 | B60: 3866 | C60: 4115 | D60: 3830 | E60: 3517 | F60: 0.009399477807 | G60: 0.1700312767 | H60: 36 | I60: 598 | J60: 0
A61: 55 | B61: 3687 | C61: 3945 | D61: 3667 | E61: 3542 | F61: 0.005454049632 | G61: 0.1137775268 | H61: 20 | I61: 403 | J61: 0
A62: 56 | B62: 3478 | C62: 3719 | D62: 3433 | E62: 3116 | F62: 0.01310806874 | G62: 0.1935173299 | H62: 45 | I62: 603 | J62: 0
A63: 57 | B63: 3425 | C63: 3724 | D63: 3370 | E63: 3243 | F63: 0.01632047478 | G63: 0.1483194573 | H63: 55 | I63: 481 | J63: 0
A64: 58 | B64: 3430 | C64: 3468 | D64: 3419 | E64: 3079 | F64: 0.003217315004 | G64: 0.1263397207 | H64: 11 | I64: 389 | J64: 0
A65: 59 | B65: 3195 | C65: 3296 | D65: 3207 | E65: 2959 | F65: -0.00374181478 | G65: 0.1138898276 | H65: -12 | I65: 337 | J65: 0
A66: 60 | B66: 3061 | C66: 3083 | D66: 3026 | E66: 2852 | F66: 0.01156642432 | G66: 0.08099579243 | H66: 35 | I66: 231 | J66: 0
A67: 61 | B67: 2815 | C67: 2976 | D67: 2780 | E67: 2747 | F67: 0.01258992806 | G67: 0.08336366946 | H67: 35 | I67: 229 | J67: 0
A68: 62 | B68: 2638 | C68: 2757 | D68: 2633 | E68: 2590 | F68: 0.001898974554 | G68: 0.06447876448 | H68: 5 | I68: 167 | J68: 0
A69: 63 | B69: 2524 | C69: 2645 | D69: 2549 | E69: 2502 | F69: -0.009807767752 | G69: 0.05715427658 | H69: -25 | I69: 143 | J69: 0
A70: 64 | B70: 2440 | C70: 2471 | D70: 2478 | E70: 2424 | F70: -0.01533494754 | G70: 0.01938943894 | H70: -38 | I70: 47 | J70: 0
A71: 65 | B71: =HLOOKUP($C$1,INDIRECT(B$4),$A71+2,0) -> 2402 | C71: 2424 | D71: =SUMIF(INDIRECT("'MYE "&$C$2&" F'!$D$6:$JHK$6"),$C$1,INDIRECT("'MYE "&$C$2&" F'!D"&$A71+10&":JHK"&$A71+10)) -> 2450 | E71: =SUMIF(INDIRECT("'MYE "&$C$2&" M'!$D$6:$JHK$6"),$C$1,INDIRECT("'MYE "&$C$2&" M'!D"&$A71+10&":JHK"&$A71+10)) -> 2335 | F71: =(B71-D71)/D71 -> -0.01959183673 | G71: =(C71-E71)/E71 -> 0.03811563169 | H71: =B71-D71 -> -48 | I71: 89 | J71: 0
A72: 66 | B72: 2395 | C72: 2299 | D72: 2460 | E72: 2350 | F72: -0.02642276423 | G72: -0.02170212766 | H72: -65 | I72: -51 | J72: 0
A73: 67 | B73: 2425 | C73: 2400 | D73: 2506 | E73: 2406 | F73: -0.03232242618 | G73: -0.002493765586 | H73: -81 | I73: -6 | J73: 0
A74: 68 | B74: 2496 | C74: 2272 | D74: 2539 | E74: 2314 | F74: -0.0169358015 | G74: -0.01815038894 | H74: -43 | I74: -42 | J74: 0
A75: 69 | B75: 2627 | C75: 2484 | D75: 2683 | E75: 2503 | F75: -0.02087215803 | G75: -0.007590890931 | H75: -56 | I75: -19 | J75: 0
A76: 70 | B76: 2007 | C76: 1849 | D76: 2087 | E76: 1917 | F76: -0.03833253474 | G76: -0.03547209181 | H76: -80 | I76: -68 | J76: 0
A77: 71 | B77: 1947 | C77: 1655 | D77: 2011 | E77: 1680 | F77: -0.03182496271 | G77: -0.01488095238 | H77: -64 | I77: -25 | J77: 0
A78: 72 | B78: 1977 | C78: 1742 | D78: 2042 | E78: 1773 | F78: -0.03183153771 | G78: -0.01748448957 | H78: -65 | I78: -31 | J78: 0
A79: 73 | B79: 1959 | C79: 1547 | D79: 1981 | E79: 1597 | F79: -0.01110550227 | G79: -0.03130870382 | H79: -22 | I79: -50 | J79: 0
A80: 74 | B80: 1863 | C80: 1477 | D80: 1935 | E80: 1510 | F80: -0.03720930233 | G80: -0.02185430464 | H80: -72 | I80: -33 | J80: 0
A81: 75 | B81: 1788 | C81: 1324 | D81: 1834 | E81: 1345 | F81: -0.02508178844 | G81: -0.0156133829 | H81: -46 | I81: -21 | J81: 0
A82: 76 | B82: 1765 | C82: 1320 | D82: 1838 | E82: 1352 | F82: -0.03971708379 | G82: -0.02366863905 | H82: -73 | I82: -32 | J82: 0
A83: 77 | B83: 1695 | C83: 1299 | D83: 1751 | E83: 1352 | F83: -0.03198172473 | G83: -0.03920118343 | H83: -56 | I83: -53 | J83: 0
A84: 78 | B84: 1762 | C84: 1236 | D84: 1806 | E84: 1254 | F84: -0.02436323367 | G84: -0.01435406699 | H84: -44 | I84: -18 | J84: 0
A85: 79 | B85: 1569 | C85: 960 | D85: 1610 | E85: 1030 | F85: -0.02546583851 | G85: -0.06796116505 | H85: -41 | I85: -70 | J85: 0
A86: 80 | B86: 1545 | C86: 966 | D86: 1604 | E86: 1010 | F86: -0.03678304239 | G86: -0.04356435644 | H86: -59 | I86: -44 | J86: 0
A87: 81 | B87: 1388 | C87: 916 | D87: 1445 | E87: 936 | F87: -0.03944636678 | G87: -0.02136752137 | H87: -57 | I87: -20 | J87: 0
A88: 82 | B88: 1318 | C88: 824 | D88: 1416 | E88: 840 | F88: -0.06920903955 | G88: -0.01904761905 | H88: -98 | I88: -16 | J88: 0
A89: 83 | B89: 1196 | C89: 670 | D89: 1166 | E89: 694 | F89: 0.02572898799 | G89: -0.03458213256 | H89: 30 | I89: -24 | J89: 0
A90: 84 | B90: 1083 | C90: 587 | D90: 1132 | E90: 628 | F90: -0.04328621908 | G90: -0.0652866242 | H90: -49 | I90: -41 | J90: 0
A91: 85 | B91: 999 | C91: 568 | D91: 1100 | E91: 580 | F91: -0.09181818182 | G91: -0.02068965517 | H91: -101 | I91: -12 | J91: 0
A92: 86 | B92: 918 | C92: 428 | D92: 942 | E92: 462 | F92: -0.02547770701 | G92: -0.07359307359 | H92: -24 | I92: -34 | J92: 0
A93: 87 | B93: 719 | C93: 359 | D93: 744 | E93: 371 | F93: -0.03360215054 | G93: -0.03234501348 | H93: -25 | I93: -12 | J93: 0
A94: 88 | B94: 622 | C94: 297 | D94: 687 | E94: 308 | F94: -0.09461426492 | G94: -0.03571428571 | H94: -65 | I94: -11 | J94: 0
A95: 89 | B95: 525 | C95: 229 | D95: 550 | E95: 259 | F95: -0.04545454545 | G95: -0.1158301158 | H95: -25 | I95: -30 | J95: 0
A96: 90 | B96: 1960 | C96: 670 | D96: 2109 | E96: 823 | F96: -0.07064959697 | G96: -0.1859052248 | H96: -149 | I96: -153 | J96: 0

Sheet CA change data (hidden)
B1: UR | C1: =INDEX(T29:T61,T28) -> Scotland | H1: =IF(AND(C1="Fife",OR(C2=2017,C3=2017)),"Note that the 2017 ABPE estimates for Fife are affected by a clerical issue with ER data. See the accompanying QAAD document for further information","") ->  | T1: 2016
B2: Year from | C2: =INDEX(T1:T3,T4) -> 2016 | H2: =IF(C3=C2:C2,"Please enter a different comparison year from the baseline year",IF(C3<C2,"Note that the comparison year is before the baseline year, meaning that the baseline year will include young children who were not born in the comparison year","")) ->  | T2: 2017 | V2: =CONCATENATE("Percentage difference between ABPE and MYE for ",C1," by age and sex ",C2) -> Percentage difference between ABPE and MYE for Scotland by age and sex 2016 | W2: =CONCATENATE("Difference between ",C2," and ",C3," for ABPE and MYE for ",C1," by age and sex") -> Difference between 2016 and 2017 for ABPE and MYE for Scotland by age and sex
B3: Year to | C3: =INDEX(T1:T3,T5) -> 2017 | T3: 2018 | V3: =CONCATENATE("Percentage difference between ABPE and MYE for ",C1," by 5-year age band and sex ",C2) -> Percentage difference between ABPE and MYE for Scotland by 5-year age band and sex 2016 | W3: =CONCATENATE("Difference between ABPE and MYE for ",C1," by 5-year age band and sex ",C2) -> Difference between ABPE and MYE for Scotland by 5-year age band and sex 2016
B4: From | F4: To | J4: Difference | T4: 1 | V4: From | Z4: To | AD4: Difference
B5: =CONCATENATE("'ABPE LA ",$C$2,"'!$B$7:$Ah$98") -> 'ABPE LA 2016'!$B$7:$Ah$98 | C5: =CONCATENATE("'ABPE LA ",$C$2,"'!$ai$7:$bo$98") -> 'ABPE LA 2016'!$ai$7:$bo$98 | F5: =CONCATENATE("'ABPE LA ",$C$3,"'!$B$7:$Ah$98") -> 'ABPE LA 2017'!$B$7:$Ah$98 | G5: =CONCATENATE("'ABPE LA ",$C$3,"'!$ai$7:$bo$98") -> 'ABPE LA 2017'!$ai$7:$bo$98 | J5: Percentage - ABPE | L5: Percenatge - MYE | N5: Absolute ABPE | P5: Absolute MYE | T5: 2 | V5: =CONCATENATE("'ABPE LA ",$C$2,"'!$B$7:$AG$98") -> 'ABPE LA 2016'!$B$7:$AG$98 | W5: =CONCATENATE("'ABPE LA ",$C$2,"'!$ah$7:$bm$98") -> 'ABPE LA 2016'!$ah$7:$bm$98 | Z5: =CONCATENATE("'ABPE LA ",$C$3,"'!$B$7:$AG$98") -> 'ABPE LA 2017'!$B$7:$AG$98 | AA5: =CONCATENATE("'ABPE LA ",$C$3,"'!$ah$7:$bm$98") -> 'ABPE LA 2017'!$ah$7:$bm$98 | AD5: Percentage - ABPE | AF5: Percenatge - MYE | AH5: Absolute ABPE | AJ5: Absolute MYE
A6: =CONCATENATE("Age of cohort in ",C2) -> Age of cohort in 2016 | B6: ABPE - F | C6: ABPE - M | D6: MYE - F | E6: MYE - M | F6: ABPE - F | G6: ABPE - M | H6: MYE - F | I6: MYE - M | J6: Females | K6: Males | L6: Females | M6: Males | N6: ABPE - Females | O6: ABPE - Males | P6: MYE - Females | Q6: MYE - Males | R6: Baseline | U6: Age range | V6: ABPE - F | W6: ABPE - M | X6: MYE - F | Y6: MYE - M | Z6: ABPE - F | AA6: ABPE - M | AB6: MYE - F | AC6: MYE - M | AD6: Females | AE6: Males | AF6: Females | AG6: Males | AH6: Females | AI6: Males | AJ6: Females | AK6: Males
A7: 0 | B7: =HLOOKUP($C$1,INDIRECT(B$5),$A7+2,0) -> 26806 | C7: =HLOOKUP($C$1,INDIRECT(C$5),$A7+2,0) -> 28731 | D7: =IF($C$1="Scotland",SUM(INDIRECT("'MYE "&$C$2&" F'!D"&A7+10&":JHK"&A7+10)),SUMIF(INDIRECT("'MYE "&$C$2&" F'!$D$5:$JHK$5"),$C$1,INDIRECT("'MYE "&$C$2&" F'!D"&A7+10&":JHK"&A7+10))) -> 26819 | E7: =IF($C$1="Scotland",SUM(INDIRECT("'MYE "&$C$2&" M'!D"&A7+10&":JHK"&A7+10)),SUMIF(INDIRECT("'MYE "&$C$2&" M'!$D$5:$JHK$5"),$C$1,INDIRECT("'MYE "&$C$2&" M'!D"&A7+10&":JHK"&A7+10))) -> 28697 | F7: =IF($C$3>$C$2-1,HLOOKUP($C$1,INDIRECT(F$5),$A7+2+$C$3-$C$2,0),0) -> 26655 | G7: =IF($C$3>$C$2-1,HLOOKUP($C$1,INDIRECT(G$5),$A7+2+$C$3-$C$2,0),0) -> 28518 | H7: =IF($C$3>$C$2-1,IF($C$1="Scotland",SUM(INDIRECT("'MYE "&$C$3&" F'!D"&A7+10+$C$3-$C$2&":JHK"&A7+10+$C$3-$C$2)),SUMIF(INDIRECT("'MYE "&$C$3&" F'!$D$5:$JHK$5"),$C$1,INDIRECT("'MYE "&$C$3&" F'!D"&A7+10+$C$3-$C$2&":JHK"&A7+10+$C$3-$C$2))),0) -> 26976 | I7: =IF($C$3>$C$2-1,IF($C$1="Scotland",SUM(INDIRECT("'MYE "&$C$3&" M'!D"&A7+10+$C$3-$C$2&":JHK"&A7+10+$C$3-$C$2)),SUMIF(INDIRECT("'MYE "&$C$3&" M'!$D$5:$JHK$5"),$C$1,INDIRECT("'MYE "&$C$3&" M'!D"&A7+10+$C$3-$C$2&":JHK"&A7+10+$C$3-$C$2))),0) -> 28916 | J7: =(F7-B7)/B7 -> -0.005633067224 | K7: =(G7-C7)/C7 -> -0.007413595072 | L7: =(H7-D7)/D7 -> 0.00585405869 | M7: =(I7-E7)/E7 -> 0.007631459734 | N7: =F7-B7 -> -151 | O7: =G7-C7 -> -213 | P7: 157 | Q7: 219 | R7: 0 | T7: 0 | U7: =CONCATENATE(T7," - ",T7+4) -> 0 - 4 | V7: =SUMIFS(B$7:B$97,$A$7:$A$97,">=" & $T7,$A$7:$A$97,"<" & $T8) -> 138635 | W7: =SUMIFS(C$7:C$97,$A$7:$A$97,">=" & $T7,$A$7:$A$97,"<" & $T8) -> 146502 | X7: =SUMIFS(D$7:D$97,$A$7:$A$97,">=" & $T7,$A$7:$A$97,"<" & $T8) -> 139711 | Y7: =SUMIFS(E$7:E$97,$A$7:$A$97,">=" & $T7,$A$7:$A$97,"<" & $T8) -> 147527 | Z7: =SUMIFS(F$7:F$97,$A$7:$A$97,">=" & $T7,$A$7:$A$97,"<" & $T8) -> 138679 | AA7: =SUMIFS(G$7:G$97,$A$7:$A$97,">=" & $T7,$A$7:$A$97,"<" & $T8) -> 146504 | AB7: =SUMIFS(H$7:H$97,$A$7:$A$97,">=" & $T7,$A$7:$A$97,"<" & $T8) -> 140223 | AC7: =SUMIFS(I$7:I$97,$A$7:$A$97,">=" & $T7,$A$7:$A$97,"<" & $T8) -> 148331 | AD7: =(Z7-V7)/V7 -> 0.000317380171 | AE7: =(AA7-W7)/W7 -> 1.365169076e-05 | AF7: =(AB7-X7)/X7 -> 0.003664707861 | AG7: =(AC7-Y7)/Y7 -> 0.005449849858 | AH7: =Z7-V7 -> 44 | AI7: =AA7-W7 -> 2 | AJ7: =AB7-X7 -> 512 | AK7: =AC7-Y7 -> 804
A8: 1 | B8: =HLOOKUP($C$1,INDIRECT(B$5),$A8+2,0) -> 27115 | C8: 28612 | D8: =IF($C$1="Scotland",SUM(INDIRECT("'MYE "&$C$2&" F'!D"&A8+10&":JHK"&A8+10)),SUMIF(INDIRECT("'MYE "&$C$2&" F'!$D$5:$JHK$5"),$C$1,INDIRECT("'MYE "&$C$2&" F'!D"&A8+10&":JHK"&A8+10))) -> 27567 | E8: =IF($C$1="Scotland",SUM(INDIRECT("'MYE "&$C$2&" M'!D"&A8+10&":JHK"&A8+10)),SUMIF(INDIRECT("'MYE "&$C$2&" M'!$D$5:$JHK$5"),$C$1,INDIRECT("'MYE "&$C$2&" M'!D"&A8+10&":JHK"&A8+10))) -> 29017 | F8: =IF($C$3>$C$2-2,HLOOKUP($C$1,INDIRECT(F$5),$A8+2+$C$3-$C$2,0),0) -> 27179 | G8: =IF($C$3>$C$2-2,HLOOKUP($C$1,INDIRECT(G$5),$A8+2+$C$3-$C$2,0),0) -> 28653 | H8: =IF($C$1="Scotland",SUM(INDIRECT("'MYE "&$C$3&" F'!D"&A8+10+$C$3-$C$2&":JHK"&A8+10+$C$3-$C$2)),SUMIF(INDIRECT("'MYE "&$C$3&" F'!$D$5:$JHK$5"),$C$1,INDIRECT("'MYE "&$C$3&" F'!D"&A8+10+$C$3-$C$2&":JHK"&A8+10+$C$3-$C$2))) -> 27633 | I8: =IF($C$1="Scotland",SUM(INDIRECT("'MYE "&$C$3&" M'!D"&A8+10+$C$3-$C$2&":JHK"&A8+10+$C$3-$C$2)),SUMIF(INDIRECT("'MYE "&$C$3&" M'!$D$5:$JHK$5"),$C$1,INDIRECT("'MYE "&$C$3&" M'!D"&A8+10+$C$3-$C$2&":JHK"&A8+10+$C$3-$C$2))) -> 29157 | J8: =(F8-B8)/B8 -> 0.002360317168 | K8: =(G8-C8)/C8 -> 0.001432965189 | L8: =(H8-D8)/D8 -> 0.002394166939 | M8: =(I8-E8)/E8 -> 0.004824757901 | N8: =F8-B8 -> 64 | O8: =G8-C8 -> 41 | P8: =H8-D8 -> 66 | Q8: =I8-E8 -> 140 | R8: 0 | T8: =T7+5 -> 5 | U8: =CONCATENATE(T8," - ",T8+4) -> 5 - 9 | V8: 145579 | W8: 152021 | X8: 146570 | Y8: 152292 | Z8: 146131 | AA8: 152476 | AB8: 147028 | AC8: 152979 | AD8: =(Z8-V8)/V8 -> 0.003791755679 | AE8: =(AA8-W8)/W8 -> 0.002993007545 | AF8: =(AB8-X8)/X8 -> 0.003124786791 | AG8: =(AC8-Y8)/Y8 -> 0.004511070838 | AH8: =Z8-V8 -> 552 | AI8: =AA8-W8 -> 455 | AJ8: =AB8-X8 -> 458 | AK8: =AC8-Y8 -> 687
A9: 2 | B9: 27508 | C9: 29058 | D9: 27788 | E9: 29377 | F9: =HLOOKUP($C$1,INDIRECT(F$5),$A9+2+$C$3-$C$2,0) -> 27417 | G9: 28991 | H9: 27868 | I9: 29493 | J9: -0.003308128544 | K9: -0.002305733361 | L9: 0.00287894055 | M9: 0.003948667325 | N9: =F9-B9 -> -91 | O9: =G9-C9 -> -67 | P9: 80 | Q9: 116 | R9: 0 | T9: =T8+5 -> 10 | U9: 10 - 14 | V9: 134127 | W9: 140628 | X9: 133997 | Y9: 140381 | Z9: 134593 | AA9: 141072 | AB9: 134394 | AC9: 140934 | AD9: 0.003474319115 | AE9: 0.003157265978 | AF9: 0.002962752897 | AG9: 0.003939279532 | AH9: 466 | AI9: 444 | AJ9: 397 | AK9: 553
A10: 3 | B10: 28242 | C10: 29500 | D10: 28504 | E10: 29728 | F10: 28391 | G10: 29611 | H10: 28608 | I10: 29902 | J10: 0.005275830324 | K10: 0.003762711864 | L10: 0.003648610721 | M10: 0.005853067815 | N10: 149 | O10: 111 | P10: 104 | Q10: 174 | R10: 0 | T10: 15 | U10: 15 - 19 | V10: 144983 | W10: 149929 | X10: 146046 | Y10: 152614 | Z10: 150095 | AA10: 152387 | AB10: 149573 | AC10: 155860 | AD10: 0.03525930626 | AE10: 0.0163944267 | AF10: 0.02414992537 | AG10: 0.02126934619 | AH10: 5112 | AI10: 2458 | AJ10: 3527 | AK10: 3246
A11: 4 | B11: 28964 | C11: 30601 | D11: 29033 | E11: 30708 | F11: 29037 | G11: 30731 | H11: 29138 | I11: 30863 | J11: 0.002520370115 | K11: 0.004248227182 | L11: 0.003616574243 | M11: 0.005047544614 | N11: 73 | O11: 130 | P11: 105 | Q11: 155 | R11: 0 | T11: 20 | U11: 20 - 24 | V11: 182507 | W11: 175722 | X11: 182279 | Y11: 181688 | Z11: 185691 | AA11: 176597 | AB11: 183179 | AC11: 183404 | AD11: 0.01744590618 | AE11: 0.004979456186 | AF11: 0.004937485942 | AG11: 0.00944476245 | AH11: 3184 | AI11: 875 | AJ11: 900 | AK11: 1716
A12: 5 | B12: 28919 | C12: 30445 | D12: 30162 | E12: 31533 | F12: 29042 | G12: 30636 | H12: 30220 | I12: 31675 | J12: 0.004253259103 | K12: 0.006273608146 | L12: 0.001922949407 | M12: 0.00450321885 | N12: 123 | O12: 191 | P12: 58 | Q12: 142 | R12: 0 | T12: 25 | U12: 25 - 29 | V12: 186618 | W12: 183493 | X12: 187975 | Y12: 186149 | Z12: 186507 | AA12: 182412 | AB12: 189064 | AC12: 187100 | AD12: -0.0005947979295 | AE12: -0.005891232908 | AF12: 0.00579332358 | AG12: 0.005108810684 | AH12: -111 | AI12: -1081 | AJ12: 1089 | AK12: 951
A13: 6 | B13: 29416 | C13: 30426 | D13: 28855 | E13: 29946 | F13: 29537 | G13: 30473 | H13: 28968 | I13: 30043 | J13: 0.004113407669 | K13: 0.00154473148 | L13: 0.003916132386 | M13: 0.003239163828 | N13: 121 | O13: 47 | P13: 113 | Q13: 97 | R13: 0 | T13: 30 | U13: 30 - 34 | V13: 182395 | W13: 178911 | X13: 179608 | Y13: 172305 | Z13: 181333 | AA13: 175926 | AB13: 180256 | AC13: 173157 | AD13: -0.00582252803 | AE13: -0.01668427319 | AF13: 0.003607857111 | AG13: 0.004944720118 | AH13: -1062 | AI13: -2985 | AJ13: 648 | AK13: 852
A14: 7 | B14: 29313 | C14: 30713 | D14: 29683 | E14: 30653 | F14: 29448 | G14: 30804 | H14: 29811 | I14: 30813 | J14: 0.004605465152 | K14: 0.002962914727 | L14: 0.004312232591 | M14: 0.005219717483 | N14: 135 | O14: 91 | P14: 128 | Q14: 160 | R14: 0 | T14: 35 | U14: 35 - 39 | V14: 168397 | W14: 168280 | X14: 166485 | Y14: 161268 | Z14: 167857 | AA14: 166105 | AB14: 166989 | AC14: 162055 | AD14: -0.003206707958 | AE14: -0.01292488709 | AF14: 0.003027299757 | AG14: 0.004880075402 | AH14: -540 | AI14: -2175 | AJ14: 504 | AK14: 787
A15: 8 | B15: 29574 | C15: 30551 | D15: 29598 | E15: 30586 | F15: 29696 | G15: 30663 | H15: 29690 | I15: 30730 | J15: 0.004125245148 | K15: 0.003666001113 | L15: 0.00310831813 | M15: 0.004708036357 | N15: 122 | O15: 112 | P15: 92 | Q15: 144 | R15: 0 | T15: 40 | U15: 40 - 44 | V15: 172654 | W15: 170287 | X15: 172709 | Y15: 164929 | Z15: 172447 | AA15: 168554 | AB15: 173057 | AC15: 164977 | AD15: -0.001198929651 | AE15: -0.01017693658 | AF15: 0.002014950003 | AG15: 0.0002910343239 | AH15: -207 | AI15: -1733 | AJ15: 348 | AK15: 48
A16: 9 | B16: 28357 | C16: 29886 | D16: 28272 | E16: 29574 | F16: 28408 | G16: 29900 | H16: 28339 | I16: 29718 | J16: 0.001798497725 | K16: 0.0004684467644 | L16: 0.00236983588 | M16: 0.004869141814 | N16: 51 | O16: 14 | P16: 67 | Q16: 144 | R16: 0 | T16: 45 | U16: 45 - 49 | V16: 201423 | W16: 196925 | X16: 202829 | Y16: 189422 | Z16: 201474 | AA16: 197532 | AB16: 202823 | AC16: 189082 | AD16: 0.0002531984927 | AE16: 0.003082391774 | AF16: -2.958156871e-05 | AG16: -0.001794934063 | AH16: 51 | AI16: 607 | AJ16: -6 | AK16: -340
A17: 10 | B17: 27647 | C17: 28871 | D17: 27796 | E17: 28838 | F17: 27754 | G17: 28993 | H17: 27891 | I17: 28949 | J17: 0.003870221 | K17: 0.004225693603 | L17: 0.003417757951 | M17: 0.003849088009 | N17: 107 | O17: 122 | P17: 95 | Q17: 111 | R17: 0 | T17: 50 | U17: 50 - 54 | V17: 209780 | W17: 208200 | X17: 209262 | Y17: 197429 | Z17: 209204 | AA17: 206001 | AB17: 208982 | AC17: 196916 | AD17: -0.002745733626 | AE17: -0.01056195965 | AF17: -0.001338035573 | AG17: -0.002598402464 | AH17: -576 | AI17: -2199 | AJ17: -280 | AK17: -513
A18: 11 | B18: 27118 | C18: 28853 | D18: 27257 | E18: 28885 | F18: 27197 | G18: 28916 | H18: 27352 | I18: 29005 | J18: 0.002913194188 | K18: 0.002183481787 | L18: 0.003485343215 | M18: 0.004154405401 | N18: 79 | O18: 63 | P18: 95 | Q18: 120 | R18: 0 | T18: 55 | U18: 55 - 59 | V18: 190448 | W18: 186988 | X18: 190084 | Y18: 180737 | Z18: 189840 | AA18: 185561 | AB18: 189557 | AC18: 179876 | AD18: -0.003192472486 | AE18: -0.007631505765 | AF18: -0.002772458492 | AG18: -0.004763828104 | AH18: -608 | AI18: -1427 | AJ18: -527 | AK18: -861
A19: 12 | B19: 26919 | C19: 28443 | D19: 26739 | E19: 28344 | F19: 26995 | G19: 28520 | H19: 26801 | I19: 28442 | J19: 0.002823284669 | K19: 0.002707168723 | L19: 0.002318710498 | M19: 0.003457521874 | N19: 76 | O19: 77 | P19: 62 | Q19: 98 | R19: 0 | T19: 60 | U19: 60 - 64 | V19: 163904 | W19: 159382 | X19: 165146 | Y19: 156406 | Z19: 163099 | AA19: 157969 | AB19: 164067 | AC19: 154836 | AD19: -0.004911411558 | AE19: -0.008865492967 | AF19: -0.006533612682 | AG19: -0.01003797808 | AH19: -805 | AI19: -1413 | AJ19: -1079 | AK19: -1570
A20: 13 | B20: 26311 | C20: 27349 | D20: 26167 | E20: 27231 | F20: 26396 | G20: 27419 | H20: 26234 | I20: 27366 | J20: 0.003230587967 | K20: 0.002559508574 | L20: 0.002560476937 | M20: 0.004957585105 | N20: 85 | O20: 70 | P20: 67 | Q20: 135 | R20: 0 | T20: 65 | U20: 65 - 69 | V20: 160518 | W20: 152410 | X20: 164057 | Y20: 153467 | Z20: 159948 | AA20: 150498 | AB20: 162130 | AC20: 150720 | AD20: -0.003551003626 | AE20: -0.01254510859 | AF20: -0.01174591758 | AG20: -0.0178996136 | AH20: -570 | AI20: -1912 | AJ20: -1927 | AK20: -2747
A21: 14 | B21: 26132 | C21: 27112 | D21: 26038 | E21: 27083 | F21: 26251 | G21: 27224 | H21: 26116 | I21: 27172 | J21: 0.004553803765 | K21: 0.004131012098 | L21: 0.002995621784 | M21: 0.003286194292 | N21: 119 | O21: 112 | P21: 78 | Q21: 89 | R21: 0 | T21: 70 | U21: 70 - 74 | V21: 123945 | W21: 110063 | X21: 127150 | Y21: 111869 | Z21: 122031 | AA21: 107400 | AB21: 124469 | AC21: 108591 | AD21: -0.01544233329 | AE21: -0.02419523364 | AF21: -0.02108533228 | AG21: -0.02930213017 | AH21: -1914 | AI21: -2663 | AJ21: -2681 | AK21: -3278
A22: 15 | B22: 27073 | C22: 28036 | D22: 27243 | E22: 28196 | F22: 27156 | G22: 28091 | H22: 27297 | I22: 28297 | J22: 0.0030657851 | K22: 0.001961763447 | L22: 0.001982160555 | M22: 0.003582068378 | N22: 83 | O22: 55 | P22: 54 | Q22: 101 | R22: 0 | T22: 75 | U22: 75 - 79 | V22: 101720 | W22: 80698 | X22: 104331 | Y22: 82515 | Z22: 98345 | AA22: 76880 | AB22: 100602 | AC22: 78540 | AD22: -0.03317931577 | AE22: -0.04731220105 | AF22: -0.0357420134 | AG22: -0.04817305944 | AH22: -3375 | AI22: -3818 | AJ22: -3729 | AK22: -3975
A23: 16 | B23: 27274 | C23: 28830 | D23: 27563 | E23: 29300 | F23: 27321 | G23: 28785 | H23: 27603 | I23: 29416 | J23: 0.001723252915 | K23: -0.001560874089 | L23: 0.00145122084 | M23: 0.003959044369 | N23: 47 | O23: -45 | P23: 40 | Q23: 116 | R23: 0 | T23: 80 | U23: 80 - 84 | V23: 77790 | W23: 54582 | X23: 80217 | Y23: 56201 | Z23: 73120 | AA23: 50163 | AB23: 75198 | AC23: 51611 | AD23: -0.06003342332 | AE23: -0.08096075629 | AF23: -0.06256778488 | AG23: -0.08167114464 | AH23: -4670 | AI23: -4419 | AJ23: -5019 | AK23: -4590
A24: 17 | B24: 28333 | C24: 29550 | D24: 28702 | E24: 30279 | F24: 29024 | G24: 30123 | H24: 29074 | I24: 30691 | J24: 0.02438852222 | K24: 0.01939086294 | L24: 0.01296076928 | M24: 0.01360679018 | N24: 691 | O24: 573 | P24: 372 | Q24: 412 | R24: 0 | T24: 85 | U24: 85 - 89 | V24: 48445 | W24: 27487 | X24: 49691 | Y24: 28287 | Z24: =SUMIFS(F$7:F$97,$A$7:$A$97,">=" & $T24,$A$7:$A$97,"<" & $T25) -> 64743 | AA24: 31900 | AB24: 67004 | AC24: 33683 | AD24: 0.3364227474 | AE24: 0.160548623 | AF24: 0.3484131935 | AG24: 0.1907590059 | AH24: 16298 | AI24: 4413 | AJ24: 17313 | AK24: 5396
A25: 18 | B25: 29484 | C25: 30522 | D25: 29789 | E25: 31162 | F25: 32130 | G25: 31979 | H25: 31676 | I25: 32698 | J25: 0.08974358974 | K25: 0.04773605924 | L25: 0.06334553023 | M25: 0.0492908029 | N25: 2646 | O25: 1457 | P25: 1887 | Q25: 1536 | R25: 0 | T25: 90 | U25: 90+ | V25: 27539 | W25: 10925 | X25: 29050 | Y25: 12017 | AB25: 932544 | AC25: 960507 | AF25: 31.10134251 | AG25: 78.92901723 | AJ25: 903494 | AK25: 948490
A26: 19 | B26: 32819 | C26: 32991 | D26: 32749 | E26: 33677 | F26: 34464 | G26: 33409 | H26: 33923 | I26: 34758 | J26: 0.05012340413 | K26: 0.01267012215 | L26: 0.03584842285 | M26: 0.0320990587 | N26: 1645 | O26: 418 | P26: 1174 | Q26: 1081 | R26: 0 | T26: 95
A27: 20 | B27: =HLOOKUP($C$1,INDIRECT(B$5),$A27+2,0) -> 33726 | C27: 32725 | D27: 33871 | E27: 34653 | F27: 34721 | G27: 33080 | H27: 34375 | I27: 35231 | J27: 0.02950246101 | K27: 0.01084797555 | L27: 0.01487998583 | M27: 0.01667965256 | N27: 995 | O27: 355 | P27: 504 | Q27: 578 | R27: 0
A28: 21 | B28: 35362 | C28: 33859 | D28: 34923 | E28: 35175 | F28: 36497 | G28: 34600 | H28: 35124 | I28: 35570 | J28: 0.03209660087 | K28: 0.02188487551 | L28: 0.005755519285 | M28: 0.01122956645 | N28: 1135 | O28: 741 | P28: 201 | Q28: 395 | R28: 0 | T28: 33
A29: 22 | B29: 37075 | C29: 35765 | D29: 36314 | E29: 36261 | F29: 37781 | G29: 35692 | H29: 36381 | I29: 36594 | J29: 0.01904248146 | K29: -0.002041101636 | L29: 0.00184501845 | M29: 0.009183420204 | N29: 706 | O29: -73 | P29: 67 | Q29: 333 | R29: 0 | T29: Aberdeen City
A30: 23 | B30: 37797 | C30: 35936 | D30: 37631 | E30: 36791 | F30: 38125 | G30: 35976 | H30: 37669 | I30: 36984 | J30: 0.008677937402 | K30: 0.001113089938 | L30: 0.001009805745 | M30: 0.005245848169 | N30: 328 | O30: 40 | P30: 38 | Q30: 193 | R30: 0 | T30: Aberdeenshire
A31: 24 | B31: 38547 | C31: 37437 | D31: 39540 | E31: 38808 | F31: 38567 | G31: 37249 | H31: 39630 | I31: 39025 | J31: 0.0005188471217 | K31: -0.005021769907 | L31: 0.002276176024 | M31: 0.005591630592 | N31: 20 | O31: -188 | P31: 90 | Q31: 217 | R31: 0 | T31: Angus
A32: 25 | B32: 38203 | C32: 37391 | D32: 38982 | E32: 39073 | F32: 38210 | G32: 37175 | H32: 39184 | I32: 39299 | J32: 0.0001832316834 | K32: -0.005776791206 | L32: 0.005181878816 | M32: 0.005784045249 | N32: 7 | O32: -216 | P32: 202 | Q32: 226 | R32: 0 | T32: Argyll and Bute
A33: 26 | B33: 36977 | C33: 36188 | D33: 37498 | E33: 37445 | F33: 37002 | G33: 35945 | H33: 37661 | I33: 37701 | J33: 0.0006760959515 | K33: -0.006714933127 | L33: 0.004346898501 | M33: 0.006836693818 | N33: 25 | O33: -243 | P33: 163 | Q33: 256 | R33: 0 | T33: City of Edinburgh
A34: 27 | B34: 36695 | C34: 36181 | D34: 37318 | E34: 37102 | F34: 36678 | G34: 35983 | H34: 37574 | I34: 37307 | J34: -0.0004632783758 | K34: -0.005472485559 | L34: 0.006859960341 | M34: 0.005525308609 | N34: -17 | O34: -198 | P34: 256 | Q34: 205 | R34: 0 | T34: Clackmannanshire
A35: 28 | B35: 37529 | C35: 37083 | D35: 37556 | E35: 36957 | F35: 37482 | G35: 36891 | H35: 37823 | I35: 37044 | J35: -0.001252364838 | K35: -0.00517757463 | L35: 0.007109383321 | M35: 0.002354087182 | N35: -47 | O35: -192 | P35: 267 | Q35: 87 | R35: 0 | T35: Dumfries and Galloway
A36: 29 | B36: 37214 | C36: 36650 | D36: 36621 | E36: 35572 | F36: 37135 | G36: 36418 | H36: 36822 | I36: 35749 | J36: -0.002122856989 | K36: -0.006330150068 | L36: 0.005488654051 | M36: 0.004975823682 | N36: -79 | O36: -232 | P36: 201 | Q36: 177 | R36: 0 | T36: Dundee City
A37: 30 | B37: 36890 | C37: 36680 | D37: 36099 | E37: 35467 | F37: 36698 | G37: 36339 | H37: 36217 | I37: 35727 | J37: -0.00520466251 | K37: -0.009296619411 | L37: 0.003268788609 | M37: 0.00733075817 | N37: -192 | O37: -341 | P37: 118 | Q37: 260 | R37: 0 | T37: East Ayrshire
A38: 31 | B38: 37148 | C38: 36177 | D38: 36312 | E38: 34774 | F38: 37087 | G38: 35917 | H38: 36435 | I38: 34926 | J38: -0.001642080327 | K38: -0.007186886696 | L38: 0.00338730998 | M38: 0.004371081843 | N38: -61 | O38: -260 | P38: 123 | Q38: 152 | R38: 0 | T38: East Dunbartonshire
A39: 32 | B39: 35999 | C39: 35446 | D39: 35089 | E39: 33786 | F39: 35481 | G39: 34157 | H39: 35286 | I39: 33871 | J39: -0.01438928859 | K39: -0.0363651752 | L39: 0.005614295078 | M39: 0.002515834961 | N39: -518 | O39: -1289 | P39: 197 | Q39: 85 | R39: 0 | T39: East Lothian
A40: 33 | B40: =HLOOKUP($C$1,INDIRECT(B$5),$A40+2,0) -> 36102 | C40: 35124 | D40: 35723 | E40: 34032 | F40: =HLOOKUP($C$1,INDIRECT(F$5),$A40+2+$C$3-$C$2,0) -> 35933 | G40: 34593 | H40: 35830 | I40: 34217 | J40: -0.004681181098 | K40: -0.01511786812 | L40: 0.002995269154 | M40: 0.005436060179 | N40: -169 | O40: -531 | P40: 107 | Q40: 185 | R40: 0 | T40: East Renfrewshire
A41: 34 | B41: 36256 | C41: 35484 | D41: 36385 | E41: 34246 | F41: 36134 | G41: 34920 | H41: 36488 | I41: 34416 | J41: -0.003364960282 | K41: -0.01589448766 | L41: 0.002830836883 | M41: 0.004964083397 | N41: -122 | O41: -564 | P41: 103 | Q41: 170 | R41: 0 | T41: Falkirk
A42: 35 | B42: 36299 | C42: 36034 | D42: 35753 | E42: 34347 | F42: 36201 | G42: 35421 | H42: 35887 | I42: 34511 | J42: -0.002699798893 | K42: -0.01701171116 | L42: 0.003747937236 | M42: 0.004774798381 | N42: -98 | O42: -613 | P42: 134 | Q42: 164 | R42: 0 | T42: Fife
A43: 36 | B43: 35467 | C43: 35400 | D43: 34995 | E43: 33701 | F43: 35335 | G43: 34915 | H43: 35085 | I43: 33876 | J43: -0.003721769532 | K43: -0.01370056497 | L43: 0.002571795971 | M43: 0.005192724252 | N43: -132 | O43: -485 | P43: 90 | Q43: 175 | R43: 0 | T43: Glasgow City
A44: 37 | B44: 33974 | C44: 34448 | D44: 33471 | E44: 32926 | F44: 33784 | G44: 34132 | H44: 33586 | I44: 33130 | J44: -0.005592511921 | K44: -0.009173246633 | L44: 0.003435810104 | M44: 0.006195711596 | N44: -190 | O44: -316 | P44: 115 | Q44: 204 | R44: 0 | T44: Highland
A45: 38 | B45: 32041 | C45: 31385 | D45: 31663 | E45: 30125 | F45: 31993 | G45: 30986 | H45: 31781 | I45: 30293 | J45: -0.001498080584 | K45: -0.0127130795 | L45: 0.003726747308 | M45: 0.005576763485 | N45: -48 | O45: -399 | P45: 118 | Q45: 168 | R45: 0 | T45: Inverclyde
A46: 39 | B46: 30616 | C46: 31013 | D46: 30603 | E46: 30169 | F46: 30544 | G46: 30651 | H46: 30650 | I46: 30245 | J46: -0.002351711523 | K46: -0.01167252443 | L46: 0.001535797144 | M46: 0.002519142166 | N46: -72 | O46: -362 | P46: 47 | Q46: 76 | R46: 0 | T46: Midlothian
A47: 40 | B47: 32723 | C47: 32492 | D47: 32622 | E47: 31504 | F47: 32695 | G47: 32090 | H47: 32707 | I47: 31468 | J47: -0.0008556672677 | K47: -0.01237227625 | L47: 0.00260560358 | M47: -0.001142712037 | N47: -28 | O47: -402 | P47: 85 | Q47: -36 | R47: 0 | T47: Moray
A48: 41 | B48: 33193 | C48: 32579 | D48: 33160 | E48: 31398 | F48: 33151 | G48: 32240 | H48: 33267 | I48: 31408 | J48: -0.001265327027 | K48: -0.01040547592 | L48: 0.003226779252 | M48: 0.0003184916237 | N48: -42 | O48: -339 | P48: 107 | Q48: 10 | R48: 0 | T48: Na h-Eileanan Siar
A49: 42 | B49: 33333 | C49: 33261 | D49: 33272 | E49: 32214 | F49: 33327 | G49: 32889 | H49: 33367 | I49: 32277 | J49: -0.0001800018 | K49: -0.01118426987 | L49: 0.002855253667 | M49: 0.001955671447 | N49: -6 | O49: -372 | P49: 95 | Q49: 63 | R49: 0 | T49: North Ayrshire
A50: 43 | B50: 35517 | C50: 35091 | D50: 35532 | E50: 34054 | F50: 35484 | G50: 34759 | H50: 35569 | I50: 34075 | J50: -0.0009291325281 | K50: -0.009461115386 | L50: 0.001041314871 | M50: 0.0006166676455 | N50: -33 | O50: -332 | P50: 37 | Q50: 21 | R50: 0 | T50: North Lanarkshire
A51: 44 | B51: 37888 | C51: 36864 | D51: 38123 | E51: 35759 | F51: 37790 | G51: 36576 | H51: 38147 | I51: 35749 | J51: -0.002586570946 | K51: -0.0078125 | L51: 0.0006295412218 | M51: -0.0002796498784 | N51: -98 | O51: -288 | P51: 24 | Q51: -10 | R51: 0 | T51: Orkney Islands
A52: 45 | B52: 39597 | C52: 38534 | D52: 39905 | E52: 36884 | F52: 39490 | G52: 38165 | H52: 39921 | I52: 36792 | J52: -0.002702224916 | K52: -0.009575958893 | L52: 0.0004009522616 | M52: -0.002494306474 | N52: -107 | O52: -369 | P52: 16 | Q52: -92 | R52: 0 | T52: Perth and Kinross
A53: 46 | B53: 39032 | C53: 38165 | D53: 39222 | E53: 36481 | F53: 38899 | G53: 37812 | H53: 39262 | I53: 36424 | J53: -0.003407460545 | K53: -0.009249312197 | L53: 0.001019835806 | M53: -0.001562457169 | N53: -133 | O53: -353 | P53: 40 | Q53: -57 | R53: 0 | T53: Renfrewshire
A54: 47 | B54: 40400 | C54: 39581 | D54: 40801 | E54: 37985 | F54: 40293 | G54: 39291 | H54: 40781 | I54: 37924 | J54: -0.002648514851 | K54: -0.007326747682 | L54: -0.0004901840641 | M54: -0.001605897065 | N54: -107 | O54: -290 | P54: -20 | Q54: -61 | R54: 0 | T54: Scottish Borders
A55: 48 | B55: 41251 | C55: 39990 | D55: 41543 | E55: 38668 | F55: 41148 | G55: 39657 | H55: 41499 | I55: 38571 | J55: -0.002496909166 | K55: -0.00832708177 | L55: -0.001059143538 | M55: -0.002508534188 | N55: -103 | O55: -333 | P55: -44 | Q55: -97 | R55: 0 | T55: Shetland Islands
A56: 49 | B56: 41143 | C56: 40655 | D56: 41358 | E56: 39404 | F56: 41644 | G56: 42607 | H56: 41360 | I56: 39371 | J56: 0.01217704105 | K56: 0.04801377444 | L56: 4.835823783e-05 | M56: -0.0008374784286 | N56: 501 | O56: 1952 | P56: 2 | Q56: -33 | R56: 0 | T56: South Ayrshire
A57: 50 | B57: 41554 | C57: 41748 | D57: 41391 | E57: 38795 | F57: 41301 | G57: 40559 | H57: 41330 | I57: 38735 | J57: -0.006088463205 | K57: -0.02848040625 | L57: -0.001473750332 | M57: -0.001546591056 | N57: -253 | O57: -1189 | P57: -61 | Q57: -60 | R57: 0 | T57: South Lanarkshire
A58: 51 | B58: 42720 | C58: 42402 | D58: 42646 | E58: 40421 | F58: 42755 | G58: 42690 | H58: 42580 | I58: 40329 | J58: 0.0008192883895 | K58: 0.006792132447 | L58: -0.001547624631 | M58: -0.00227604463 | N58: 35 | O58: 288 | P58: -66 | Q58: -92 | R58: 0 | T58: Stirling
A59: 52 | B59: 42598 | C59: 41985 | D59: 42441 | E59: 39547 | F59: 42372 | G59: 41163 | H59: 42376 | I59: 39441 | J59: -0.0053054134 | K59: -0.01957842086 | L59: -0.0015315379 | M59: -0.002680355021 | N59: -226 | O59: -822 | P59: -65 | Q59: -106 | R59: 0 | T59: West Dunbartonshire
A60: 53 | B60: 42092 | C60: 41146 | D60: 42060 | E60: 39588 | F60: 42155 | G60: 41339 | H60: 42025 | I60: 39502 | J60: 0.001496721467 | K60: 0.004690613911 | L60: -0.0008321445554 | M60: -0.002172375467 | N60: 63 | O60: 193 | P60: -35 | Q60: -86 | R60: 0 | T60: West Lothian
A61: 54 | B61: 40816 | C61: 40919 | D61: 40724 | E61: 39078 | F61: 40621 | G61: 40250 | H61: 40671 | I61: 38909 | J61: -0.00477753822 | K61: -0.01634937315 | L61: -0.001301443866 | M61: -0.004324683965 | N61: -195 | O61: -669 | P61: -53 | Q61: -169 | R61: 0 | T61: Scotland
A62: 55 | B62: 39998 | C62: 39333 | D62: 39939 | E62: 38031 | F62: 39987 | G62: 39360 | H62: 39839 | I62: 37885 | J62: -0.0002750137507 | K62: 0.0006864464953 | L62: -0.002503818323 | M62: -0.003838973469 | N62: -11 | O62: 27 | P62: -100 | Q62: -146 | R62: 0
A63: 56 | B63: 38550 | C63: 38488 | D63: 38427 | E63: 36862 | F63: 38431 | G63: 38008 | H63: 38357 | I63: 36734 | J63: -0.00308690013 | K63: -0.01247141966 | L63: -0.001821635829 | M63: -0.003472410613 | N63: -119 | O63: -480 | P63: -70 | Q63: -128 | R63: 0
A64: 57 | B64: 38514 | C64: 37579 | D64: 38397 | E64: 36217 | F64: 38336 | G64: 37198 | H64: 38274 | I64: 36030 | J64: -0.004621696007 | K64: -0.01013864126 | L64: -0.003203375264 | M64: -0.005163321092 | N64: -178 | O64: -381 | P64: -123 | Q64: -187 | R64: 0
A65: 58 | B65: 37325 | C65: 36300 | D65: 37263 | E65: 35210 | F65: 37274 | G65: 36234 | H65: 37138 | I65: 35049 | J65: -0.001366376423 | K65: -0.001818181818 | L65: -0.003354533988 | M65: -0.004572564612 | N65: -51 | O65: -66 | P65: -125 | Q65: -161 | R65: 0
A66: 59 | B66: 36061 | C66: 35288 | D66: 36058 | E66: 34417 | F66: 35812 | G66: 34761 | H66: 35949 | I66: 34178 | J66: -0.006904966584 | K66: -0.01493425527 | L66: -0.003022907538 | M66: -0.006944242671 | N66: -249 | O66: -527 | P66: -109 | Q66: -239 | R66: 0
A67: 60 | B67: 34760 | C67: 34097 | D67: 34941 | E67: 33311 | F67: 34731 | G67: 34014 | H67: 34801 | I67: 33057 | J67: -0.00083429229 | K67: -0.002434231751 | L67: -0.004006754243 | M67: -0.007625108823 | N67: -29 | O67: -83 | P67: -140 | Q67: -254 | R67: 0
A68: 61 | B68: 33595 | C68: 32480 | D68: 33606 | E68: 31726 | F68: 33320 | G68: 32032 | H68: 33426 | I68: 31417 | J68: -0.008185741926 | K68: -0.01379310345 | L68: -0.005356186395 | M68: -0.009739645716 | N68: -275 | O68: -448 | P68: -180 | Q68: -309 | R68: 0
A69: 62 | B69: 32840 | C69: 31945 | D69: 33002 | E69: 31363 | F69: 32667 | G69: 31713 | H69: 32762 | I69: 31041 | J69: -0.005267965895 | K69: -0.007262482392 | L69: -0.007272286528 | M69: -0.01026687498 | N69: -173 | O69: -232 | P69: -240 | Q69: -322 | R69: 0
A70: 63 | B70: 32008 | C70: 31122 | D70: 32395 | E70: 30581 | F70: 31784 | G70: 30763 | H70: 32135 | I70: 30245 | J70: -0.006998250437 | K70: -0.01153524838 | L70: -0.008025929927 | M70: -0.01098721428 | N70: -224 | O70: -359 | P70: -260 | Q70: -336 | R70: 0
A71: 64 | B71: 30701 | C71: 29738 | D71: 31202 | E71: 29425 | F71: 30597 | G71: 29447 | H71: 30943 | I71: 29076 | J71: -0.003387511807 | K71: -0.009785459681 | L71: -0.008300749952 | M71: -0.0118606627 | N71: -104 | O71: -291 | P71: -259 | Q71: -349 | R71: 0
A72: 65 | B72: =HLOOKUP($C$1,INDIRECT(B$5),$A72+2,0) -> 30930 | C72: 29528 | D72: =IF($C$1="Scotland",SUM(INDIRECT("'MYE "&$C$2&" F'!D"&A72+10&":JHK"&A72+10)),SUMIF(INDIRECT("'MYE "&$C$2&" F'!$D$5:$JHK$5"),$C$1,INDIRECT("'MYE "&$C$2&" F'!D"&A72+10&":JHK"&A72+10))) -> 31507 | E72: =IF($C$1="Scotland",SUM(INDIRECT("'MYE "&$C$2&" M'!D"&A72+10&":JHK"&A72+10)),SUMIF(INDIRECT("'MYE "&$C$2&" M'!$D$5:$JHK$5"),$C$1,INDIRECT("'MYE "&$C$2&" M'!D"&A72+10&":JHK"&A72+10))) -> 29569 | F72: =HLOOKUP($C$1,INDIRECT(F$5),$A72+2+$C$3-$C$2,0) -> 30858 | G72: 29159 | H72: =IF($C$1="Scotland",SUM(INDIRECT("'MYE "&$C$3&" F'!D"&A72+10+$C$3-$C$2&":JHK"&A72+10+$C$3-$C$2)),SUMIF(INDIRECT("'MYE "&$C$3&" F'!$D$5:$JHK$5"),$C$1,INDIRECT("'MYE "&$C$3&" F'!D"&A72+10+$C$3-$C$2&":JHK"&A72+10+$C$3-$C$2))) -> 31228 | I72: =IF($C$1="Scotland",SUM(INDIRECT("'MYE "&$C$3&" M'!D"&A72+10+$C$3-$C$2&":JHK"&A72+10+$C$3-$C$2)),SUMIF(INDIRECT("'MYE "&$C$3&" M'!$D$5:$JHK$5"),$C$1,INDIRECT("'MYE "&$C$3&" M'!D"&A72+10+$C$3-$C$2&":JHK"&A72+10+$C$3-$C$2))) -> 29098 | J72: =(F72-B72)/B72 -> -0.002327837051 | K72: =(G72-C72)/C72 -> -0.01249661338 | L72: =(H72-D72)/D72 -> -0.00885517504 | M72: =(I72-E72)/E72 -> -0.0159288444 | N72: =F72-B72 -> -72 | O72: =G72-C72 -> -369 | P72: =H72-D72 -> -279 | Q72: =I72-E72 -> -471 | R72: 0
A73: 66 | B73: 30532 | C73: 29443 | D73: 31414 | E73: 29668 | F73: 30630 | G73: 29221 | H73: 31100 | I73: 29224 | J73: 0.003209747151 | K73: -0.007539992528 | L73: -0.009995543388 | M73: -0.01496561952 | N73: 98 | O73: -222 | P73: -314 | Q73: -444 | R73: 0
A74: 67 | B74: 31324 | C74: 29965 | D74: 32127 | E74: 30193 | F74: 31246 | G74: 29568 | H74: 31741 | I74: 29691 | J74: -0.002490103435 | K74: -0.01324879026 | L74: -0.0120148162 | M74: -0.01662637035 | N74: -78 | O74: -397 | P74: -386 | Q74: -502 | R74: 0
A75: 68 | B75: 32552 | C75: 30624 | D75: 33103 | E75: 30916 | F75: 32376 | G75: 30262 | H75: 32681 | I75: 30284 | J75: -0.005406733841 | K75: -0.01182079415 | L75: -0.0127480893 | M75: -0.02044248933 | N75: -176 | O75: -362 | P75: -422 | Q75: -632 | R75: 0
A76: 69 | B76: 35180 | C76: 32850 | D76: 35906 | E76: 33121 | F76: 34838 | G76: 32288 | H76: 35380 | I76: 32423 | J76: -0.009721432632 | K76: -0.01710806697 | L76: -0.01464936222 | M76: -0.02107424293 | N76: -342 | O76: -562 | P76: -526 | Q76: -698 | R76: 0
A77: 70 | B77: 26255 | C77: 24313 | D77: 26974 | E77: 24797 | F77: 25970 | G77: 23894 | H77: 26479 | I77: 24213 | J77: -0.01085507522 | K77: -0.01723357874 | L77: -0.01835100467 | M77: -0.02355123604 | N77: -285 | O77: -419 | P77: -495 | Q77: -584 | R77: 0
A78: 71 | B78: 25030 | C78: 22536 | D78: 25687 | E78: 22863 | F78: 24686 | G78: 22033 | H78: 25219 | I78: 22279 | J78: -0.01374350779 | K78: -0.02231984381 | L78: -0.01821933274 | M78: -0.02554345449 | N78: -344 | O78: -503 | P78: -468 | Q78: -584 | R78: 0
A79: 72 | B79: 25288 | C79: 22873 | D79: 25970 | E79: 23308 | F79: 24955 | G79: 22381 | H79: 25443 | I79: 22640 | J79: -0.01316830117 | K79: -0.02151007738 | L79: -0.02029264536 | M79: -0.02865968766 | N79: -333 | O79: -492 | P79: -527 | Q79: -668 | R79: 0
A80: 73 | B80: 24780 | C80: 21222 | D80: 25265 | E80: 21528 | F80: 24276 | G80: 20575 | H80: 24656 | I80: 20798 | J80: -0.02033898305 | K80: -0.03048723023 | L80: -0.02410449238 | M80: -0.03390932739 | N80: -504 | O80: -647 | P80: -609 | Q80: -730 | R80: 0
A81: 74 | B81: 22592 | C81: 19119 | D81: 23254 | E81: 19373 | F81: 22144 | G81: 18517 | H81: 22672 | I81: 18661 | J81: -0.01983002833 | K81: -0.03148700246 | L81: -0.02502795218 | M81: -0.03675218087 | N81: -448 | O81: -602 | P81: -582 | Q81: -712 | R81: 0
A82: 75 | B82: 21086 | C82: 17166 | D82: 21636 | E82: 17496 | F82: 20491 | G82: 16459 | H82: 20988 | I82: 16759 | J82: -0.02821777483 | K82: -0.04118606548 | L82: -0.02995008319 | M82: -0.04212391404 | N82: -595 | O82: -707 | P82: -648 | Q82: -737 | R82: 0
A83: 76 | B83: 21221 | C83: 17191 | D83: 21833 | E83: 17603 | F83: 20565 | G83: 16456 | H83: 21101 | I83: 16871 | J83: -0.03091277508 | K83: -0.04275492991 | L83: -0.03352722942 | M83: -0.04158382094 | N83: -656 | O83: -735 | P83: -732 | Q83: -732 | R83: 0
A84: 77 | B84: 20605 | C84: 16466 | D84: 21118 | E84: 16869 | F84: 19920 | G84: 15729 | H84: 20359 | I84: 16072 | J84: -0.03324435817 | K84: -0.04475889712 | L84: -0.03594090349 | M84: -0.04724642836 | N84: -685 | O84: -737 | P84: -759 | Q84: -797 | R84: 0
A85: 78 | B85: 19971 | C85: 15762 | D85: 20348 | E85: 16115 | F85: 19230 | G85: 14942 | H85: 19531 | I85: 15248 | J85: -0.03710380051 | K85: -0.05202385484 | L85: -0.04015136623 | M85: -0.0538008067 | N85: -741 | O85: -820 | P85: -817 | Q85: -867 | R85: 0
A86: 79 | B86: 18837 | C86: 14113 | D86: 19396 | E86: 14432 | F86: 18139 | G86: 13294 | H86: 18623 | I86: 13590 | J86: -0.03705473271 | K86: -0.05803160207 | L86: -0.03985357806 | M86: -0.05834257206 | N86: -698 | O86: -819 | P86: -773 | Q86: -842 | R86: 0
A87: 80 | B87: 17866 | C87: 13202 | D87: 18453 | E87: 13546 | F87: 17054 | G87: 12330 | H87: 17531 | I87: 12630 | J87: -0.04544945707 | K87: -0.06605059839 | L87: -0.04996477538 | M87: -0.06762143806 | N87: -812 | O87: -872 | P87: -922 | Q87: -916 | R87: 0
A88: 81 | B88: 16660 | C88: 12072 | D88: 17214 | E88: 12469 | F88: 15770 | G88: 11225 | H88: 16255 | I88: 11576 | J88: -0.05342136855 | K88: -0.07016235918 | L88: -0.05571046822 | M88: -0.07161761168 | N88: -890 | O88: -847 | P88: -959 | Q88: -893 | R88: 0
A89: 82 | B89: 15435 | C89: 10775 | D89: 15965 | E89: 11120 | F89: 14516 | G89: 9841 | H89: 14982 | I89: 10156 | J89: -0.05954000648 | K89: -0.08668213457 | L89: -0.06157218916 | M89: -0.08669064748 | N89: -919 | O89: -934 | P89: -983 | Q89: -964 | R89: 0
A90: 83 | B90: 14245 | C90: 9741 | D90: 14544 | E90: 9975 | F90: 13203 | G90: 8870 | H90: 13468 | I90: 9082 | J90: -0.07314847315 | K90: -0.08941587106 | L90: -0.07398239824 | M90: -0.08952380952 | N90: -1042 | O90: -871 | P90: -1076 | Q90: -893 | R90: 0
A91: 84 | B91: 13584 | C91: 8792 | D91: 14041 | E91: 9091 | F91: 12577 | G91: 7897 | H91: 12962 | I91: 8167 | J91: -0.07413133098 | K91: -0.1017970883 | L91: -0.07684637846 | M91: -0.1016389836 | N91: -1007 | O91: -895 | P91: -1079 | Q91: -924 | R91: 0
A92: 85 | B92: 12315 | C92: 7688 | D92: 12678 | E92: 7894 | F92: 11190 | G92: 6775 | H92: 11473 | I92: 6962 | J92: -0.09135200974 | K92: -0.1187565036 | L92: -0.09504653731 | M92: -0.1180643527 | N92: -1125 | O92: -913 | P92: -1205 | Q92: -932 | R92: 0
A93: 86 | B93: 10981 | C93: 6388 | D93: 11277 | E93: 6573 | F93: 9882 | G93: 5554 | H93: 10113 | I93: 5727 | J93: -0.1000819597 | K93: -0.1305572949 | L93: -0.1032189412 | M93: -0.1287083524 | N93: -1099 | O93: -834 | P93: -1164 | Q93: -846 | R93: 0
A94: 87 | B94: 9640 | C94: 5465 | D94: 9897 | E94: 5635 | F94: 8562 | G94: 4711 | H94: 8779 | I94: 4867 | J94: -0.1118257261 | K94: -0.137968893 | L94: -0.1129635243 | M94: -0.1362910382 | N94: -1078 | O94: -754 | P94: -1118 | Q94: -768 | R94: 0
A95: 88 | B95: 8260 | C95: 4360 | D95: 8421 | E95: 4454 | F95: 7193 | G95: 3641 | H95: 7302 | I95: 3739 | J95: -0.1291767554 | K95: -0.1649082569 | L95: -0.1328820805 | M95: -0.1605298608 | N95: -1067 | O95: -719 | P95: -1119 | Q95: -715 | R95: 0
A96: 89 | B96: 7249 | C96: 3586 | D96: 7418 | E96: 3731 | F96: 27916 | G96: 11219 | H96: 29337 | I96: 12388 | J96: 2.851013933 | K96: 2.128555494 | L96: 2.954839579 | M96: 2.320289467 | N96: 20667 | O96: 7633 | P96: 21919 | Q96: 8657 | R96: 0
A97: 90 | B97: 27539 | C97: 10925 | D97: 29050 | E97: 12017 | H97: 932544 | I97: 960507 | L97: 31.10134251 | M97: 78.92901723 | P97: 903494 | Q97: 948490 | R97: 0

Sheet CA SIMD dist data (hidden)
B1: Year | C1: =VLOOKUP(D1,M1:N3,2,0) -> 2016 | D1: 1 | I1: 3 | M1: 1 | N1: 2016
B2: Sex | C2: =VLOOKUP(I1,H2:I4,2,0) -> Both | D2: =IF(C2="Male","M",IF(C2="Female","F","")) ->  | E2: 0-29 | F2: 101 | G2: 0 | H2: 1 | I2: Female | J2: 0 | M2: 2 | N2: 2017
B3: Age | C3: =INDEX(E2:E13,D3) -> All | D3: 12 | E3: 30-59 | F3: =F2+1 -> 102 | G3: =G2+10 -> 10 | H3: 2 | I3: Male | J3: 32 | M3: 3 | N3: 2018
E4: 60+ | F4: =F3+1 -> 103 | G4: =G3+10 -> 20 | H4: 3 | I4: Both
E5: 0-9 | F5: 104 | G5: 30
E6: 10-19 | F6: 105 | G6: 40
E7: 20-29 | F7: 106 | G7: 50 | I7: East Lothian | J7: =CONCATENATE(" 1") -> 1
E8: 30-39 | F8: 107 | G8: 60 | I8: Moray | J8: =CONCATENATE(" 1") -> 1
E9: 40-49 | F9: 108 | G9: 70 | I9: Na h-Eileanan Siar | J9: s 1, 2, 8, 9 or 10
E10: 50-59 | F10: 109 | G10: 80 | I10: Orkney Islands | J10: s 1 or 2
E11: 60-69 | F11: 110 | G11: 90 | I11: Shetland Islands | J11: s 1, 2, 3, 9 or 10
E12: 70+ | F12: 111 | G12: 100
E13: All | F13: 8 | G13: 110
A14: MYE | B14: SIMD | N14: ABPE | O14: SIMD | Z14: Difference | AA14: SIMD
B15: 1 | C15: =B15+1 -> 2 | D15: =C15+1 -> 3 | E15: 4 | F15: 5 | G15: 6 | H15: 7 | I15: 8 | J15: 9 | K15: 10 | O15: 1 | P15: =O15+1 -> 2 | Q15: =P15+1 -> 3 | R15: 4 | S15: 5 | T15: 6 | U15: 7 | V15: 8 | W15: 9 | X15: 10 | AA15: 1 | AB15: =AA15+1 -> 2 | AC15: =AB15+1 -> 3 | AD15: 4 | AE15: 5 | AF15: 6 | AG15: 7 | AH15: 8 | AI15: 9 | AJ15: 10
A16: Aberdeen City | B16: =IF($C$2="Both",SUMIFS(INDIRECT(CONCATENATE("'MYE ",$C$1," F'!$D$",VLOOKUP($C$3,$E$2:$F$13,2,0),":$JHK$",VLOOKUP($C$3,$E$2:$F$13,2,0))),INDIRECT(CONCATENATE("'MYE ",$C$1," F'!$D$5:$JHK$5")),$A16,INDIRECT(CONCATENATE("'MYE ",$C$1," F'!$D$6:$JHK$6")),B$15)+SUMIFS(INDIRECT(CONCATENATE("'MYE ",$C$1," M'!$D$",VLOOKUP($C$3,$E$2:$F$13,2,0),":$JHK$",VLOOKUP($C$3,$E$2:$F$13,2,0))),INDIRECT(CONCATENATE("'MYE ",$C$1," M'!$D$5:$JHK$5")),$A16,INDIRECT(CONCATENATE("'MYE ",$C$1," M'!$D$6:$JHK$6")),B$15),SUMIFS(INDIRECT(CONCATENATE("'MYE ",$C$1," ",$D$2,"'!$D$",VLOOKUP($C$3,$E$2:$F$13,2,0),":$JHK$",VLOOKUP($C$3,$E$2:$F$13,2,0))),INDIRECT(CONCATENATE("'MYE ",$C$1," ",$D$2,"'!$D$5:$JHK$5")),$A16,INDIRECT(CONCATENATE("'MYE ",$C$1," ",$D$2,"'!$D$6:$JHK$6")),B$15)) -> 2114 | C16: =IF($C$2="Both",SUMIFS(INDIRECT(CONCATENATE("'MYE ",$C$1," F'!$D$",VLOOKUP($C$3,$E$2:$F$13,2,0),":$JHK$",VLOOKUP($C$3,$E$2:$F$13,2,0))),INDIRECT(CONCATENATE("'MYE ",$C$1," F'!$D$5:$JHK$5")),$A16,INDIRECT(CONCATENATE("'MYE ",$C$1," F'!$D$6:$JHK$6")),C$15)+SUMIFS(INDIRECT(CONCATENATE("'MYE ",$C$1," M'!$D$",VLOOKUP($C$3,$E$2:$F$13,2,0),":$JHK$",VLOOKUP($C$3,$E$2:$F$13,2,0))),INDIRECT(CONCATENATE("'MYE ",$C$1," M'!$D$5:$JHK$5")),$A16,INDIRECT(CONCATENATE("'MYE ",$C$1," M'!$D$6:$JHK$6")),C$15),SUMIFS(INDIRECT(CONCATENATE("'MYE ",$C$1," ",$D$2,"'!$D$",VLOOKUP($C$3,$E$2:$F$13,2,0),":$JHK$",VLOOKUP($C$3,$E$2:$F$13,2,0))),INDIRECT(CONCATENATE("'MYE ",$C$1," ",$D$2,"'!$D$5:$JHK$5")),$A16,INDIRECT(CONCATENATE("'MYE ",$C$1," ",$D$2,"'!$D$6:$JHK$6")),C$15)) -> 15861 | D16: 24899 | E16: 20505 | F16: 20694 | G16: 15415 | H16: 18770 | I16: 21061 | J16: 25799 | K16: 64722 | M16: 1 | N16: =A16 -> Aberdeen City | O16: =IF($C$2="Both",INDEX(INDIRECT(CONCATENATE("'LA SIMD 10 ",$C$1,"'!$C$8:$Dr$71")),'CA SIMD dist data'!$M16+VLOOKUP("Female",$I$2:$J$3,2,0),'CA SIMD dist data'!O$15+VLOOKUP($C$3,$E$2:$G$13,3,0))+INDEX(INDIRECT(CONCATENATE("'LA SIMD 10 ",$C$1,"'!$C$8:$Dr$71")),'CA SIMD dist data'!$M16+VLOOKUP("Male",$I$2:$J$3,2,0),'CA SIMD dist data'!O$15+VLOOKUP($C$3,$E$2:$G$13,3,0)),INDEX(INDIRECT(CONCATENATE("'LA SIMD 10 ",$C$1,"'!$C$8:$Dr$71")),'CA SIMD dist data'!$M16+VLOOKUP($C$2,$I$2:$J$3,2,0),'CA SIMD dist data'!O$15+VLOOKUP($C$3,$E$2:$G$13,3,0))) -> 2349 | P16: =IF($C$2="Both",INDEX(INDIRECT(CONCATENATE("'LA SIMD 10 ",$C$1,"'!$C$8:$Dr$71")),'CA SIMD dist data'!$M16+VLOOKUP("Female",$I$2:$J$3,2,0),'CA SIMD dist data'!P$15+VLOOKUP($C$3,$E$2:$G$13,3,0))+INDEX(INDIRECT(CONCATENATE("'LA SIMD 10 ",$C$1,"'!$C$8:$Dr$71")),'CA SIMD dist data'!$M16+VLOOKUP("Male",$I$2:$J$3,2,0),'CA SIMD dist data'!P$15+VLOOKUP($C$3,$E$2:$G$13,3,0)),INDEX(INDIRECT(CONCATENATE("'LA SIMD 10 ",$C$1,"'!$C$8:$Dr$71")),'CA SIMD dist data'!$M16+VLOOKUP($C$2,$I$2:$J$3,2,0),'CA SIMD dist data'!P$15+VLOOKUP($C$3,$E$2:$G$13,3,0))) -> 16469 | Q16: =IF($C$2="Both",INDEX(INDIRECT(CONCATENATE("'LA SIMD 10 ",$C$1,"'!$C$8:$Dr$71")),'CA SIMD dist data'!$M16+VLOOKUP("Female",$I$2:$J$3,2,0),'CA SIMD dist data'!Q$15+VLOOKUP($C$3,$E$2:$G$13,3,0))+INDEX(INDIRECT(CONCATENATE("'LA SIMD 10 ",$C$1,"'!$C$8:$Dr$71")),'CA SIMD dist data'!$M16+VLOOKUP("Male",$I$2:$J$3,2,0),'CA SIMD dist data'!Q$15+VLOOKUP($C$3,$E$2:$G$13,3,0)),INDEX(INDIRECT(CONCATENATE("'LA SIMD 10 ",$C$1,"'!$C$8:$Dr$71")),'CA SIMD dist data'!$M16+VLOOKUP($C$2,$I$2:$J$3,2,0),'CA SIMD dist data'!Q$15+VLOOKUP($C$3,$E$2:$G$13,3,0))) -> 25832 | R16: =IF($C$2="Both",INDEX(INDIRECT(CONCATENATE("'LA SIMD 10 ",$C$1,"'!$C$8:$Dr$71")),'CA SIMD dist data'!$M16+VLOOKUP("Female",$I$2:$J$3,2,0),'CA SIMD dist data'!R$15+VLOOKUP($C$3,$E$2:$G$13,3,0))+INDEX(INDIRECT(CONCATENATE("'LA SIMD 10 ",$C$1,"'!$C$8:$Dr$71")),'CA SIMD dist data'!$M16+VLOOKUP("Male",$I$2:$J$3,2,0),'CA SIMD dist data'!R$15+VLOOKUP($C$3,$E$2:$G$13,3,0)),INDEX(INDIRECT(CONCATENATE("'LA SIMD 10 ",$C$1,"'!$C$8:$Dr$71")),'CA SIMD dist data'!$M16+VLOOKUP($C$2,$I$2:$J$3,2,0),'CA SIMD dist data'!R$15+VLOOKUP($C$3,$E$2:$G$13,3,0))) -> 20682 | S16: =IF($C$2="Both",INDEX(INDIRECT(CONCATENATE("'LA SIMD 10 ",$C$1,"'!$C$8:$Dr$71")),'CA SIMD dist data'!$M16+VLOOKUP("Female",$I$2:$J$3,2,0),'CA SIMD dist data'!S$15+VLOOKUP($C$3,$E$2:$G$13,3,0))+INDEX(INDIRECT(CONCATENATE("'LA SIMD 10 ",$C$1,"'!$C$8:$Dr$71")),'CA SIMD dist data'!$M16+VLOOKUP("Male",$I$2:$J$3,2,0),'CA SIMD dist data'!S$15+VLOOKUP($C$3,$E$2:$G$13,3,0)),INDEX(INDIRECT(CONCATENATE("'LA SIMD 10 ",$C$1,"'!$C$8:$Dr$71")),'CA SIMD dist data'!$M16+VLOOKUP($C$2,$I$2:$J$3,2,0),'CA SIMD dist data'!S$15+VLOOKUP($C$3,$E$2:$G$13,3,0))) -> 19993 | T16: =IF($C$2="Both",INDEX(INDIRECT(CONCATENATE("'LA SIMD 10 ",$C$1,"'!$C$8:$Dr$71")),'CA SIMD dist data'!$M16+VLOOKUP("Female",$I$2:$J$3,2,0),'CA SIMD dist data'!T$15+VLOOKUP($C$3,$E$2:$G$13,3,0))+INDEX(INDIRECT(CONCATENATE("'LA SIMD 10 ",$C$1,"'!$C$8:$Dr$71")),'CA SIMD dist data'!$M16+VLOOKUP("Male",$I$2:$J$3,2,0),'CA SIMD dist data'!T$15+VLOOKUP($C$3,$E$2:$G$13,3,0)),INDEX(INDIRECT(CONCATENATE("'LA SIMD 10 ",$C$1,"'!$C$8:$Dr$71")),'CA SIMD dist data'!$M16+VLOOKUP($C$2,$I$2:$J$3,2,0),'CA SIMD dist data'!T$15+VLOOKUP($C$3,$E$2:$G$13,3,0))) -> 14425 | U16: =IF($C$2="Both",INDEX(INDIRECT(CONCATENATE("'LA SIMD 10 ",$C$1,"'!$C$8:$Dr$71")),'CA SIMD dist data'!$M16+VLOOKUP("Female",$I$2:$J$3,2,0),'CA SIMD dist data'!U$15+VLOOKUP($C$3,$E$2:$G$13,3,0))+INDEX(INDIRECT(CONCATENATE("'LA SIMD 10 ",$C$1,"'!$C$8:$Dr$71")),'CA SIMD dist data'!$M16+VLOOKUP("Male",$I$2:$J$3,2,0),'CA SIMD dist data'!U$15+VLOOKUP($C$3,$E$2:$G$13,3,0)),INDEX(INDIRECT(CONCATENATE("'LA SIMD 10 ",$C$1,"'!$C$8:$Dr$71")),'CA SIMD dist data'!$M16+VLOOKUP($C$2,$I$2:$J$3,2,0),'CA SIMD dist data'!U$15+VLOOKUP($C$3,$E$2:$G$13,3,0))) -> 17915 | V16: =IF($C$2="Both",INDEX(INDIRECT(CONCATENATE("'LA SIMD 10 ",$C$1,"'!$C$8:$Dr$71")),'CA SIMD dist data'!$M16+VLOOKUP("Female",$I$2:$J$3,2,0),'CA SIMD dist data'!V$15+VLOOKUP($C$3,$E$2:$G$13,3,0))+INDEX(INDIRECT(CONCATENATE("'LA SIMD 10 ",$C$1,"'!$C$8:$Dr$71")),'CA SIMD dist data'!$M16+VLOOKUP("Male",$I$2:$J$3,2,0),'CA SIMD dist data'!V$15+VLOOKUP($C$3,$E$2:$G$13,3,0)),INDEX(INDIRECT(CONCATENATE("'LA SIMD 10 ",$C$1,"'!$C$8:$Dr$71")),'CA SIMD dist data'!$M16+VLOOKUP($C$2,$I$2:$J$3,2,0),'CA SIMD dist data'!V$15+VLOOKUP($C$3,$E$2:$G$13,3,0))) -> 20394 | W16: =IF($C$2="Both",INDEX(INDIRECT(CONCATENATE("'LA SIMD 10 ",$C$1,"'!$C$8:$Dr$71")),'CA SIMD dist data'!$M16+VLOOKUP("Female",$I$2:$J$3,2,0),'CA SIMD dist data'!W$15+VLOOKUP($C$3,$E$2:$G$13,3,0))+INDEX(INDIRECT(CONCATENATE("'LA SIMD 10 ",$C$1,"'!$C$8:$Dr$71")),'CA SIMD dist data'!$M16+VLOOKUP("Male",$I$2:$J$3,2,0),'CA SIMD dist data'!W$15+VLOOKUP($C$3,$E$2:$G$13,3,0)),INDEX(INDIRECT(CONCATENATE("'LA SIMD 10 ",$C$1,"'!$C$8:$Dr$71")),'CA SIMD dist data'!$M16+VLOOKUP($C$2,$I$2:$J$3,2,0),'CA SIMD dist data'!W$15+VLOOKUP($C$3,$E$2:$G$13,3,0))) -> 25112 | X16: =IF($C$2="Both",INDEX(INDIRECT(CONCATENATE("'LA SIMD 10 ",$C$1,"'!$C$8:$Dr$71")),'CA SIMD dist data'!$M16+VLOOKUP("Female",$I$2:$J$3,2,0),'CA SIMD dist data'!X$15+VLOOKUP($C$3,$E$2:$G$13,3,0))+INDEX(INDIRECT(CONCATENATE("'LA SIMD 10 ",$C$1,"'!$C$8:$Dr$71")),'CA SIMD dist data'!$M16+VLOOKUP("Male",$I$2:$J$3,2,0),'CA SIMD dist data'!X$15+VLOOKUP($C$3,$E$2:$G$13,3,0)),INDEX(INDIRECT(CONCATENATE("'LA SIMD 10 ",$C$1,"'!$C$8:$Dr$71")),'CA SIMD dist data'!$M16+VLOOKUP($C$2,$I$2:$J$3,2,0),'CA SIMD dist data'!X$15+VLOOKUP($C$3,$E$2:$G$13,3,0))) -> 60617 | Z16: =N16 -> Aberdeen City | AA16: =(O16-B16)/B16 -> 0.1111636708 | AB16: =(P16-C16)/C16 -> 0.03833301809 | AC16: 0.03747138439 | AD16: 0.008632040966 | AE16: -0.03387455301 | AF16: -0.06422315926 | AG16: -0.04555141183 | AH16: -0.03166991121 | AI16: -0.02662893911 | AJ16: -0.06342511047
A17: Aberdeenshire | B17: =IF($C$2="Both",SUMIFS(INDIRECT(CONCATENATE("'MYE ",$C$1," F'!$D$",VLOOKUP($C$3,$E$2:$F$13,2,0),":$JHK$",VLOOKUP($C$3,$E$2:$F$13,2,0))),INDIRECT(CONCATENATE("'MYE ",$C$1," F'!$D$5:$JHK$5")),$A17,INDIRECT(CONCATENATE("'MYE ",$C$1," F'!$D$6:$JHK$6")),B$15)+SUMIFS(INDIRECT(CONCATENATE("'MYE ",$C$1," M'!$D$",VLOOKUP($C$3,$E$2:$F$13,2,0),":$JHK$",VLOOKUP($C$3,$E$2:$F$13,2,0))),INDIRECT(CONCATENATE("'MYE ",$C$1," M'!$D$5:$JHK$5")),$A17,INDIRECT(CONCATENATE("'MYE ",$C$1," M'!$D$6:$JHK$6")),B$15),SUMIFS(INDIRECT(CONCATENATE("'MYE ",$C$1," ",$D$2,"'!$D$",VLOOKUP($C$3,$E$2:$F$13,2,0),":$JHK$",VLOOKUP($C$3,$E$2:$F$13,2,0))),INDIRECT(CONCATENATE("'MYE ",$C$1," ",$D$2,"'!$D$5:$JHK$5")),$A17,INDIRECT(CONCATENATE("'MYE ",$C$1," ",$D$2,"'!$D$6:$JHK$6")),B$15)) -> 967 | C17: 4531 | D17: 6804 | E17: 12210 | F17: 19227 | G17: 31866 | H17: 35431 | I17: 56959 | J17: 53247 | K17: 40948 | M17: =M16+1 -> 2 | N17: =A17 -> Aberdeenshire | O17: =IF($C$2="Both",INDEX(INDIRECT(CONCATENATE("'LA SIMD 10 ",$C$1,"'!$C$8:$Dr$71")),'CA SIMD dist data'!$M17+VLOOKUP("Female",$I$2:$J$3,2,0),'CA SIMD dist data'!O$15+VLOOKUP($C$3,$E$2:$G$13,3,0))+INDEX(INDIRECT(CONCATENATE("'LA SIMD 10 ",$C$1,"'!$C$8:$Dr$71")),'CA SIMD dist data'!$M17+VLOOKUP("Male",$I$2:$J$3,2,0),'CA SIMD dist data'!O$15+VLOOKUP($C$3,$E$2:$G$13,3,0)),INDEX(INDIRECT(CONCATENATE("'LA SIMD 10 ",$C$1,"'!$C$8:$Dr$71")),'CA SIMD dist data'!$M17+VLOOKUP($C$2,$I$2:$J$3,2,0),'CA SIMD dist data'!O$15+VLOOKUP($C$3,$E$2:$G$13,3,0))) -> 1090 | P17: =IF($C$2="Both",INDEX(INDIRECT(CONCATENATE("'LA SIMD 10 ",$C$1,"'!$C$8:$Dr$71")),'CA SIMD dist data'!$M17+VLOOKUP("Female",$I$2:$J$3,2,0),'CA SIMD dist data'!P$15+VLOOKUP($C$3,$E$2:$G$13,3,0))+INDEX(INDIRECT(CONCATENATE("'LA SIMD 10 ",$C$1,"'!$C$8:$Dr$71")),'CA SIMD dist data'!$M17+VLOOKUP("Male",$I$2:$J$3,2,0),'CA SIMD dist data'!P$15+VLOOKUP($C$3,$E$2:$G$13,3,0)),INDEX(INDIRECT(CONCATENATE("'LA SIMD 10 ",$C$1,"'!$C$8:$Dr$71")),'CA SIMD dist data'!$M17+VLOOKUP($C$2,$I$2:$J$3,2,0),'CA SIMD dist data'!P$15+VLOOKUP($C$3,$E$2:$G$13,3,0))) -> 4662 | Q17: =IF($C$2="Both",INDEX(INDIRECT(CONCATENATE("'LA SIMD 10 ",$C$1,"'!$C$8:$Dr$71")),'CA SIMD dist data'!$M17+VLOOKUP("Female",$I$2:$J$3,2,0),'CA SIMD dist data'!Q$15+VLOOKUP($C$3,$E$2:$G$13,3,0))+INDEX(INDIRECT(CONCATENATE("'LA SIMD 10 ",$C$1,"'!$C$8:$Dr$71")),'CA SIMD dist data'!$M17+VLOOKUP("Male",$I$2:$J$3,2,0),'CA SIMD dist data'!Q$15+VLOOKUP($C$3,$E$2:$G$13,3,0)),INDEX(INDIRECT(CONCATENATE("'LA SIMD 10 ",$C$1,"'!$C$8:$Dr$71")),'CA SIMD dist data'!$M17+VLOOKUP($C$2,$I$2:$J$3,2,0),'CA SIMD dist data'!Q$15+VLOOKUP($C$3,$E$2:$G$13,3,0))) -> 7005 | R17: =IF($C$2="Both",INDEX(INDIRECT(CONCATENATE("'LA SIMD 10 ",$C$1,"'!$C$8:$Dr$71")),'CA SIMD dist data'!$M17+VLOOKUP("Female",$I$2:$J$3,2,0),'CA SIMD dist data'!R$15+VLOOKUP($C$3,$E$2:$G$13,3,0))+INDEX(INDIRECT(CONCATENATE("'LA SIMD 10 ",$C$1,"'!$C$8:$Dr$71")),'CA SIMD dist data'!$M17+VLOOKUP("Male",$I$2:$J$3,2,0),'CA SIMD dist data'!R$15+VLOOKUP($C$3,$E$2:$G$13,3,0)),INDEX(INDIRECT(CONCATENATE("'LA SIMD 10 ",$C$1,"'!$C$8:$Dr$71")),'CA SIMD dist data'!$M17+VLOOKUP($C$2,$I$2:$J$3,2,0),'CA SIMD dist data'!R$15+VLOOKUP($C$3,$E$2:$G$13,3,0))) -> 12399 | S17: =IF($C$2="Both",INDEX(INDIRECT(CONCATENATE("'LA SIMD 10 ",$C$1,"'!$C$8:$Dr$71")),'CA SIMD dist data'!$M17+VLOOKUP("Female",$I$2:$J$3,2,0),'CA SIMD dist data'!S$15+VLOOKUP($C$3,$E$2:$G$13,3,0))+INDEX(INDIRECT(CONCATENATE("'LA SIMD 10 ",$C$1,"'!$C$8:$Dr$71")),'CA SIMD dist data'!$M17+VLOOKUP("Male",$I$2:$J$3,2,0),'CA SIMD dist data'!S$15+VLOOKUP($C$3,$E$2:$G$13,3,0)),INDEX(INDIRECT(CONCATENATE("'LA SIMD 10 ",$C$1,"'!$C$8:$Dr$71")),'CA SIMD dist data'!$M17+VLOOKUP($C$2,$I$2:$J$3,2,0),'CA SIMD dist data'!S$15+VLOOKUP($C$3,$E$2:$G$13,3,0))) -> 19535 | T17: =IF($C$2="Both",INDEX(INDIRECT(CONCATENATE("'LA SIMD 10 ",$C$1,"'!$C$8:$Dr$71")),'CA SIMD dist data'!$M17+VLOOKUP("Female",$I$2:$J$3,2,0),'CA SIMD dist data'!T$15+VLOOKUP($C$3,$E$2:$G$13,3,0))+INDEX(INDIRECT(CONCATENATE("'LA SIMD 10 ",$C$1,"'!$C$8:$Dr$71")),'CA SIMD dist data'!$M17+VLOOKUP("Male",$I$2:$J$3,2,0),'CA SIMD dist data'!T$15+VLOOKUP($C$3,$E$2:$G$13,3,0)),INDEX(INDIRECT(CONCATENATE("'LA SIMD 10 ",$C$1,"'!$C$8:$Dr$71")),'CA SIMD dist data'!$M17+VLOOKUP($C$2,$I$2:$J$3,2,0),'CA SIMD dist data'!T$15+VLOOKUP($C$3,$E$2:$G$13,3,0))) -> 31831 | U17: =IF($C$2="Both",INDEX(INDIRECT(CONCATENATE("'LA SIMD 10 ",$C$1,"'!$C$8:$Dr$71")),'CA SIMD dist data'!$M17+VLOOKUP("Female",$I$2:$J$3,2,0),'CA SIMD dist data'!U$15+VLOOKUP($C$3,$E$2:$G$13,3,0))+INDEX(INDIRECT(CONCATENATE("'LA SIMD 10 ",$C$1,"'!$C$8:$Dr$71")),'CA SIMD dist data'!$M17+VLOOKUP("Male",$I$2:$J$3,2,0),'CA SIMD dist data'!U$15+VLOOKUP($C$3,$E$2:$G$13,3,0)),INDEX(INDIRECT(CONCATENATE("'LA SIMD 10 ",$C$1,"'!$C$8:$Dr$71")),'CA SIMD dist data'!$M17+VLOOKUP($C$2,$I$2:$J$3,2,0),'CA SIMD dist data'!U$15+VLOOKUP($C$3,$E$2:$G$13,3,0))) -> 35150 | V17: =IF($C$2="Both",INDEX(INDIRECT(CONCATENATE("'LA SIMD 10 ",$C$1,"'!$C$8:$Dr$71")),'CA SIMD dist data'!$M17+VLOOKUP("Female",$I$2:$J$3,2,0),'CA SIMD dist data'!V$15+VLOOKUP($C$3,$E$2:$G$13,3,0))+INDEX(INDIRECT(CONCATENATE("'LA SIMD 10 ",$C$1,"'!$C$8:$Dr$71")),'CA SIMD dist data'!$M17+VLOOKUP("Male",$I$2:$J$3,2,0),'CA SIMD dist data'!V$15+VLOOKUP($C$3,$E$2:$G$13,3,0)),INDEX(INDIRECT(CONCATENATE("'LA SIMD 10 ",$C$1,"'!$C$8:$Dr$71")),'CA SIMD dist data'!$M17+VLOOKUP($C$2,$I$2:$J$3,2,0),'CA SIMD dist data'!V$15+VLOOKUP($C$3,$E$2:$G$13,3,0))) -> 56007 | W17: =IF($C$2="Both",INDEX(INDIRECT(CONCATENATE("'LA SIMD 10 ",$C$1,"'!$C$8:$Dr$71")),'CA SIMD dist data'!$M17+VLOOKUP("Female",$I$2:$J$3,2,0),'CA SIMD dist data'!W$15+VLOOKUP($C$3,$E$2:$G$13,3,0))+INDEX(INDIRECT(CONCATENATE("'LA SIMD 10 ",$C$1,"'!$C$8:$Dr$71")),'CA SIMD dist data'!$M17+VLOOKUP("Male",$I$2:$J$3,2,0),'CA SIMD dist data'!W$15+VLOOKUP($C$3,$E$2:$G$13,3,0)),INDEX(INDIRECT(CONCATENATE("'LA SIMD 10 ",$C$1,"'!$C$8:$Dr$71")),'CA SIMD dist data'!$M17+VLOOKUP($C$2,$I$2:$J$3,2,0),'CA SIMD dist data'!W$15+VLOOKUP($C$3,$E$2:$G$13,3,0))) -> 51933 | X17: =IF($C$2="Both",INDEX(INDIRECT(CONCATENATE("'LA SIMD 10 ",$C$1,"'!$C$8:$Dr$71")),'CA SIMD dist data'!$M17+VLOOKUP("Female",$I$2:$J$3,2,0),'CA SIMD dist data'!X$15+VLOOKUP($C$3,$E$2:$G$13,3,0))+INDEX(INDIRECT(CONCATENATE("'LA SIMD 10 ",$C$1,"'!$C$8:$Dr$71")),'CA SIMD dist data'!$M17+VLOOKUP("Male",$I$2:$J$3,2,0),'CA SIMD dist data'!X$15+VLOOKUP($C$3,$E$2:$G$13,3,0)),INDEX(INDIRECT(CONCATENATE("'LA SIMD 10 ",$C$1,"'!$C$8:$Dr$71")),'CA SIMD dist data'!$M17+VLOOKUP($C$2,$I$2:$J$3,2,0),'CA SIMD dist data'!X$15+VLOOKUP($C$3,$E$2:$G$13,3,0))) -> 40947 | Z17: =N17 -> Aberdeenshire | AA17: =(O17-B17)/B17 -> 0.1271975181 | AB17: 0.02891193997 | AC17: 0.02954144621 | AD17: 0.01547911548 | AE17: 0.01601913975 | AF17: -0.001098349338 | AG17: -0.007930907962 | AH17: -0.01671377658 | AI17: -0.02467744662 | AJ17: -2.442121715e-05
A18: Angus | B18: 1400 | C18: 6468 | D18: 9387 | E18: 9945 | F18: 15308 | G18: 20913 | H18: 15144 | I18: 16873 | J18: 16863 | K18: 4219 | M18: =M17+1 -> 3 | N18: Angus | O18: =IF($C$2="Both",INDEX(INDIRECT(CONCATENATE("'LA SIMD 10 ",$C$1,"'!$C$8:$Dr$71")),'CA SIMD dist data'!$M18+VLOOKUP("Female",$I$2:$J$3,2,0),'CA SIMD dist data'!O$15+VLOOKUP($C$3,$E$2:$G$13,3,0))+INDEX(INDIRECT(CONCATENATE("'LA SIMD 10 ",$C$1,"'!$C$8:$Dr$71")),'CA SIMD dist data'!$M18+VLOOKUP("Male",$I$2:$J$3,2,0),'CA SIMD dist data'!O$15+VLOOKUP($C$3,$E$2:$G$13,3,0)),INDEX(INDIRECT(CONCATENATE("'LA SIMD 10 ",$C$1,"'!$C$8:$Dr$71")),'CA SIMD dist data'!$M18+VLOOKUP($C$2,$I$2:$J$3,2,0),'CA SIMD dist data'!O$15+VLOOKUP($C$3,$E$2:$G$13,3,0))) -> 1458 | P18: =IF($C$2="Both",INDEX(INDIRECT(CONCATENATE("'LA SIMD 10 ",$C$1,"'!$C$8:$Dr$71")),'CA SIMD dist data'!$M18+VLOOKUP("Female",$I$2:$J$3,2,0),'CA SIMD dist data'!P$15+VLOOKUP($C$3,$E$2:$G$13,3,0))+INDEX(INDIRECT(CONCATENATE("'LA SIMD 10 ",$C$1,"'!$C$8:$Dr$71")),'CA SIMD dist data'!$M18+VLOOKUP("Male",$I$2:$J$3,2,0),'CA SIMD dist data'!P$15+VLOOKUP($C$3,$E$2:$G$13,3,0)),INDEX(INDIRECT(CONCATENATE("'LA SIMD 10 ",$C$1,"'!$C$8:$Dr$71")),'CA SIMD dist data'!$M18+VLOOKUP($C$2,$I$2:$J$3,2,0),'CA SIMD dist data'!P$15+VLOOKUP($C$3,$E$2:$G$13,3,0))) -> 6426 | Q18: =IF($C$2="Both",INDEX(INDIRECT(CONCATENATE("'LA SIMD 10 ",$C$1,"'!$C$8:$Dr$71")),'CA SIMD dist data'!$M18+VLOOKUP("Female",$I$2:$J$3,2,0),'CA SIMD dist data'!Q$15+VLOOKUP($C$3,$E$2:$G$13,3,0))+INDEX(INDIRECT(CONCATENATE("'LA SIMD 10 ",$C$1,"'!$C$8:$Dr$71")),'CA SIMD dist data'!$M18+VLOOKUP("Male",$I$2:$J$3,2,0),'CA SIMD dist data'!Q$15+VLOOKUP($C$3,$E$2:$G$13,3,0)),INDEX(INDIRECT(CONCATENATE("'LA SIMD 10 ",$C$1,"'!$C$8:$Dr$71")),'CA SIMD dist data'!$M18+VLOOKUP($C$2,$I$2:$J$3,2,0),'CA SIMD dist data'!Q$15+VLOOKUP($C$3,$E$2:$G$13,3,0))) -> 9205 | R18: =IF($C$2="Both",INDEX(INDIRECT(CONCATENATE("'LA SIMD 10 ",$C$1,"'!$C$8:$Dr$71")),'CA SIMD dist data'!$M18+VLOOKUP("Female",$I$2:$J$3,2,0),'CA SIMD dist data'!R$15+VLOOKUP($C$3,$E$2:$G$13,3,0))+INDEX(INDIRECT(CONCATENATE("'LA SIMD 10 ",$C$1,"'!$C$8:$Dr$71")),'CA SIMD dist data'!$M18+VLOOKUP("Male",$I$2:$J$3,2,0),'CA SIMD dist data'!R$15+VLOOKUP($C$3,$E$2:$G$13,3,0)),INDEX(INDIRECT(CONCATENATE("'LA SIMD 10 ",$C$1,"'!$C$8:$Dr$71")),'CA SIMD dist data'!$M18+VLOOKUP($C$2,$I$2:$J$3,2,0),'CA SIMD dist data'!R$15+VLOOKUP($C$3,$E$2:$G$13,3,0))) -> 9852 | S18: =IF($C$2="Both",INDEX(INDIRECT(CONCATENATE("'LA SIMD 10 ",$C$1,"'!$C$8:$Dr$71")),'CA SIMD dist data'!$M18+VLOOKUP("Female",$I$2:$J$3,2,0),'CA SIMD dist data'!S$15+VLOOKUP($C$3,$E$2:$G$13,3,0))+INDEX(INDIRECT(CONCATENATE("'LA SIMD 10 ",$C$1,"'!$C$8:$Dr$71")),'CA SIMD dist data'!$M18+VLOOKUP("Male",$I$2:$J$3,2,0),'CA SIMD dist data'!S$15+VLOOKUP($C$3,$E$2:$G$13,3,0)),INDEX(INDIRECT(CONCATENATE("'LA SIMD 10 ",$C$1,"'!$C$8:$Dr$71")),'CA SIMD dist data'!$M18+VLOOKUP($C$2,$I$2:$J$3,2,0),'CA SIMD dist data'!S$15+VLOOKUP($C$3,$E$2:$G$13,3,0))) -> 15586 | T18: =IF($C$2="Both",INDEX(INDIRECT(CONCATENATE("'LA SIMD 10 ",$C$1,"'!$C$8:$Dr$71")),'CA SIMD dist data'!$M18+VLOOKUP("Female",$I$2:$J$3,2,0),'CA SIMD dist data'!T$15+VLOOKUP($C$3,$E$2:$G$13,3,0))+INDEX(INDIRECT(CONCATENATE("'LA SIMD 10 ",$C$1,"'!$C$8:$Dr$71")),'CA SIMD dist data'!$M18+VLOOKUP("Male",$I$2:$J$3,2,0),'CA SIMD dist data'!T$15+VLOOKUP($C$3,$E$2:$G$13,3,0)),INDEX(INDIRECT(CONCATENATE("'LA SIMD 10 ",$C$1,"'!$C$8:$Dr$71")),'CA SIMD dist data'!$M18+VLOOKUP($C$2,$I$2:$J$3,2,0),'CA SIMD dist data'!T$15+VLOOKUP($C$3,$E$2:$G$13,3,0))) -> 20936 | U18: =IF($C$2="Both",INDEX(INDIRECT(CONCATENATE("'LA SIMD 10 ",$C$1,"'!$C$8:$Dr$71")),'CA SIMD dist data'!$M18+VLOOKUP("Female",$I$2:$J$3,2,0),'CA SIMD dist data'!U$15+VLOOKUP($C$3,$E$2:$G$13,3,0))+INDEX(INDIRECT(CONCATENATE("'LA SIMD 10 ",$C$1,"'!$C$8:$Dr$71")),'CA SIMD dist data'!$M18+VLOOKUP("Male",$I$2:$J$3,2,0),'CA SIMD dist data'!U$15+VLOOKUP($C$3,$E$2:$G$13,3,0)),INDEX(INDIRECT(CONCATENATE("'LA SIMD 10 ",$C$1,"'!$C$8:$Dr$71")),'CA SIMD dist data'!$M18+VLOOKUP($C$2,$I$2:$J$3,2,0),'CA SIMD dist data'!U$15+VLOOKUP($C$3,$E$2:$G$13,3,0))) -> 15140 | V18: =IF($C$2="Both",INDEX(INDIRECT(CONCATENATE("'LA SIMD 10 ",$C$1,"'!$C$8:$Dr$71")),'CA SIMD dist data'!$M18+VLOOKUP("Female",$I$2:$J$3,2,0),'CA SIMD dist data'!V$15+VLOOKUP($C$3,$E$2:$G$13,3,0))+INDEX(INDIRECT(CONCATENATE("'LA SIMD 10 ",$C$1,"'!$C$8:$Dr$71")),'CA SIMD dist data'!$M18+VLOOKUP("Male",$I$2:$J$3,2,0),'CA SIMD dist data'!V$15+VLOOKUP($C$3,$E$2:$G$13,3,0)),INDEX(INDIRECT(CONCATENATE("'LA SIMD 10 ",$C$1,"'!$C$8:$Dr$71")),'CA SIMD dist data'!$M18+VLOOKUP($C$2,$I$2:$J$3,2,0),'CA SIMD dist data'!V$15+VLOOKUP($C$3,$E$2:$G$13,3,0))) -> 16965 | W18: =IF($C$2="Both",INDEX(INDIRECT(CONCATENATE("'LA SIMD 10 ",$C$1,"'!$C$8:$Dr$71")),'CA SIMD dist data'!$M18+VLOOKUP("Female",$I$2:$J$3,2,0),'CA SIMD dist data'!W$15+VLOOKUP($C$3,$E$2:$G$13,3,0))+INDEX(INDIRECT(CONCATENATE("'LA SIMD 10 ",$C$1,"'!$C$8:$Dr$71")),'CA SIMD dist data'!$M18+VLOOKUP("Male",$I$2:$J$3,2,0),'CA SIMD dist data'!W$15+VLOOKUP($C$3,$E$2:$G$13,3,0)),INDEX(INDIRECT(CONCATENATE("'LA SIMD 10 ",$C$1,"'!$C$8:$Dr$71")),'CA SIMD dist data'!$M18+VLOOKUP($C$2,$I$2:$J$3,2,0),'CA SIMD dist data'!W$15+VLOOKUP($C$3,$E$2:$G$13,3,0))) -> 17087 | X18: =IF($C$2="Both",INDEX(INDIRECT(CONCATENATE("'LA SIMD 10 ",$C$1,"'!$C$8:$Dr$71")),'CA SIMD dist data'!$M18+VLOOKUP("Female",$I$2:$J$3,2,0),'CA SIMD dist data'!X$15+VLOOKUP($C$3,$E$2:$G$13,3,0))+INDEX(INDIRECT(CONCATENATE("'LA SIMD 10 ",$C$1,"'!$C$8:$Dr$71")),'CA SIMD dist data'!$M18+VLOOKUP("Male",$I$2:$J$3,2,0),'CA SIMD dist data'!X$15+VLOOKUP($C$3,$E$2:$G$13,3,0)),INDEX(INDIRECT(CONCATENATE("'LA SIMD 10 ",$C$1,"'!$C$8:$Dr$71")),'CA SIMD dist data'!$M18+VLOOKUP($C$2,$I$2:$J$3,2,0),'CA SIMD dist data'!X$15+VLOOKUP($C$3,$E$2:$G$13,3,0))) -> 4265 | Z18: Angus | AA18: 0.04142857143 | AB18: -0.006493506494 | AC18: -0.01938851603 | AD18: -0.009351432881 | AE18: 0.01816043899 | AF18: 0.001099794386 | AG18: -0.000264131009 | AH18: 0.005452498074 | AI18: 0.01328352013 | AJ18: 0.0109030576
A19: Argyll and Bute | B19: 2137 | C19: 4434 | D19: 8101 | E19: 6093 | F19: 12787 | G19: 21503 | H19: 14223 | I19: 9236 | J19: 4093 | K19: 4523 | M19: 4 | N19: Argyll and Bute | O19: =IF($C$2="Both",INDEX(INDIRECT(CONCATENATE("'LA SIMD 10 ",$C$1,"'!$C$8:$Dr$71")),'CA SIMD dist data'!$M19+VLOOKUP("Female",$I$2:$J$3,2,0),'CA SIMD dist data'!O$15+VLOOKUP($C$3,$E$2:$G$13,3,0))+INDEX(INDIRECT(CONCATENATE("'LA SIMD 10 ",$C$1,"'!$C$8:$Dr$71")),'CA SIMD dist data'!$M19+VLOOKUP("Male",$I$2:$J$3,2,0),'CA SIMD dist data'!O$15+VLOOKUP($C$3,$E$2:$G$13,3,0)),INDEX(INDIRECT(CONCATENATE("'LA SIMD 10 ",$C$1,"'!$C$8:$Dr$71")),'CA SIMD dist data'!$M19+VLOOKUP($C$2,$I$2:$J$3,2,0),'CA SIMD dist data'!O$15+VLOOKUP($C$3,$E$2:$G$13,3,0))) -> 2185 | P19: =IF($C$2="Both",INDEX(INDIRECT(CONCATENATE("'LA SIMD 10 ",$C$1,"'!$C$8:$Dr$71")),'CA SIMD dist data'!$M19+VLOOKUP("Female",$I$2:$J$3,2,0),'CA SIMD dist data'!P$15+VLOOKUP($C$3,$E$2:$G$13,3,0))+INDEX(INDIRECT(CONCATENATE("'LA SIMD 10 ",$C$1,"'!$C$8:$Dr$71")),'CA SIMD dist data'!$M19+VLOOKUP("Male",$I$2:$J$3,2,0),'CA SIMD dist data'!P$15+VLOOKUP($C$3,$E$2:$G$13,3,0)),INDEX(INDIRECT(CONCATENATE("'LA SIMD 10 ",$C$1,"'!$C$8:$Dr$71")),'CA SIMD dist data'!$M19+VLOOKUP($C$2,$I$2:$J$3,2,0),'CA SIMD dist data'!P$15+VLOOKUP($C$3,$E$2:$G$13,3,0))) -> 4608 | Q19: =IF($C$2="Both",INDEX(INDIRECT(CONCATENATE("'LA SIMD 10 ",$C$1,"'!$C$8:$Dr$71")),'CA SIMD dist data'!$M19+VLOOKUP("Female",$I$2:$J$3,2,0),'CA SIMD dist data'!Q$15+VLOOKUP($C$3,$E$2:$G$13,3,0))+INDEX(INDIRECT(CONCATENATE("'LA SIMD 10 ",$C$1,"'!$C$8:$Dr$71")),'CA SIMD dist data'!$M19+VLOOKUP("Male",$I$2:$J$3,2,0),'CA SIMD dist data'!Q$15+VLOOKUP($C$3,$E$2:$G$13,3,0)),INDEX(INDIRECT(CONCATENATE("'LA SIMD 10 ",$C$1,"'!$C$8:$Dr$71")),'CA SIMD dist data'!$M19+VLOOKUP($C$2,$I$2:$J$3,2,0),'CA SIMD dist data'!Q$15+VLOOKUP($C$3,$E$2:$G$13,3,0))) -> 8351 | R19: =IF($C$2="Both",INDEX(INDIRECT(CONCATENATE("'LA SIMD 10 ",$C$1,"'!$C$8:$Dr$71")),'CA SIMD dist data'!$M19+VLOOKUP("Female",$I$2:$J$3,2,0),'CA SIMD dist data'!R$15+VLOOKUP($C$3,$E$2:$G$13,3,0))+INDEX(INDIRECT(CONCATENATE("'LA SIMD 10 ",$C$1,"'!$C$8:$Dr$71")),'CA SIMD dist data'!$M19+VLOOKUP("Male",$I$2:$J$3,2,0),'CA SIMD dist data'!R$15+VLOOKUP($C$3,$E$2:$G$13,3,0)),INDEX(INDIRECT(CONCATENATE("'LA SIMD 10 ",$C$1,"'!$C$8:$Dr$71")),'CA SIMD dist data'!$M19+VLOOKUP($C$2,$I$2:$J$3,2,0),'CA SIMD dist data'!R$15+VLOOKUP($C$3,$E$2:$G$13,3,0))) -> 6339 | S19: =IF($C$2="Both",INDEX(INDIRECT(CONCATENATE("'LA SIMD 10 ",$C$1,"'!$C$8:$Dr$71")),'CA SIMD dist data'!$M19+VLOOKUP("Female",$I$2:$J$3,2,0),'CA SIMD dist data'!S$15+VLOOKUP($C$3,$E$2:$G$13,3,0))+INDEX(INDIRECT(CONCATENATE("'LA SIMD 10 ",$C$1,"'!$C$8:$Dr$71")),'CA SIMD dist data'!$M19+VLOOKUP("Male",$I$2:$J$3,2,0),'CA SIMD dist data'!S$15+VLOOKUP($C$3,$E$2:$G$13,3,0)),INDEX(INDIRECT(CONCATENATE("'LA SIMD 10 ",$C$1,"'!$C$8:$Dr$71")),'CA SIMD dist data'!$M19+VLOOKUP($C$2,$I$2:$J$3,2,0),'CA SIMD dist data'!S$15+VLOOKUP($C$3,$E$2:$G$13,3,0))) -> 13035 | T19: =IF($C$2="Both",INDEX(INDIRECT(CONCATENATE("'LA SIMD 10 ",$C$1,"'!$C$8:$Dr$71")),'CA SIMD dist data'!$M19+VLOOKUP("Female",$I$2:$J$3,2,0),'CA SIMD dist data'!T$15+VLOOKUP($C$3,$E$2:$G$13,3,0))+INDEX(INDIRECT(CONCATENATE("'LA SIMD 10 ",$C$1,"'!$C$8:$Dr$71")),'CA SIMD dist data'!$M19+VLOOKUP("Male",$I$2:$J$3,2,0),'CA SIMD dist data'!T$15+VLOOKUP($C$3,$E$2:$G$13,3,0)),INDEX(INDIRECT(CONCATENATE("'LA SIMD 10 ",$C$1,"'!$C$8:$Dr$71")),'CA SIMD dist data'!$M19+VLOOKUP($C$2,$I$2:$J$3,2,0),'CA SIMD dist data'!T$15+VLOOKUP($C$3,$E$2:$G$13,3,0))) -> 21514 | U19: =IF($C$2="Both",INDEX(INDIRECT(CONCATENATE("'LA SIMD 10 ",$C$1,"'!$C$8:$Dr$71")),'CA SIMD dist data'!$M19+VLOOKUP("Female",$I$2:$J$3,2,0),'CA SIMD dist data'!U$15+VLOOKUP($C$3,$E$2:$G$13,3,0))+INDEX(INDIRECT(CONCATENATE("'LA SIMD 10 ",$C$1,"'!$C$8:$Dr$71")),'CA SIMD dist data'!$M19+VLOOKUP("Male",$I$2:$J$3,2,0),'CA SIMD dist data'!U$15+VLOOKUP($C$3,$E$2:$G$13,3,0)),INDEX(INDIRECT(CONCATENATE("'LA SIMD 10 ",$C$1,"'!$C$8:$Dr$71")),'CA SIMD dist data'!$M19+VLOOKUP($C$2,$I$2:$J$3,2,0),'CA SIMD dist data'!U$15+VLOOKUP($C$3,$E$2:$G$13,3,0))) -> 14304 | V19: =IF($C$2="Both",INDEX(INDIRECT(CONCATENATE("'LA SIMD 10 ",$C$1,"'!$C$8:$Dr$71")),'CA SIMD dist data'!$M19+VLOOKUP("Female",$I$2:$J$3,2,0),'CA SIMD dist data'!V$15+VLOOKUP($C$3,$E$2:$G$13,3,0))+INDEX(INDIRECT(CONCATENATE("'LA SIMD 10 ",$C$1,"'!$C$8:$Dr$71")),'CA SIMD dist data'!$M19+VLOOKUP("Male",$I$2:$J$3,2,0),'CA SIMD dist data'!V$15+VLOOKUP($C$3,$E$2:$G$13,3,0)),INDEX(INDIRECT(CONCATENATE("'LA SIMD 10 ",$C$1,"'!$C$8:$Dr$71")),'CA SIMD dist data'!$M19+VLOOKUP($C$2,$I$2:$J$3,2,0),'CA SIMD dist data'!V$15+VLOOKUP($C$3,$E$2:$G$13,3,0))) -> 9297 | W19: =IF($C$2="Both",INDEX(INDIRECT(CONCATENATE("'LA SIMD 10 ",$C$1,"'!$C$8:$Dr$71")),'CA SIMD dist data'!$M19+VLOOKUP("Female",$I$2:$J$3,2,0),'CA SIMD dist data'!W$15+VLOOKUP($C$3,$E$2:$G$13,3,0))+INDEX(INDIRECT(CONCATENATE("'LA SIMD 10 ",$C$1,"'!$C$8:$Dr$71")),'CA SIMD dist data'!$M19+VLOOKUP("Male",$I$2:$J$3,2,0),'CA SIMD dist data'!W$15+VLOOKUP($C$3,$E$2:$G$13,3,0)),INDEX(INDIRECT(CONCATENATE("'LA SIMD 10 ",$C$1,"'!$C$8:$Dr$71")),'CA SIMD dist data'!$M19+VLOOKUP($C$2,$I$2:$J$3,2,0),'CA SIMD dist data'!W$15+VLOOKUP($C$3,$E$2:$G$13,3,0))) -> 4280 | X19: =IF($C$2="Both",INDEX(INDIRECT(CONCATENATE("'LA SIMD 10 ",$C$1,"'!$C$8:$Dr$71")),'CA SIMD dist data'!$M19+VLOOKUP("Female",$I$2:$J$3,2,0),'CA SIMD dist data'!X$15+VLOOKUP($C$3,$E$2:$G$13,3,0))+INDEX(INDIRECT(CONCATENATE("'LA SIMD 10 ",$C$1,"'!$C$8:$Dr$71")),'CA SIMD dist data'!$M19+VLOOKUP("Male",$I$2:$J$3,2,0),'CA SIMD dist data'!X$15+VLOOKUP($C$3,$E$2:$G$13,3,0)),INDEX(INDIRECT(CONCATENATE("'LA SIMD 10 ",$C$1,"'!$C$8:$Dr$71")),'CA SIMD dist data'!$M19+VLOOKUP($C$2,$I$2:$J$3,2,0),'CA SIMD dist data'!X$15+VLOOKUP($C$3,$E$2:$G$13,3,0))) -> 3321 | Z19: Argyll and Bute | AA19: 0.02246139448 | AB19: 0.03924221922 | AC19: 0.03086038761 | AD19: 0.0403741999 | AE19: 0.01939469774 | AF19: 0.000511556527 | AG19: 0.005695001055 | AH19: 0.006604590732 | AI19: 0.04568775959 | AJ19: -0.2657528189
A20: City of Edinburgh | B20: 29517 | C20: 38224 | D20: 32256 | E20: 43223 | F20: 34923 | G20: 38866 | H20: 36825 | I20: 41373 | J20: 56896 | K20: 155067 | M20: 5 | N20: City of Edinburgh | O20: =IF($C$2="Both",INDEX(INDIRECT(CONCATENATE("'LA SIMD 10 ",$C$1,"'!$C$8:$Dr$71")),'CA SIMD dist data'!$M20+VLOOKUP("Female",$I$2:$J$3,2,0),'CA SIMD dist data'!O$15+VLOOKUP($C$3,$E$2:$G$13,3,0))+INDEX(INDIRECT(CONCATENATE("'LA SIMD 10 ",$C$1,"'!$C$8:$Dr$71")),'CA SIMD dist data'!$M20+VLOOKUP("Male",$I$2:$J$3,2,0),'CA SIMD dist data'!O$15+VLOOKUP($C$3,$E$2:$G$13,3,0)),INDEX(INDIRECT(CONCATENATE("'LA SIMD 10 ",$C$1,"'!$C$8:$Dr$71")),'CA SIMD dist data'!$M20+VLOOKUP($C$2,$I$2:$J$3,2,0),'CA SIMD dist data'!O$15+VLOOKUP($C$3,$E$2:$G$13,3,0))) -> 31075 | P20: =IF($C$2="Both",INDEX(INDIRECT(CONCATENATE("'LA SIMD 10 ",$C$1,"'!$C$8:$Dr$71")),'CA SIMD dist data'!$M20+VLOOKUP("Female",$I$2:$J$3,2,0),'CA SIMD dist data'!P$15+VLOOKUP($C$3,$E$2:$G$13,3,0))+INDEX(INDIRECT(CONCATENATE("'LA SIMD 10 ",$C$1,"'!$C$8:$Dr$71")),'CA SIMD dist data'!$M20+VLOOKUP("Male",$I$2:$J$3,2,0),'CA SIMD dist data'!P$15+VLOOKUP($C$3,$E$2:$G$13,3,0)),INDEX(INDIRECT(CONCATENATE("'LA SIMD 10 ",$C$1,"'!$C$8:$Dr$71")),'CA SIMD dist data'!$M20+VLOOKUP($C$2,$I$2:$J$3,2,0),'CA SIMD dist data'!P$15+VLOOKUP($C$3,$E$2:$G$13,3,0))) -> 39268 | Q20: =IF($C$2="Both",INDEX(INDIRECT(CONCATENATE("'LA SIMD 10 ",$C$1,"'!$C$8:$Dr$71")),'CA SIMD dist data'!$M20+VLOOKUP("Female",$I$2:$J$3,2,0),'CA SIMD dist data'!Q$15+VLOOKUP($C$3,$E$2:$G$13,3,0))+INDEX(INDIRECT(CONCATENATE("'LA SIMD 10 ",$C$1,"'!$C$8:$Dr$71")),'CA SIMD dist data'!$M20+VLOOKUP("Male",$I$2:$J$3,2,0),'CA SIMD dist data'!Q$15+VLOOKUP($C$3,$E$2:$G$13,3,0)),INDEX(INDIRECT(CONCATENATE("'LA SIMD 10 ",$C$1,"'!$C$8:$Dr$71")),'CA SIMD dist data'!$M20+VLOOKUP($C$2,$I$2:$J$3,2,0),'CA SIMD dist data'!Q$15+VLOOKUP($C$3,$E$2:$G$13,3,0))) -> 31816 | R20: =IF($C$2="Both",INDEX(INDIRECT(CONCATENATE("'LA SIMD 10 ",$C$1,"'!$C$8:$Dr$71")),'CA SIMD dist data'!$M20+VLOOKUP("Female",$I$2:$J$3,2,0),'CA SIMD dist data'!R$15+VLOOKUP($C$3,$E$2:$G$13,3,0))+INDEX(INDIRECT(CONCATENATE("'LA SIMD 10 ",$C$1,"'!$C$8:$Dr$71")),'CA SIMD dist data'!$M20+VLOOKUP("Male",$I$2:$J$3,2,0),'CA SIMD dist data'!R$15+VLOOKUP($C$3,$E$2:$G$13,3,0)),INDEX(INDIRECT(CONCATENATE("'LA SIMD 10 ",$C$1,"'!$C$8:$Dr$71")),'CA SIMD dist data'!$M20+VLOOKUP($C$2,$I$2:$J$3,2,0),'CA SIMD dist data'!R$15+VLOOKUP($C$3,$E$2:$G$13,3,0))) -> 41845 | S20: =IF($C$2="Both",INDEX(INDIRECT(CONCATENATE("'LA SIMD 10 ",$C$1,"'!$C$8:$Dr$71")),'CA SIMD dist data'!$M20+VLOOKUP("Female",$I$2:$J$3,2,0),'CA SIMD dist data'!S$15+VLOOKUP($C$3,$E$2:$G$13,3,0))+INDEX(INDIRECT(CONCATENATE("'LA SIMD 10 ",$C$1,"'!$C$8:$Dr$71")),'CA SIMD dist data'!$M20+VLOOKUP("Male",$I$2:$J$3,2,0),'CA SIMD dist data'!S$15+VLOOKUP($C$3,$E$2:$G$13,3,0)),INDEX(INDIRECT(CONCATENATE("'LA SIMD 10 ",$C$1,"'!$C$8:$Dr$71")),'CA SIMD dist data'!$M20+VLOOKUP($C$2,$I$2:$J$3,2,0),'CA SIMD dist data'!S$15+VLOOKUP($C$3,$E$2:$G$13,3,0))) -> 33310 | T20: =IF($C$2="Both",INDEX(INDIRECT(CONCATENATE("'LA SIMD 10 ",$C$1,"'!$C$8:$Dr$71")),'CA SIMD dist data'!$M20+VLOOKUP("Female",$I$2:$J$3,2,0),'CA SIMD dist data'!T$15+VLOOKUP($C$3,$E$2:$G$13,3,0))+INDEX(INDIRECT(CONCATENATE("'LA SIMD 10 ",$C$1,"'!$C$8:$Dr$71")),'CA SIMD dist data'!$M20+VLOOKUP("Male",$I$2:$J$3,2,0),'CA SIMD dist data'!T$15+VLOOKUP($C$3,$E$2:$G$13,3,0)),INDEX(INDIRECT(CONCATENATE("'LA SIMD 10 ",$C$1,"'!$C$8:$Dr$71")),'CA SIMD dist data'!$M20+VLOOKUP($C$2,$I$2:$J$3,2,0),'CA SIMD dist data'!T$15+VLOOKUP($C$3,$E$2:$G$13,3,0))) -> 37131 | U20: =IF($C$2="Both",INDEX(INDIRECT(CONCATENATE("'LA SIMD 10 ",$C$1,"'!$C$8:$Dr$71")),'CA SIMD dist data'!$M20+VLOOKUP("Female",$I$2:$J$3,2,0),'CA SIMD dist data'!U$15+VLOOKUP($C$3,$E$2:$G$13,3,0))+INDEX(INDIRECT(CONCATENATE("'LA SIMD 10 ",$C$1,"'!$C$8:$Dr$71")),'CA SIMD dist data'!$M20+VLOOKUP("Male",$I$2:$J$3,2,0),'CA SIMD dist data'!U$15+VLOOKUP($C$3,$E$2:$G$13,3,0)),INDEX(INDIRECT(CONCATENATE("'LA SIMD 10 ",$C$1,"'!$C$8:$Dr$71")),'CA SIMD dist data'!$M20+VLOOKUP($C$2,$I$2:$J$3,2,0),'CA SIMD dist data'!U$15+VLOOKUP($C$3,$E$2:$G$13,3,0))) -> 35454 | V20: =IF($C$2="Both",INDEX(INDIRECT(CONCATENATE("'LA SIMD 10 ",$C$1,"'!$C$8:$Dr$71")),'CA SIMD dist data'!$M20+VLOOKUP("Female",$I$2:$J$3,2,0),'CA SIMD dist data'!V$15+VLOOKUP($C$3,$E$2:$G$13,3,0))+INDEX(INDIRECT(CONCATENATE("'LA SIMD 10 ",$C$1,"'!$C$8:$Dr$71")),'CA SIMD dist data'!$M20+VLOOKUP("Male",$I$2:$J$3,2,0),'CA SIMD dist data'!V$15+VLOOKUP($C$3,$E$2:$G$13,3,0)),INDEX(INDIRECT(CONCATENATE("'LA SIMD 10 ",$C$1,"'!$C$8:$Dr$71")),'CA SIMD dist data'!$M20+VLOOKUP($C$2,$I$2:$J$3,2,0),'CA SIMD dist data'!V$15+VLOOKUP($C$3,$E$2:$G$13,3,0))) -> 41392 | W20: =IF($C$2="Both",INDEX(INDIRECT(CONCATENATE("'LA SIMD 10 ",$C$1,"'!$C$8:$Dr$71")),'CA SIMD dist data'!$M20+VLOOKUP("Female",$I$2:$J$3,2,0),'CA SIMD dist data'!W$15+VLOOKUP($C$3,$E$2:$G$13,3,0))+INDEX(INDIRECT(CONCATENATE("'LA SIMD 10 ",$C$1,"'!$C$8:$Dr$71")),'CA SIMD dist data'!$M20+VLOOKUP("Male",$I$2:$J$3,2,0),'CA SIMD dist data'!W$15+VLOOKUP($C$3,$E$2:$G$13,3,0)),INDEX(INDIRECT(CONCATENATE("'LA SIMD 10 ",$C$1,"'!$C$8:$Dr$71")),'CA SIMD dist data'!$M20+VLOOKUP($C$2,$I$2:$J$3,2,0),'CA SIMD dist data'!W$15+VLOOKUP($C$3,$E$2:$G$13,3,0))) -> 55662 | X20: =IF($C$2="Both",INDEX(INDIRECT(CONCATENATE("'LA SIMD 10 ",$C$1,"'!$C$8:$Dr$71")),'CA SIMD dist data'!$M20+VLOOKUP("Female",$I$2:$J$3,2,0),'CA SIMD dist data'!X$15+VLOOKUP($C$3,$E$2:$G$13,3,0))+INDEX(INDIRECT(CONCATENATE("'LA SIMD 10 ",$C$1,"'!$C$8:$Dr$71")),'CA SIMD dist data'!$M20+VLOOKUP("Male",$I$2:$J$3,2,0),'CA SIMD dist data'!X$15+VLOOKUP($C$3,$E$2:$G$13,3,0)),INDEX(INDIRECT(CONCATENATE("'LA SIMD 10 ",$C$1,"'!$C$8:$Dr$71")),'CA SIMD dist data'!$M20+VLOOKUP($C$2,$I$2:$J$3,2,0),'CA SIMD dist data'!X$15+VLOOKUP($C$3,$E$2:$G$13,3,0))) -> 152365 | Z20: City of Edinburgh | AA20: 0.05278314192 | AB20: 0.02731268313 | AC20: -0.01364087302 | AD20: -0.03188117437 | AE20: -0.0461873264 | AF20: -0.04464055987 | AG20: -0.03723014257 | AH20: 0.0004592367003 | AI20: -0.02168869516 | AJ20: -0.01742472609
A21: Clackmannanshire | B21: 5855 | C21: 6705 | D21: 9384 | E21: 3931 | F21: 5434 | G21: 4047 | H21: 1884 | I21: 7145 | J21: 4668 | K21: 2297 | M21: 6 | N21: Clackmannanshire | O21: =IF($C$2="Both",INDEX(INDIRECT(CONCATENATE("'LA SIMD 10 ",$C$1,"'!$C$8:$Dr$71")),'CA SIMD dist data'!$M21+VLOOKUP("Female",$I$2:$J$3,2,0),'CA SIMD dist data'!O$15+VLOOKUP($C$3,$E$2:$G$13,3,0))+INDEX(INDIRECT(CONCATENATE("'LA SIMD 10 ",$C$1,"'!$C$8:$Dr$71")),'CA SIMD dist data'!$M21+VLOOKUP("Male",$I$2:$J$3,2,0),'CA SIMD dist data'!O$15+VLOOKUP($C$3,$E$2:$G$13,3,0)),INDEX(INDIRECT(CONCATENATE("'LA SIMD 10 ",$C$1,"'!$C$8:$Dr$71")),'CA SIMD dist data'!$M21+VLOOKUP($C$2,$I$2:$J$3,2,0),'CA SIMD dist data'!O$15+VLOOKUP($C$3,$E$2:$G$13,3,0))) -> 6836 | P21: =IF($C$2="Both",INDEX(INDIRECT(CONCATENATE("'LA SIMD 10 ",$C$1,"'!$C$8:$Dr$71")),'CA SIMD dist data'!$M21+VLOOKUP("Female",$I$2:$J$3,2,0),'CA SIMD dist data'!P$15+VLOOKUP($C$3,$E$2:$G$13,3,0))+INDEX(INDIRECT(CONCATENATE("'LA SIMD 10 ",$C$1,"'!$C$8:$Dr$71")),'CA SIMD dist data'!$M21+VLOOKUP("Male",$I$2:$J$3,2,0),'CA SIMD dist data'!P$15+VLOOKUP($C$3,$E$2:$G$13,3,0)),INDEX(INDIRECT(CONCATENATE("'LA SIMD 10 ",$C$1,"'!$C$8:$Dr$71")),'CA SIMD dist data'!$M21+VLOOKUP($C$2,$I$2:$J$3,2,0),'CA SIMD dist data'!P$15+VLOOKUP($C$3,$E$2:$G$13,3,0))) -> 6927 | Q21: =IF($C$2="Both",INDEX(INDIRECT(CONCATENATE("'LA SIMD 10 ",$C$1,"'!$C$8:$Dr$71")),'CA SIMD dist data'!$M21+VLOOKUP("Female",$I$2:$J$3,2,0),'CA SIMD dist data'!Q$15+VLOOKUP($C$3,$E$2:$G$13,3,0))+INDEX(INDIRECT(CONCATENATE("'LA SIMD 10 ",$C$1,"'!$C$8:$Dr$71")),'CA SIMD dist data'!$M21+VLOOKUP("Male",$I$2:$J$3,2,0),'CA SIMD dist data'!Q$15+VLOOKUP($C$3,$E$2:$G$13,3,0)),INDEX(INDIRECT(CONCATENATE("'LA SIMD 10 ",$C$1,"'!$C$8:$Dr$71")),'CA SIMD dist data'!$M21+VLOOKUP($C$2,$I$2:$J$3,2,0),'CA SIMD dist data'!Q$15+VLOOKUP($C$3,$E$2:$G$13,3,0))) -> 9737 | R21: =IF($C$2="Both",INDEX(INDIRECT(CONCATENATE("'LA SIMD 10 ",$C$1,"'!$C$8:$Dr$71")),'CA SIMD dist data'!$M21+VLOOKUP("Female",$I$2:$J$3,2,0),'CA SIMD dist data'!R$15+VLOOKUP($C$3,$E$2:$G$13,3,0))+INDEX(INDIRECT(CONCATENATE("'LA SIMD 10 ",$C$1,"'!$C$8:$Dr$71")),'CA SIMD dist data'!$M21+VLOOKUP("Male",$I$2:$J$3,2,0),'CA SIMD dist data'!R$15+VLOOKUP($C$3,$E$2:$G$13,3,0)),INDEX(INDIRECT(CONCATENATE("'LA SIMD 10 ",$C$1,"'!$C$8:$Dr$71")),'CA SIMD dist data'!$M21+VLOOKUP($C$2,$I$2:$J$3,2,0),'CA SIMD dist data'!R$15+VLOOKUP($C$3,$E$2:$G$13,3,0))) -> 3927 | S21: =IF($C$2="Both",INDEX(INDIRECT(CONCATENATE("'LA SIMD 10 ",$C$1,"'!$C$8:$Dr$71")),'CA SIMD dist data'!$M21+VLOOKUP("Female",$I$2:$J$3,2,0),'CA SIMD dist data'!S$15+VLOOKUP($C$3,$E$2:$G$13,3,0))+INDEX(INDIRECT(CONCATENATE("'LA SIMD 10 ",$C$1,"'!$C$8:$Dr$71")),'CA SIMD dist data'!$M21+VLOOKUP("Male",$I$2:$J$3,2,0),'CA SIMD dist data'!S$15+VLOOKUP($C$3,$E$2:$G$13,3,0)),INDEX(INDIRECT(CONCATENATE("'LA SIMD 10 ",$C$1,"'!$C$8:$Dr$71")),'CA SIMD dist data'!$M21+VLOOKUP($C$2,$I$2:$J$3,2,0),'CA SIMD dist data'!S$15+VLOOKUP($C$3,$E$2:$G$13,3,0))) -> 5581 | T21: =IF($C$2="Both",INDEX(INDIRECT(CONCATENATE("'LA SIMD 10 ",$C$1,"'!$C$8:$Dr$71")),'CA SIMD dist data'!$M21+VLOOKUP("Female",$I$2:$J$3,2,0),'CA SIMD dist data'!T$15+VLOOKUP($C$3,$E$2:$G$13,3,0))+INDEX(INDIRECT(CONCATENATE("'LA SIMD 10 ",$C$1,"'!$C$8:$Dr$71")),'CA SIMD dist data'!$M21+VLOOKUP("Male",$I$2:$J$3,2,0),'CA SIMD dist data'!T$15+VLOOKUP($C$3,$E$2:$G$13,3,0)),INDEX(INDIRECT(CONCATENATE("'LA SIMD 10 ",$C$1,"'!$C$8:$Dr$71")),'CA SIMD dist data'!$M21+VLOOKUP($C$2,$I$2:$J$3,2,0),'CA SIMD dist data'!T$15+VLOOKUP($C$3,$E$2:$G$13,3,0))) -> 4111 | U21: =IF($C$2="Both",INDEX(INDIRECT(CONCATENATE("'LA SIMD 10 ",$C$1,"'!$C$8:$Dr$71")),'CA SIMD dist data'!$M21+VLOOKUP("Female",$I$2:$J$3,2,0),'CA SIMD dist data'!U$15+VLOOKUP($C$3,$E$2:$G$13,3,0))+INDEX(INDIRECT(CONCATENATE("'LA SIMD 10 ",$C$1,"'!$C$8:$Dr$71")),'CA SIMD dist data'!$M21+VLOOKUP("Male",$I$2:$J$3,2,0),'CA SIMD dist data'!U$15+VLOOKUP($C$3,$E$2:$G$13,3,0)),INDEX(INDIRECT(CONCATENATE("'LA SIMD 10 ",$C$1,"'!$C$8:$Dr$71")),'CA SIMD dist data'!$M21+VLOOKUP($C$2,$I$2:$J$3,2,0),'CA SIMD dist data'!U$15+VLOOKUP($C$3,$E$2:$G$13,3,0))) -> 1944 | V21: =IF($C$2="Both",INDEX(INDIRECT(CONCATENATE("'LA SIMD 10 ",$C$1,"'!$C$8:$Dr$71")),'CA SIMD dist data'!$M21+VLOOKUP("Female",$I$2:$J$3,2,0),'CA SIMD dist data'!V$15+VLOOKUP($C$3,$E$2:$G$13,3,0))+INDEX(INDIRECT(CONCATENATE("'LA SIMD 10 ",$C$1,"'!$C$8:$Dr$71")),'CA SIMD dist data'!$M21+VLOOKUP("Male",$I$2:$J$3,2,0),'CA SIMD dist data'!V$15+VLOOKUP($C$3,$E$2:$G$13,3,0)),INDEX(INDIRECT(CONCATENATE("'LA SIMD 10 ",$C$1,"'!$C$8:$Dr$71")),'CA SIMD dist data'!$M21+VLOOKUP($C$2,$I$2:$J$3,2,0),'CA SIMD dist data'!V$15+VLOOKUP($C$3,$E$2:$G$13,3,0))) -> 6533 | W21: =IF($C$2="Both",INDEX(INDIRECT(CONCATENATE("'LA SIMD 10 ",$C$1,"'!$C$8:$Dr$71")),'CA SIMD dist data'!$M21+VLOOKUP("Female",$I$2:$J$3,2,0),'CA SIMD dist data'!W$15+VLOOKUP($C$3,$E$2:$G$13,3,0))+INDEX(INDIRECT(CONCATENATE("'LA SIMD 10 ",$C$1,"'!$C$8:$Dr$71")),'CA SIMD dist data'!$M21+VLOOKUP("Male",$I$2:$J$3,2,0),'CA SIMD dist data'!W$15+VLOOKUP($C$3,$E$2:$G$13,3,0)),INDEX(INDIRECT(CONCATENATE("'LA SIMD 10 ",$C$1,"'!$C$8:$Dr$71")),'CA SIMD dist data'!$M21+VLOOKUP($C$2,$I$2:$J$3,2,0),'CA SIMD dist data'!W$15+VLOOKUP($C$3,$E$2:$G$13,3,0))) -> 4666 | X21: =IF($C$2="Both",INDEX(INDIRECT(CONCATENATE("'LA SIMD 10 ",$C$1,"'!$C$8:$Dr$71")),'CA SIMD dist data'!$M21+VLOOKUP("Female",$I$2:$J$3,2,0),'CA SIMD dist data'!X$15+VLOOKUP($C$3,$E$2:$G$13,3,0))+INDEX(INDIRECT(CONCATENATE("'LA SIMD 10 ",$C$1,"'!$C$8:$Dr$71")),'CA SIMD dist data'!$M21+VLOOKUP("Male",$I$2:$J$3,2,0),'CA SIMD dist data'!X$15+VLOOKUP($C$3,$E$2:$G$13,3,0)),INDEX(INDIRECT(CONCATENATE("'LA SIMD 10 ",$C$1,"'!$C$8:$Dr$71")),'CA SIMD dist data'!$M21+VLOOKUP($C$2,$I$2:$J$3,2,0),'CA SIMD dist data'!X$15+VLOOKUP($C$3,$E$2:$G$13,3,0))) -> 2391 | Z21: Clackmannanshire | AA21: 0.1675491033 | AB21: 0.03310961969 | AC21: 0.0376172208 | AD21: -0.001017552786 | AE21: 0.02705189547 | AF21: 0.01581418335 | AG21: 0.03184713376 | AH21: -0.08565430371 | AI21: -0.0004284490146 | AJ21: 0.04092294297
A22: Dumfries and Galloway | B22: 7400 | C22: 5049 | D22: 11903 | E22: 26637 | F22: 23235 | G22: 35186 | H22: 16602 | I22: 10015 | J22: 6194 | K22: 7299 | M22: 7 | N22: Dumfries and Galloway | O22: =IF($C$2="Both",INDEX(INDIRECT(CONCATENATE("'LA SIMD 10 ",$C$1,"'!$C$8:$Dr$71")),'CA SIMD dist data'!$M22+VLOOKUP("Female",$I$2:$J$3,2,0),'CA SIMD dist data'!O$15+VLOOKUP($C$3,$E$2:$G$13,3,0))+INDEX(INDIRECT(CONCATENATE("'LA SIMD 10 ",$C$1,"'!$C$8:$Dr$71")),'CA SIMD dist data'!$M22+VLOOKUP("Male",$I$2:$J$3,2,0),'CA SIMD dist data'!O$15+VLOOKUP($C$3,$E$2:$G$13,3,0)),INDEX(INDIRECT(CONCATENATE("'LA SIMD 10 ",$C$1,"'!$C$8:$Dr$71")),'CA SIMD dist data'!$M22+VLOOKUP($C$2,$I$2:$J$3,2,0),'CA SIMD dist data'!O$15+VLOOKUP($C$3,$E$2:$G$13,3,0))) -> 7674 | P22: =IF($C$2="Both",INDEX(INDIRECT(CONCATENATE("'LA SIMD 10 ",$C$1,"'!$C$8:$Dr$71")),'CA SIMD dist data'!$M22+VLOOKUP("Female",$I$2:$J$3,2,0),'CA SIMD dist data'!P$15+VLOOKUP($C$3,$E$2:$G$13,3,0))+INDEX(INDIRECT(CONCATENATE("'LA SIMD 10 ",$C$1,"'!$C$8:$Dr$71")),'CA SIMD dist data'!$M22+VLOOKUP("Male",$I$2:$J$3,2,0),'CA SIMD dist data'!P$15+VLOOKUP($C$3,$E$2:$G$13,3,0)),INDEX(INDIRECT(CONCATENATE("'LA SIMD 10 ",$C$1,"'!$C$8:$Dr$71")),'CA SIMD dist data'!$M22+VLOOKUP($C$2,$I$2:$J$3,2,0),'CA SIMD dist data'!P$15+VLOOKUP($C$3,$E$2:$G$13,3,0))) -> 5262 | Q22: =IF($C$2="Both",INDEX(INDIRECT(CONCATENATE("'LA SIMD 10 ",$C$1,"'!$C$8:$Dr$71")),'CA SIMD dist data'!$M22+VLOOKUP("Female",$I$2:$J$3,2,0),'CA SIMD dist data'!Q$15+VLOOKUP($C$3,$E$2:$G$13,3,0))+INDEX(INDIRECT(CONCATENATE("'LA SIMD 10 ",$C$1,"'!$C$8:$Dr$71")),'CA SIMD dist data'!$M22+VLOOKUP("Male",$I$2:$J$3,2,0),'CA SIMD dist data'!Q$15+VLOOKUP($C$3,$E$2:$G$13,3,0)),INDEX(INDIRECT(CONCATENATE("'LA SIMD 10 ",$C$1,"'!$C$8:$Dr$71")),'CA SIMD dist data'!$M22+VLOOKUP($C$2,$I$2:$J$3,2,0),'CA SIMD dist data'!Q$15+VLOOKUP($C$3,$E$2:$G$13,3,0))) -> 12166 | R22: =IF($C$2="Both",INDEX(INDIRECT(CONCATENATE("'LA SIMD 10 ",$C$1,"'!$C$8:$Dr$71")),'CA SIMD dist data'!$M22+VLOOKUP("Female",$I$2:$J$3,2,0),'CA SIMD dist data'!R$15+VLOOKUP($C$3,$E$2:$G$13,3,0))+INDEX(INDIRECT(CONCATENATE("'LA SIMD 10 ",$C$1,"'!$C$8:$Dr$71")),'CA SIMD dist data'!$M22+VLOOKUP("Male",$I$2:$J$3,2,0),'CA SIMD dist data'!R$15+VLOOKUP($C$3,$E$2:$G$13,3,0)),INDEX(INDIRECT(CONCATENATE("'LA SIMD 10 ",$C$1,"'!$C$8:$Dr$71")),'CA SIMD dist data'!$M22+VLOOKUP($C$2,$I$2:$J$3,2,0),'CA SIMD dist data'!R$15+VLOOKUP($C$3,$E$2:$G$13,3,0))) -> 26698 | S22: =IF($C$2="Both",INDEX(INDIRECT(CONCATENATE("'LA SIMD 10 ",$C$1,"'!$C$8:$Dr$71")),'CA SIMD dist data'!$M22+VLOOKUP("Female",$I$2:$J$3,2,0),'CA SIMD dist data'!S$15+VLOOKUP($C$3,$E$2:$G$13,3,0))+INDEX(INDIRECT(CONCATENATE("'LA SIMD 10 ",$C$1,"'!$C$8:$Dr$71")),'CA SIMD dist data'!$M22+VLOOKUP("Male",$I$2:$J$3,2,0),'CA SIMD dist data'!S$15+VLOOKUP($C$3,$E$2:$G$13,3,0)),INDEX(INDIRECT(CONCATENATE("'LA SIMD 10 ",$C$1,"'!$C$8:$Dr$71")),'CA SIMD dist data'!$M22+VLOOKUP($C$2,$I$2:$J$3,2,0),'CA SIMD dist data'!S$15+VLOOKUP($C$3,$E$2:$G$13,3,0))) -> 23274 | T22: =IF($C$2="Both",INDEX(INDIRECT(CONCATENATE("'LA SIMD 10 ",$C$1,"'!$C$8:$Dr$71")),'CA SIMD dist data'!$M22+VLOOKUP("Female",$I$2:$J$3,2,0),'CA SIMD dist data'!T$15+VLOOKUP($C$3,$E$2:$G$13,3,0))+INDEX(INDIRECT(CONCATENATE("'LA SIMD 10 ",$C$1,"'!$C$8:$Dr$71")),'CA SIMD dist data'!$M22+VLOOKUP("Male",$I$2:$J$3,2,0),'CA SIMD dist data'!T$15+VLOOKUP($C$3,$E$2:$G$13,3,0)),INDEX(INDIRECT(CONCATENATE("'LA SIMD 10 ",$C$1,"'!$C$8:$Dr$71")),'CA SIMD dist data'!$M22+VLOOKUP($C$2,$I$2:$J$3,2,0),'CA SIMD dist data'!T$15+VLOOKUP($C$3,$E$2:$G$13,3,0))) -> 35190 | U22: =IF($C$2="Both",INDEX(INDIRECT(CONCATENATE("'LA SIMD 10 ",$C$1,"'!$C$8:$Dr$71")),'CA SIMD dist data'!$M22+VLOOKUP("Female",$I$2:$J$3,2,0),'CA SIMD dist data'!U$15+VLOOKUP($C$3,$E$2:$G$13,3,0))+INDEX(INDIRECT(CONCATENATE("'LA SIMD 10 ",$C$1,"'!$C$8:$Dr$71")),'CA SIMD dist data'!$M22+VLOOKUP("Male",$I$2:$J$3,2,0),'CA SIMD dist data'!U$15+VLOOKUP($C$3,$E$2:$G$13,3,0)),INDEX(INDIRECT(CONCATENATE("'LA SIMD 10 ",$C$1,"'!$C$8:$Dr$71")),'CA SIMD dist data'!$M22+VLOOKUP($C$2,$I$2:$J$3,2,0),'CA SIMD dist data'!U$15+VLOOKUP($C$3,$E$2:$G$13,3,0))) -> 16311 | V22: =IF($C$2="Both",INDEX(INDIRECT(CONCATENATE("'LA SIMD 10 ",$C$1,"'!$C$8:$Dr$71")),'CA SIMD dist data'!$M22+VLOOKUP("Female",$I$2:$J$3,2,0),'CA SIMD dist data'!V$15+VLOOKUP($C$3,$E$2:$G$13,3,0))+INDEX(INDIRECT(CONCATENATE("'LA SIMD 10 ",$C$1,"'!$C$8:$Dr$71")),'CA SIMD dist data'!$M22+VLOOKUP("Male",$I$2:$J$3,2,0),'CA SIMD dist data'!V$15+VLOOKUP($C$3,$E$2:$G$13,3,0)),INDEX(INDIRECT(CONCATENATE("'LA SIMD 10 ",$C$1,"'!$C$8:$Dr$71")),'CA SIMD dist data'!$M22+VLOOKUP($C$2,$I$2:$J$3,2,0),'CA SIMD dist data'!V$15+VLOOKUP($C$3,$E$2:$G$13,3,0))) -> 9859 | W22: =IF($C$2="Both",INDEX(INDIRECT(CONCATENATE("'LA SIMD 10 ",$C$1,"'!$C$8:$Dr$71")),'CA SIMD dist data'!$M22+VLOOKUP("Female",$I$2:$J$3,2,0),'CA SIMD dist data'!W$15+VLOOKUP($C$3,$E$2:$G$13,3,0))+INDEX(INDIRECT(CONCATENATE("'LA SIMD 10 ",$C$1,"'!$C$8:$Dr$71")),'CA SIMD dist data'!$M22+VLOOKUP("Male",$I$2:$J$3,2,0),'CA SIMD dist data'!W$15+VLOOKUP($C$3,$E$2:$G$13,3,0)),INDEX(INDIRECT(CONCATENATE("'LA SIMD 10 ",$C$1,"'!$C$8:$Dr$71")),'CA SIMD dist data'!$M22+VLOOKUP($C$2,$I$2:$J$3,2,0),'CA SIMD dist data'!W$15+VLOOKUP($C$3,$E$2:$G$13,3,0))) -> 6160 | X22: =IF($C$2="Both",INDEX(INDIRECT(CONCATENATE("'LA SIMD 10 ",$C$1,"'!$C$8:$Dr$71")),'CA SIMD dist data'!$M22+VLOOKUP("Female",$I$2:$J$3,2,0),'CA SIMD dist data'!X$15+VLOOKUP($C$3,$E$2:$G$13,3,0))+INDEX(INDIRECT(CONCATENATE("'LA SIMD 10 ",$C$1,"'!$C$8:$Dr$71")),'CA SIMD dist data'!$M22+VLOOKUP("Male",$I$2:$J$3,2,0),'CA SIMD dist data'!X$15+VLOOKUP($C$3,$E$2:$G$13,3,0)),INDEX(INDIRECT(CONCATENATE("'LA SIMD 10 ",$C$1,"'!$C$8:$Dr$71")),'CA SIMD dist data'!$M22+VLOOKUP($C$2,$I$2:$J$3,2,0),'CA SIMD dist data'!X$15+VLOOKUP($C$3,$E$2:$G$13,3,0))) -> 7373 | Z22: Dumfries and Galloway | AA22: 0.03702702703 | AB22: 0.0421865716 | AC22: 0.0220952701 | AD22: 0.002290047678 | AE22: 0.00167850226 | AF22: 0.0001136815779 | AG22: -0.01752800867 | AH22: -0.01557663505 | AI22: -0.00548918308 | AJ22: 0.01013837512
A23: Dundee City | B23: 32013 | C23: 21478 | D23: 16264 | E23: 13127 | F23: 7674 | G23: 8481 | H23: 12692 | I23: 12560 | J23: 12847 | K23: 11134 | M23: 8 | N23: Dundee City | O23: =IF($C$2="Both",INDEX(INDIRECT(CONCATENATE("'LA SIMD 10 ",$C$1,"'!$C$8:$Dr$71")),'CA SIMD dist data'!$M23+VLOOKUP("Female",$I$2:$J$3,2,0),'CA SIMD dist data'!O$15+VLOOKUP($C$3,$E$2:$G$13,3,0))+INDEX(INDIRECT(CONCATENATE("'LA SIMD 10 ",$C$1,"'!$C$8:$Dr$71")),'CA SIMD dist data'!$M23+VLOOKUP("Male",$I$2:$J$3,2,0),'CA SIMD dist data'!O$15+VLOOKUP($C$3,$E$2:$G$13,3,0)),INDEX(INDIRECT(CONCATENATE("'LA SIMD 10 ",$C$1,"'!$C$8:$Dr$71")),'CA SIMD dist data'!$M23+VLOOKUP($C$2,$I$2:$J$3,2,0),'CA SIMD dist data'!O$15+VLOOKUP($C$3,$E$2:$G$13,3,0))) -> 33352 | P23: =IF($C$2="Both",INDEX(INDIRECT(CONCATENATE("'LA SIMD 10 ",$C$1,"'!$C$8:$Dr$71")),'CA SIMD dist data'!$M23+VLOOKUP("Female",$I$2:$J$3,2,0),'CA SIMD dist data'!P$15+VLOOKUP($C$3,$E$2:$G$13,3,0))+INDEX(INDIRECT(CONCATENATE("'LA SIMD 10 ",$C$1,"'!$C$8:$Dr$71")),'CA SIMD dist data'!$M23+VLOOKUP("Male",$I$2:$J$3,2,0),'CA SIMD dist data'!P$15+VLOOKUP($C$3,$E$2:$G$13,3,0)),INDEX(INDIRECT(CONCATENATE("'LA SIMD 10 ",$C$1,"'!$C$8:$Dr$71")),'CA SIMD dist data'!$M23+VLOOKUP($C$2,$I$2:$J$3,2,0),'CA SIMD dist data'!P$15+VLOOKUP($C$3,$E$2:$G$13,3,0))) -> 22481 | Q23: =IF($C$2="Both",INDEX(INDIRECT(CONCATENATE("'LA SIMD 10 ",$C$1,"'!$C$8:$Dr$71")),'CA SIMD dist data'!$M23+VLOOKUP("Female",$I$2:$J$3,2,0),'CA SIMD dist data'!Q$15+VLOOKUP($C$3,$E$2:$G$13,3,0))+INDEX(INDIRECT(CONCATENATE("'LA SIMD 10 ",$C$1,"'!$C$8:$Dr$71")),'CA SIMD dist data'!$M23+VLOOKUP("Male",$I$2:$J$3,2,0),'CA SIMD dist data'!Q$15+VLOOKUP($C$3,$E$2:$G$13,3,0)),INDEX(INDIRECT(CONCATENATE("'LA SIMD 10 ",$C$1,"'!$C$8:$Dr$71")),'CA SIMD dist data'!$M23+VLOOKUP($C$2,$I$2:$J$3,2,0),'CA SIMD dist data'!Q$15+VLOOKUP($C$3,$E$2:$G$13,3,0))) -> 16075 | R23: =IF($C$2="Both",INDEX(INDIRECT(CONCATENATE("'LA SIMD 10 ",$C$1,"'!$C$8:$Dr$71")),'CA SIMD dist data'!$M23+VLOOKUP("Female",$I$2:$J$3,2,0),'CA SIMD dist data'!R$15+VLOOKUP($C$3,$E$2:$G$13,3,0))+INDEX(INDIRECT(CONCATENATE("'LA SIMD 10 ",$C$1,"'!$C$8:$Dr$71")),'CA SIMD dist data'!$M23+VLOOKUP("Male",$I$2:$J$3,2,0),'CA SIMD dist data'!R$15+VLOOKUP($C$3,$E$2:$G$13,3,0)),INDEX(INDIRECT(CONCATENATE("'LA SIMD 10 ",$C$1,"'!$C$8:$Dr$71")),'CA SIMD dist data'!$M23+VLOOKUP($C$2,$I$2:$J$3,2,0),'CA SIMD dist data'!R$15+VLOOKUP($C$3,$E$2:$G$13,3,0))) -> 13052 | S23: =IF($C$2="Both",INDEX(INDIRECT(CONCATENATE("'LA SIMD 10 ",$C$1,"'!$C$8:$Dr$71")),'CA SIMD dist data'!$M23+VLOOKUP("Female",$I$2:$J$3,2,0),'CA SIMD dist data'!S$15+VLOOKUP($C$3,$E$2:$G$13,3,0))+INDEX(INDIRECT(CONCATENATE("'LA SIMD 10 ",$C$1,"'!$C$8:$Dr$71")),'CA SIMD dist data'!$M23+VLOOKUP("Male",$I$2:$J$3,2,0),'CA SIMD dist data'!S$15+VLOOKUP($C$3,$E$2:$G$13,3,0)),INDEX(INDIRECT(CONCATENATE("'LA SIMD 10 ",$C$1,"'!$C$8:$Dr$71")),'CA SIMD dist data'!$M23+VLOOKUP($C$2,$I$2:$J$3,2,0),'CA SIMD dist data'!S$15+VLOOKUP($C$3,$E$2:$G$13,3,0))) -> 7468 | T23: =IF($C$2="Both",INDEX(INDIRECT(CONCATENATE("'LA SIMD 10 ",$C$1,"'!$C$8:$Dr$71")),'CA SIMD dist data'!$M23+VLOOKUP("Female",$I$2:$J$3,2,0),'CA SIMD dist data'!T$15+VLOOKUP($C$3,$E$2:$G$13,3,0))+INDEX(INDIRECT(CONCATENATE("'LA SIMD 10 ",$C$1,"'!$C$8:$Dr$71")),'CA SIMD dist data'!$M23+VLOOKUP("Male",$I$2:$J$3,2,0),'CA SIMD dist data'!T$15+VLOOKUP($C$3,$E$2:$G$13,3,0)),INDEX(INDIRECT(CONCATENATE("'LA SIMD 10 ",$C$1,"'!$C$8:$Dr$71")),'CA SIMD dist data'!$M23+VLOOKUP($C$2,$I$2:$J$3,2,0),'CA SIMD dist data'!T$15+VLOOKUP($C$3,$E$2:$G$13,3,0))) -> 8441 | U23: =IF($C$2="Both",INDEX(INDIRECT(CONCATENATE("'LA SIMD 10 ",$C$1,"'!$C$8:$Dr$71")),'CA SIMD dist data'!$M23+VLOOKUP("Female",$I$2:$J$3,2,0),'CA SIMD dist data'!U$15+VLOOKUP($C$3,$E$2:$G$13,3,0))+INDEX(INDIRECT(CONCATENATE("'LA SIMD 10 ",$C$1,"'!$C$8:$Dr$71")),'CA SIMD dist data'!$M23+VLOOKUP("Male",$I$2:$J$3,2,0),'CA SIMD dist data'!U$15+VLOOKUP($C$3,$E$2:$G$13,3,0)),INDEX(INDIRECT(CONCATENATE("'LA SIMD 10 ",$C$1,"'!$C$8:$Dr$71")),'CA SIMD dist data'!$M23+VLOOKUP($C$2,$I$2:$J$3,2,0),'CA SIMD dist data'!U$15+VLOOKUP($C$3,$E$2:$G$13,3,0))) -> 12529 | V23: =IF($C$2="Both",INDEX(INDIRECT(CONCATENATE("'LA SIMD 10 ",$C$1,"'!$C$8:$Dr$71")),'CA SIMD dist data'!$M23+VLOOKUP("Female",$I$2:$J$3,2,0),'CA SIMD dist data'!V$15+VLOOKUP($C$3,$E$2:$G$13,3,0))+INDEX(INDIRECT(CONCATENATE("'LA SIMD 10 ",$C$1,"'!$C$8:$Dr$71")),'CA SIMD dist data'!$M23+VLOOKUP("Male",$I$2:$J$3,2,0),'CA SIMD dist data'!V$15+VLOOKUP($C$3,$E$2:$G$13,3,0)),INDEX(INDIRECT(CONCATENATE("'LA SIMD 10 ",$C$1,"'!$C$8:$Dr$71")),'CA SIMD dist data'!$M23+VLOOKUP($C$2,$I$2:$J$3,2,0),'CA SIMD dist data'!V$15+VLOOKUP($C$3,$E$2:$G$13,3,0))) -> 12608 | W23: =IF($C$2="Both",INDEX(INDIRECT(CONCATENATE("'LA SIMD 10 ",$C$1,"'!$C$8:$Dr$71")),'CA SIMD dist data'!$M23+VLOOKUP("Female",$I$2:$J$3,2,0),'CA SIMD dist data'!W$15+VLOOKUP($C$3,$E$2:$G$13,3,0))+INDEX(INDIRECT(CONCATENATE("'LA SIMD 10 ",$C$1,"'!$C$8:$Dr$71")),'CA SIMD dist data'!$M23+VLOOKUP("Male",$I$2:$J$3,2,0),'CA SIMD dist data'!W$15+VLOOKUP($C$3,$E$2:$G$13,3,0)),INDEX(INDIRECT(CONCATENATE("'LA SIMD 10 ",$C$1,"'!$C$8:$Dr$71")),'CA SIMD dist data'!$M23+VLOOKUP($C$2,$I$2:$J$3,2,0),'CA SIMD dist data'!W$15+VLOOKUP($C$3,$E$2:$G$13,3,0))) -> 13155 | X23: =IF($C$2="Both",INDEX(INDIRECT(CONCATENATE("'LA SIMD 10 ",$C$1,"'!$C$8:$Dr$71")),'CA SIMD dist data'!$M23+VLOOKUP("Female",$I$2:$J$3,2,0),'CA SIMD dist data'!X$15+VLOOKUP($C$3,$E$2:$G$13,3,0))+INDEX(INDIRECT(CONCATENATE("'LA SIMD 10 ",$C$1,"'!$C$8:$Dr$71")),'CA SIMD dist data'!$M23+VLOOKUP("Male",$I$2:$J$3,2,0),'CA SIMD dist data'!X$15+VLOOKUP($C$3,$E$2:$G$13,3,0)),INDEX(INDIRECT(CONCATENATE("'LA SIMD 10 ",$C$1,"'!$C$8:$Dr$71")),'CA SIMD dist data'!$M23+VLOOKUP($C$2,$I$2:$J$3,2,0),'CA SIMD dist data'!X$15+VLOOKUP($C$3,$E$2:$G$13,3,0))) -> 10956 | Z23: Dundee City | AA23: 0.04182675788 | AB23: 0.04669894776 | AC23: -0.0116207575 | AD23: -0.005713415099 | AE23: -0.02684388845 | AF23: -0.00471642495 | AG23: -0.01284273558 | AH23: 0.003821656051 | AI23: 0.02397446875 | AJ23: -0.01598706664
A24: East Ayrshire | B24: 12792 | C24: 25998 | D24: 15262 | E24: 15644 | F24: 13371 | G24: 7865 | H24: 8165 | I24: 9023 | J24: 8872 | K24: 5208 | M24: 9 | N24: East Ayrshire | O24: =IF($C$2="Both",INDEX(INDIRECT(CONCATENATE("'LA SIMD 10 ",$C$1,"'!$C$8:$Dr$71")),'CA SIMD dist data'!$M24+VLOOKUP("Female",$I$2:$J$3,2,0),'CA SIMD dist data'!O$15+VLOOKUP($C$3,$E$2:$G$13,3,0))+INDEX(INDIRECT(CONCATENATE("'LA SIMD 10 ",$C$1,"'!$C$8:$Dr$71")),'CA SIMD dist data'!$M24+VLOOKUP("Male",$I$2:$J$3,2,0),'CA SIMD dist data'!O$15+VLOOKUP($C$3,$E$2:$G$13,3,0)),INDEX(INDIRECT(CONCATENATE("'LA SIMD 10 ",$C$1,"'!$C$8:$Dr$71")),'CA SIMD dist data'!$M24+VLOOKUP($C$2,$I$2:$J$3,2,0),'CA SIMD dist data'!O$15+VLOOKUP($C$3,$E$2:$G$13,3,0))) -> 13374 | P24: =IF($C$2="Both",INDEX(INDIRECT(CONCATENATE("'LA SIMD 10 ",$C$1,"'!$C$8:$Dr$71")),'CA SIMD dist data'!$M24+VLOOKUP("Female",$I$2:$J$3,2,0),'CA SIMD dist data'!P$15+VLOOKUP($C$3,$E$2:$G$13,3,0))+INDEX(INDIRECT(CONCATENATE("'LA SIMD 10 ",$C$1,"'!$C$8:$Dr$71")),'CA SIMD dist data'!$M24+VLOOKUP("Male",$I$2:$J$3,2,0),'CA SIMD dist data'!P$15+VLOOKUP($C$3,$E$2:$G$13,3,0)),INDEX(INDIRECT(CONCATENATE("'LA SIMD 10 ",$C$1,"'!$C$8:$Dr$71")),'CA SIMD dist data'!$M24+VLOOKUP($C$2,$I$2:$J$3,2,0),'CA SIMD dist data'!P$15+VLOOKUP($C$3,$E$2:$G$13,3,0))) -> 26697 | Q24: =IF($C$2="Both",INDEX(INDIRECT(CONCATENATE("'LA SIMD 10 ",$C$1,"'!$C$8:$Dr$71")),'CA SIMD dist data'!$M24+VLOOKUP("Female",$I$2:$J$3,2,0),'CA SIMD dist data'!Q$15+VLOOKUP($C$3,$E$2:$G$13,3,0))+INDEX(INDIRECT(CONCATENATE("'LA SIMD 10 ",$C$1,"'!$C$8:$Dr$71")),'CA SIMD dist data'!$M24+VLOOKUP("Male",$I$2:$J$3,2,0),'CA SIMD dist data'!Q$15+VLOOKUP($C$3,$E$2:$G$13,3,0)),INDEX(INDIRECT(CONCATENATE("'LA SIMD 10 ",$C$1,"'!$C$8:$Dr$71")),'CA SIMD dist data'!$M24+VLOOKUP($C$2,$I$2:$J$3,2,0),'CA SIMD dist data'!Q$15+VLOOKUP($C$3,$E$2:$G$13,3,0))) -> 15458 | R24: =IF($C$2="Both",INDEX(INDIRECT(CONCATENATE("'LA SIMD 10 ",$C$1,"'!$C$8:$Dr$71")),'CA SIMD dist data'!$M24+VLOOKUP("Female",$I$2:$J$3,2,0),'CA SIMD dist data'!R$15+VLOOKUP($C$3,$E$2:$G$13,3,0))+INDEX(INDIRECT(CONCATENATE("'LA SIMD 10 ",$C$1,"'!$C$8:$Dr$71")),'CA SIMD dist data'!$M24+VLOOKUP("Male",$I$2:$J$3,2,0),'CA SIMD dist data'!R$15+VLOOKUP($C$3,$E$2:$G$13,3,0)),INDEX(INDIRECT(CONCATENATE("'LA SIMD 10 ",$C$1,"'!$C$8:$Dr$71")),'CA SIMD dist data'!$M24+VLOOKUP($C$2,$I$2:$J$3,2,0),'CA SIMD dist data'!R$15+VLOOKUP($C$3,$E$2:$G$13,3,0))) -> 15555 | S24: =IF($C$2="Both",INDEX(INDIRECT(CONCATENATE("'LA SIMD 10 ",$C$1,"'!$C$8:$Dr$71")),'CA SIMD dist data'!$M24+VLOOKUP("Female",$I$2:$J$3,2,0),'CA SIMD dist data'!S$15+VLOOKUP($C$3,$E$2:$G$13,3,0))+INDEX(INDIRECT(CONCATENATE("'LA SIMD 10 ",$C$1,"'!$C$8:$Dr$71")),'CA SIMD dist data'!$M24+VLOOKUP("Male",$I$2:$J$3,2,0),'CA SIMD dist data'!S$15+VLOOKUP($C$3,$E$2:$G$13,3,0)),INDEX(INDIRECT(CONCATENATE("'LA SIMD 10 ",$C$1,"'!$C$8:$Dr$71")),'CA SIMD dist data'!$M24+VLOOKUP($C$2,$I$2:$J$3,2,0),'CA SIMD dist data'!S$15+VLOOKUP($C$3,$E$2:$G$13,3,0))) -> 12917 | T24: =IF($C$2="Both",INDEX(INDIRECT(CONCATENATE("'LA SIMD 10 ",$C$1,"'!$C$8:$Dr$71")),'CA SIMD dist data'!$M24+VLOOKUP("Female",$I$2:$J$3,2,0),'CA SIMD dist data'!T$15+VLOOKUP($C$3,$E$2:$G$13,3,0))+INDEX(INDIRECT(CONCATENATE("'LA SIMD 10 ",$C$1,"'!$C$8:$Dr$71")),'CA SIMD dist data'!$M24+VLOOKUP("Male",$I$2:$J$3,2,0),'CA SIMD dist data'!T$15+VLOOKUP($C$3,$E$2:$G$13,3,0)),INDEX(INDIRECT(CONCATENATE("'LA SIMD 10 ",$C$1,"'!$C$8:$Dr$71")),'CA SIMD dist data'!$M24+VLOOKUP($C$2,$I$2:$J$3,2,0),'CA SIMD dist data'!T$15+VLOOKUP($C$3,$E$2:$G$13,3,0))) -> 7799 | U24: =IF($C$2="Both",INDEX(INDIRECT(CONCATENATE("'LA SIMD 10 ",$C$1,"'!$C$8:$Dr$71")),'CA SIMD dist data'!$M24+VLOOKUP("Female",$I$2:$J$3,2,0),'CA SIMD dist data'!U$15+VLOOKUP($C$3,$E$2:$G$13,3,0))+INDEX(INDIRECT(CONCATENATE("'LA SIMD 10 ",$C$1,"'!$C$8:$Dr$71")),'CA SIMD dist data'!$M24+VLOOKUP("Male",$I$2:$J$3,2,0),'CA SIMD dist data'!U$15+VLOOKUP($C$3,$E$2:$G$13,3,0)),INDEX(INDIRECT(CONCATENATE("'LA SIMD 10 ",$C$1,"'!$C$8:$Dr$71")),'CA SIMD dist data'!$M24+VLOOKUP($C$2,$I$2:$J$3,2,0),'CA SIMD dist data'!U$15+VLOOKUP($C$3,$E$2:$G$13,3,0))) -> 7967 | V24: =IF($C$2="Both",INDEX(INDIRECT(CONCATENATE("'LA SIMD 10 ",$C$1,"'!$C$8:$Dr$71")),'CA SIMD dist data'!$M24+VLOOKUP("Female",$I$2:$J$3,2,0),'CA SIMD dist data'!V$15+VLOOKUP($C$3,$E$2:$G$13,3,0))+INDEX(INDIRECT(CONCATENATE("'LA SIMD 10 ",$C$1,"'!$C$8:$Dr$71")),'CA SIMD dist data'!$M24+VLOOKUP("Male",$I$2:$J$3,2,0),'CA SIMD dist data'!V$15+VLOOKUP($C$3,$E$2:$G$13,3,0)),INDEX(INDIRECT(CONCATENATE("'LA SIMD 10 ",$C$1,"'!$C$8:$Dr$71")),'CA SIMD dist data'!$M24+VLOOKUP($C$2,$I$2:$J$3,2,0),'CA SIMD dist data'!V$15+VLOOKUP($C$3,$E$2:$G$13,3,0))) -> 9138 | W24: =IF($C$2="Both",INDEX(INDIRECT(CONCATENATE("'LA SIMD 10 ",$C$1,"'!$C$8:$Dr$71")),'CA SIMD dist data'!$M24+VLOOKUP("Female",$I$2:$J$3,2,0),'CA SIMD dist data'!W$15+VLOOKUP($C$3,$E$2:$G$13,3,0))+INDEX(INDIRECT(CONCATENATE("'LA SIMD 10 ",$C$1,"'!$C$8:$Dr$71")),'CA SIMD dist data'!$M24+VLOOKUP("Male",$I$2:$J$3,2,0),'CA SIMD dist data'!W$15+VLOOKUP($C$3,$E$2:$G$13,3,0)),INDEX(INDIRECT(CONCATENATE("'LA SIMD 10 ",$C$1,"'!$C$8:$Dr$71")),'CA SIMD dist data'!$M24+VLOOKUP($C$2,$I$2:$J$3,2,0),'CA SIMD dist data'!W$15+VLOOKUP($C$3,$E$2:$G$13,3,0))) -> 8772 | X24: =IF($C$2="Both",INDEX(INDIRECT(CONCATENATE("'LA SIMD 10 ",$C$1,"'!$C$8:$Dr$71")),'CA SIMD dist data'!$M24+VLOOKUP("Female",$I$2:$J$3,2,0),'CA SIMD dist data'!X$15+VLOOKUP($C$3,$E$2:$G$13,3,0))+INDEX(INDIRECT(CONCATENATE("'LA SIMD 10 ",$C$1,"'!$C$8:$Dr$71")),'CA SIMD dist data'!$M24+VLOOKUP("Male",$I$2:$J$3,2,0),'CA SIMD dist data'!X$15+VLOOKUP($C$3,$E$2:$G$13,3,0)),INDEX(INDIRECT(CONCATENATE("'LA SIMD 10 ",$C$1,"'!$C$8:$Dr$71")),'CA SIMD dist data'!$M24+VLOOKUP($C$2,$I$2:$J$3,2,0),'CA SIMD dist data'!X$15+VLOOKUP($C$3,$E$2:$G$13,3,0))) -> 5235 | Z24: East Ayrshire | AA24: 0.04549718574 | AB24: 0.02688668359 | AC24: 0.01284235356 | AD24: -0.005689082076 | AE24: -0.03395407972 | AF24: -0.008391608392 | AG24: -0.02424984691 | AH24: 0.01274520669 | AI24: -0.01127141569 | AJ24: 0.005184331797
A25: East Dunbartonshire | B25: 880 | C25: 4282 | D25: 8858 | E25: 9095 | F25: 3178 | G25: 2578 | H25: 9301 | I25: 11024 | J25: 27007 | K25: =IF($C$2="Both",SUMIFS(INDIRECT(CONCATENATE("'MYE ",$C$1," F'!$D$",VLOOKUP($C$3,$E$2:$F$13,2,0),":$JHK$",VLOOKUP($C$3,$E$2:$F$13,2,0))),INDIRECT(CONCATENATE("'MYE ",$C$1," F'!$D$5:$JHK$5")),$A25,INDIRECT(CONCATENATE("'MYE ",$C$1," F'!$D$6:$JHK$6")),K$15)+SUMIFS(INDIRECT(CONCATENATE("'MYE ",$C$1," M'!$D$",VLOOKUP($C$3,$E$2:$F$13,2,0),":$JHK$",VLOOKUP($C$3,$E$2:$F$13,2,0))),INDIRECT(CONCATENATE("'MYE ",$C$1," M'!$D$5:$JHK$5")),$A25,INDIRECT(CONCATENATE("'MYE ",$C$1," M'!$D$6:$JHK$6")),K$15),SUMIFS(INDIRECT(CONCATENATE("'MYE ",$C$1," ",$D$2,"'!$D$",VLOOKUP($C$3,$E$2:$F$13,2,0),":$JHK$",VLOOKUP($C$3,$E$2:$F$13,2,0))),INDIRECT(CONCATENATE("'MYE ",$C$1," ",$D$2,"'!$D$5:$JHK$5")),$A25,INDIRECT(CONCATENATE("'MYE ",$C$1," ",$D$2,"'!$D$6:$JHK$6")),K$15)) -> 31337 | M25: 10 | N25: East Dunbartonshire | O25: =IF($C$2="Both",INDEX(INDIRECT(CONCATENATE("'LA SIMD 10 ",$C$1,"'!$C$8:$Dr$71")),'CA SIMD dist data'!$M25+VLOOKUP("Female",$I$2:$J$3,2,0),'CA SIMD dist data'!O$15+VLOOKUP($C$3,$E$2:$G$13,3,0))+INDEX(INDIRECT(CONCATENATE("'LA SIMD 10 ",$C$1,"'!$C$8:$Dr$71")),'CA SIMD dist data'!$M25+VLOOKUP("Male",$I$2:$J$3,2,0),'CA SIMD dist data'!O$15+VLOOKUP($C$3,$E$2:$G$13,3,0)),INDEX(INDIRECT(CONCATENATE("'LA SIMD 10 ",$C$1,"'!$C$8:$Dr$71")),'CA SIMD dist data'!$M25+VLOOKUP($C$2,$I$2:$J$3,2,0),'CA SIMD dist data'!O$15+VLOOKUP($C$3,$E$2:$G$13,3,0))) -> 961 | P25: =IF($C$2="Both",INDEX(INDIRECT(CONCATENATE("'LA SIMD 10 ",$C$1,"'!$C$8:$Dr$71")),'CA SIMD dist data'!$M25+VLOOKUP("Female",$I$2:$J$3,2,0),'CA SIMD dist data'!P$15+VLOOKUP($C$3,$E$2:$G$13,3,0))+INDEX(INDIRECT(CONCATENATE("'LA SIMD 10 ",$C$1,"'!$C$8:$Dr$71")),'CA SIMD dist data'!$M25+VLOOKUP("Male",$I$2:$J$3,2,0),'CA SIMD dist data'!P$15+VLOOKUP($C$3,$E$2:$G$13,3,0)),INDEX(INDIRECT(CONCATENATE("'LA SIMD 10 ",$C$1,"'!$C$8:$Dr$71")),'CA SIMD dist data'!$M25+VLOOKUP($C$2,$I$2:$J$3,2,0),'CA SIMD dist data'!P$15+VLOOKUP($C$3,$E$2:$G$13,3,0))) -> 4552 | Q25: =IF($C$2="Both",INDEX(INDIRECT(CONCATENATE("'LA SIMD 10 ",$C$1,"'!$C$8:$Dr$71")),'CA SIMD dist data'!$M25+VLOOKUP("Female",$I$2:$J$3,2,0),'CA SIMD dist data'!Q$15+VLOOKUP($C$3,$E$2:$G$13,3,0))+INDEX(INDIRECT(CONCATENATE("'LA SIMD 10 ",$C$1,"'!$C$8:$Dr$71")),'CA SIMD dist data'!$M25+VLOOKUP("Male",$I$2:$J$3,2,0),'CA SIMD dist data'!Q$15+VLOOKUP($C$3,$E$2:$G$13,3,0)),INDEX(INDIRECT(CONCATENATE("'LA SIMD 10 ",$C$1,"'!$C$8:$Dr$71")),'CA SIMD dist data'!$M25+VLOOKUP($C$2,$I$2:$J$3,2,0),'CA SIMD dist data'!Q$15+VLOOKUP($C$3,$E$2:$G$13,3,0))) -> 9085 | R25: =IF($C$2="Both",INDEX(INDIRECT(CONCATENATE("'LA SIMD 10 ",$C$1,"'!$C$8:$Dr$71")),'CA SIMD dist data'!$M25+VLOOKUP("Female",$I$2:$J$3,2,0),'CA SIMD dist data'!R$15+VLOOKUP($C$3,$E$2:$G$13,3,0))+INDEX(INDIRECT(CONCATENATE("'LA SIMD 10 ",$C$1,"'!$C$8:$Dr$71")),'CA SIMD dist data'!$M25+VLOOKUP("Male",$I$2:$J$3,2,0),'CA SIMD dist data'!R$15+VLOOKUP($C$3,$E$2:$G$13,3,0)),INDEX(INDIRECT(CONCATENATE("'LA SIMD 10 ",$C$1,"'!$C$8:$Dr$71")),'CA SIMD dist data'!$M25+VLOOKUP($C$2,$I$2:$J$3,2,0),'CA SIMD dist data'!R$15+VLOOKUP($C$3,$E$2:$G$13,3,0))) -> 9419 | S25: =IF($C$2="Both",INDEX(INDIRECT(CONCATENATE("'LA SIMD 10 ",$C$1,"'!$C$8:$Dr$71")),'CA SIMD dist data'!$M25+VLOOKUP("Female",$I$2:$J$3,2,0),'CA SIMD dist data'!S$15+VLOOKUP($C$3,$E$2:$G$13,3,0))+INDEX(INDIRECT(CONCATENATE("'LA SIMD 10 ",$C$1,"'!$C$8:$Dr$71")),'CA SIMD dist data'!$M25+VLOOKUP("Male",$I$2:$J$3,2,0),'CA SIMD dist data'!S$15+VLOOKUP($C$3,$E$2:$G$13,3,0)),INDEX(INDIRECT(CONCATENATE("'LA SIMD 10 ",$C$1,"'!$C$8:$Dr$71")),'CA SIMD dist data'!$M25+VLOOKUP($C$2,$I$2:$J$3,2,0),'CA SIMD dist data'!S$15+VLOOKUP($C$3,$E$2:$G$13,3,0))) -> 3303 | T25: =IF($C$2="Both",INDEX(INDIRECT(CONCATENATE("'LA SIMD 10 ",$C$1,"'!$C$8:$Dr$71")),'CA SIMD dist data'!$M25+VLOOKUP("Female",$I$2:$J$3,2,0),'CA SIMD dist data'!T$15+VLOOKUP($C$3,$E$2:$G$13,3,0))+INDEX(INDIRECT(CONCATENATE("'LA SIMD 10 ",$C$1,"'!$C$8:$Dr$71")),'CA SIMD dist data'!$M25+VLOOKUP("Male",$I$2:$J$3,2,0),'CA SIMD dist data'!T$15+VLOOKUP($C$3,$E$2:$G$13,3,0)),INDEX(INDIRECT(CONCATENATE("'LA SIMD 10 ",$C$1,"'!$C$8:$Dr$71")),'CA SIMD dist data'!$M25+VLOOKUP($C$2,$I$2:$J$3,2,0),'CA SIMD dist data'!T$15+VLOOKUP($C$3,$E$2:$G$13,3,0))) -> 2620 | U25: =IF($C$2="Both",INDEX(INDIRECT(CONCATENATE("'LA SIMD 10 ",$C$1,"'!$C$8:$Dr$71")),'CA SIMD dist data'!$M25+VLOOKUP("Female",$I$2:$J$3,2,0),'CA SIMD dist data'!U$15+VLOOKUP($C$3,$E$2:$G$13,3,0))+INDEX(INDIRECT(CONCATENATE("'LA SIMD 10 ",$C$1,"'!$C$8:$Dr$71")),'CA SIMD dist data'!$M25+VLOOKUP("Male",$I$2:$J$3,2,0),'CA SIMD dist data'!U$15+VLOOKUP($C$3,$E$2:$G$13,3,0)),INDEX(INDIRECT(CONCATENATE("'LA SIMD 10 ",$C$1,"'!$C$8:$Dr$71")),'CA SIMD dist data'!$M25+VLOOKUP($C$2,$I$2:$J$3,2,0),'CA SIMD dist data'!U$15+VLOOKUP($C$3,$E$2:$G$13,3,0))) -> 9592 | V25: =IF($C$2="Both",INDEX(INDIRECT(CONCATENATE("'LA SIMD 10 ",$C$1,"'!$C$8:$Dr$71")),'CA SIMD dist data'!$M25+VLOOKUP("Female",$I$2:$J$3,2,0),'CA SIMD dist data'!V$15+VLOOKUP($C$3,$E$2:$G$13,3,0))+INDEX(INDIRECT(CONCATENATE("'LA SIMD 10 ",$C$1,"'!$C$8:$Dr$71")),'CA SIMD dist data'!$M25+VLOOKUP("Male",$I$2:$J$3,2,0),'CA SIMD dist data'!V$15+VLOOKUP($C$3,$E$2:$G$13,3,0)),INDEX(INDIRECT(CONCATENATE("'LA SIMD 10 ",$C$1,"'!$C$8:$Dr$71")),'CA SIMD dist data'!$M25+VLOOKUP($C$2,$I$2:$J$3,2,0),'CA SIMD dist data'!V$15+VLOOKUP($C$3,$E$2:$G$13,3,0))) -> 11896 | W25: =IF($C$2="Both",INDEX(INDIRECT(CONCATENATE("'LA SIMD 10 ",$C$1,"'!$C$8:$Dr$71")),'CA SIMD dist data'!$M25+VLOOKUP("Female",$I$2:$J$3,2,0),'CA SIMD dist data'!W$15+VLOOKUP($C$3,$E$2:$G$13,3,0))+INDEX(INDIRECT(CONCATENATE("'LA SIMD 10 ",$C$1,"'!$C$8:$Dr$71")),'CA SIMD dist data'!$M25+VLOOKUP("Male",$I$2:$J$3,2,0),'CA SIMD dist data'!W$15+VLOOKUP($C$3,$E$2:$G$13,3,0)),INDEX(INDIRECT(CONCATENATE("'LA SIMD 10 ",$C$1,"'!$C$8:$Dr$71")),'CA SIMD dist data'!$M25+VLOOKUP($C$2,$I$2:$J$3,2,0),'CA SIMD dist data'!W$15+VLOOKUP($C$3,$E$2:$G$13,3,0))) -> 27604 | X25: =IF($C$2="Both",INDEX(INDIRECT(CONCATENATE("'LA SIMD 10 ",$C$1,"'!$C$8:$Dr$71")),'CA SIMD dist data'!$M25+VLOOKUP("Female",$I$2:$J$3,2,0),'CA SIMD dist data'!X$15+VLOOKUP($C$3,$E$2:$G$13,3,0))+INDEX(INDIRECT(CONCATENATE("'LA SIMD 10 ",$C$1,"'!$C$8:$Dr$71")),'CA SIMD dist data'!$M25+VLOOKUP("Male",$I$2:$J$3,2,0),'CA SIMD dist data'!X$15+VLOOKUP($C$3,$E$2:$G$13,3,0)),INDEX(INDIRECT(CONCATENATE("'LA SIMD 10 ",$C$1,"'!$C$8:$Dr$71")),'CA SIMD dist data'!$M25+VLOOKUP($C$2,$I$2:$J$3,2,0),'CA SIMD dist data'!X$15+VLOOKUP($C$3,$E$2:$G$13,3,0))) -> 31545 | Z25: East Dunbartonshire | AA25: 0.09204545455 | AB25: 0.06305464736 | AC25: 0.02562655227 | AD25: 0.03562396921 | AE25: 0.03933291378 | AF25: 0.01629169899 | AG25: 0.03128695839 | AH25: 0.07910014514 | AI25: 0.02210538009 | AJ25: 0.006637521141
A26: East Lothian | B26: 0 | C26: 3742 | D26: 11795 | E26: 15284 | F26: 8781 | G26: 14550 | H26: 15117 | I26: 14026 | J26: 8439 | K26: 12356 | M26: 11 | N26: East Lothian | O26: =IF($C$2="Both",INDEX(INDIRECT(CONCATENATE("'LA SIMD 10 ",$C$1,"'!$C$8:$Dr$71")),'CA SIMD dist data'!$M26+VLOOKUP("Female",$I$2:$J$3,2,0),'CA SIMD dist data'!O$15+VLOOKUP($C$3,$E$2:$G$13,3,0))+INDEX(INDIRECT(CONCATENATE("'LA SIMD 10 ",$C$1,"'!$C$8:$Dr$71")),'CA SIMD dist data'!$M26+VLOOKUP("Male",$I$2:$J$3,2,0),'CA SIMD dist data'!O$15+VLOOKUP($C$3,$E$2:$G$13,3,0)),INDEX(INDIRECT(CONCATENATE("'LA SIMD 10 ",$C$1,"'!$C$8:$Dr$71")),'CA SIMD dist data'!$M26+VLOOKUP($C$2,$I$2:$J$3,2,0),'CA SIMD dist data'!O$15+VLOOKUP($C$3,$E$2:$G$13,3,0))) -> 0 | P26: =IF($C$2="Both",INDEX(INDIRECT(CONCATENATE("'LA SIMD 10 ",$C$1,"'!$C$8:$Dr$71")),'CA SIMD dist data'!$M26+VLOOKUP("Female",$I$2:$J$3,2,0),'CA SIMD dist data'!P$15+VLOOKUP($C$3,$E$2:$G$13,3,0))+INDEX(INDIRECT(CONCATENATE("'LA SIMD 10 ",$C$1,"'!$C$8:$Dr$71")),'CA SIMD dist data'!$M26+VLOOKUP("Male",$I$2:$J$3,2,0),'CA SIMD dist data'!P$15+VLOOKUP($C$3,$E$2:$G$13,3,0)),INDEX(INDIRECT(CONCATENATE("'LA SIMD 10 ",$C$1,"'!$C$8:$Dr$71")),'CA SIMD dist data'!$M26+VLOOKUP($C$2,$I$2:$J$3,2,0),'CA SIMD dist data'!P$15+VLOOKUP($C$3,$E$2:$G$13,3,0))) -> 3871 | Q26: =IF($C$2="Both",INDEX(INDIRECT(CONCATENATE("'LA SIMD 10 ",$C$1,"'!$C$8:$Dr$71")),'CA SIMD dist data'!$M26+VLOOKUP("Female",$I$2:$J$3,2,0),'CA SIMD dist data'!Q$15+VLOOKUP($C$3,$E$2:$G$13,3,0))+INDEX(INDIRECT(CONCATENATE("'LA SIMD 10 ",$C$1,"'!$C$8:$Dr$71")),'CA SIMD dist data'!$M26+VLOOKUP("Male",$I$2:$J$3,2,0),'CA SIMD dist data'!Q$15+VLOOKUP($C$3,$E$2:$G$13,3,0)),INDEX(INDIRECT(CONCATENATE("'LA SIMD 10 ",$C$1,"'!$C$8:$Dr$71")),'CA SIMD dist data'!$M26+VLOOKUP($C$2,$I$2:$J$3,2,0),'CA SIMD dist data'!Q$15+VLOOKUP($C$3,$E$2:$G$13,3,0))) -> 12075 | R26: =IF($C$2="Both",INDEX(INDIRECT(CONCATENATE("'LA SIMD 10 ",$C$1,"'!$C$8:$Dr$71")),'CA SIMD dist data'!$M26+VLOOKUP("Female",$I$2:$J$3,2,0),'CA SIMD dist data'!R$15+VLOOKUP($C$3,$E$2:$G$13,3,0))+INDEX(INDIRECT(CONCATENATE("'LA SIMD 10 ",$C$1,"'!$C$8:$Dr$71")),'CA SIMD dist data'!$M26+VLOOKUP("Male",$I$2:$J$3,2,0),'CA SIMD dist data'!R$15+VLOOKUP($C$3,$E$2:$G$13,3,0)),INDEX(INDIRECT(CONCATENATE("'LA SIMD 10 ",$C$1,"'!$C$8:$Dr$71")),'CA SIMD dist data'!$M26+VLOOKUP($C$2,$I$2:$J$3,2,0),'CA SIMD dist data'!R$15+VLOOKUP($C$3,$E$2:$G$13,3,0))) -> 15679 | S26: =IF($C$2="Both",INDEX(INDIRECT(CONCATENATE("'LA SIMD 10 ",$C$1,"'!$C$8:$Dr$71")),'CA SIMD dist data'!$M26+VLOOKUP("Female",$I$2:$J$3,2,0),'CA SIMD dist data'!S$15+VLOOKUP($C$3,$E$2:$G$13,3,0))+INDEX(INDIRECT(CONCATENATE("'LA SIMD 10 ",$C$1,"'!$C$8:$Dr$71")),'CA SIMD dist data'!$M26+VLOOKUP("Male",$I$2:$J$3,2,0),'CA SIMD dist data'!S$15+VLOOKUP($C$3,$E$2:$G$13,3,0)),INDEX(INDIRECT(CONCATENATE("'LA SIMD 10 ",$C$1,"'!$C$8:$Dr$71")),'CA SIMD dist data'!$M26+VLOOKUP($C$2,$I$2:$J$3,2,0),'CA SIMD dist data'!S$15+VLOOKUP($C$3,$E$2:$G$13,3,0))) -> 8546 | T26: =IF($C$2="Both",INDEX(INDIRECT(CONCATENATE("'LA SIMD 10 ",$C$1,"'!$C$8:$Dr$71")),'CA SIMD dist data'!$M26+VLOOKUP("Female",$I$2:$J$3,2,0),'CA SIMD dist data'!T$15+VLOOKUP($C$3,$E$2:$G$13,3,0))+INDEX(INDIRECT(CONCATENATE("'LA SIMD 10 ",$C$1,"'!$C$8:$Dr$71")),'CA SIMD dist data'!$M26+VLOOKUP("Male",$I$2:$J$3,2,0),'CA SIMD dist data'!T$15+VLOOKUP($C$3,$E$2:$G$13,3,0)),INDEX(INDIRECT(CONCATENATE("'LA SIMD 10 ",$C$1,"'!$C$8:$Dr$71")),'CA SIMD dist data'!$M26+VLOOKUP($C$2,$I$2:$J$3,2,0),'CA SIMD dist data'!T$15+VLOOKUP($C$3,$E$2:$G$13,3,0))) -> 14690 | U26: =IF($C$2="Both",INDEX(INDIRECT(CONCATENATE("'LA SIMD 10 ",$C$1,"'!$C$8:$Dr$71")),'CA SIMD dist data'!$M26+VLOOKUP("Female",$I$2:$J$3,2,0),'CA SIMD dist data'!U$15+VLOOKUP($C$3,$E$2:$G$13,3,0))+INDEX(INDIRECT(CONCATENATE("'LA SIMD 10 ",$C$1,"'!$C$8:$Dr$71")),'CA SIMD dist data'!$M26+VLOOKUP("Male",$I$2:$J$3,2,0),'CA SIMD dist data'!U$15+VLOOKUP($C$3,$E$2:$G$13,3,0)),INDEX(INDIRECT(CONCATENATE("'LA SIMD 10 ",$C$1,"'!$C$8:$Dr$71")),'CA SIMD dist data'!$M26+VLOOKUP($C$2,$I$2:$J$3,2,0),'CA SIMD dist data'!U$15+VLOOKUP($C$3,$E$2:$G$13,3,0))) -> 14385 | V26: =IF($C$2="Both",INDEX(INDIRECT(CONCATENATE("'LA SIMD 10 ",$C$1,"'!$C$8:$Dr$71")),'CA SIMD dist data'!$M26+VLOOKUP("Female",$I$2:$J$3,2,0),'CA SIMD dist data'!V$15+VLOOKUP($C$3,$E$2:$G$13,3,0))+INDEX(INDIRECT(CONCATENATE("'LA SIMD 10 ",$C$1,"'!$C$8:$Dr$71")),'CA SIMD dist data'!$M26+VLOOKUP("Male",$I$2:$J$3,2,0),'CA SIMD dist data'!V$15+VLOOKUP($C$3,$E$2:$G$13,3,0)),INDEX(INDIRECT(CONCATENATE("'LA SIMD 10 ",$C$1,"'!$C$8:$Dr$71")),'CA SIMD dist data'!$M26+VLOOKUP($C$2,$I$2:$J$3,2,0),'CA SIMD dist data'!V$15+VLOOKUP($C$3,$E$2:$G$13,3,0))) -> 13848 | W26: =IF($C$2="Both",INDEX(INDIRECT(CONCATENATE("'LA SIMD 10 ",$C$1,"'!$C$8:$Dr$71")),'CA SIMD dist data'!$M26+VLOOKUP("Female",$I$2:$J$3,2,0),'CA SIMD dist data'!W$15+VLOOKUP($C$3,$E$2:$G$13,3,0))+INDEX(INDIRECT(CONCATENATE("'LA SIMD 10 ",$C$1,"'!$C$8:$Dr$71")),'CA SIMD dist data'!$M26+VLOOKUP("Male",$I$2:$J$3,2,0),'CA SIMD dist data'!W$15+VLOOKUP($C$3,$E$2:$G$13,3,0)),INDEX(INDIRECT(CONCATENATE("'LA SIMD 10 ",$C$1,"'!$C$8:$Dr$71")),'CA SIMD dist data'!$M26+VLOOKUP($C$2,$I$2:$J$3,2,0),'CA SIMD dist data'!W$15+VLOOKUP($C$3,$E$2:$G$13,3,0))) -> 8327 | X26: =IF($C$2="Both",INDEX(INDIRECT(CONCATENATE("'LA SIMD 10 ",$C$1,"'!$C$8:$Dr$71")),'CA SIMD dist data'!$M26+VLOOKUP("Female",$I$2:$J$3,2,0),'CA SIMD dist data'!X$15+VLOOKUP($C$3,$E$2:$G$13,3,0))+INDEX(INDIRECT(CONCATENATE("'LA SIMD 10 ",$C$1,"'!$C$8:$Dr$71")),'CA SIMD dist data'!$M26+VLOOKUP("Male",$I$2:$J$3,2,0),'CA SIMD dist data'!X$15+VLOOKUP($C$3,$E$2:$G$13,3,0)),INDEX(INDIRECT(CONCATENATE("'LA SIMD 10 ",$C$1,"'!$C$8:$Dr$71")),'CA SIMD dist data'!$M26+VLOOKUP($C$2,$I$2:$J$3,2,0),'CA SIMD dist data'!X$15+VLOOKUP($C$3,$E$2:$G$13,3,0))) -> 12186 | Z26: East Lothian | AB26: 0.03447354356 | AC26: 0.0237388724 | AD26: 0.02584401989 | AE26: -0.02676232775 | AF26: 0.009621993127 | AG26: -0.04842230601 | AH26: -0.01269071724 | AI26: -0.01327171466 | AJ26: -0.0137584979
A27: East Renfrewshire | B27: 1328 | C27: 4812 | D27: 2071 | E27: 6311 | F27: 4454 | G27: 4290 | H27: 5848 | I27: 7834 | J27: 21818 | K27: 35044 | M27: 12 | N27: East Renfrewshire | O27: =IF($C$2="Both",INDEX(INDIRECT(CONCATENATE("'LA SIMD 10 ",$C$1,"'!$C$8:$Dr$71")),'CA SIMD dist data'!$M27+VLOOKUP("Female",$I$2:$J$3,2,0),'CA SIMD dist data'!O$15+VLOOKUP($C$3,$E$2:$G$13,3,0))+INDEX(INDIRECT(CONCATENATE("'LA SIMD 10 ",$C$1,"'!$C$8:$Dr$71")),'CA SIMD dist data'!$M27+VLOOKUP("Male",$I$2:$J$3,2,0),'CA SIMD dist data'!O$15+VLOOKUP($C$3,$E$2:$G$13,3,0)),INDEX(INDIRECT(CONCATENATE("'LA SIMD 10 ",$C$1,"'!$C$8:$Dr$71")),'CA SIMD dist data'!$M27+VLOOKUP($C$2,$I$2:$J$3,2,0),'CA SIMD dist data'!O$15+VLOOKUP($C$3,$E$2:$G$13,3,0))) -> 1344 | P27: =IF($C$2="Both",INDEX(INDIRECT(CONCATENATE("'LA SIMD 10 ",$C$1,"'!$C$8:$Dr$71")),'CA SIMD dist data'!$M27+VLOOKUP("Female",$I$2:$J$3,2,0),'CA SIMD dist data'!P$15+VLOOKUP($C$3,$E$2:$G$13,3,0))+INDEX(INDIRECT(CONCATENATE("'LA SIMD 10 ",$C$1,"'!$C$8:$Dr$71")),'CA SIMD dist data'!$M27+VLOOKUP("Male",$I$2:$J$3,2,0),'CA SIMD dist data'!P$15+VLOOKUP($C$3,$E$2:$G$13,3,0)),INDEX(INDIRECT(CONCATENATE("'LA SIMD 10 ",$C$1,"'!$C$8:$Dr$71")),'CA SIMD dist data'!$M27+VLOOKUP($C$2,$I$2:$J$3,2,0),'CA SIMD dist data'!P$15+VLOOKUP($C$3,$E$2:$G$13,3,0))) -> 4706 | Q27: =IF($C$2="Both",INDEX(INDIRECT(CONCATENATE("'LA SIMD 10 ",$C$1,"'!$C$8:$Dr$71")),'CA SIMD dist data'!$M27+VLOOKUP("Female",$I$2:$J$3,2,0),'CA SIMD dist data'!Q$15+VLOOKUP($C$3,$E$2:$G$13,3,0))+INDEX(INDIRECT(CONCATENATE("'LA SIMD 10 ",$C$1,"'!$C$8:$Dr$71")),'CA SIMD dist data'!$M27+VLOOKUP("Male",$I$2:$J$3,2,0),'CA SIMD dist data'!Q$15+VLOOKUP($C$3,$E$2:$G$13,3,0)),INDEX(INDIRECT(CONCATENATE("'LA SIMD 10 ",$C$1,"'!$C$8:$Dr$71")),'CA SIMD dist data'!$M27+VLOOKUP($C$2,$I$2:$J$3,2,0),'CA SIMD dist data'!Q$15+VLOOKUP($C$3,$E$2:$G$13,3,0))) -> 2106 | R27: =IF($C$2="Both",INDEX(INDIRECT(CONCATENATE("'LA SIMD 10 ",$C$1,"'!$C$8:$Dr$71")),'CA SIMD dist data'!$M27+VLOOKUP("Female",$I$2:$J$3,2,0),'CA SIMD dist data'!R$15+VLOOKUP($C$3,$E$2:$G$13,3,0))+INDEX(INDIRECT(CONCATENATE("'LA SIMD 10 ",$C$1,"'!$C$8:$Dr$71")),'CA SIMD dist data'!$M27+VLOOKUP("Male",$I$2:$J$3,2,0),'CA SIMD dist data'!R$15+VLOOKUP($C$3,$E$2:$G$13,3,0)),INDEX(INDIRECT(CONCATENATE("'LA SIMD 10 ",$C$1,"'!$C$8:$Dr$71")),'CA SIMD dist data'!$M27+VLOOKUP($C$2,$I$2:$J$3,2,0),'CA SIMD dist data'!R$15+VLOOKUP($C$3,$E$2:$G$13,3,0))) -> 6420 | S27: =IF($C$2="Both",INDEX(INDIRECT(CONCATENATE("'LA SIMD 10 ",$C$1,"'!$C$8:$Dr$71")),'CA SIMD dist data'!$M27+VLOOKUP("Female",$I$2:$J$3,2,0),'CA SIMD dist data'!S$15+VLOOKUP($C$3,$E$2:$G$13,3,0))+INDEX(INDIRECT(CONCATENATE("'LA SIMD 10 ",$C$1,"'!$C$8:$Dr$71")),'CA SIMD dist data'!$M27+VLOOKUP("Male",$I$2:$J$3,2,0),'CA SIMD dist data'!S$15+VLOOKUP($C$3,$E$2:$G$13,3,0)),INDEX(INDIRECT(CONCATENATE("'LA SIMD 10 ",$C$1,"'!$C$8:$Dr$71")),'CA SIMD dist data'!$M27+VLOOKUP($C$2,$I$2:$J$3,2,0),'CA SIMD dist data'!S$15+VLOOKUP($C$3,$E$2:$G$13,3,0))) -> 4430 | T27: =IF($C$2="Both",INDEX(INDIRECT(CONCATENATE("'LA SIMD 10 ",$C$1,"'!$C$8:$Dr$71")),'CA SIMD dist data'!$M27+VLOOKUP("Female",$I$2:$J$3,2,0),'CA SIMD dist data'!T$15+VLOOKUP($C$3,$E$2:$G$13,3,0))+INDEX(INDIRECT(CONCATENATE("'LA SIMD 10 ",$C$1,"'!$C$8:$Dr$71")),'CA SIMD dist data'!$M27+VLOOKUP("Male",$I$2:$J$3,2,0),'CA SIMD dist data'!T$15+VLOOKUP($C$3,$E$2:$G$13,3,0)),INDEX(INDIRECT(CONCATENATE("'LA SIMD 10 ",$C$1,"'!$C$8:$Dr$71")),'CA SIMD dist data'!$M27+VLOOKUP($C$2,$I$2:$J$3,2,0),'CA SIMD dist data'!T$15+VLOOKUP($C$3,$E$2:$G$13,3,0))) -> 4369 | U27: =IF($C$2="Both",INDEX(INDIRECT(CONCATENATE("'LA SIMD 10 ",$C$1,"'!$C$8:$Dr$71")),'CA SIMD dist data'!$M27+VLOOKUP("Female",$I$2:$J$3,2,0),'CA SIMD dist data'!U$15+VLOOKUP($C$3,$E$2:$G$13,3,0))+INDEX(INDIRECT(CONCATENATE("'LA SIMD 10 ",$C$1,"'!$C$8:$Dr$71")),'CA SIMD dist data'!$M27+VLOOKUP("Male",$I$2:$J$3,2,0),'CA SIMD dist data'!U$15+VLOOKUP($C$3,$E$2:$G$13,3,0)),INDEX(INDIRECT(CONCATENATE("'LA SIMD 10 ",$C$1,"'!$C$8:$Dr$71")),'CA SIMD dist data'!$M27+VLOOKUP($C$2,$I$2:$J$3,2,0),'CA SIMD dist data'!U$15+VLOOKUP($C$3,$E$2:$G$13,3,0))) -> 5824 | V27: =IF($C$2="Both",INDEX(INDIRECT(CONCATENATE("'LA SIMD 10 ",$C$1,"'!$C$8:$Dr$71")),'CA SIMD dist data'!$M27+VLOOKUP("Female",$I$2:$J$3,2,0),'CA SIMD dist data'!V$15+VLOOKUP($C$3,$E$2:$G$13,3,0))+INDEX(INDIRECT(CONCATENATE("'LA SIMD 10 ",$C$1,"'!$C$8:$Dr$71")),'CA SIMD dist data'!$M27+VLOOKUP("Male",$I$2:$J$3,2,0),'CA SIMD dist data'!V$15+VLOOKUP($C$3,$E$2:$G$13,3,0)),INDEX(INDIRECT(CONCATENATE("'LA SIMD 10 ",$C$1,"'!$C$8:$Dr$71")),'CA SIMD dist data'!$M27+VLOOKUP($C$2,$I$2:$J$3,2,0),'CA SIMD dist data'!V$15+VLOOKUP($C$3,$E$2:$G$13,3,0))) -> 7704 | W27: =IF($C$2="Both",INDEX(INDIRECT(CONCATENATE("'LA SIMD 10 ",$C$1,"'!$C$8:$Dr$71")),'CA SIMD dist data'!$M27+VLOOKUP("Female",$I$2:$J$3,2,0),'CA SIMD dist data'!W$15+VLOOKUP($C$3,$E$2:$G$13,3,0))+INDEX(INDIRECT(CONCATENATE("'LA SIMD 10 ",$C$1,"'!$C$8:$Dr$71")),'CA SIMD dist data'!$M27+VLOOKUP("Male",$I$2:$J$3,2,0),'CA SIMD dist data'!W$15+VLOOKUP($C$3,$E$2:$G$13,3,0)),INDEX(INDIRECT(CONCATENATE("'LA SIMD 10 ",$C$1,"'!$C$8:$Dr$71")),'CA SIMD dist data'!$M27+VLOOKUP($C$2,$I$2:$J$3,2,0),'CA SIMD dist data'!W$15+VLOOKUP($C$3,$E$2:$G$13,3,0))) -> 22058 | X27: =IF($C$2="Both",INDEX(INDIRECT(CONCATENATE("'LA SIMD 10 ",$C$1,"'!$C$8:$Dr$71")),'CA SIMD dist data'!$M27+VLOOKUP("Female",$I$2:$J$3,2,0),'CA SIMD dist data'!X$15+VLOOKUP($C$3,$E$2:$G$13,3,0))+INDEX(INDIRECT(CONCATENATE("'LA SIMD 10 ",$C$1,"'!$C$8:$Dr$71")),'CA SIMD dist data'!$M27+VLOOKUP("Male",$I$2:$J$3,2,0),'CA SIMD dist data'!X$15+VLOOKUP($C$3,$E$2:$G$13,3,0)),INDEX(INDIRECT(CONCATENATE("'LA SIMD 10 ",$C$1,"'!$C$8:$Dr$71")),'CA SIMD dist data'!$M27+VLOOKUP($C$2,$I$2:$J$3,2,0),'CA SIMD dist data'!X$15+VLOOKUP($C$3,$E$2:$G$13,3,0))) -> 35490 | Z27: East Renfrewshire | AA27: 0.01204819277 | AB27: -0.02202826268 | AC27: 0.01690004829 | AD27: 0.01727143084 | AE27: -0.005388414908 | AF27: 0.01841491841 | AG27: -0.004103967168 | AH27: -0.0165943324 | AI27: 0.01100009167 | AJ27: 0.01272685766
A28: Falkirk | B28: 8911 | C28: 13797 | D28: 27155 | E28: 14733 | F28: 21789 | G28: 10644 | H28: 14266 | I28: 16881 | J28: 19308 | K28: 11896 | M28: 13 | N28: Falkirk | O28: =IF($C$2="Both",INDEX(INDIRECT(CONCATENATE("'LA SIMD 10 ",$C$1,"'!$C$8:$Dr$71")),'CA SIMD dist data'!$M28+VLOOKUP("Female",$I$2:$J$3,2,0),'CA SIMD dist data'!O$15+VLOOKUP($C$3,$E$2:$G$13,3,0))+INDEX(INDIRECT(CONCATENATE("'LA SIMD 10 ",$C$1,"'!$C$8:$Dr$71")),'CA SIMD dist data'!$M28+VLOOKUP("Male",$I$2:$J$3,2,0),'CA SIMD dist data'!O$15+VLOOKUP($C$3,$E$2:$G$13,3,0)),INDEX(INDIRECT(CONCATENATE("'LA SIMD 10 ",$C$1,"'!$C$8:$Dr$71")),'CA SIMD dist data'!$M28+VLOOKUP($C$2,$I$2:$J$3,2,0),'CA SIMD dist data'!O$15+VLOOKUP($C$3,$E$2:$G$13,3,0))) -> 9130 | P28: =IF($C$2="Both",INDEX(INDIRECT(CONCATENATE("'LA SIMD 10 ",$C$1,"'!$C$8:$Dr$71")),'CA SIMD dist data'!$M28+VLOOKUP("Female",$I$2:$J$3,2,0),'CA SIMD dist data'!P$15+VLOOKUP($C$3,$E$2:$G$13,3,0))+INDEX(INDIRECT(CONCATENATE("'LA SIMD 10 ",$C$1,"'!$C$8:$Dr$71")),'CA SIMD dist data'!$M28+VLOOKUP("Male",$I$2:$J$3,2,0),'CA SIMD dist data'!P$15+VLOOKUP($C$3,$E$2:$G$13,3,0)),INDEX(INDIRECT(CONCATENATE("'LA SIMD 10 ",$C$1,"'!$C$8:$Dr$71")),'CA SIMD dist data'!$M28+VLOOKUP($C$2,$I$2:$J$3,2,0),'CA SIMD dist data'!P$15+VLOOKUP($C$3,$E$2:$G$13,3,0))) -> 13949 | Q28: =IF($C$2="Both",INDEX(INDIRECT(CONCATENATE("'LA SIMD 10 ",$C$1,"'!$C$8:$Dr$71")),'CA SIMD dist data'!$M28+VLOOKUP("Female",$I$2:$J$3,2,0),'CA SIMD dist data'!Q$15+VLOOKUP($C$3,$E$2:$G$13,3,0))+INDEX(INDIRECT(CONCATENATE("'LA SIMD 10 ",$C$1,"'!$C$8:$Dr$71")),'CA SIMD dist data'!$M28+VLOOKUP("Male",$I$2:$J$3,2,0),'CA SIMD dist data'!Q$15+VLOOKUP($C$3,$E$2:$G$13,3,0)),INDEX(INDIRECT(CONCATENATE("'LA SIMD 10 ",$C$1,"'!$C$8:$Dr$71")),'CA SIMD dist data'!$M28+VLOOKUP($C$2,$I$2:$J$3,2,0),'CA SIMD dist data'!Q$15+VLOOKUP($C$3,$E$2:$G$13,3,0))) -> 27684 | R28: =IF($C$2="Both",INDEX(INDIRECT(CONCATENATE("'LA SIMD 10 ",$C$1,"'!$C$8:$Dr$71")),'CA SIMD dist data'!$M28+VLOOKUP("Female",$I$2:$J$3,2,0),'CA SIMD dist data'!R$15+VLOOKUP($C$3,$E$2:$G$13,3,0))+INDEX(INDIRECT(CONCATENATE("'LA SIMD 10 ",$C$1,"'!$C$8:$Dr$71")),'CA SIMD dist data'!$M28+VLOOKUP("Male",$I$2:$J$3,2,0),'CA SIMD dist data'!R$15+VLOOKUP($C$3,$E$2:$G$13,3,0)),INDEX(INDIRECT(CONCATENATE("'LA SIMD 10 ",$C$1,"'!$C$8:$Dr$71")),'CA SIMD dist data'!$M28+VLOOKUP($C$2,$I$2:$J$3,2,0),'CA SIMD dist data'!R$15+VLOOKUP($C$3,$E$2:$G$13,3,0))) -> 14803 | S28: =IF($C$2="Both",INDEX(INDIRECT(CONCATENATE("'LA SIMD 10 ",$C$1,"'!$C$8:$Dr$71")),'CA SIMD dist data'!$M28+VLOOKUP("Female",$I$2:$J$3,2,0),'CA SIMD dist data'!S$15+VLOOKUP($C$3,$E$2:$G$13,3,0))+INDEX(INDIRECT(CONCATENATE("'LA SIMD 10 ",$C$1,"'!$C$8:$Dr$71")),'CA SIMD dist data'!$M28+VLOOKUP("Male",$I$2:$J$3,2,0),'CA SIMD dist data'!S$15+VLOOKUP($C$3,$E$2:$G$13,3,0)),INDEX(INDIRECT(CONCATENATE("'LA SIMD 10 ",$C$1,"'!$C$8:$Dr$71")),'CA SIMD dist data'!$M28+VLOOKUP($C$2,$I$2:$J$3,2,0),'CA SIMD dist data'!S$15+VLOOKUP($C$3,$E$2:$G$13,3,0))) -> 21983 | T28: =IF($C$2="Both",INDEX(INDIRECT(CONCATENATE("'LA SIMD 10 ",$C$1,"'!$C$8:$Dr$71")),'CA SIMD dist data'!$M28+VLOOKUP("Female",$I$2:$J$3,2,0),'CA SIMD dist data'!T$15+VLOOKUP($C$3,$E$2:$G$13,3,0))+INDEX(INDIRECT(CONCATENATE("'LA SIMD 10 ",$C$1,"'!$C$8:$Dr$71")),'CA SIMD dist data'!$M28+VLOOKUP("Male",$I$2:$J$3,2,0),'CA SIMD dist data'!T$15+VLOOKUP($C$3,$E$2:$G$13,3,0)),INDEX(INDIRECT(CONCATENATE("'LA SIMD 10 ",$C$1,"'!$C$8:$Dr$71")),'CA SIMD dist data'!$M28+VLOOKUP($C$2,$I$2:$J$3,2,0),'CA SIMD dist data'!T$15+VLOOKUP($C$3,$E$2:$G$13,3,0))) -> 10592 | U28: =IF($C$2="Both",INDEX(INDIRECT(CONCATENATE("'LA SIMD 10 ",$C$1,"'!$C$8:$Dr$71")),'CA SIMD dist data'!$M28+VLOOKUP("Female",$I$2:$J$3,2,0),'CA SIMD dist data'!U$15+VLOOKUP($C$3,$E$2:$G$13,3,0))+INDEX(INDIRECT(CONCATENATE("'LA SIMD 10 ",$C$1,"'!$C$8:$Dr$71")),'CA SIMD dist data'!$M28+VLOOKUP("Male",$I$2:$J$3,2,0),'CA SIMD dist data'!U$15+VLOOKUP($C$3,$E$2:$G$13,3,0)),INDEX(INDIRECT(CONCATENATE("'LA SIMD 10 ",$C$1,"'!$C$8:$Dr$71")),'CA SIMD dist data'!$M28+VLOOKUP($C$2,$I$2:$J$3,2,0),'CA SIMD dist data'!U$15+VLOOKUP($C$3,$E$2:$G$13,3,0))) -> 14063 | V28: =IF($C$2="Both",INDEX(INDIRECT(CONCATENATE("'LA SIMD 10 ",$C$1,"'!$C$8:$Dr$71")),'CA SIMD dist data'!$M28+VLOOKUP("Female",$I$2:$J$3,2,0),'CA SIMD dist data'!V$15+VLOOKUP($C$3,$E$2:$G$13,3,0))+INDEX(INDIRECT(CONCATENATE("'LA SIMD 10 ",$C$1,"'!$C$8:$Dr$71")),'CA SIMD dist data'!$M28+VLOOKUP("Male",$I$2:$J$3,2,0),'CA SIMD dist data'!V$15+VLOOKUP($C$3,$E$2:$G$13,3,0)),INDEX(INDIRECT(CONCATENATE("'LA SIMD 10 ",$C$1,"'!$C$8:$Dr$71")),'CA SIMD dist data'!$M28+VLOOKUP($C$2,$I$2:$J$3,2,0),'CA SIMD dist data'!V$15+VLOOKUP($C$3,$E$2:$G$13,3,0))) -> 16274 | W28: =IF($C$2="Both",INDEX(INDIRECT(CONCATENATE("'LA SIMD 10 ",$C$1,"'!$C$8:$Dr$71")),'CA SIMD dist data'!$M28+VLOOKUP("Female",$I$2:$J$3,2,0),'CA SIMD dist data'!W$15+VLOOKUP($C$3,$E$2:$G$13,3,0))+INDEX(INDIRECT(CONCATENATE("'LA SIMD 10 ",$C$1,"'!$C$8:$Dr$71")),'CA SIMD dist data'!$M28+VLOOKUP("Male",$I$2:$J$3,2,0),'CA SIMD dist data'!W$15+VLOOKUP($C$3,$E$2:$G$13,3,0)),INDEX(INDIRECT(CONCATENATE("'LA SIMD 10 ",$C$1,"'!$C$8:$Dr$71")),'CA SIMD dist data'!$M28+VLOOKUP($C$2,$I$2:$J$3,2,0),'CA SIMD dist data'!W$15+VLOOKUP($C$3,$E$2:$G$13,3,0))) -> 18955 | X28: =IF($C$2="Both",INDEX(INDIRECT(CONCATENATE("'LA SIMD 10 ",$C$1,"'!$C$8:$Dr$71")),'CA SIMD dist data'!$M28+VLOOKUP("Female",$I$2:$J$3,2,0),'CA SIMD dist data'!X$15+VLOOKUP($C$3,$E$2:$G$13,3,0))+INDEX(INDIRECT(CONCATENATE("'LA SIMD 10 ",$C$1,"'!$C$8:$Dr$71")),'CA SIMD dist data'!$M28+VLOOKUP("Male",$I$2:$J$3,2,0),'CA SIMD dist data'!X$15+VLOOKUP($C$3,$E$2:$G$13,3,0)),INDEX(INDIRECT(CONCATENATE("'LA SIMD 10 ",$C$1,"'!$C$8:$Dr$71")),'CA SIMD dist data'!$M28+VLOOKUP($C$2,$I$2:$J$3,2,0),'CA SIMD dist data'!X$15+VLOOKUP($C$3,$E$2:$G$13,3,0))) -> 11501 | Z28: Falkirk | AA28: 0.02457636629 | AB28: 0.01101688773 | AC28: 0.01948075861 | AD28: 0.004751238716 | AE28: 0.008903575198 | AF28: -0.004885381436 | AG28: -0.0142296369 | AH28: -0.03595758545 | AI28: -0.01828257717 | AJ28: -0.03320443847
A29: Fife | B29: 25641 | C29: 46150 | D29: 40274 | E29: 34424 | F29: 40513 | G29: 37585 | H29: 31585 | I29: 32699 | J29: 42267 | K29: 39192 | M29: 14 | N29: Fife | O29: =IF($C$2="Both",INDEX(INDIRECT(CONCATENATE("'LA SIMD 10 ",$C$1,"'!$C$8:$Dr$71")),'CA SIMD dist data'!$M29+VLOOKUP("Female",$I$2:$J$3,2,0),'CA SIMD dist data'!O$15+VLOOKUP($C$3,$E$2:$G$13,3,0))+INDEX(INDIRECT(CONCATENATE("'LA SIMD 10 ",$C$1,"'!$C$8:$Dr$71")),'CA SIMD dist data'!$M29+VLOOKUP("Male",$I$2:$J$3,2,0),'CA SIMD dist data'!O$15+VLOOKUP($C$3,$E$2:$G$13,3,0)),INDEX(INDIRECT(CONCATENATE("'LA SIMD 10 ",$C$1,"'!$C$8:$Dr$71")),'CA SIMD dist data'!$M29+VLOOKUP($C$2,$I$2:$J$3,2,0),'CA SIMD dist data'!O$15+VLOOKUP($C$3,$E$2:$G$13,3,0))) -> 27218 | P29: =IF($C$2="Both",INDEX(INDIRECT(CONCATENATE("'LA SIMD 10 ",$C$1,"'!$C$8:$Dr$71")),'CA SIMD dist data'!$M29+VLOOKUP("Female",$I$2:$J$3,2,0),'CA SIMD dist data'!P$15+VLOOKUP($C$3,$E$2:$G$13,3,0))+INDEX(INDIRECT(CONCATENATE("'LA SIMD 10 ",$C$1,"'!$C$8:$Dr$71")),'CA SIMD dist data'!$M29+VLOOKUP("Male",$I$2:$J$3,2,0),'CA SIMD dist data'!P$15+VLOOKUP($C$3,$E$2:$G$13,3,0)),INDEX(INDIRECT(CONCATENATE("'LA SIMD 10 ",$C$1,"'!$C$8:$Dr$71")),'CA SIMD dist data'!$M29+VLOOKUP($C$2,$I$2:$J$3,2,0),'CA SIMD dist data'!P$15+VLOOKUP($C$3,$E$2:$G$13,3,0))) -> 48183 | Q29: =IF($C$2="Both",INDEX(INDIRECT(CONCATENATE("'LA SIMD 10 ",$C$1,"'!$C$8:$Dr$71")),'CA SIMD dist data'!$M29+VLOOKUP("Female",$I$2:$J$3,2,0),'CA SIMD dist data'!Q$15+VLOOKUP($C$3,$E$2:$G$13,3,0))+INDEX(INDIRECT(CONCATENATE("'LA SIMD 10 ",$C$1,"'!$C$8:$Dr$71")),'CA SIMD dist data'!$M29+VLOOKUP("Male",$I$2:$J$3,2,0),'CA SIMD dist data'!Q$15+VLOOKUP($C$3,$E$2:$G$13,3,0)),INDEX(INDIRECT(CONCATENATE("'LA SIMD 10 ",$C$1,"'!$C$8:$Dr$71")),'CA SIMD dist data'!$M29+VLOOKUP($C$2,$I$2:$J$3,2,0),'CA SIMD dist data'!Q$15+VLOOKUP($C$3,$E$2:$G$13,3,0))) -> 41339 | R29: =IF($C$2="Both",INDEX(INDIRECT(CONCATENATE("'LA SIMD 10 ",$C$1,"'!$C$8:$Dr$71")),'CA SIMD dist data'!$M29+VLOOKUP("Female",$I$2:$J$3,2,0),'CA SIMD dist data'!R$15+VLOOKUP($C$3,$E$2:$G$13,3,0))+INDEX(INDIRECT(CONCATENATE("'LA SIMD 10 ",$C$1,"'!$C$8:$Dr$71")),'CA SIMD dist data'!$M29+VLOOKUP("Male",$I$2:$J$3,2,0),'CA SIMD dist data'!R$15+VLOOKUP($C$3,$E$2:$G$13,3,0)),INDEX(INDIRECT(CONCATENATE("'LA SIMD 10 ",$C$1,"'!$C$8:$Dr$71")),'CA SIMD dist data'!$M29+VLOOKUP($C$2,$I$2:$J$3,2,0),'CA SIMD dist data'!R$15+VLOOKUP($C$3,$E$2:$G$13,3,0))) -> 34462 | S29: =IF($C$2="Both",INDEX(INDIRECT(CONCATENATE("'LA SIMD 10 ",$C$1,"'!$C$8:$Dr$71")),'CA SIMD dist data'!$M29+VLOOKUP("Female",$I$2:$J$3,2,0),'CA SIMD dist data'!S$15+VLOOKUP($C$3,$E$2:$G$13,3,0))+INDEX(INDIRECT(CONCATENATE("'LA SIMD 10 ",$C$1,"'!$C$8:$Dr$71")),'CA SIMD dist data'!$M29+VLOOKUP("Male",$I$2:$J$3,2,0),'CA SIMD dist data'!S$15+VLOOKUP($C$3,$E$2:$G$13,3,0)),INDEX(INDIRECT(CONCATENATE("'LA SIMD 10 ",$C$1,"'!$C$8:$Dr$71")),'CA SIMD dist data'!$M29+VLOOKUP($C$2,$I$2:$J$3,2,0),'CA SIMD dist data'!S$15+VLOOKUP($C$3,$E$2:$G$13,3,0))) -> 41189 | T29: =IF($C$2="Both",INDEX(INDIRECT(CONCATENATE("'LA SIMD 10 ",$C$1,"'!$C$8:$Dr$71")),'CA SIMD dist data'!$M29+VLOOKUP("Female",$I$2:$J$3,2,0),'CA SIMD dist data'!T$15+VLOOKUP($C$3,$E$2:$G$13,3,0))+INDEX(INDIRECT(CONCATENATE("'LA SIMD 10 ",$C$1,"'!$C$8:$Dr$71")),'CA SIMD dist data'!$M29+VLOOKUP("Male",$I$2:$J$3,2,0),'CA SIMD dist data'!T$15+VLOOKUP($C$3,$E$2:$G$13,3,0)),INDEX(INDIRECT(CONCATENATE("'LA SIMD 10 ",$C$1,"'!$C$8:$Dr$71")),'CA SIMD dist data'!$M29+VLOOKUP($C$2,$I$2:$J$3,2,0),'CA SIMD dist data'!T$15+VLOOKUP($C$3,$E$2:$G$13,3,0))) -> 37038 | U29: =IF($C$2="Both",INDEX(INDIRECT(CONCATENATE("'LA SIMD 10 ",$C$1,"'!$C$8:$Dr$71")),'CA SIMD dist data'!$M29+VLOOKUP("Female",$I$2:$J$3,2,0),'CA SIMD dist data'!U$15+VLOOKUP($C$3,$E$2:$G$13,3,0))+INDEX(INDIRECT(CONCATENATE("'LA SIMD 10 ",$C$1,"'!$C$8:$Dr$71")),'CA SIMD dist data'!$M29+VLOOKUP("Male",$I$2:$J$3,2,0),'CA SIMD dist data'!U$15+VLOOKUP($C$3,$E$2:$G$13,3,0)),INDEX(INDIRECT(CONCATENATE("'LA SIMD 10 ",$C$1,"'!$C$8:$Dr$71")),'CA SIMD dist data'!$M29+VLOOKUP($C$2,$I$2:$J$3,2,0),'CA SIMD dist data'!U$15+VLOOKUP($C$3,$E$2:$G$13,3,0))) -> 30766 | V29: =IF($C$2="Both",INDEX(INDIRECT(CONCATENATE("'LA SIMD 10 ",$C$1,"'!$C$8:$Dr$71")),'CA SIMD dist data'!$M29+VLOOKUP("Female",$I$2:$J$3,2,0),'CA SIMD dist data'!V$15+VLOOKUP($C$3,$E$2:$G$13,3,0))+INDEX(INDIRECT(CONCATENATE("'LA SIMD 10 ",$C$1,"'!$C$8:$Dr$71")),'CA SIMD dist data'!$M29+VLOOKUP("Male",$I$2:$J$3,2,0),'CA SIMD dist data'!V$15+VLOOKUP($C$3,$E$2:$G$13,3,0)),INDEX(INDIRECT(CONCATENATE("'LA SIMD 10 ",$C$1,"'!$C$8:$Dr$71")),'CA SIMD dist data'!$M29+VLOOKUP($C$2,$I$2:$J$3,2,0),'CA SIMD dist data'!V$15+VLOOKUP($C$3,$E$2:$G$13,3,0))) -> 32165 | W29: =IF($C$2="Both",INDEX(INDIRECT(CONCATENATE("'LA SIMD 10 ",$C$1,"'!$C$8:$Dr$71")),'CA SIMD dist data'!$M29+VLOOKUP("Female",$I$2:$J$3,2,0),'CA SIMD dist data'!W$15+VLOOKUP($C$3,$E$2:$G$13,3,0))+INDEX(INDIRECT(CONCATENATE("'LA SIMD 10 ",$C$1,"'!$C$8:$Dr$71")),'CA SIMD dist data'!$M29+VLOOKUP("Male",$I$2:$J$3,2,0),'CA SIMD dist data'!W$15+VLOOKUP($C$3,$E$2:$G$13,3,0)),INDEX(INDIRECT(CONCATENATE("'LA SIMD 10 ",$C$1,"'!$C$8:$Dr$71")),'CA SIMD dist data'!$M29+VLOOKUP($C$2,$I$2:$J$3,2,0),'CA SIMD dist data'!W$15+VLOOKUP($C$3,$E$2:$G$13,3,0))) -> 41768 | X29: =IF($C$2="Both",INDEX(INDIRECT(CONCATENATE("'LA SIMD 10 ",$C$1,"'!$C$8:$Dr$71")),'CA SIMD dist data'!$M29+VLOOKUP("Female",$I$2:$J$3,2,0),'CA SIMD dist data'!X$15+VLOOKUP($C$3,$E$2:$G$13,3,0))+INDEX(INDIRECT(CONCATENATE("'LA SIMD 10 ",$C$1,"'!$C$8:$Dr$71")),'CA SIMD dist data'!$M29+VLOOKUP("Male",$I$2:$J$3,2,0),'CA SIMD dist data'!X$15+VLOOKUP($C$3,$E$2:$G$13,3,0)),INDEX(INDIRECT(CONCATENATE("'LA SIMD 10 ",$C$1,"'!$C$8:$Dr$71")),'CA SIMD dist data'!$M29+VLOOKUP($C$2,$I$2:$J$3,2,0),'CA SIMD dist data'!X$15+VLOOKUP($C$3,$E$2:$G$13,3,0))) -> 37897 | Z29: Fife | AA29: 0.0615030615 | AB29: 0.04405200433 | AC29: 0.02644385956 | AD29: 0.001103881013 | AE29: 0.01668600202 | AF29: -0.01455367833 | AG29: -0.02593003008 | AH29: -0.01633077464 | AI29: -0.01180590058 | AJ29: -0.03304245764
A30: Glasgow City | B30: 195526 | C30: 94472 | D30: 51251 | E30: 47494 | F30: 50736 | G30: 40449 | H30: 28349 | I30: 44060 | J30: 35975 | K30: 26758 | M30: 15 | N30: Glasgow City | O30: =IF($C$2="Both",INDEX(INDIRECT(CONCATENATE("'LA SIMD 10 ",$C$1,"'!$C$8:$Dr$71")),'CA SIMD dist data'!$M30+VLOOKUP("Female",$I$2:$J$3,2,0),'CA SIMD dist data'!O$15+VLOOKUP($C$3,$E$2:$G$13,3,0))+INDEX(INDIRECT(CONCATENATE("'LA SIMD 10 ",$C$1,"'!$C$8:$Dr$71")),'CA SIMD dist data'!$M30+VLOOKUP("Male",$I$2:$J$3,2,0),'CA SIMD dist data'!O$15+VLOOKUP($C$3,$E$2:$G$13,3,0)),INDEX(INDIRECT(CONCATENATE("'LA SIMD 10 ",$C$1,"'!$C$8:$Dr$71")),'CA SIMD dist data'!$M30+VLOOKUP($C$2,$I$2:$J$3,2,0),'CA SIMD dist data'!O$15+VLOOKUP($C$3,$E$2:$G$13,3,0))) -> 207279 | P30: =IF($C$2="Both",INDEX(INDIRECT(CONCATENATE("'LA SIMD 10 ",$C$1,"'!$C$8:$Dr$71")),'CA SIMD dist data'!$M30+VLOOKUP("Female",$I$2:$J$3,2,0),'CA SIMD dist data'!P$15+VLOOKUP($C$3,$E$2:$G$13,3,0))+INDEX(INDIRECT(CONCATENATE("'LA SIMD 10 ",$C$1,"'!$C$8:$Dr$71")),'CA SIMD dist data'!$M30+VLOOKUP("Male",$I$2:$J$3,2,0),'CA SIMD dist data'!P$15+VLOOKUP($C$3,$E$2:$G$13,3,0)),INDEX(INDIRECT(CONCATENATE("'LA SIMD 10 ",$C$1,"'!$C$8:$Dr$71")),'CA SIMD dist data'!$M30+VLOOKUP($C$2,$I$2:$J$3,2,0),'CA SIMD dist data'!P$15+VLOOKUP($C$3,$E$2:$G$13,3,0))) -> 99099 | Q30: =IF($C$2="Both",INDEX(INDIRECT(CONCATENATE("'LA SIMD 10 ",$C$1,"'!$C$8:$Dr$71")),'CA SIMD dist data'!$M30+VLOOKUP("Female",$I$2:$J$3,2,0),'CA SIMD dist data'!Q$15+VLOOKUP($C$3,$E$2:$G$13,3,0))+INDEX(INDIRECT(CONCATENATE("'LA SIMD 10 ",$C$1,"'!$C$8:$Dr$71")),'CA SIMD dist data'!$M30+VLOOKUP("Male",$I$2:$J$3,2,0),'CA SIMD dist data'!Q$15+VLOOKUP($C$3,$E$2:$G$13,3,0)),INDEX(INDIRECT(CONCATENATE("'LA SIMD 10 ",$C$1,"'!$C$8:$Dr$71")),'CA SIMD dist data'!$M30+VLOOKUP($C$2,$I$2:$J$3,2,0),'CA SIMD dist data'!Q$15+VLOOKUP($C$3,$E$2:$G$13,3,0))) -> 51303 | R30: =IF($C$2="Both",INDEX(INDIRECT(CONCATENATE("'LA SIMD 10 ",$C$1,"'!$C$8:$Dr$71")),'CA SIMD dist data'!$M30+VLOOKUP("Female",$I$2:$J$3,2,0),'CA SIMD dist data'!R$15+VLOOKUP($C$3,$E$2:$G$13,3,0))+INDEX(INDIRECT(CONCATENATE("'LA SIMD 10 ",$C$1,"'!$C$8:$Dr$71")),'CA SIMD dist data'!$M30+VLOOKUP("Male",$I$2:$J$3,2,0),'CA SIMD dist data'!R$15+VLOOKUP($C$3,$E$2:$G$13,3,0)),INDEX(INDIRECT(CONCATENATE("'LA SIMD 10 ",$C$1,"'!$C$8:$Dr$71")),'CA SIMD dist data'!$M30+VLOOKUP($C$2,$I$2:$J$3,2,0),'CA SIMD dist data'!R$15+VLOOKUP($C$3,$E$2:$G$13,3,0))) -> 46392 | S30: =IF($C$2="Both",INDEX(INDIRECT(CONCATENATE("'LA SIMD 10 ",$C$1,"'!$C$8:$Dr$71")),'CA SIMD dist data'!$M30+VLOOKUP("Female",$I$2:$J$3,2,0),'CA SIMD dist data'!S$15+VLOOKUP($C$3,$E$2:$G$13,3,0))+INDEX(INDIRECT(CONCATENATE("'LA SIMD 10 ",$C$1,"'!$C$8:$Dr$71")),'CA SIMD dist data'!$M30+VLOOKUP("Male",$I$2:$J$3,2,0),'CA SIMD dist data'!S$15+VLOOKUP($C$3,$E$2:$G$13,3,0)),INDEX(INDIRECT(CONCATENATE("'LA SIMD 10 ",$C$1,"'!$C$8:$Dr$71")),'CA SIMD dist data'!$M30+VLOOKUP($C$2,$I$2:$J$3,2,0),'CA SIMD dist data'!S$15+VLOOKUP($C$3,$E$2:$G$13,3,0))) -> 50162 | T30: =IF($C$2="Both",INDEX(INDIRECT(CONCATENATE("'LA SIMD 10 ",$C$1,"'!$C$8:$Dr$71")),'CA SIMD dist data'!$M30+VLOOKUP("Female",$I$2:$J$3,2,0),'CA SIMD dist data'!T$15+VLOOKUP($C$3,$E$2:$G$13,3,0))+INDEX(INDIRECT(CONCATENATE("'LA SIMD 10 ",$C$1,"'!$C$8:$Dr$71")),'CA SIMD dist data'!$M30+VLOOKUP("Male",$I$2:$J$3,2,0),'CA SIMD dist data'!T$15+VLOOKUP($C$3,$E$2:$G$13,3,0)),INDEX(INDIRECT(CONCATENATE("'LA SIMD 10 ",$C$1,"'!$C$8:$Dr$71")),'CA SIMD dist data'!$M30+VLOOKUP($C$2,$I$2:$J$3,2,0),'CA SIMD dist data'!T$15+VLOOKUP($C$3,$E$2:$G$13,3,0))) -> 40037 | U30: =IF($C$2="Both",INDEX(INDIRECT(CONCATENATE("'LA SIMD 10 ",$C$1,"'!$C$8:$Dr$71")),'CA SIMD dist data'!$M30+VLOOKUP("Female",$I$2:$J$3,2,0),'CA SIMD dist data'!U$15+VLOOKUP($C$3,$E$2:$G$13,3,0))+INDEX(INDIRECT(CONCATENATE("'LA SIMD 10 ",$C$1,"'!$C$8:$Dr$71")),'CA SIMD dist data'!$M30+VLOOKUP("Male",$I$2:$J$3,2,0),'CA SIMD dist data'!U$15+VLOOKUP($C$3,$E$2:$G$13,3,0)),INDEX(INDIRECT(CONCATENATE("'LA SIMD 10 ",$C$1,"'!$C$8:$Dr$71")),'CA SIMD dist data'!$M30+VLOOKUP($C$2,$I$2:$J$3,2,0),'CA SIMD dist data'!U$15+VLOOKUP($C$3,$E$2:$G$13,3,0))) -> 28014 | V30: =IF($C$2="Both",INDEX(INDIRECT(CONCATENATE("'LA SIMD 10 ",$C$1,"'!$C$8:$Dr$71")),'CA SIMD dist data'!$M30+VLOOKUP("Female",$I$2:$J$3,2,0),'CA SIMD dist data'!V$15+VLOOKUP($C$3,$E$2:$G$13,3,0))+INDEX(INDIRECT(CONCATENATE("'LA SIMD 10 ",$C$1,"'!$C$8:$Dr$71")),'CA SIMD dist data'!$M30+VLOOKUP("Male",$I$2:$J$3,2,0),'CA SIMD dist data'!V$15+VLOOKUP($C$3,$E$2:$G$13,3,0)),INDEX(INDIRECT(CONCATENATE("'LA SIMD 10 ",$C$1,"'!$C$8:$Dr$71")),'CA SIMD dist data'!$M30+VLOOKUP($C$2,$I$2:$J$3,2,0),'CA SIMD dist data'!V$15+VLOOKUP($C$3,$E$2:$G$13,3,0))) -> 42626 | W30: =IF($C$2="Both",INDEX(INDIRECT(CONCATENATE("'LA SIMD 10 ",$C$1,"'!$C$8:$Dr$71")),'CA SIMD dist data'!$M30+VLOOKUP("Female",$I$2:$J$3,2,0),'CA SIMD dist data'!W$15+VLOOKUP($C$3,$E$2:$G$13,3,0))+INDEX(INDIRECT(CONCATENATE("'LA SIMD 10 ",$C$1,"'!$C$8:$Dr$71")),'CA SIMD dist data'!$M30+VLOOKUP("Male",$I$2:$J$3,2,0),'CA SIMD dist data'!W$15+VLOOKUP($C$3,$E$2:$G$13,3,0)),INDEX(INDIRECT(CONCATENATE("'LA SIMD 10 ",$C$1,"'!$C$8:$Dr$71")),'CA SIMD dist data'!$M30+VLOOKUP($C$2,$I$2:$J$3,2,0),'CA SIMD dist data'!W$15+VLOOKUP($C$3,$E$2:$G$13,3,0))) -> 34944 | X30: =IF($C$2="Both",INDEX(INDIRECT(CONCATENATE("'LA SIMD 10 ",$C$1,"'!$C$8:$Dr$71")),'CA SIMD dist data'!$M30+VLOOKUP("Female",$I$2:$J$3,2,0),'CA SIMD dist data'!X$15+VLOOKUP($C$3,$E$2:$G$13,3,0))+INDEX(INDIRECT(CONCATENATE("'LA SIMD 10 ",$C$1,"'!$C$8:$Dr$71")),'CA SIMD dist data'!$M30+VLOOKUP("Male",$I$2:$J$3,2,0),'CA SIMD dist data'!X$15+VLOOKUP($C$3,$E$2:$G$13,3,0)),INDEX(INDIRECT(CONCATENATE("'LA SIMD 10 ",$C$1,"'!$C$8:$Dr$71")),'CA SIMD dist data'!$M30+VLOOKUP($C$2,$I$2:$J$3,2,0),'CA SIMD dist data'!X$15+VLOOKUP($C$3,$E$2:$G$13,3,0))) -> 25832 | Z30: Glasgow City | AA30: 0.06010965294 | AB30: 0.04897747481 | AC30: 0.001014614349 | AD30: -0.0232029309 | AE30: -0.01131346578 | AF30: -0.0101856659 | AG30: -0.01181699531 | AH30: -0.03254652746 | AI30: -0.02865879083 | AJ30: -0.03460647283
A31: Highland | B31: 6481 | C31: 10241 | D31: 15513 | E31: 26143 | F31: 36291 | G31: 36611 | H31: 46010 | I31: 33161 | J31: 17736 | K31: 6583 | M31: 16 | N31: Highland | O31: =IF($C$2="Both",INDEX(INDIRECT(CONCATENATE("'LA SIMD 10 ",$C$1,"'!$C$8:$Dr$71")),'CA SIMD dist data'!$M31+VLOOKUP("Female",$I$2:$J$3,2,0),'CA SIMD dist data'!O$15+VLOOKUP($C$3,$E$2:$G$13,3,0))+INDEX(INDIRECT(CONCATENATE("'LA SIMD 10 ",$C$1,"'!$C$8:$Dr$71")),'CA SIMD dist data'!$M31+VLOOKUP("Male",$I$2:$J$3,2,0),'CA SIMD dist data'!O$15+VLOOKUP($C$3,$E$2:$G$13,3,0)),INDEX(INDIRECT(CONCATENATE("'LA SIMD 10 ",$C$1,"'!$C$8:$Dr$71")),'CA SIMD dist data'!$M31+VLOOKUP($C$2,$I$2:$J$3,2,0),'CA SIMD dist data'!O$15+VLOOKUP($C$3,$E$2:$G$13,3,0))) -> 6675 | P31: =IF($C$2="Both",INDEX(INDIRECT(CONCATENATE("'LA SIMD 10 ",$C$1,"'!$C$8:$Dr$71")),'CA SIMD dist data'!$M31+VLOOKUP("Female",$I$2:$J$3,2,0),'CA SIMD dist data'!P$15+VLOOKUP($C$3,$E$2:$G$13,3,0))+INDEX(INDIRECT(CONCATENATE("'LA SIMD 10 ",$C$1,"'!$C$8:$Dr$71")),'CA SIMD dist data'!$M31+VLOOKUP("Male",$I$2:$J$3,2,0),'CA SIMD dist data'!P$15+VLOOKUP($C$3,$E$2:$G$13,3,0)),INDEX(INDIRECT(CONCATENATE("'LA SIMD 10 ",$C$1,"'!$C$8:$Dr$71")),'CA SIMD dist data'!$M31+VLOOKUP($C$2,$I$2:$J$3,2,0),'CA SIMD dist data'!P$15+VLOOKUP($C$3,$E$2:$G$13,3,0))) -> 10575 | Q31: =IF($C$2="Both",INDEX(INDIRECT(CONCATENATE("'LA SIMD 10 ",$C$1,"'!$C$8:$Dr$71")),'CA SIMD dist data'!$M31+VLOOKUP("Female",$I$2:$J$3,2,0),'CA SIMD dist data'!Q$15+VLOOKUP($C$3,$E$2:$G$13,3,0))+INDEX(INDIRECT(CONCATENATE("'LA SIMD 10 ",$C$1,"'!$C$8:$Dr$71")),'CA SIMD dist data'!$M31+VLOOKUP("Male",$I$2:$J$3,2,0),'CA SIMD dist data'!Q$15+VLOOKUP($C$3,$E$2:$G$13,3,0)),INDEX(INDIRECT(CONCATENATE("'LA SIMD 10 ",$C$1,"'!$C$8:$Dr$71")),'CA SIMD dist data'!$M31+VLOOKUP($C$2,$I$2:$J$3,2,0),'CA SIMD dist data'!Q$15+VLOOKUP($C$3,$E$2:$G$13,3,0))) -> 15693 | R31: =IF($C$2="Both",INDEX(INDIRECT(CONCATENATE("'LA SIMD 10 ",$C$1,"'!$C$8:$Dr$71")),'CA SIMD dist data'!$M31+VLOOKUP("Female",$I$2:$J$3,2,0),'CA SIMD dist data'!R$15+VLOOKUP($C$3,$E$2:$G$13,3,0))+INDEX(INDIRECT(CONCATENATE("'LA SIMD 10 ",$C$1,"'!$C$8:$Dr$71")),'CA SIMD dist data'!$M31+VLOOKUP("Male",$I$2:$J$3,2,0),'CA SIMD dist data'!R$15+VLOOKUP($C$3,$E$2:$G$13,3,0)),INDEX(INDIRECT(CONCATENATE("'LA SIMD 10 ",$C$1,"'!$C$8:$Dr$71")),'CA SIMD dist data'!$M31+VLOOKUP($C$2,$I$2:$J$3,2,0),'CA SIMD dist data'!R$15+VLOOKUP($C$3,$E$2:$G$13,3,0))) -> 26229 | S31: =IF($C$2="Both",INDEX(INDIRECT(CONCATENATE("'LA SIMD 10 ",$C$1,"'!$C$8:$Dr$71")),'CA SIMD dist data'!$M31+VLOOKUP("Female",$I$2:$J$3,2,0),'CA SIMD dist data'!S$15+VLOOKUP($C$3,$E$2:$G$13,3,0))+INDEX(INDIRECT(CONCATENATE("'LA SIMD 10 ",$C$1,"'!$C$8:$Dr$71")),'CA SIMD dist data'!$M31+VLOOKUP("Male",$I$2:$J$3,2,0),'CA SIMD dist data'!S$15+VLOOKUP($C$3,$E$2:$G$13,3,0)),INDEX(INDIRECT(CONCATENATE("'LA SIMD 10 ",$C$1,"'!$C$8:$Dr$71")),'CA SIMD dist data'!$M31+VLOOKUP($C$2,$I$2:$J$3,2,0),'CA SIMD dist data'!S$15+VLOOKUP($C$3,$E$2:$G$13,3,0))) -> 35466 | T31: =IF($C$2="Both",INDEX(INDIRECT(CONCATENATE("'LA SIMD 10 ",$C$1,"'!$C$8:$Dr$71")),'CA SIMD dist data'!$M31+VLOOKUP("Female",$I$2:$J$3,2,0),'CA SIMD dist data'!T$15+VLOOKUP($C$3,$E$2:$G$13,3,0))+INDEX(INDIRECT(CONCATENATE("'LA SIMD 10 ",$C$1,"'!$C$8:$Dr$71")),'CA SIMD dist data'!$M31+VLOOKUP("Male",$I$2:$J$3,2,0),'CA SIMD dist data'!T$15+VLOOKUP($C$3,$E$2:$G$13,3,0)),INDEX(INDIRECT(CONCATENATE("'LA SIMD 10 ",$C$1,"'!$C$8:$Dr$71")),'CA SIMD dist data'!$M31+VLOOKUP($C$2,$I$2:$J$3,2,0),'CA SIMD dist data'!T$15+VLOOKUP($C$3,$E$2:$G$13,3,0))) -> 35945 | U31: =IF($C$2="Both",INDEX(INDIRECT(CONCATENATE("'LA SIMD 10 ",$C$1,"'!$C$8:$Dr$71")),'CA SIMD dist data'!$M31+VLOOKUP("Female",$I$2:$J$3,2,0),'CA SIMD dist data'!U$15+VLOOKUP($C$3,$E$2:$G$13,3,0))+INDEX(INDIRECT(CONCATENATE("'LA SIMD 10 ",$C$1,"'!$C$8:$Dr$71")),'CA SIMD dist data'!$M31+VLOOKUP("Male",$I$2:$J$3,2,0),'CA SIMD dist data'!U$15+VLOOKUP($C$3,$E$2:$G$13,3,0)),INDEX(INDIRECT(CONCATENATE("'LA SIMD 10 ",$C$1,"'!$C$8:$Dr$71")),'CA SIMD dist data'!$M31+VLOOKUP($C$2,$I$2:$J$3,2,0),'CA SIMD dist data'!U$15+VLOOKUP($C$3,$E$2:$G$13,3,0))) -> 44587 | V31: =IF($C$2="Both",INDEX(INDIRECT(CONCATENATE("'LA SIMD 10 ",$C$1,"'!$C$8:$Dr$71")),'CA SIMD dist data'!$M31+VLOOKUP("Female",$I$2:$J$3,2,0),'CA SIMD dist data'!V$15+VLOOKUP($C$3,$E$2:$G$13,3,0))+INDEX(INDIRECT(CONCATENATE("'LA SIMD 10 ",$C$1,"'!$C$8:$Dr$71")),'CA SIMD dist data'!$M31+VLOOKUP("Male",$I$2:$J$3,2,0),'CA SIMD dist data'!V$15+VLOOKUP($C$3,$E$2:$G$13,3,0)),INDEX(INDIRECT(CONCATENATE("'LA SIMD 10 ",$C$1,"'!$C$8:$Dr$71")),'CA SIMD dist data'!$M31+VLOOKUP($C$2,$I$2:$J$3,2,0),'CA SIMD dist data'!V$15+VLOOKUP($C$3,$E$2:$G$13,3,0))) -> 31874 | W31: =IF($C$2="Both",INDEX(INDIRECT(CONCATENATE("'LA SIMD 10 ",$C$1,"'!$C$8:$Dr$71")),'CA SIMD dist data'!$M31+VLOOKUP("Female",$I$2:$J$3,2,0),'CA SIMD dist data'!W$15+VLOOKUP($C$3,$E$2:$G$13,3,0))+INDEX(INDIRECT(CONCATENATE("'LA SIMD 10 ",$C$1,"'!$C$8:$Dr$71")),'CA SIMD dist data'!$M31+VLOOKUP("Male",$I$2:$J$3,2,0),'CA SIMD dist data'!W$15+VLOOKUP($C$3,$E$2:$G$13,3,0)),INDEX(INDIRECT(CONCATENATE("'LA SIMD 10 ",$C$1,"'!$C$8:$Dr$71")),'CA SIMD dist data'!$M31+VLOOKUP($C$2,$I$2:$J$3,2,0),'CA SIMD dist data'!W$15+VLOOKUP($C$3,$E$2:$G$13,3,0))) -> 17399 | X31: =IF($C$2="Both",INDEX(INDIRECT(CONCATENATE("'LA SIMD 10 ",$C$1,"'!$C$8:$Dr$71")),'CA SIMD dist data'!$M31+VLOOKUP("Female",$I$2:$J$3,2,0),'CA SIMD dist data'!X$15+VLOOKUP($C$3,$E$2:$G$13,3,0))+INDEX(INDIRECT(CONCATENATE("'LA SIMD 10 ",$C$1,"'!$C$8:$Dr$71")),'CA SIMD dist data'!$M31+VLOOKUP("Male",$I$2:$J$3,2,0),'CA SIMD dist data'!X$15+VLOOKUP($C$3,$E$2:$G$13,3,0)),INDEX(INDIRECT(CONCATENATE("'LA SIMD 10 ",$C$1,"'!$C$8:$Dr$71")),'CA SIMD dist data'!$M31+VLOOKUP($C$2,$I$2:$J$3,2,0),'CA SIMD dist data'!X$15+VLOOKUP($C$3,$E$2:$G$13,3,0))) -> 6549 | Z31: Highland | AA31: 0.02993365221 | AB31: 0.03261400254 | AC31: 0.01160317153 | AD31: 0.00328959951 | AE31: -0.02273290899 | AF31: -0.01819125399 | AG31: -0.03092805912 | AH31: -0.03881065107 | AI31: -0.01900090212 | AJ31: -0.005164818472
A32: Inverclyde | B32: 19773 | C32: 13720 | D32: 6028 | E32: 4147 | F32: 4887 | G32: 6912 | H32: 6807 | I32: 6169 | J32: 9445 | K32: 1272 | M32: 17 | N32: Inverclyde | O32: =IF($C$2="Both",INDEX(INDIRECT(CONCATENATE("'LA SIMD 10 ",$C$1,"'!$C$8:$Dr$71")),'CA SIMD dist data'!$M32+VLOOKUP("Female",$I$2:$J$3,2,0),'CA SIMD dist data'!O$15+VLOOKUP($C$3,$E$2:$G$13,3,0))+INDEX(INDIRECT(CONCATENATE("'LA SIMD 10 ",$C$1,"'!$C$8:$Dr$71")),'CA SIMD dist data'!$M32+VLOOKUP("Male",$I$2:$J$3,2,0),'CA SIMD dist data'!O$15+VLOOKUP($C$3,$E$2:$G$13,3,0)),INDEX(INDIRECT(CONCATENATE("'LA SIMD 10 ",$C$1,"'!$C$8:$Dr$71")),'CA SIMD dist data'!$M32+VLOOKUP($C$2,$I$2:$J$3,2,0),'CA SIMD dist data'!O$15+VLOOKUP($C$3,$E$2:$G$13,3,0))) -> 20221 | P32: =IF($C$2="Both",INDEX(INDIRECT(CONCATENATE("'LA SIMD 10 ",$C$1,"'!$C$8:$Dr$71")),'CA SIMD dist data'!$M32+VLOOKUP("Female",$I$2:$J$3,2,0),'CA SIMD dist data'!P$15+VLOOKUP($C$3,$E$2:$G$13,3,0))+INDEX(INDIRECT(CONCATENATE("'LA SIMD 10 ",$C$1,"'!$C$8:$Dr$71")),'CA SIMD dist data'!$M32+VLOOKUP("Male",$I$2:$J$3,2,0),'CA SIMD dist data'!P$15+VLOOKUP($C$3,$E$2:$G$13,3,0)),INDEX(INDIRECT(CONCATENATE("'LA SIMD 10 ",$C$1,"'!$C$8:$Dr$71")),'CA SIMD dist data'!$M32+VLOOKUP($C$2,$I$2:$J$3,2,0),'CA SIMD dist data'!P$15+VLOOKUP($C$3,$E$2:$G$13,3,0))) -> 14487 | Q32: =IF($C$2="Both",INDEX(INDIRECT(CONCATENATE("'LA SIMD 10 ",$C$1,"'!$C$8:$Dr$71")),'CA SIMD dist data'!$M32+VLOOKUP("Female",$I$2:$J$3,2,0),'CA SIMD dist data'!Q$15+VLOOKUP($C$3,$E$2:$G$13,3,0))+INDEX(INDIRECT(CONCATENATE("'LA SIMD 10 ",$C$1,"'!$C$8:$Dr$71")),'CA SIMD dist data'!$M32+VLOOKUP("Male",$I$2:$J$3,2,0),'CA SIMD dist data'!Q$15+VLOOKUP($C$3,$E$2:$G$13,3,0)),INDEX(INDIRECT(CONCATENATE("'LA SIMD 10 ",$C$1,"'!$C$8:$Dr$71")),'CA SIMD dist data'!$M32+VLOOKUP($C$2,$I$2:$J$3,2,0),'CA SIMD dist data'!Q$15+VLOOKUP($C$3,$E$2:$G$13,3,0))) -> 6338 | R32: =IF($C$2="Both",INDEX(INDIRECT(CONCATENATE("'LA SIMD 10 ",$C$1,"'!$C$8:$Dr$71")),'CA SIMD dist data'!$M32+VLOOKUP("Female",$I$2:$J$3,2,0),'CA SIMD dist data'!R$15+VLOOKUP($C$3,$E$2:$G$13,3,0))+INDEX(INDIRECT(CONCATENATE("'LA SIMD 10 ",$C$1,"'!$C$8:$Dr$71")),'CA SIMD dist data'!$M32+VLOOKUP("Male",$I$2:$J$3,2,0),'CA SIMD dist data'!R$15+VLOOKUP($C$3,$E$2:$G$13,3,0)),INDEX(INDIRECT(CONCATENATE("'LA SIMD 10 ",$C$1,"'!$C$8:$Dr$71")),'CA SIMD dist data'!$M32+VLOOKUP($C$2,$I$2:$J$3,2,0),'CA SIMD dist data'!R$15+VLOOKUP($C$3,$E$2:$G$13,3,0))) -> 4135 | S32: =IF($C$2="Both",INDEX(INDIRECT(CONCATENATE("'LA SIMD 10 ",$C$1,"'!$C$8:$Dr$71")),'CA SIMD dist data'!$M32+VLOOKUP("Female",$I$2:$J$3,2,0),'CA SIMD dist data'!S$15+VLOOKUP($C$3,$E$2:$G$13,3,0))+INDEX(INDIRECT(CONCATENATE("'LA SIMD 10 ",$C$1,"'!$C$8:$Dr$71")),'CA SIMD dist data'!$M32+VLOOKUP("Male",$I$2:$J$3,2,0),'CA SIMD dist data'!S$15+VLOOKUP($C$3,$E$2:$G$13,3,0)),INDEX(INDIRECT(CONCATENATE("'LA SIMD 10 ",$C$1,"'!$C$8:$Dr$71")),'CA SIMD dist data'!$M32+VLOOKUP($C$2,$I$2:$J$3,2,0),'CA SIMD dist data'!S$15+VLOOKUP($C$3,$E$2:$G$13,3,0))) -> 4738 | T32: =IF($C$2="Both",INDEX(INDIRECT(CONCATENATE("'LA SIMD 10 ",$C$1,"'!$C$8:$Dr$71")),'CA SIMD dist data'!$M32+VLOOKUP("Female",$I$2:$J$3,2,0),'CA SIMD dist data'!T$15+VLOOKUP($C$3,$E$2:$G$13,3,0))+INDEX(INDIRECT(CONCATENATE("'LA SIMD 10 ",$C$1,"'!$C$8:$Dr$71")),'CA SIMD dist data'!$M32+VLOOKUP("Male",$I$2:$J$3,2,0),'CA SIMD dist data'!T$15+VLOOKUP($C$3,$E$2:$G$13,3,0)),INDEX(INDIRECT(CONCATENATE("'LA SIMD 10 ",$C$1,"'!$C$8:$Dr$71")),'CA SIMD dist data'!$M32+VLOOKUP($C$2,$I$2:$J$3,2,0),'CA SIMD dist data'!T$15+VLOOKUP($C$3,$E$2:$G$13,3,0))) -> 6859 | U32: =IF($C$2="Both",INDEX(INDIRECT(CONCATENATE("'LA SIMD 10 ",$C$1,"'!$C$8:$Dr$71")),'CA SIMD dist data'!$M32+VLOOKUP("Female",$I$2:$J$3,2,0),'CA SIMD dist data'!U$15+VLOOKUP($C$3,$E$2:$G$13,3,0))+INDEX(INDIRECT(CONCATENATE("'LA SIMD 10 ",$C$1,"'!$C$8:$Dr$71")),'CA SIMD dist data'!$M32+VLOOKUP("Male",$I$2:$J$3,2,0),'CA SIMD dist data'!U$15+VLOOKUP($C$3,$E$2:$G$13,3,0)),INDEX(INDIRECT(CONCATENATE("'LA SIMD 10 ",$C$1,"'!$C$8:$Dr$71")),'CA SIMD dist data'!$M32+VLOOKUP($C$2,$I$2:$J$3,2,0),'CA SIMD dist data'!U$15+VLOOKUP($C$3,$E$2:$G$13,3,0))) -> 6755 | V32: =IF($C$2="Both",INDEX(INDIRECT(CONCATENATE("'LA SIMD 10 ",$C$1,"'!$C$8:$Dr$71")),'CA SIMD dist data'!$M32+VLOOKUP("Female",$I$2:$J$3,2,0),'CA SIMD dist data'!V$15+VLOOKUP($C$3,$E$2:$G$13,3,0))+INDEX(INDIRECT(CONCATENATE("'LA SIMD 10 ",$C$1,"'!$C$8:$Dr$71")),'CA SIMD dist data'!$M32+VLOOKUP("Male",$I$2:$J$3,2,0),'CA SIMD dist data'!V$15+VLOOKUP($C$3,$E$2:$G$13,3,0)),INDEX(INDIRECT(CONCATENATE("'LA SIMD 10 ",$C$1,"'!$C$8:$Dr$71")),'CA SIMD dist data'!$M32+VLOOKUP($C$2,$I$2:$J$3,2,0),'CA SIMD dist data'!V$15+VLOOKUP($C$3,$E$2:$G$13,3,0))) -> 6154 | W32: =IF($C$2="Both",INDEX(INDIRECT(CONCATENATE("'LA SIMD 10 ",$C$1,"'!$C$8:$Dr$71")),'CA SIMD dist data'!$M32+VLOOKUP("Female",$I$2:$J$3,2,0),'CA SIMD dist data'!W$15+VLOOKUP($C$3,$E$2:$G$13,3,0))+INDEX(INDIRECT(CONCATENATE("'LA SIMD 10 ",$C$1,"'!$C$8:$Dr$71")),'CA SIMD dist data'!$M32+VLOOKUP("Male",$I$2:$J$3,2,0),'CA SIMD dist data'!W$15+VLOOKUP($C$3,$E$2:$G$13,3,0)),INDEX(INDIRECT(CONCATENATE("'LA SIMD 10 ",$C$1,"'!$C$8:$Dr$71")),'CA SIMD dist data'!$M32+VLOOKUP($C$2,$I$2:$J$3,2,0),'CA SIMD dist data'!W$15+VLOOKUP($C$3,$E$2:$G$13,3,0))) -> 9422 | X32: =IF($C$2="Both",INDEX(INDIRECT(CONCATENATE("'LA SIMD 10 ",$C$1,"'!$C$8:$Dr$71")),'CA SIMD dist data'!$M32+VLOOKUP("Female",$I$2:$J$3,2,0),'CA SIMD dist data'!X$15+VLOOKUP($C$3,$E$2:$G$13,3,0))+INDEX(INDIRECT(CONCATENATE("'LA SIMD 10 ",$C$1,"'!$C$8:$Dr$71")),'CA SIMD dist data'!$M32+VLOOKUP("Male",$I$2:$J$3,2,0),'CA SIMD dist data'!X$15+VLOOKUP($C$3,$E$2:$G$13,3,0)),INDEX(INDIRECT(CONCATENATE("'LA SIMD 10 ",$C$1,"'!$C$8:$Dr$71")),'CA SIMD dist data'!$M32+VLOOKUP($C$2,$I$2:$J$3,2,0),'CA SIMD dist data'!X$15+VLOOKUP($C$3,$E$2:$G$13,3,0))) -> 1220 | Z32: Inverclyde | AA32: 0.02265715875 | AB32: =(P32-C32)/C32 -> 0.05590379009 | AC32: =(Q32-D32)/D32 -> 0.05142667551 | AD32: =(R32-E32)/E32 -> -0.002893658066 | AE32: =(S32-F32)/F32 -> -0.03048905259 | AF32: =(T32-G32)/G32 -> -0.007667824074 | AG32: =(U32-H32)/H32 -> -0.007639194946 | AH32: =(V32-I32)/I32 -> -0.002431512401 | AI32: =(W32-J32)/J32 -> -0.002435150873 | AJ32: =(X32-K32)/K32 -> -0.04088050314
A33: Midlothian | B33: 1475 | C33: 7449 | D33: 15164 | E33: 16369 | F33: 3688 | G33: 14782 | H33: 8729 | I33: 7230 | J33: 4943 | K33: 8781 | M33: 18 | N33: Midlothian | O33: =IF($C$2="Both",INDEX(INDIRECT(CONCATENATE("'LA SIMD 10 ",$C$1,"'!$C$8:$Dr$71")),'CA SIMD dist data'!$M33+VLOOKUP("Female",$I$2:$J$3,2,0),'CA SIMD dist data'!O$15+VLOOKUP($C$3,$E$2:$G$13,3,0))+INDEX(INDIRECT(CONCATENATE("'LA SIMD 10 ",$C$1,"'!$C$8:$Dr$71")),'CA SIMD dist data'!$M33+VLOOKUP("Male",$I$2:$J$3,2,0),'CA SIMD dist data'!O$15+VLOOKUP($C$3,$E$2:$G$13,3,0)),INDEX(INDIRECT(CONCATENATE("'LA SIMD 10 ",$C$1,"'!$C$8:$Dr$71")),'CA SIMD dist data'!$M33+VLOOKUP($C$2,$I$2:$J$3,2,0),'CA SIMD dist data'!O$15+VLOOKUP($C$3,$E$2:$G$13,3,0))) -> 1475 | P33: =IF($C$2="Both",INDEX(INDIRECT(CONCATENATE("'LA SIMD 10 ",$C$1,"'!$C$8:$Dr$71")),'CA SIMD dist data'!$M33+VLOOKUP("Female",$I$2:$J$3,2,0),'CA SIMD dist data'!P$15+VLOOKUP($C$3,$E$2:$G$13,3,0))+INDEX(INDIRECT(CONCATENATE("'LA SIMD 10 ",$C$1,"'!$C$8:$Dr$71")),'CA SIMD dist data'!$M33+VLOOKUP("Male",$I$2:$J$3,2,0),'CA SIMD dist data'!P$15+VLOOKUP($C$3,$E$2:$G$13,3,0)),INDEX(INDIRECT(CONCATENATE("'LA SIMD 10 ",$C$1,"'!$C$8:$Dr$71")),'CA SIMD dist data'!$M33+VLOOKUP($C$2,$I$2:$J$3,2,0),'CA SIMD dist data'!P$15+VLOOKUP($C$3,$E$2:$G$13,3,0))) -> 7679 | Q33: =IF($C$2="Both",INDEX(INDIRECT(CONCATENATE("'LA SIMD 10 ",$C$1,"'!$C$8:$Dr$71")),'CA SIMD dist data'!$M33+VLOOKUP("Female",$I$2:$J$3,2,0),'CA SIMD dist data'!Q$15+VLOOKUP($C$3,$E$2:$G$13,3,0))+INDEX(INDIRECT(CONCATENATE("'LA SIMD 10 ",$C$1,"'!$C$8:$Dr$71")),'CA SIMD dist data'!$M33+VLOOKUP("Male",$I$2:$J$3,2,0),'CA SIMD dist data'!Q$15+VLOOKUP($C$3,$E$2:$G$13,3,0)),INDEX(INDIRECT(CONCATENATE("'LA SIMD 10 ",$C$1,"'!$C$8:$Dr$71")),'CA SIMD dist data'!$M33+VLOOKUP($C$2,$I$2:$J$3,2,0),'CA SIMD dist data'!Q$15+VLOOKUP($C$3,$E$2:$G$13,3,0))) -> 15651 | R33: =IF($C$2="Both",INDEX(INDIRECT(CONCATENATE("'LA SIMD 10 ",$C$1,"'!$C$8:$Dr$71")),'CA SIMD dist data'!$M33+VLOOKUP("Female",$I$2:$J$3,2,0),'CA SIMD dist data'!R$15+VLOOKUP($C$3,$E$2:$G$13,3,0))+INDEX(INDIRECT(CONCATENATE("'LA SIMD 10 ",$C$1,"'!$C$8:$Dr$71")),'CA SIMD dist data'!$M33+VLOOKUP("Male",$I$2:$J$3,2,0),'CA SIMD dist data'!R$15+VLOOKUP($C$3,$E$2:$G$13,3,0)),INDEX(INDIRECT(CONCATENATE("'LA SIMD 10 ",$C$1,"'!$C$8:$Dr$71")),'CA SIMD dist data'!$M33+VLOOKUP($C$2,$I$2:$J$3,2,0),'CA SIMD dist data'!R$15+VLOOKUP($C$3,$E$2:$G$13,3,0))) -> 16589 | S33: =IF($C$2="Both",INDEX(INDIRECT(CONCATENATE("'LA SIMD 10 ",$C$1,"'!$C$8:$Dr$71")),'CA SIMD dist data'!$M33+VLOOKUP("Female",$I$2:$J$3,2,0),'CA SIMD dist data'!S$15+VLOOKUP($C$3,$E$2:$G$13,3,0))+INDEX(INDIRECT(CONCATENATE("'LA SIMD 10 ",$C$1,"'!$C$8:$Dr$71")),'CA SIMD dist data'!$M33+VLOOKUP("Male",$I$2:$J$3,2,0),'CA SIMD dist data'!S$15+VLOOKUP($C$3,$E$2:$G$13,3,0)),INDEX(INDIRECT(CONCATENATE("'LA SIMD 10 ",$C$1,"'!$C$8:$Dr$71")),'CA SIMD dist data'!$M33+VLOOKUP($C$2,$I$2:$J$3,2,0),'CA SIMD dist data'!S$15+VLOOKUP($C$3,$E$2:$G$13,3,0))) -> 3706 | T33: =IF($C$2="Both",INDEX(INDIRECT(CONCATENATE("'LA SIMD 10 ",$C$1,"'!$C$8:$Dr$71")),'CA SIMD dist data'!$M33+VLOOKUP("Female",$I$2:$J$3,2,0),'CA SIMD dist data'!T$15+VLOOKUP($C$3,$E$2:$G$13,3,0))+INDEX(INDIRECT(CONCATENATE("'LA SIMD 10 ",$C$1,"'!$C$8:$Dr$71")),'CA SIMD dist data'!$M33+VLOOKUP("Male",$I$2:$J$3,2,0),'CA SIMD dist data'!T$15+VLOOKUP($C$3,$E$2:$G$13,3,0)),INDEX(INDIRECT(CONCATENATE("'LA SIMD 10 ",$C$1,"'!$C$8:$Dr$71")),'CA SIMD dist data'!$M33+VLOOKUP($C$2,$I$2:$J$3,2,0),'CA SIMD dist data'!T$15+VLOOKUP($C$3,$E$2:$G$13,3,0))) -> 15008 | U33: =IF($C$2="Both",INDEX(INDIRECT(CONCATENATE("'LA SIMD 10 ",$C$1,"'!$C$8:$Dr$71")),'CA SIMD dist data'!$M33+VLOOKUP("Female",$I$2:$J$3,2,0),'CA SIMD dist data'!U$15+VLOOKUP($C$3,$E$2:$G$13,3,0))+INDEX(INDIRECT(CONCATENATE("'LA SIMD 10 ",$C$1,"'!$C$8:$Dr$71")),'CA SIMD dist data'!$M33+VLOOKUP("Male",$I$2:$J$3,2,0),'CA SIMD dist data'!U$15+VLOOKUP($C$3,$E$2:$G$13,3,0)),INDEX(INDIRECT(CONCATENATE("'LA SIMD 10 ",$C$1,"'!$C$8:$Dr$71")),'CA SIMD dist data'!$M33+VLOOKUP($C$2,$I$2:$J$3,2,0),'CA SIMD dist data'!U$15+VLOOKUP($C$3,$E$2:$G$13,3,0))) -> 8734 | V33: =IF($C$2="Both",INDEX(INDIRECT(CONCATENATE("'LA SIMD 10 ",$C$1,"'!$C$8:$Dr$71")),'CA SIMD dist data'!$M33+VLOOKUP("Female",$I$2:$J$3,2,0),'CA SIMD dist data'!V$15+VLOOKUP($C$3,$E$2:$G$13,3,0))+INDEX(INDIRECT(CONCATENATE("'LA SIMD 10 ",$C$1,"'!$C$8:$Dr$71")),'CA SIMD dist data'!$M33+VLOOKUP("Male",$I$2:$J$3,2,0),'CA SIMD dist data'!V$15+VLOOKUP($C$3,$E$2:$G$13,3,0)),INDEX(INDIRECT(CONCATENATE("'LA SIMD 10 ",$C$1,"'!$C$8:$Dr$71")),'CA SIMD dist data'!$M33+VLOOKUP($C$2,$I$2:$J$3,2,0),'CA SIMD dist data'!V$15+VLOOKUP($C$3,$E$2:$G$13,3,0))) -> 7136 | W33: =IF($C$2="Both",INDEX(INDIRECT(CONCATENATE("'LA SIMD 10 ",$C$1,"'!$C$8:$Dr$71")),'CA SIMD dist data'!$M33+VLOOKUP("Female",$I$2:$J$3,2,0),'CA SIMD dist data'!W$15+VLOOKUP($C$3,$E$2:$G$13,3,0))+INDEX(INDIRECT(CONCATENATE("'LA SIMD 10 ",$C$1,"'!$C$8:$Dr$71")),'CA SIMD dist data'!$M33+VLOOKUP("Male",$I$2:$J$3,2,0),'CA SIMD dist data'!W$15+VLOOKUP($C$3,$E$2:$G$13,3,0)),INDEX(INDIRECT(CONCATENATE("'LA SIMD 10 ",$C$1,"'!$C$8:$Dr$71")),'CA SIMD dist data'!$M33+VLOOKUP($C$2,$I$2:$J$3,2,0),'CA SIMD dist data'!W$15+VLOOKUP($C$3,$E$2:$G$13,3,0))) -> 4766 | X33: =IF($C$2="Both",INDEX(INDIRECT(CONCATENATE("'LA SIMD 10 ",$C$1,"'!$C$8:$Dr$71")),'CA SIMD dist data'!$M33+VLOOKUP("Female",$I$2:$J$3,2,0),'CA SIMD dist data'!X$15+VLOOKUP($C$3,$E$2:$G$13,3,0))+INDEX(INDIRECT(CONCATENATE("'LA SIMD 10 ",$C$1,"'!$C$8:$Dr$71")),'CA SIMD dist data'!$M33+VLOOKUP("Male",$I$2:$J$3,2,0),'CA SIMD dist data'!X$15+VLOOKUP($C$3,$E$2:$G$13,3,0)),INDEX(INDIRECT(CONCATENATE("'LA SIMD 10 ",$C$1,"'!$C$8:$Dr$71")),'CA SIMD dist data'!$M33+VLOOKUP($C$2,$I$2:$J$3,2,0),'CA SIMD dist data'!X$15+VLOOKUP($C$3,$E$2:$G$13,3,0))) -> 8620 | Z33: Midlothian | AA33: 0 | AB33: 0.03087662774 | AC33: 0.0321155368 | AD33: 0.0134400391 | AE33: 0.004880694143 | AF33: 0.01528886484 | AG33: 0.0005728032993 | AH33: -0.01300138313 | AI33: -0.03580821364 | AJ33: -0.01833504157
A34: Moray | B34: 0 | C34: 826 | D34: 7102 | E34: 7752 | F34: 11143 | G34: 14799 | H34: 25437 | I34: 10951 | J34: 11379 | K34: 6681 | M34: 19 | N34: Moray | O34: =IF($C$2="Both",INDEX(INDIRECT(CONCATENATE("'LA SIMD 10 ",$C$1,"'!$C$8:$Dr$71")),'CA SIMD dist data'!$M34+VLOOKUP("Female",$I$2:$J$3,2,0),'CA SIMD dist data'!O$15+VLOOKUP($C$3,$E$2:$G$13,3,0))+INDEX(INDIRECT(CONCATENATE("'LA SIMD 10 ",$C$1,"'!$C$8:$Dr$71")),'CA SIMD dist data'!$M34+VLOOKUP("Male",$I$2:$J$3,2,0),'CA SIMD dist data'!O$15+VLOOKUP($C$3,$E$2:$G$13,3,0)),INDEX(INDIRECT(CONCATENATE("'LA SIMD 10 ",$C$1,"'!$C$8:$Dr$71")),'CA SIMD dist data'!$M34+VLOOKUP($C$2,$I$2:$J$3,2,0),'CA SIMD dist data'!O$15+VLOOKUP($C$3,$E$2:$G$13,3,0))) -> 0 | P34: =IF($C$2="Both",INDEX(INDIRECT(CONCATENATE("'LA SIMD 10 ",$C$1,"'!$C$8:$Dr$71")),'CA SIMD dist data'!$M34+VLOOKUP("Female",$I$2:$J$3,2,0),'CA SIMD dist data'!P$15+VLOOKUP($C$3,$E$2:$G$13,3,0))+INDEX(INDIRECT(CONCATENATE("'LA SIMD 10 ",$C$1,"'!$C$8:$Dr$71")),'CA SIMD dist data'!$M34+VLOOKUP("Male",$I$2:$J$3,2,0),'CA SIMD dist data'!P$15+VLOOKUP($C$3,$E$2:$G$13,3,0)),INDEX(INDIRECT(CONCATENATE("'LA SIMD 10 ",$C$1,"'!$C$8:$Dr$71")),'CA SIMD dist data'!$M34+VLOOKUP($C$2,$I$2:$J$3,2,0),'CA SIMD dist data'!P$15+VLOOKUP($C$3,$E$2:$G$13,3,0))) -> 889 | Q34: =IF($C$2="Both",INDEX(INDIRECT(CONCATENATE("'LA SIMD 10 ",$C$1,"'!$C$8:$Dr$71")),'CA SIMD dist data'!$M34+VLOOKUP("Female",$I$2:$J$3,2,0),'CA SIMD dist data'!Q$15+VLOOKUP($C$3,$E$2:$G$13,3,0))+INDEX(INDIRECT(CONCATENATE("'LA SIMD 10 ",$C$1,"'!$C$8:$Dr$71")),'CA SIMD dist data'!$M34+VLOOKUP("Male",$I$2:$J$3,2,0),'CA SIMD dist data'!Q$15+VLOOKUP($C$3,$E$2:$G$13,3,0)),INDEX(INDIRECT(CONCATENATE("'LA SIMD 10 ",$C$1,"'!$C$8:$Dr$71")),'CA SIMD dist data'!$M34+VLOOKUP($C$2,$I$2:$J$3,2,0),'CA SIMD dist data'!Q$15+VLOOKUP($C$3,$E$2:$G$13,3,0))) -> 7288 | R34: =IF($C$2="Both",INDEX(INDIRECT(CONCATENATE("'LA SIMD 10 ",$C$1,"'!$C$8:$Dr$71")),'CA SIMD dist data'!$M34+VLOOKUP("Female",$I$2:$J$3,2,0),'CA SIMD dist data'!R$15+VLOOKUP($C$3,$E$2:$G$13,3,0))+INDEX(INDIRECT(CONCATENATE("'LA SIMD 10 ",$C$1,"'!$C$8:$Dr$71")),'CA SIMD dist data'!$M34+VLOOKUP("Male",$I$2:$J$3,2,0),'CA SIMD dist data'!R$15+VLOOKUP($C$3,$E$2:$G$13,3,0)),INDEX(INDIRECT(CONCATENATE("'LA SIMD 10 ",$C$1,"'!$C$8:$Dr$71")),'CA SIMD dist data'!$M34+VLOOKUP($C$2,$I$2:$J$3,2,0),'CA SIMD dist data'!R$15+VLOOKUP($C$3,$E$2:$G$13,3,0))) -> 7602 | S34: =IF($C$2="Both",INDEX(INDIRECT(CONCATENATE("'LA SIMD 10 ",$C$1,"'!$C$8:$Dr$71")),'CA SIMD dist data'!$M34+VLOOKUP("Female",$I$2:$J$3,2,0),'CA SIMD dist data'!S$15+VLOOKUP($C$3,$E$2:$G$13,3,0))+INDEX(INDIRECT(CONCATENATE("'LA SIMD 10 ",$C$1,"'!$C$8:$Dr$71")),'CA SIMD dist data'!$M34+VLOOKUP("Male",$I$2:$J$3,2,0),'CA SIMD dist data'!S$15+VLOOKUP($C$3,$E$2:$G$13,3,0)),INDEX(INDIRECT(CONCATENATE("'LA SIMD 10 ",$C$1,"'!$C$8:$Dr$71")),'CA SIMD dist data'!$M34+VLOOKUP($C$2,$I$2:$J$3,2,0),'CA SIMD dist data'!S$15+VLOOKUP($C$3,$E$2:$G$13,3,0))) -> 10641 | T34: =IF($C$2="Both",INDEX(INDIRECT(CONCATENATE("'LA SIMD 10 ",$C$1,"'!$C$8:$Dr$71")),'CA SIMD dist data'!$M34+VLOOKUP("Female",$I$2:$J$3,2,0),'CA SIMD dist data'!T$15+VLOOKUP($C$3,$E$2:$G$13,3,0))+INDEX(INDIRECT(CONCATENATE("'LA SIMD 10 ",$C$1,"'!$C$8:$Dr$71")),'CA SIMD dist data'!$M34+VLOOKUP("Male",$I$2:$J$3,2,0),'CA SIMD dist data'!T$15+VLOOKUP($C$3,$E$2:$G$13,3,0)),INDEX(INDIRECT(CONCATENATE("'LA SIMD 10 ",$C$1,"'!$C$8:$Dr$71")),'CA SIMD dist data'!$M34+VLOOKUP($C$2,$I$2:$J$3,2,0),'CA SIMD dist data'!T$15+VLOOKUP($C$3,$E$2:$G$13,3,0))) -> 14071 | U34: =IF($C$2="Both",INDEX(INDIRECT(CONCATENATE("'LA SIMD 10 ",$C$1,"'!$C$8:$Dr$71")),'CA SIMD dist data'!$M34+VLOOKUP("Female",$I$2:$J$3,2,0),'CA SIMD dist data'!U$15+VLOOKUP($C$3,$E$2:$G$13,3,0))+INDEX(INDIRECT(CONCATENATE("'LA SIMD 10 ",$C$1,"'!$C$8:$Dr$71")),'CA SIMD dist data'!$M34+VLOOKUP("Male",$I$2:$J$3,2,0),'CA SIMD dist data'!U$15+VLOOKUP($C$3,$E$2:$G$13,3,0)),INDEX(INDIRECT(CONCATENATE("'LA SIMD 10 ",$C$1,"'!$C$8:$Dr$71")),'CA SIMD dist data'!$M34+VLOOKUP($C$2,$I$2:$J$3,2,0),'CA SIMD dist data'!U$15+VLOOKUP($C$3,$E$2:$G$13,3,0))) -> 24341 | V34: =IF($C$2="Both",INDEX(INDIRECT(CONCATENATE("'LA SIMD 10 ",$C$1,"'!$C$8:$Dr$71")),'CA SIMD dist data'!$M34+VLOOKUP("Female",$I$2:$J$3,2,0),'CA SIMD dist data'!V$15+VLOOKUP($C$3,$E$2:$G$13,3,0))+INDEX(INDIRECT(CONCATENATE("'LA SIMD 10 ",$C$1,"'!$C$8:$Dr$71")),'CA SIMD dist data'!$M34+VLOOKUP("Male",$I$2:$J$3,2,0),'CA SIMD dist data'!V$15+VLOOKUP($C$3,$E$2:$G$13,3,0)),INDEX(INDIRECT(CONCATENATE("'LA SIMD 10 ",$C$1,"'!$C$8:$Dr$71")),'CA SIMD dist data'!$M34+VLOOKUP($C$2,$I$2:$J$3,2,0),'CA SIMD dist data'!V$15+VLOOKUP($C$3,$E$2:$G$13,3,0))) -> 10235 | W34: =IF($C$2="Both",INDEX(INDIRECT(CONCATENATE("'LA SIMD 10 ",$C$1,"'!$C$8:$Dr$71")),'CA SIMD dist data'!$M34+VLOOKUP("Female",$I$2:$J$3,2,0),'CA SIMD dist data'!W$15+VLOOKUP($C$3,$E$2:$G$13,3,0))+INDEX(INDIRECT(CONCATENATE("'LA SIMD 10 ",$C$1,"'!$C$8:$Dr$71")),'CA SIMD dist data'!$M34+VLOOKUP("Male",$I$2:$J$3,2,0),'CA SIMD dist data'!W$15+VLOOKUP($C$3,$E$2:$G$13,3,0)),INDEX(INDIRECT(CONCATENATE("'LA SIMD 10 ",$C$1,"'!$C$8:$Dr$71")),'CA SIMD dist data'!$M34+VLOOKUP($C$2,$I$2:$J$3,2,0),'CA SIMD dist data'!W$15+VLOOKUP($C$3,$E$2:$G$13,3,0))) -> 10604 | X34: =IF($C$2="Both",INDEX(INDIRECT(CONCATENATE("'LA SIMD 10 ",$C$1,"'!$C$8:$Dr$71")),'CA SIMD dist data'!$M34+VLOOKUP("Female",$I$2:$J$3,2,0),'CA SIMD dist data'!X$15+VLOOKUP($C$3,$E$2:$G$13,3,0))+INDEX(INDIRECT(CONCATENATE("'LA SIMD 10 ",$C$1,"'!$C$8:$Dr$71")),'CA SIMD dist data'!$M34+VLOOKUP("Male",$I$2:$J$3,2,0),'CA SIMD dist data'!X$15+VLOOKUP($C$3,$E$2:$G$13,3,0)),INDEX(INDIRECT(CONCATENATE("'LA SIMD 10 ",$C$1,"'!$C$8:$Dr$71")),'CA SIMD dist data'!$M34+VLOOKUP($C$2,$I$2:$J$3,2,0),'CA SIMD dist data'!X$15+VLOOKUP($C$3,$E$2:$G$13,3,0))) -> 6105 | Z34: Moray | AB34: 0.07627118644 | AC34: 0.02618980569 | AD34: -0.0193498452 | AE34: -0.04505070448 | AF34: -0.04919251301 | AG34: -0.043086842 | AH34: -0.06538215688 | AI34: -0.06810791809 | AJ34: -0.08621463853
A35: Na h-Eileanan Siar | B35: 0 | C35: 0 | D35: 621 | E35: 4356 | F35: 10708 | G35: 9003 | H35: 2212 | I35: 0 | J35: 0 | K35: 0 | M35: 20 | N35: Na h-Eileanan Siar | O35: =IF($C$2="Both",INDEX(INDIRECT(CONCATENATE("'LA SIMD 10 ",$C$1,"'!$C$8:$Dr$71")),'CA SIMD dist data'!$M35+VLOOKUP("Female",$I$2:$J$3,2,0),'CA SIMD dist data'!O$15+VLOOKUP($C$3,$E$2:$G$13,3,0))+INDEX(INDIRECT(CONCATENATE("'LA SIMD 10 ",$C$1,"'!$C$8:$Dr$71")),'CA SIMD dist data'!$M35+VLOOKUP("Male",$I$2:$J$3,2,0),'CA SIMD dist data'!O$15+VLOOKUP($C$3,$E$2:$G$13,3,0)),INDEX(INDIRECT(CONCATENATE("'LA SIMD 10 ",$C$1,"'!$C$8:$Dr$71")),'CA SIMD dist data'!$M35+VLOOKUP($C$2,$I$2:$J$3,2,0),'CA SIMD dist data'!O$15+VLOOKUP($C$3,$E$2:$G$13,3,0))) -> 0 | P35: =IF($C$2="Both",INDEX(INDIRECT(CONCATENATE("'LA SIMD 10 ",$C$1,"'!$C$8:$Dr$71")),'CA SIMD dist data'!$M35+VLOOKUP("Female",$I$2:$J$3,2,0),'CA SIMD dist data'!P$15+VLOOKUP($C$3,$E$2:$G$13,3,0))+INDEX(INDIRECT(CONCATENATE("'LA SIMD 10 ",$C$1,"'!$C$8:$Dr$71")),'CA SIMD dist data'!$M35+VLOOKUP("Male",$I$2:$J$3,2,0),'CA SIMD dist data'!P$15+VLOOKUP($C$3,$E$2:$G$13,3,0)),INDEX(INDIRECT(CONCATENATE("'LA SIMD 10 ",$C$1,"'!$C$8:$Dr$71")),'CA SIMD dist data'!$M35+VLOOKUP($C$2,$I$2:$J$3,2,0),'CA SIMD dist data'!P$15+VLOOKUP($C$3,$E$2:$G$13,3,0))) -> 0 | Q35: =IF($C$2="Both",INDEX(INDIRECT(CONCATENATE("'LA SIMD 10 ",$C$1,"'!$C$8:$Dr$71")),'CA SIMD dist data'!$M35+VLOOKUP("Female",$I$2:$J$3,2,0),'CA SIMD dist data'!Q$15+VLOOKUP($C$3,$E$2:$G$13,3,0))+INDEX(INDIRECT(CONCATENATE("'LA SIMD 10 ",$C$1,"'!$C$8:$Dr$71")),'CA SIMD dist data'!$M35+VLOOKUP("Male",$I$2:$J$3,2,0),'CA SIMD dist data'!Q$15+VLOOKUP($C$3,$E$2:$G$13,3,0)),INDEX(INDIRECT(CONCATENATE("'LA SIMD 10 ",$C$1,"'!$C$8:$Dr$71")),'CA SIMD dist data'!$M35+VLOOKUP($C$2,$I$2:$J$3,2,0),'CA SIMD dist data'!Q$15+VLOOKUP($C$3,$E$2:$G$13,3,0))) -> 673 | R35: =IF($C$2="Both",INDEX(INDIRECT(CONCATENATE("'LA SIMD 10 ",$C$1,"'!$C$8:$Dr$71")),'CA SIMD dist data'!$M35+VLOOKUP("Female",$I$2:$J$3,2,0),'CA SIMD dist data'!R$15+VLOOKUP($C$3,$E$2:$G$13,3,0))+INDEX(INDIRECT(CONCATENATE("'LA SIMD 10 ",$C$1,"'!$C$8:$Dr$71")),'CA SIMD dist data'!$M35+VLOOKUP("Male",$I$2:$J$3,2,0),'CA SIMD dist data'!R$15+VLOOKUP($C$3,$E$2:$G$13,3,0)),INDEX(INDIRECT(CONCATENATE("'LA SIMD 10 ",$C$1,"'!$C$8:$Dr$71")),'CA SIMD dist data'!$M35+VLOOKUP($C$2,$I$2:$J$3,2,0),'CA SIMD dist data'!R$15+VLOOKUP($C$3,$E$2:$G$13,3,0))) -> 4275 | S35: =IF($C$2="Both",INDEX(INDIRECT(CONCATENATE("'LA SIMD 10 ",$C$1,"'!$C$8:$Dr$71")),'CA SIMD dist data'!$M35+VLOOKUP("Female",$I$2:$J$3,2,0),'CA SIMD dist data'!S$15+VLOOKUP($C$3,$E$2:$G$13,3,0))+INDEX(INDIRECT(CONCATENATE("'LA SIMD 10 ",$C$1,"'!$C$8:$Dr$71")),'CA SIMD dist data'!$M35+VLOOKUP("Male",$I$2:$J$3,2,0),'CA SIMD dist data'!S$15+VLOOKUP($C$3,$E$2:$G$13,3,0)),INDEX(INDIRECT(CONCATENATE("'LA SIMD 10 ",$C$1,"'!$C$8:$Dr$71")),'CA SIMD dist data'!$M35+VLOOKUP($C$2,$I$2:$J$3,2,0),'CA SIMD dist data'!S$15+VLOOKUP($C$3,$E$2:$G$13,3,0))) -> 10414 | T35: =IF($C$2="Both",INDEX(INDIRECT(CONCATENATE("'LA SIMD 10 ",$C$1,"'!$C$8:$Dr$71")),'CA SIMD dist data'!$M35+VLOOKUP("Female",$I$2:$J$3,2,0),'CA SIMD dist data'!T$15+VLOOKUP($C$3,$E$2:$G$13,3,0))+INDEX(INDIRECT(CONCATENATE("'LA SIMD 10 ",$C$1,"'!$C$8:$Dr$71")),'CA SIMD dist data'!$M35+VLOOKUP("Male",$I$2:$J$3,2,0),'CA SIMD dist data'!T$15+VLOOKUP($C$3,$E$2:$G$13,3,0)),INDEX(INDIRECT(CONCATENATE("'LA SIMD 10 ",$C$1,"'!$C$8:$Dr$71")),'CA SIMD dist data'!$M35+VLOOKUP($C$2,$I$2:$J$3,2,0),'CA SIMD dist data'!T$15+VLOOKUP($C$3,$E$2:$G$13,3,0))) -> 8591 | U35: =IF($C$2="Both",INDEX(INDIRECT(CONCATENATE("'LA SIMD 10 ",$C$1,"'!$C$8:$Dr$71")),'CA SIMD dist data'!$M35+VLOOKUP("Female",$I$2:$J$3,2,0),'CA SIMD dist data'!U$15+VLOOKUP($C$3,$E$2:$G$13,3,0))+INDEX(INDIRECT(CONCATENATE("'LA SIMD 10 ",$C$1,"'!$C$8:$Dr$71")),'CA SIMD dist data'!$M35+VLOOKUP("Male",$I$2:$J$3,2,0),'CA SIMD dist data'!U$15+VLOOKUP($C$3,$E$2:$G$13,3,0)),INDEX(INDIRECT(CONCATENATE("'LA SIMD 10 ",$C$1,"'!$C$8:$Dr$71")),'CA SIMD dist data'!$M35+VLOOKUP($C$2,$I$2:$J$3,2,0),'CA SIMD dist data'!U$15+VLOOKUP($C$3,$E$2:$G$13,3,0))) -> 2133 | V35: =IF($C$2="Both",INDEX(INDIRECT(CONCATENATE("'LA SIMD 10 ",$C$1,"'!$C$8:$Dr$71")),'CA SIMD dist data'!$M35+VLOOKUP("Female",$I$2:$J$3,2,0),'CA SIMD dist data'!V$15+VLOOKUP($C$3,$E$2:$G$13,3,0))+INDEX(INDIRECT(CONCATENATE("'LA SIMD 10 ",$C$1,"'!$C$8:$Dr$71")),'CA SIMD dist data'!$M35+VLOOKUP("Male",$I$2:$J$3,2,0),'CA SIMD dist data'!V$15+VLOOKUP($C$3,$E$2:$G$13,3,0)),INDEX(INDIRECT(CONCATENATE("'LA SIMD 10 ",$C$1,"'!$C$8:$Dr$71")),'CA SIMD dist data'!$M35+VLOOKUP($C$2,$I$2:$J$3,2,0),'CA SIMD dist data'!V$15+VLOOKUP($C$3,$E$2:$G$13,3,0))) -> 0 | W35: =IF($C$2="Both",INDEX(INDIRECT(CONCATENATE("'LA SIMD 10 ",$C$1,"'!$C$8:$Dr$71")),'CA SIMD dist data'!$M35+VLOOKUP("Female",$I$2:$J$3,2,0),'CA SIMD dist data'!W$15+VLOOKUP($C$3,$E$2:$G$13,3,0))+INDEX(INDIRECT(CONCATENATE("'LA SIMD 10 ",$C$1,"'!$C$8:$Dr$71")),'CA SIMD dist data'!$M35+VLOOKUP("Male",$I$2:$J$3,2,0),'CA SIMD dist data'!W$15+VLOOKUP($C$3,$E$2:$G$13,3,0)),INDEX(INDIRECT(CONCATENATE("'LA SIMD 10 ",$C$1,"'!$C$8:$Dr$71")),'CA SIMD dist data'!$M35+VLOOKUP($C$2,$I$2:$J$3,2,0),'CA SIMD dist data'!W$15+VLOOKUP($C$3,$E$2:$G$13,3,0))) -> 0 | X35: =IF($C$2="Both",INDEX(INDIRECT(CONCATENATE("'LA SIMD 10 ",$C$1,"'!$C$8:$Dr$71")),'CA SIMD dist data'!$M35+VLOOKUP("Female",$I$2:$J$3,2,0),'CA SIMD dist data'!X$15+VLOOKUP($C$3,$E$2:$G$13,3,0))+INDEX(INDIRECT(CONCATENATE("'LA SIMD 10 ",$C$1,"'!$C$8:$Dr$71")),'CA SIMD dist data'!$M35+VLOOKUP("Male",$I$2:$J$3,2,0),'CA SIMD dist data'!X$15+VLOOKUP($C$3,$E$2:$G$13,3,0)),INDEX(INDIRECT(CONCATENATE("'LA SIMD 10 ",$C$1,"'!$C$8:$Dr$71")),'CA SIMD dist data'!$M35+VLOOKUP($C$2,$I$2:$J$3,2,0),'CA SIMD dist data'!X$15+VLOOKUP($C$3,$E$2:$G$13,3,0))) -> 0 | Z35: Na h-Eileanan Siar | AC35: 0.08373590982 | AD35: -0.01859504132 | AE35: -0.02745610758 | AF35: -0.0457625236 | AG35: -0.03571428571
A36: North Ayrshire | B36: 23540 | C36: 29378 | D36: 17045 | E36: 12727 | F36: 7931 | G36: 11224 | H36: 10304 | I36: 10018 | J36: 11213 | K36: 2510 | M36: 21 | N36: North Ayrshire | O36: =IF($C$2="Both",INDEX(INDIRECT(CONCATENATE("'LA SIMD 10 ",$C$1,"'!$C$8:$Dr$71")),'CA SIMD dist data'!$M36+VLOOKUP("Female",$I$2:$J$3,2,0),'CA SIMD dist data'!O$15+VLOOKUP($C$3,$E$2:$G$13,3,0))+INDEX(INDIRECT(CONCATENATE("'LA SIMD 10 ",$C$1,"'!$C$8:$Dr$71")),'CA SIMD dist data'!$M36+VLOOKUP("Male",$I$2:$J$3,2,0),'CA SIMD dist data'!O$15+VLOOKUP($C$3,$E$2:$G$13,3,0)),INDEX(INDIRECT(CONCATENATE("'LA SIMD 10 ",$C$1,"'!$C$8:$Dr$71")),'CA SIMD dist data'!$M36+VLOOKUP($C$2,$I$2:$J$3,2,0),'CA SIMD dist data'!O$15+VLOOKUP($C$3,$E$2:$G$13,3,0))) -> 23985 | P36: =IF($C$2="Both",INDEX(INDIRECT(CONCATENATE("'LA SIMD 10 ",$C$1,"'!$C$8:$Dr$71")),'CA SIMD dist data'!$M36+VLOOKUP("Female",$I$2:$J$3,2,0),'CA SIMD dist data'!P$15+VLOOKUP($C$3,$E$2:$G$13,3,0))+INDEX(INDIRECT(CONCATENATE("'LA SIMD 10 ",$C$1,"'!$C$8:$Dr$71")),'CA SIMD dist data'!$M36+VLOOKUP("Male",$I$2:$J$3,2,0),'CA SIMD dist data'!P$15+VLOOKUP($C$3,$E$2:$G$13,3,0)),INDEX(INDIRECT(CONCATENATE("'LA SIMD 10 ",$C$1,"'!$C$8:$Dr$71")),'CA SIMD dist data'!$M36+VLOOKUP($C$2,$I$2:$J$3,2,0),'CA SIMD dist data'!P$15+VLOOKUP($C$3,$E$2:$G$13,3,0))) -> 30666 | Q36: =IF($C$2="Both",INDEX(INDIRECT(CONCATENATE("'LA SIMD 10 ",$C$1,"'!$C$8:$Dr$71")),'CA SIMD dist data'!$M36+VLOOKUP("Female",$I$2:$J$3,2,0),'CA SIMD dist data'!Q$15+VLOOKUP($C$3,$E$2:$G$13,3,0))+INDEX(INDIRECT(CONCATENATE("'LA SIMD 10 ",$C$1,"'!$C$8:$Dr$71")),'CA SIMD dist data'!$M36+VLOOKUP("Male",$I$2:$J$3,2,0),'CA SIMD dist data'!Q$15+VLOOKUP($C$3,$E$2:$G$13,3,0)),INDEX(INDIRECT(CONCATENATE("'LA SIMD 10 ",$C$1,"'!$C$8:$Dr$71")),'CA SIMD dist data'!$M36+VLOOKUP($C$2,$I$2:$J$3,2,0),'CA SIMD dist data'!Q$15+VLOOKUP($C$3,$E$2:$G$13,3,0))) -> 17472 | R36: =IF($C$2="Both",INDEX(INDIRECT(CONCATENATE("'LA SIMD 10 ",$C$1,"'!$C$8:$Dr$71")),'CA SIMD dist data'!$M36+VLOOKUP("Female",$I$2:$J$3,2,0),'CA SIMD dist data'!R$15+VLOOKUP($C$3,$E$2:$G$13,3,0))+INDEX(INDIRECT(CONCATENATE("'LA SIMD 10 ",$C$1,"'!$C$8:$Dr$71")),'CA SIMD dist data'!$M36+VLOOKUP("Male",$I$2:$J$3,2,0),'CA SIMD dist data'!R$15+VLOOKUP($C$3,$E$2:$G$13,3,0)),INDEX(INDIRECT(CONCATENATE("'LA SIMD 10 ",$C$1,"'!$C$8:$Dr$71")),'CA SIMD dist data'!$M36+VLOOKUP($C$2,$I$2:$J$3,2,0),'CA SIMD dist data'!R$15+VLOOKUP($C$3,$E$2:$G$13,3,0))) -> 12768 | S36: =IF($C$2="Both",INDEX(INDIRECT(CONCATENATE("'LA SIMD 10 ",$C$1,"'!$C$8:$Dr$71")),'CA SIMD dist data'!$M36+VLOOKUP("Female",$I$2:$J$3,2,0),'CA SIMD dist data'!S$15+VLOOKUP($C$3,$E$2:$G$13,3,0))+INDEX(INDIRECT(CONCATENATE("'LA SIMD 10 ",$C$1,"'!$C$8:$Dr$71")),'CA SIMD dist data'!$M36+VLOOKUP("Male",$I$2:$J$3,2,0),'CA SIMD dist data'!S$15+VLOOKUP($C$3,$E$2:$G$13,3,0)),INDEX(INDIRECT(CONCATENATE("'LA SIMD 10 ",$C$1,"'!$C$8:$Dr$71")),'CA SIMD dist data'!$M36+VLOOKUP($C$2,$I$2:$J$3,2,0),'CA SIMD dist data'!S$15+VLOOKUP($C$3,$E$2:$G$13,3,0))) -> 8054 | T36: =IF($C$2="Both",INDEX(INDIRECT(CONCATENATE("'LA SIMD 10 ",$C$1,"'!$C$8:$Dr$71")),'CA SIMD dist data'!$M36+VLOOKUP("Female",$I$2:$J$3,2,0),'CA SIMD dist data'!T$15+VLOOKUP($C$3,$E$2:$G$13,3,0))+INDEX(INDIRECT(CONCATENATE("'LA SIMD 10 ",$C$1,"'!$C$8:$Dr$71")),'CA SIMD dist data'!$M36+VLOOKUP("Male",$I$2:$J$3,2,0),'CA SIMD dist data'!T$15+VLOOKUP($C$3,$E$2:$G$13,3,0)),INDEX(INDIRECT(CONCATENATE("'LA SIMD 10 ",$C$1,"'!$C$8:$Dr$71")),'CA SIMD dist data'!$M36+VLOOKUP($C$2,$I$2:$J$3,2,0),'CA SIMD dist data'!T$15+VLOOKUP($C$3,$E$2:$G$13,3,0))) -> 11443 | U36: =IF($C$2="Both",INDEX(INDIRECT(CONCATENATE("'LA SIMD 10 ",$C$1,"'!$C$8:$Dr$71")),'CA SIMD dist data'!$M36+VLOOKUP("Female",$I$2:$J$3,2,0),'CA SIMD dist data'!U$15+VLOOKUP($C$3,$E$2:$G$13,3,0))+INDEX(INDIRECT(CONCATENATE("'LA SIMD 10 ",$C$1,"'!$C$8:$Dr$71")),'CA SIMD dist data'!$M36+VLOOKUP("Male",$I$2:$J$3,2,0),'CA SIMD dist data'!U$15+VLOOKUP($C$3,$E$2:$G$13,3,0)),INDEX(INDIRECT(CONCATENATE("'LA SIMD 10 ",$C$1,"'!$C$8:$Dr$71")),'CA SIMD dist data'!$M36+VLOOKUP($C$2,$I$2:$J$3,2,0),'CA SIMD dist data'!U$15+VLOOKUP($C$3,$E$2:$G$13,3,0))) -> 10397 | V36: =IF($C$2="Both",INDEX(INDIRECT(CONCATENATE("'LA SIMD 10 ",$C$1,"'!$C$8:$Dr$71")),'CA SIMD dist data'!$M36+VLOOKUP("Female",$I$2:$J$3,2,0),'CA SIMD dist data'!V$15+VLOOKUP($C$3,$E$2:$G$13,3,0))+INDEX(INDIRECT(CONCATENATE("'LA SIMD 10 ",$C$1,"'!$C$8:$Dr$71")),'CA SIMD dist data'!$M36+VLOOKUP("Male",$I$2:$J$3,2,0),'CA SIMD dist data'!V$15+VLOOKUP($C$3,$E$2:$G$13,3,0)),INDEX(INDIRECT(CONCATENATE("'LA SIMD 10 ",$C$1,"'!$C$8:$Dr$71")),'CA SIMD dist data'!$M36+VLOOKUP($C$2,$I$2:$J$3,2,0),'CA SIMD dist data'!V$15+VLOOKUP($C$3,$E$2:$G$13,3,0))) -> 10081 | W36: =IF($C$2="Both",INDEX(INDIRECT(CONCATENATE("'LA SIMD 10 ",$C$1,"'!$C$8:$Dr$71")),'CA SIMD dist data'!$M36+VLOOKUP("Female",$I$2:$J$3,2,0),'CA SIMD dist data'!W$15+VLOOKUP($C$3,$E$2:$G$13,3,0))+INDEX(INDIRECT(CONCATENATE("'LA SIMD 10 ",$C$1,"'!$C$8:$Dr$71")),'CA SIMD dist data'!$M36+VLOOKUP("Male",$I$2:$J$3,2,0),'CA SIMD dist data'!W$15+VLOOKUP($C$3,$E$2:$G$13,3,0)),INDEX(INDIRECT(CONCATENATE("'LA SIMD 10 ",$C$1,"'!$C$8:$Dr$71")),'CA SIMD dist data'!$M36+VLOOKUP($C$2,$I$2:$J$3,2,0),'CA SIMD dist data'!W$15+VLOOKUP($C$3,$E$2:$G$13,3,0))) -> 11345 | X36: =IF($C$2="Both",INDEX(INDIRECT(CONCATENATE("'LA SIMD 10 ",$C$1,"'!$C$8:$Dr$71")),'CA SIMD dist data'!$M36+VLOOKUP("Female",$I$2:$J$3,2,0),'CA SIMD dist data'!X$15+VLOOKUP($C$3,$E$2:$G$13,3,0))+INDEX(INDIRECT(CONCATENATE("'LA SIMD 10 ",$C$1,"'!$C$8:$Dr$71")),'CA SIMD dist data'!$M36+VLOOKUP("Male",$I$2:$J$3,2,0),'CA SIMD dist data'!X$15+VLOOKUP($C$3,$E$2:$G$13,3,0)),INDEX(INDIRECT(CONCATENATE("'LA SIMD 10 ",$C$1,"'!$C$8:$Dr$71")),'CA SIMD dist data'!$M36+VLOOKUP($C$2,$I$2:$J$3,2,0),'CA SIMD dist data'!X$15+VLOOKUP($C$3,$E$2:$G$13,3,0))) -> 2518 | Z36: North Ayrshire | AA36: 0.0189039932 | AB36: 0.043842331 | AC36: 0.0250513347 | AD36: 0.003221497604 | AE36: 0.01550876308 | AF36: 0.01951176051 | AG36: 0.009025621118 | AH36: 0.006288680375 | AI36: 0.0117720503 | AJ36: 0.003187250996
A37: North Lanarkshire | B37: 45727 | C37: 58715 | D37: 57109 | E37: 36504 | F37: 34742 | G37: 27982 | H37: 25789 | I37: 21445 | J37: 26208 | K37: 5169 | M37: 22 | N37: North Lanarkshire | O37: =IF($C$2="Both",INDEX(INDIRECT(CONCATENATE("'LA SIMD 10 ",$C$1,"'!$C$8:$Dr$71")),'CA SIMD dist data'!$M37+VLOOKUP("Female",$I$2:$J$3,2,0),'CA SIMD dist data'!O$15+VLOOKUP($C$3,$E$2:$G$13,3,0))+INDEX(INDIRECT(CONCATENATE("'LA SIMD 10 ",$C$1,"'!$C$8:$Dr$71")),'CA SIMD dist data'!$M37+VLOOKUP("Male",$I$2:$J$3,2,0),'CA SIMD dist data'!O$15+VLOOKUP($C$3,$E$2:$G$13,3,0)),INDEX(INDIRECT(CONCATENATE("'LA SIMD 10 ",$C$1,"'!$C$8:$Dr$71")),'CA SIMD dist data'!$M37+VLOOKUP($C$2,$I$2:$J$3,2,0),'CA SIMD dist data'!O$15+VLOOKUP($C$3,$E$2:$G$13,3,0))) -> 46898 | P37: =IF($C$2="Both",INDEX(INDIRECT(CONCATENATE("'LA SIMD 10 ",$C$1,"'!$C$8:$Dr$71")),'CA SIMD dist data'!$M37+VLOOKUP("Female",$I$2:$J$3,2,0),'CA SIMD dist data'!P$15+VLOOKUP($C$3,$E$2:$G$13,3,0))+INDEX(INDIRECT(CONCATENATE("'LA SIMD 10 ",$C$1,"'!$C$8:$Dr$71")),'CA SIMD dist data'!$M37+VLOOKUP("Male",$I$2:$J$3,2,0),'CA SIMD dist data'!P$15+VLOOKUP($C$3,$E$2:$G$13,3,0)),INDEX(INDIRECT(CONCATENATE("'LA SIMD 10 ",$C$1,"'!$C$8:$Dr$71")),'CA SIMD dist data'!$M37+VLOOKUP($C$2,$I$2:$J$3,2,0),'CA SIMD dist data'!P$15+VLOOKUP($C$3,$E$2:$G$13,3,0))) -> 60481 | Q37: =IF($C$2="Both",INDEX(INDIRECT(CONCATENATE("'LA SIMD 10 ",$C$1,"'!$C$8:$Dr$71")),'CA SIMD dist data'!$M37+VLOOKUP("Female",$I$2:$J$3,2,0),'CA SIMD dist data'!Q$15+VLOOKUP($C$3,$E$2:$G$13,3,0))+INDEX(INDIRECT(CONCATENATE("'LA SIMD 10 ",$C$1,"'!$C$8:$Dr$71")),'CA SIMD dist data'!$M37+VLOOKUP("Male",$I$2:$J$3,2,0),'CA SIMD dist data'!Q$15+VLOOKUP($C$3,$E$2:$G$13,3,0)),INDEX(INDIRECT(CONCATENATE("'LA SIMD 10 ",$C$1,"'!$C$8:$Dr$71")),'CA SIMD dist data'!$M37+VLOOKUP($C$2,$I$2:$J$3,2,0),'CA SIMD dist data'!Q$15+VLOOKUP($C$3,$E$2:$G$13,3,0))) -> 57971 | R37: =IF($C$2="Both",INDEX(INDIRECT(CONCATENATE("'LA SIMD 10 ",$C$1,"'!$C$8:$Dr$71")),'CA SIMD dist data'!$M37+VLOOKUP("Female",$I$2:$J$3,2,0),'CA SIMD dist data'!R$15+VLOOKUP($C$3,$E$2:$G$13,3,0))+INDEX(INDIRECT(CONCATENATE("'LA SIMD 10 ",$C$1,"'!$C$8:$Dr$71")),'CA SIMD dist data'!$M37+VLOOKUP("Male",$I$2:$J$3,2,0),'CA SIMD dist data'!R$15+VLOOKUP($C$3,$E$2:$G$13,3,0)),INDEX(INDIRECT(CONCATENATE("'LA SIMD 10 ",$C$1,"'!$C$8:$Dr$71")),'CA SIMD dist data'!$M37+VLOOKUP($C$2,$I$2:$J$3,2,0),'CA SIMD dist data'!R$15+VLOOKUP($C$3,$E$2:$G$13,3,0))) -> 37636 | S37: =IF($C$2="Both",INDEX(INDIRECT(CONCATENATE("'LA SIMD 10 ",$C$1,"'!$C$8:$Dr$71")),'CA SIMD dist data'!$M37+VLOOKUP("Female",$I$2:$J$3,2,0),'CA SIMD dist data'!S$15+VLOOKUP($C$3,$E$2:$G$13,3,0))+INDEX(INDIRECT(CONCATENATE("'LA SIMD 10 ",$C$1,"'!$C$8:$Dr$71")),'CA SIMD dist data'!$M37+VLOOKUP("Male",$I$2:$J$3,2,0),'CA SIMD dist data'!S$15+VLOOKUP($C$3,$E$2:$G$13,3,0)),INDEX(INDIRECT(CONCATENATE("'LA SIMD 10 ",$C$1,"'!$C$8:$Dr$71")),'CA SIMD dist data'!$M37+VLOOKUP($C$2,$I$2:$J$3,2,0),'CA SIMD dist data'!S$15+VLOOKUP($C$3,$E$2:$G$13,3,0))) -> 34609 | T37: =IF($C$2="Both",INDEX(INDIRECT(CONCATENATE("'LA SIMD 10 ",$C$1,"'!$C$8:$Dr$71")),'CA SIMD dist data'!$M37+VLOOKUP("Female",$I$2:$J$3,2,0),'CA SIMD dist data'!T$15+VLOOKUP($C$3,$E$2:$G$13,3,0))+INDEX(INDIRECT(CONCATENATE("'LA SIMD 10 ",$C$1,"'!$C$8:$Dr$71")),'CA SIMD dist data'!$M37+VLOOKUP("Male",$I$2:$J$3,2,0),'CA SIMD dist data'!T$15+VLOOKUP($C$3,$E$2:$G$13,3,0)),INDEX(INDIRECT(CONCATENATE("'LA SIMD 10 ",$C$1,"'!$C$8:$Dr$71")),'CA SIMD dist data'!$M37+VLOOKUP($C$2,$I$2:$J$3,2,0),'CA SIMD dist data'!T$15+VLOOKUP($C$3,$E$2:$G$13,3,0))) -> 28071 | U37: =IF($C$2="Both",INDEX(INDIRECT(CONCATENATE("'LA SIMD 10 ",$C$1,"'!$C$8:$Dr$71")),'CA SIMD dist data'!$M37+VLOOKUP("Female",$I$2:$J$3,2,0),'CA SIMD dist data'!U$15+VLOOKUP($C$3,$E$2:$G$13,3,0))+INDEX(INDIRECT(CONCATENATE("'LA SIMD 10 ",$C$1,"'!$C$8:$Dr$71")),'CA SIMD dist data'!$M37+VLOOKUP("Male",$I$2:$J$3,2,0),'CA SIMD dist data'!U$15+VLOOKUP($C$3,$E$2:$G$13,3,0)),INDEX(INDIRECT(CONCATENATE("'LA SIMD 10 ",$C$1,"'!$C$8:$Dr$71")),'CA SIMD dist data'!$M37+VLOOKUP($C$2,$I$2:$J$3,2,0),'CA SIMD dist data'!U$15+VLOOKUP($C$3,$E$2:$G$13,3,0))) -> 25060 | V37: =IF($C$2="Both",INDEX(INDIRECT(CONCATENATE("'LA SIMD 10 ",$C$1,"'!$C$8:$Dr$71")),'CA SIMD dist data'!$M37+VLOOKUP("Female",$I$2:$J$3,2,0),'CA SIMD dist data'!V$15+VLOOKUP($C$3,$E$2:$G$13,3,0))+INDEX(INDIRECT(CONCATENATE("'LA SIMD 10 ",$C$1,"'!$C$8:$Dr$71")),'CA SIMD dist data'!$M37+VLOOKUP("Male",$I$2:$J$3,2,0),'CA SIMD dist data'!V$15+VLOOKUP($C$3,$E$2:$G$13,3,0)),INDEX(INDIRECT(CONCATENATE("'LA SIMD 10 ",$C$1,"'!$C$8:$Dr$71")),'CA SIMD dist data'!$M37+VLOOKUP($C$2,$I$2:$J$3,2,0),'CA SIMD dist data'!V$15+VLOOKUP($C$3,$E$2:$G$13,3,0))) -> 20716 | W37: =IF($C$2="Both",INDEX(INDIRECT(CONCATENATE("'LA SIMD 10 ",$C$1,"'!$C$8:$Dr$71")),'CA SIMD dist data'!$M37+VLOOKUP("Female",$I$2:$J$3,2,0),'CA SIMD dist data'!W$15+VLOOKUP($C$3,$E$2:$G$13,3,0))+INDEX(INDIRECT(CONCATENATE("'LA SIMD 10 ",$C$1,"'!$C$8:$Dr$71")),'CA SIMD dist data'!$M37+VLOOKUP("Male",$I$2:$J$3,2,0),'CA SIMD dist data'!W$15+VLOOKUP($C$3,$E$2:$G$13,3,0)),INDEX(INDIRECT(CONCATENATE("'LA SIMD 10 ",$C$1,"'!$C$8:$Dr$71")),'CA SIMD dist data'!$M37+VLOOKUP($C$2,$I$2:$J$3,2,0),'CA SIMD dist data'!W$15+VLOOKUP($C$3,$E$2:$G$13,3,0))) -> 25933 | X37: =IF($C$2="Both",INDEX(INDIRECT(CONCATENATE("'LA SIMD 10 ",$C$1,"'!$C$8:$Dr$71")),'CA SIMD dist data'!$M37+VLOOKUP("Female",$I$2:$J$3,2,0),'CA SIMD dist data'!X$15+VLOOKUP($C$3,$E$2:$G$13,3,0))+INDEX(INDIRECT(CONCATENATE("'LA SIMD 10 ",$C$1,"'!$C$8:$Dr$71")),'CA SIMD dist data'!$M37+VLOOKUP("Male",$I$2:$J$3,2,0),'CA SIMD dist data'!X$15+VLOOKUP($C$3,$E$2:$G$13,3,0)),INDEX(INDIRECT(CONCATENATE("'LA SIMD 10 ",$C$1,"'!$C$8:$Dr$71")),'CA SIMD dist data'!$M37+VLOOKUP($C$2,$I$2:$J$3,2,0),'CA SIMD dist data'!X$15+VLOOKUP($C$3,$E$2:$G$13,3,0))) -> 5220 | Z37: North Lanarkshire | AA37: 0.02560850264 | AB37: 0.03007749297 | AC37: 0.01509394316 | AD37: 0.03101030024 | AE37: -0.003828219446 | AF37: 0.00318061611 | AG37: -0.02826786614 | AH37: -0.03399393798 | AI37: -0.01049297924 | AJ37: 0.009866511898
A38: Orkney Islands | B38: 0 | C38: 0 | D38: 501 | E38: 2541 | F38: 3148 | G38: 2940 | H38: 6718 | I38: 4302 | J38: 889 | K38: 811 | M38: 23 | N38: Orkney Islands | O38: =IF($C$2="Both",INDEX(INDIRECT(CONCATENATE("'LA SIMD 10 ",$C$1,"'!$C$8:$Dr$71")),'CA SIMD dist data'!$M38+VLOOKUP("Female",$I$2:$J$3,2,0),'CA SIMD dist data'!O$15+VLOOKUP($C$3,$E$2:$G$13,3,0))+INDEX(INDIRECT(CONCATENATE("'LA SIMD 10 ",$C$1,"'!$C$8:$Dr$71")),'CA SIMD dist data'!$M38+VLOOKUP("Male",$I$2:$J$3,2,0),'CA SIMD dist data'!O$15+VLOOKUP($C$3,$E$2:$G$13,3,0)),INDEX(INDIRECT(CONCATENATE("'LA SIMD 10 ",$C$1,"'!$C$8:$Dr$71")),'CA SIMD dist data'!$M38+VLOOKUP($C$2,$I$2:$J$3,2,0),'CA SIMD dist data'!O$15+VLOOKUP($C$3,$E$2:$G$13,3,0))) -> 0 | P38: =IF($C$2="Both",INDEX(INDIRECT(CONCATENATE("'LA SIMD 10 ",$C$1,"'!$C$8:$Dr$71")),'CA SIMD dist data'!$M38+VLOOKUP("Female",$I$2:$J$3,2,0),'CA SIMD dist data'!P$15+VLOOKUP($C$3,$E$2:$G$13,3,0))+INDEX(INDIRECT(CONCATENATE("'LA SIMD 10 ",$C$1,"'!$C$8:$Dr$71")),'CA SIMD dist data'!$M38+VLOOKUP("Male",$I$2:$J$3,2,0),'CA SIMD dist data'!P$15+VLOOKUP($C$3,$E$2:$G$13,3,0)),INDEX(INDIRECT(CONCATENATE("'LA SIMD 10 ",$C$1,"'!$C$8:$Dr$71")),'CA SIMD dist data'!$M38+VLOOKUP($C$2,$I$2:$J$3,2,0),'CA SIMD dist data'!P$15+VLOOKUP($C$3,$E$2:$G$13,3,0))) -> 0 | Q38: =IF($C$2="Both",INDEX(INDIRECT(CONCATENATE("'LA SIMD 10 ",$C$1,"'!$C$8:$Dr$71")),'CA SIMD dist data'!$M38+VLOOKUP("Female",$I$2:$J$3,2,0),'CA SIMD dist data'!Q$15+VLOOKUP($C$3,$E$2:$G$13,3,0))+INDEX(INDIRECT(CONCATENATE("'LA SIMD 10 ",$C$1,"'!$C$8:$Dr$71")),'CA SIMD dist data'!$M38+VLOOKUP("Male",$I$2:$J$3,2,0),'CA SIMD dist data'!Q$15+VLOOKUP($C$3,$E$2:$G$13,3,0)),INDEX(INDIRECT(CONCATENATE("'LA SIMD 10 ",$C$1,"'!$C$8:$Dr$71")),'CA SIMD dist data'!$M38+VLOOKUP($C$2,$I$2:$J$3,2,0),'CA SIMD dist data'!Q$15+VLOOKUP($C$3,$E$2:$G$13,3,0))) -> 468 | R38: =IF($C$2="Both",INDEX(INDIRECT(CONCATENATE("'LA SIMD 10 ",$C$1,"'!$C$8:$Dr$71")),'CA SIMD dist data'!$M38+VLOOKUP("Female",$I$2:$J$3,2,0),'CA SIMD dist data'!R$15+VLOOKUP($C$3,$E$2:$G$13,3,0))+INDEX(INDIRECT(CONCATENATE("'LA SIMD 10 ",$C$1,"'!$C$8:$Dr$71")),'CA SIMD dist data'!$M38+VLOOKUP("Male",$I$2:$J$3,2,0),'CA SIMD dist data'!R$15+VLOOKUP($C$3,$E$2:$G$13,3,0)),INDEX(INDIRECT(CONCATENATE("'LA SIMD 10 ",$C$1,"'!$C$8:$Dr$71")),'CA SIMD dist data'!$M38+VLOOKUP($C$2,$I$2:$J$3,2,0),'CA SIMD dist data'!R$15+VLOOKUP($C$3,$E$2:$G$13,3,0))) -> 2418 | S38: =IF($C$2="Both",INDEX(INDIRECT(CONCATENATE("'LA SIMD 10 ",$C$1,"'!$C$8:$Dr$71")),'CA SIMD dist data'!$M38+VLOOKUP("Female",$I$2:$J$3,2,0),'CA SIMD dist data'!S$15+VLOOKUP($C$3,$E$2:$G$13,3,0))+INDEX(INDIRECT(CONCATENATE("'LA SIMD 10 ",$C$1,"'!$C$8:$Dr$71")),'CA SIMD dist data'!$M38+VLOOKUP("Male",$I$2:$J$3,2,0),'CA SIMD dist data'!S$15+VLOOKUP($C$3,$E$2:$G$13,3,0)),INDEX(INDIRECT(CONCATENATE("'LA SIMD 10 ",$C$1,"'!$C$8:$Dr$71")),'CA SIMD dist data'!$M38+VLOOKUP($C$2,$I$2:$J$3,2,0),'CA SIMD dist data'!S$15+VLOOKUP($C$3,$E$2:$G$13,3,0))) -> 2962 | T38: =IF($C$2="Both",INDEX(INDIRECT(CONCATENATE("'LA SIMD 10 ",$C$1,"'!$C$8:$Dr$71")),'CA SIMD dist data'!$M38+VLOOKUP("Female",$I$2:$J$3,2,0),'CA SIMD dist data'!T$15+VLOOKUP($C$3,$E$2:$G$13,3,0))+INDEX(INDIRECT(CONCATENATE("'LA SIMD 10 ",$C$1,"'!$C$8:$Dr$71")),'CA SIMD dist data'!$M38+VLOOKUP("Male",$I$2:$J$3,2,0),'CA SIMD dist data'!T$15+VLOOKUP($C$3,$E$2:$G$13,3,0)),INDEX(INDIRECT(CONCATENATE("'LA SIMD 10 ",$C$1,"'!$C$8:$Dr$71")),'CA SIMD dist data'!$M38+VLOOKUP($C$2,$I$2:$J$3,2,0),'CA SIMD dist data'!T$15+VLOOKUP($C$3,$E$2:$G$13,3,0))) -> 2827 | U38: =IF($C$2="Both",INDEX(INDIRECT(CONCATENATE("'LA SIMD 10 ",$C$1,"'!$C$8:$Dr$71")),'CA SIMD dist data'!$M38+VLOOKUP("Female",$I$2:$J$3,2,0),'CA SIMD dist data'!U$15+VLOOKUP($C$3,$E$2:$G$13,3,0))+INDEX(INDIRECT(CONCATENATE("'LA SIMD 10 ",$C$1,"'!$C$8:$Dr$71")),'CA SIMD dist data'!$M38+VLOOKUP("Male",$I$2:$J$3,2,0),'CA SIMD dist data'!U$15+VLOOKUP($C$3,$E$2:$G$13,3,0)),INDEX(INDIRECT(CONCATENATE("'LA SIMD 10 ",$C$1,"'!$C$8:$Dr$71")),'CA SIMD dist data'!$M38+VLOOKUP($C$2,$I$2:$J$3,2,0),'CA SIMD dist data'!U$15+VLOOKUP($C$3,$E$2:$G$13,3,0))) -> 6311 | V38: =IF($C$2="Both",INDEX(INDIRECT(CONCATENATE("'LA SIMD 10 ",$C$1,"'!$C$8:$Dr$71")),'CA SIMD dist data'!$M38+VLOOKUP("Female",$I$2:$J$3,2,0),'CA SIMD dist data'!V$15+VLOOKUP($C$3,$E$2:$G$13,3,0))+INDEX(INDIRECT(CONCATENATE("'LA SIMD 10 ",$C$1,"'!$C$8:$Dr$71")),'CA SIMD dist data'!$M38+VLOOKUP("Male",$I$2:$J$3,2,0),'CA SIMD dist data'!V$15+VLOOKUP($C$3,$E$2:$G$13,3,0)),INDEX(INDIRECT(CONCATENATE("'LA SIMD 10 ",$C$1,"'!$C$8:$Dr$71")),'CA SIMD dist data'!$M38+VLOOKUP($C$2,$I$2:$J$3,2,0),'CA SIMD dist data'!V$15+VLOOKUP($C$3,$E$2:$G$13,3,0))) -> 4113 | W38: =IF($C$2="Both",INDEX(INDIRECT(CONCATENATE("'LA SIMD 10 ",$C$1,"'!$C$8:$Dr$71")),'CA SIMD dist data'!$M38+VLOOKUP("Female",$I$2:$J$3,2,0),'CA SIMD dist data'!W$15+VLOOKUP($C$3,$E$2:$G$13,3,0))+INDEX(INDIRECT(CONCATENATE("'LA SIMD 10 ",$C$1,"'!$C$8:$Dr$71")),'CA SIMD dist data'!$M38+VLOOKUP("Male",$I$2:$J$3,2,0),'CA SIMD dist data'!W$15+VLOOKUP($C$3,$E$2:$G$13,3,0)),INDEX(INDIRECT(CONCATENATE("'LA SIMD 10 ",$C$1,"'!$C$8:$Dr$71")),'CA SIMD dist data'!$M38+VLOOKUP($C$2,$I$2:$J$3,2,0),'CA SIMD dist data'!W$15+VLOOKUP($C$3,$E$2:$G$13,3,0))) -> 871 | X38: =IF($C$2="Both",INDEX(INDIRECT(CONCATENATE("'LA SIMD 10 ",$C$1,"'!$C$8:$Dr$71")),'CA SIMD dist data'!$M38+VLOOKUP("Female",$I$2:$J$3,2,0),'CA SIMD dist data'!X$15+VLOOKUP($C$3,$E$2:$G$13,3,0))+INDEX(INDIRECT(CONCATENATE("'LA SIMD 10 ",$C$1,"'!$C$8:$Dr$71")),'CA SIMD dist data'!$M38+VLOOKUP("Male",$I$2:$J$3,2,0),'CA SIMD dist data'!X$15+VLOOKUP($C$3,$E$2:$G$13,3,0)),INDEX(INDIRECT(CONCATENATE("'LA SIMD 10 ",$C$1,"'!$C$8:$Dr$71")),'CA SIMD dist data'!$M38+VLOOKUP($C$2,$I$2:$J$3,2,0),'CA SIMD dist data'!X$15+VLOOKUP($C$3,$E$2:$G$13,3,0))) -> 752 | Z38: Orkney Islands | AC38: -0.06586826347 | AD38: -0.04840613932 | AE38: -0.05908513342 | AF38: -0.03843537415 | AG38: -0.060583507 | AH38: -0.04393305439 | AI38: -0.02024746907 | AJ38: -0.07274969174
A39: Perth and Kinross | B39: 3411 | C39: 4790 | D39: 7188 | E39: 9403 | F39: 15589 | G39: 18022 | H39: 28674 | I39: 32430 | J39: 17830 | K39: 13343 | M39: 24 | N39: Perth and Kinross | O39: =IF($C$2="Both",INDEX(INDIRECT(CONCATENATE("'LA SIMD 10 ",$C$1,"'!$C$8:$Dr$71")),'CA SIMD dist data'!$M39+VLOOKUP("Female",$I$2:$J$3,2,0),'CA SIMD dist data'!O$15+VLOOKUP($C$3,$E$2:$G$13,3,0))+INDEX(INDIRECT(CONCATENATE("'LA SIMD 10 ",$C$1,"'!$C$8:$Dr$71")),'CA SIMD dist data'!$M39+VLOOKUP("Male",$I$2:$J$3,2,0),'CA SIMD dist data'!O$15+VLOOKUP($C$3,$E$2:$G$13,3,0)),INDEX(INDIRECT(CONCATENATE("'LA SIMD 10 ",$C$1,"'!$C$8:$Dr$71")),'CA SIMD dist data'!$M39+VLOOKUP($C$2,$I$2:$J$3,2,0),'CA SIMD dist data'!O$15+VLOOKUP($C$3,$E$2:$G$13,3,0))) -> 3660 | P39: =IF($C$2="Both",INDEX(INDIRECT(CONCATENATE("'LA SIMD 10 ",$C$1,"'!$C$8:$Dr$71")),'CA SIMD dist data'!$M39+VLOOKUP("Female",$I$2:$J$3,2,0),'CA SIMD dist data'!P$15+VLOOKUP($C$3,$E$2:$G$13,3,0))+INDEX(INDIRECT(CONCATENATE("'LA SIMD 10 ",$C$1,"'!$C$8:$Dr$71")),'CA SIMD dist data'!$M39+VLOOKUP("Male",$I$2:$J$3,2,0),'CA SIMD dist data'!P$15+VLOOKUP($C$3,$E$2:$G$13,3,0)),INDEX(INDIRECT(CONCATENATE("'LA SIMD 10 ",$C$1,"'!$C$8:$Dr$71")),'CA SIMD dist data'!$M39+VLOOKUP($C$2,$I$2:$J$3,2,0),'CA SIMD dist data'!P$15+VLOOKUP($C$3,$E$2:$G$13,3,0))) -> 4859 | Q39: =IF($C$2="Both",INDEX(INDIRECT(CONCATENATE("'LA SIMD 10 ",$C$1,"'!$C$8:$Dr$71")),'CA SIMD dist data'!$M39+VLOOKUP("Female",$I$2:$J$3,2,0),'CA SIMD dist data'!Q$15+VLOOKUP($C$3,$E$2:$G$13,3,0))+INDEX(INDIRECT(CONCATENATE("'LA SIMD 10 ",$C$1,"'!$C$8:$Dr$71")),'CA SIMD dist data'!$M39+VLOOKUP("Male",$I$2:$J$3,2,0),'CA SIMD dist data'!Q$15+VLOOKUP($C$3,$E$2:$G$13,3,0)),INDEX(INDIRECT(CONCATENATE("'LA SIMD 10 ",$C$1,"'!$C$8:$Dr$71")),'CA SIMD dist data'!$M39+VLOOKUP($C$2,$I$2:$J$3,2,0),'CA SIMD dist data'!Q$15+VLOOKUP($C$3,$E$2:$G$13,3,0))) -> 7033 | R39: =IF($C$2="Both",INDEX(INDIRECT(CONCATENATE("'LA SIMD 10 ",$C$1,"'!$C$8:$Dr$71")),'CA SIMD dist data'!$M39+VLOOKUP("Female",$I$2:$J$3,2,0),'CA SIMD dist data'!R$15+VLOOKUP($C$3,$E$2:$G$13,3,0))+INDEX(INDIRECT(CONCATENATE("'LA SIMD 10 ",$C$1,"'!$C$8:$Dr$71")),'CA SIMD dist data'!$M39+VLOOKUP("Male",$I$2:$J$3,2,0),'CA SIMD dist data'!R$15+VLOOKUP($C$3,$E$2:$G$13,3,0)),INDEX(INDIRECT(CONCATENATE("'LA SIMD 10 ",$C$1,"'!$C$8:$Dr$71")),'CA SIMD dist data'!$M39+VLOOKUP($C$2,$I$2:$J$3,2,0),'CA SIMD dist data'!R$15+VLOOKUP($C$3,$E$2:$G$13,3,0))) -> 9542 | S39: =IF($C$2="Both",INDEX(INDIRECT(CONCATENATE("'LA SIMD 10 ",$C$1,"'!$C$8:$Dr$71")),'CA SIMD dist data'!$M39+VLOOKUP("Female",$I$2:$J$3,2,0),'CA SIMD dist data'!S$15+VLOOKUP($C$3,$E$2:$G$13,3,0))+INDEX(INDIRECT(CONCATENATE("'LA SIMD 10 ",$C$1,"'!$C$8:$Dr$71")),'CA SIMD dist data'!$M39+VLOOKUP("Male",$I$2:$J$3,2,0),'CA SIMD dist data'!S$15+VLOOKUP($C$3,$E$2:$G$13,3,0)),INDEX(INDIRECT(CONCATENATE("'LA SIMD 10 ",$C$1,"'!$C$8:$Dr$71")),'CA SIMD dist data'!$M39+VLOOKUP($C$2,$I$2:$J$3,2,0),'CA SIMD dist data'!S$15+VLOOKUP($C$3,$E$2:$G$13,3,0))) -> 15457 | T39: =IF($C$2="Both",INDEX(INDIRECT(CONCATENATE("'LA SIMD 10 ",$C$1,"'!$C$8:$Dr$71")),'CA SIMD dist data'!$M39+VLOOKUP("Female",$I$2:$J$3,2,0),'CA SIMD dist data'!T$15+VLOOKUP($C$3,$E$2:$G$13,3,0))+INDEX(INDIRECT(CONCATENATE("'LA SIMD 10 ",$C$1,"'!$C$8:$Dr$71")),'CA SIMD dist data'!$M39+VLOOKUP("Male",$I$2:$J$3,2,0),'CA SIMD dist data'!T$15+VLOOKUP($C$3,$E$2:$G$13,3,0)),INDEX(INDIRECT(CONCATENATE("'LA SIMD 10 ",$C$1,"'!$C$8:$Dr$71")),'CA SIMD dist data'!$M39+VLOOKUP($C$2,$I$2:$J$3,2,0),'CA SIMD dist data'!T$15+VLOOKUP($C$3,$E$2:$G$13,3,0))) -> 17662 | U39: =IF($C$2="Both",INDEX(INDIRECT(CONCATENATE("'LA SIMD 10 ",$C$1,"'!$C$8:$Dr$71")),'CA SIMD dist data'!$M39+VLOOKUP("Female",$I$2:$J$3,2,0),'CA SIMD dist data'!U$15+VLOOKUP($C$3,$E$2:$G$13,3,0))+INDEX(INDIRECT(CONCATENATE("'LA SIMD 10 ",$C$1,"'!$C$8:$Dr$71")),'CA SIMD dist data'!$M39+VLOOKUP("Male",$I$2:$J$3,2,0),'CA SIMD dist data'!U$15+VLOOKUP($C$3,$E$2:$G$13,3,0)),INDEX(INDIRECT(CONCATENATE("'LA SIMD 10 ",$C$1,"'!$C$8:$Dr$71")),'CA SIMD dist data'!$M39+VLOOKUP($C$2,$I$2:$J$3,2,0),'CA SIMD dist data'!U$15+VLOOKUP($C$3,$E$2:$G$13,3,0))) -> 27868 | V39: =IF($C$2="Both",INDEX(INDIRECT(CONCATENATE("'LA SIMD 10 ",$C$1,"'!$C$8:$Dr$71")),'CA SIMD dist data'!$M39+VLOOKUP("Female",$I$2:$J$3,2,0),'CA SIMD dist data'!V$15+VLOOKUP($C$3,$E$2:$G$13,3,0))+INDEX(INDIRECT(CONCATENATE("'LA SIMD 10 ",$C$1,"'!$C$8:$Dr$71")),'CA SIMD dist data'!$M39+VLOOKUP("Male",$I$2:$J$3,2,0),'CA SIMD dist data'!V$15+VLOOKUP($C$3,$E$2:$G$13,3,0)),INDEX(INDIRECT(CONCATENATE("'LA SIMD 10 ",$C$1,"'!$C$8:$Dr$71")),'CA SIMD dist data'!$M39+VLOOKUP($C$2,$I$2:$J$3,2,0),'CA SIMD dist data'!V$15+VLOOKUP($C$3,$E$2:$G$13,3,0))) -> 31464 | W39: =IF($C$2="Both",INDEX(INDIRECT(CONCATENATE("'LA SIMD 10 ",$C$1,"'!$C$8:$Dr$71")),'CA SIMD dist data'!$M39+VLOOKUP("Female",$I$2:$J$3,2,0),'CA SIMD dist data'!W$15+VLOOKUP($C$3,$E$2:$G$13,3,0))+INDEX(INDIRECT(CONCATENATE("'LA SIMD 10 ",$C$1,"'!$C$8:$Dr$71")),'CA SIMD dist data'!$M39+VLOOKUP("Male",$I$2:$J$3,2,0),'CA SIMD dist data'!W$15+VLOOKUP($C$3,$E$2:$G$13,3,0)),INDEX(INDIRECT(CONCATENATE("'LA SIMD 10 ",$C$1,"'!$C$8:$Dr$71")),'CA SIMD dist data'!$M39+VLOOKUP($C$2,$I$2:$J$3,2,0),'CA SIMD dist data'!W$15+VLOOKUP($C$3,$E$2:$G$13,3,0))) -> 17159 | X39: =IF($C$2="Both",INDEX(INDIRECT(CONCATENATE("'LA SIMD 10 ",$C$1,"'!$C$8:$Dr$71")),'CA SIMD dist data'!$M39+VLOOKUP("Female",$I$2:$J$3,2,0),'CA SIMD dist data'!X$15+VLOOKUP($C$3,$E$2:$G$13,3,0))+INDEX(INDIRECT(CONCATENATE("'LA SIMD 10 ",$C$1,"'!$C$8:$Dr$71")),'CA SIMD dist data'!$M39+VLOOKUP("Male",$I$2:$J$3,2,0),'CA SIMD dist data'!X$15+VLOOKUP($C$3,$E$2:$G$13,3,0)),INDEX(INDIRECT(CONCATENATE("'LA SIMD 10 ",$C$1,"'!$C$8:$Dr$71")),'CA SIMD dist data'!$M39+VLOOKUP($C$2,$I$2:$J$3,2,0),'CA SIMD dist data'!X$15+VLOOKUP($C$3,$E$2:$G$13,3,0))) -> 13389 | Z39: Perth and Kinross | AA39: 0.07299912049 | AB39: 0.01440501044 | AC39: -0.02156371731 | AD39: 0.01478251622 | AE39: -0.008467509141 | AF39: -0.0199755854 | AG39: -0.02810908837 | AH39: -0.02978723404 | AI39: -0.03763320247 | AJ39: 0.003447500562
A40: Renfrewshire | B40: 26861 | C40: 20009 | D40: 19037 | E40: 15620 | F40: 13431 | G40: 17753 | H40: 9249 | I40: 20265 | J40: 24611 | K40: 9094 | M40: 25 | N40: Renfrewshire | O40: =IF($C$2="Both",INDEX(INDIRECT(CONCATENATE("'LA SIMD 10 ",$C$1,"'!$C$8:$Dr$71")),'CA SIMD dist data'!$M40+VLOOKUP("Female",$I$2:$J$3,2,0),'CA SIMD dist data'!O$15+VLOOKUP($C$3,$E$2:$G$13,3,0))+INDEX(INDIRECT(CONCATENATE("'LA SIMD 10 ",$C$1,"'!$C$8:$Dr$71")),'CA SIMD dist data'!$M40+VLOOKUP("Male",$I$2:$J$3,2,0),'CA SIMD dist data'!O$15+VLOOKUP($C$3,$E$2:$G$13,3,0)),INDEX(INDIRECT(CONCATENATE("'LA SIMD 10 ",$C$1,"'!$C$8:$Dr$71")),'CA SIMD dist data'!$M40+VLOOKUP($C$2,$I$2:$J$3,2,0),'CA SIMD dist data'!O$15+VLOOKUP($C$3,$E$2:$G$13,3,0))) -> 27277 | P40: =IF($C$2="Both",INDEX(INDIRECT(CONCATENATE("'LA SIMD 10 ",$C$1,"'!$C$8:$Dr$71")),'CA SIMD dist data'!$M40+VLOOKUP("Female",$I$2:$J$3,2,0),'CA SIMD dist data'!P$15+VLOOKUP($C$3,$E$2:$G$13,3,0))+INDEX(INDIRECT(CONCATENATE("'LA SIMD 10 ",$C$1,"'!$C$8:$Dr$71")),'CA SIMD dist data'!$M40+VLOOKUP("Male",$I$2:$J$3,2,0),'CA SIMD dist data'!P$15+VLOOKUP($C$3,$E$2:$G$13,3,0)),INDEX(INDIRECT(CONCATENATE("'LA SIMD 10 ",$C$1,"'!$C$8:$Dr$71")),'CA SIMD dist data'!$M40+VLOOKUP($C$2,$I$2:$J$3,2,0),'CA SIMD dist data'!P$15+VLOOKUP($C$3,$E$2:$G$13,3,0))) -> 20099 | Q40: =IF($C$2="Both",INDEX(INDIRECT(CONCATENATE("'LA SIMD 10 ",$C$1,"'!$C$8:$Dr$71")),'CA SIMD dist data'!$M40+VLOOKUP("Female",$I$2:$J$3,2,0),'CA SIMD dist data'!Q$15+VLOOKUP($C$3,$E$2:$G$13,3,0))+INDEX(INDIRECT(CONCATENATE("'LA SIMD 10 ",$C$1,"'!$C$8:$Dr$71")),'CA SIMD dist data'!$M40+VLOOKUP("Male",$I$2:$J$3,2,0),'CA SIMD dist data'!Q$15+VLOOKUP($C$3,$E$2:$G$13,3,0)),INDEX(INDIRECT(CONCATENATE("'LA SIMD 10 ",$C$1,"'!$C$8:$Dr$71")),'CA SIMD dist data'!$M40+VLOOKUP($C$2,$I$2:$J$3,2,0),'CA SIMD dist data'!Q$15+VLOOKUP($C$3,$E$2:$G$13,3,0))) -> 19386 | R40: =IF($C$2="Both",INDEX(INDIRECT(CONCATENATE("'LA SIMD 10 ",$C$1,"'!$C$8:$Dr$71")),'CA SIMD dist data'!$M40+VLOOKUP("Female",$I$2:$J$3,2,0),'CA SIMD dist data'!R$15+VLOOKUP($C$3,$E$2:$G$13,3,0))+INDEX(INDIRECT(CONCATENATE("'LA SIMD 10 ",$C$1,"'!$C$8:$Dr$71")),'CA SIMD dist data'!$M40+VLOOKUP("Male",$I$2:$J$3,2,0),'CA SIMD dist data'!R$15+VLOOKUP($C$3,$E$2:$G$13,3,0)),INDEX(INDIRECT(CONCATENATE("'LA SIMD 10 ",$C$1,"'!$C$8:$Dr$71")),'CA SIMD dist data'!$M40+VLOOKUP($C$2,$I$2:$J$3,2,0),'CA SIMD dist data'!R$15+VLOOKUP($C$3,$E$2:$G$13,3,0))) -> 15758 | S40: =IF($C$2="Both",INDEX(INDIRECT(CONCATENATE("'LA SIMD 10 ",$C$1,"'!$C$8:$Dr$71")),'CA SIMD dist data'!$M40+VLOOKUP("Female",$I$2:$J$3,2,0),'CA SIMD dist data'!S$15+VLOOKUP($C$3,$E$2:$G$13,3,0))+INDEX(INDIRECT(CONCATENATE("'LA SIMD 10 ",$C$1,"'!$C$8:$Dr$71")),'CA SIMD dist data'!$M40+VLOOKUP("Male",$I$2:$J$3,2,0),'CA SIMD dist data'!S$15+VLOOKUP($C$3,$E$2:$G$13,3,0)),INDEX(INDIRECT(CONCATENATE("'LA SIMD 10 ",$C$1,"'!$C$8:$Dr$71")),'CA SIMD dist data'!$M40+VLOOKUP($C$2,$I$2:$J$3,2,0),'CA SIMD dist data'!S$15+VLOOKUP($C$3,$E$2:$G$13,3,0))) -> 13521 | T40: =IF($C$2="Both",INDEX(INDIRECT(CONCATENATE("'LA SIMD 10 ",$C$1,"'!$C$8:$Dr$71")),'CA SIMD dist data'!$M40+VLOOKUP("Female",$I$2:$J$3,2,0),'CA SIMD dist data'!T$15+VLOOKUP($C$3,$E$2:$G$13,3,0))+INDEX(INDIRECT(CONCATENATE("'LA SIMD 10 ",$C$1,"'!$C$8:$Dr$71")),'CA SIMD dist data'!$M40+VLOOKUP("Male",$I$2:$J$3,2,0),'CA SIMD dist data'!T$15+VLOOKUP($C$3,$E$2:$G$13,3,0)),INDEX(INDIRECT(CONCATENATE("'LA SIMD 10 ",$C$1,"'!$C$8:$Dr$71")),'CA SIMD dist data'!$M40+VLOOKUP($C$2,$I$2:$J$3,2,0),'CA SIMD dist data'!T$15+VLOOKUP($C$3,$E$2:$G$13,3,0))) -> 17818 | U40: =IF($C$2="Both",INDEX(INDIRECT(CONCATENATE("'LA SIMD 10 ",$C$1,"'!$C$8:$Dr$71")),'CA SIMD dist data'!$M40+VLOOKUP("Female",$I$2:$J$3,2,0),'CA SIMD dist data'!U$15+VLOOKUP($C$3,$E$2:$G$13,3,0))+INDEX(INDIRECT(CONCATENATE("'LA SIMD 10 ",$C$1,"'!$C$8:$Dr$71")),'CA SIMD dist data'!$M40+VLOOKUP("Male",$I$2:$J$3,2,0),'CA SIMD dist data'!U$15+VLOOKUP($C$3,$E$2:$G$13,3,0)),INDEX(INDIRECT(CONCATENATE("'LA SIMD 10 ",$C$1,"'!$C$8:$Dr$71")),'CA SIMD dist data'!$M40+VLOOKUP($C$2,$I$2:$J$3,2,0),'CA SIMD dist data'!U$15+VLOOKUP($C$3,$E$2:$G$13,3,0))) -> 8802 | V40: =IF($C$2="Both",INDEX(INDIRECT(CONCATENATE("'LA SIMD 10 ",$C$1,"'!$C$8:$Dr$71")),'CA SIMD dist data'!$M40+VLOOKUP("Female",$I$2:$J$3,2,0),'CA SIMD dist data'!V$15+VLOOKUP($C$3,$E$2:$G$13,3,0))+INDEX(INDIRECT(CONCATENATE("'LA SIMD 10 ",$C$1,"'!$C$8:$Dr$71")),'CA SIMD dist data'!$M40+VLOOKUP("Male",$I$2:$J$3,2,0),'CA SIMD dist data'!V$15+VLOOKUP($C$3,$E$2:$G$13,3,0)),INDEX(INDIRECT(CONCATENATE("'LA SIMD 10 ",$C$1,"'!$C$8:$Dr$71")),'CA SIMD dist data'!$M40+VLOOKUP($C$2,$I$2:$J$3,2,0),'CA SIMD dist data'!V$15+VLOOKUP($C$3,$E$2:$G$13,3,0))) -> 20369 | W40: =IF($C$2="Both",INDEX(INDIRECT(CONCATENATE("'LA SIMD 10 ",$C$1,"'!$C$8:$Dr$71")),'CA SIMD dist data'!$M40+VLOOKUP("Female",$I$2:$J$3,2,0),'CA SIMD dist data'!W$15+VLOOKUP($C$3,$E$2:$G$13,3,0))+INDEX(INDIRECT(CONCATENATE("'LA SIMD 10 ",$C$1,"'!$C$8:$Dr$71")),'CA SIMD dist data'!$M40+VLOOKUP("Male",$I$2:$J$3,2,0),'CA SIMD dist data'!W$15+VLOOKUP($C$3,$E$2:$G$13,3,0)),INDEX(INDIRECT(CONCATENATE("'LA SIMD 10 ",$C$1,"'!$C$8:$Dr$71")),'CA SIMD dist data'!$M40+VLOOKUP($C$2,$I$2:$J$3,2,0),'CA SIMD dist data'!W$15+VLOOKUP($C$3,$E$2:$G$13,3,0))) -> 24523 | X40: =IF($C$2="Both",INDEX(INDIRECT(CONCATENATE("'LA SIMD 10 ",$C$1,"'!$C$8:$Dr$71")),'CA SIMD dist data'!$M40+VLOOKUP("Female",$I$2:$J$3,2,0),'CA SIMD dist data'!X$15+VLOOKUP($C$3,$E$2:$G$13,3,0))+INDEX(INDIRECT(CONCATENATE("'LA SIMD 10 ",$C$1,"'!$C$8:$Dr$71")),'CA SIMD dist data'!$M40+VLOOKUP("Male",$I$2:$J$3,2,0),'CA SIMD dist data'!X$15+VLOOKUP($C$3,$E$2:$G$13,3,0)),INDEX(INDIRECT(CONCATENATE("'LA SIMD 10 ",$C$1,"'!$C$8:$Dr$71")),'CA SIMD dist data'!$M40+VLOOKUP($C$2,$I$2:$J$3,2,0),'CA SIMD dist data'!X$15+VLOOKUP($C$3,$E$2:$G$13,3,0))) -> 9264 | Z40: Renfrewshire | AA40: 0.01548713749 | AB40: 0.004497975911 | AC40: 0.01833272049 | AD40: 0.008834827145 | AE40: 0.006700915792 | AF40: 0.003661353011 | AG40: -0.04832954914 | AH40: 0.005132000987 | AI40: -0.00357563691 | AJ40: 0.01869364416
A41: Scottish Borders | B41: 1666 | C41: =IF($C$2="Both",SUMIFS(INDIRECT(CONCATENATE("'MYE ",$C$1," F'!$D$",VLOOKUP($C$3,$E$2:$F$13,2,0),":$JHK$",VLOOKUP($C$3,$E$2:$F$13,2,0))),INDIRECT(CONCATENATE("'MYE ",$C$1," F'!$D$5:$JHK$5")),$A41,INDIRECT(CONCATENATE("'MYE ",$C$1," F'!$D$6:$JHK$6")),C$15)+SUMIFS(INDIRECT(CONCATENATE("'MYE ",$C$1," M'!$D$",VLOOKUP($C$3,$E$2:$F$13,2,0),":$JHK$",VLOOKUP($C$3,$E$2:$F$13,2,0))),INDIRECT(CONCATENATE("'MYE ",$C$1," M'!$D$5:$JHK$5")),$A41,INDIRECT(CONCATENATE("'MYE ",$C$1," M'!$D$6:$JHK$6")),C$15),SUMIFS(INDIRECT(CONCATENATE("'MYE ",$C$1," ",$D$2,"'!$D$",VLOOKUP($C$3,$E$2:$F$13,2,0),":$JHK$",VLOOKUP($C$3,$E$2:$F$13,2,0))),INDIRECT(CONCATENATE("'MYE ",$C$1," ",$D$2,"'!$D$5:$JHK$5")),$A41,INDIRECT(CONCATENATE("'MYE ",$C$1," ",$D$2,"'!$D$6:$JHK$6")),C$15)) -> 4970 | D41: 5908 | E41: 9660 | F41: 23495 | G41: 17037 | H41: 28321 | I41: 11331 | J41: 8288 | K41: 3854 | M41: 26 | N41: Scottish Borders | O41: =IF($C$2="Both",INDEX(INDIRECT(CONCATENATE("'LA SIMD 10 ",$C$1,"'!$C$8:$Dr$71")),'CA SIMD dist data'!$M41+VLOOKUP("Female",$I$2:$J$3,2,0),'CA SIMD dist data'!O$15+VLOOKUP($C$3,$E$2:$G$13,3,0))+INDEX(INDIRECT(CONCATENATE("'LA SIMD 10 ",$C$1,"'!$C$8:$Dr$71")),'CA SIMD dist data'!$M41+VLOOKUP("Male",$I$2:$J$3,2,0),'CA SIMD dist data'!O$15+VLOOKUP($C$3,$E$2:$G$13,3,0)),INDEX(INDIRECT(CONCATENATE("'LA SIMD 10 ",$C$1,"'!$C$8:$Dr$71")),'CA SIMD dist data'!$M41+VLOOKUP($C$2,$I$2:$J$3,2,0),'CA SIMD dist data'!O$15+VLOOKUP($C$3,$E$2:$G$13,3,0))) -> 1756 | P41: =IF($C$2="Both",INDEX(INDIRECT(CONCATENATE("'LA SIMD 10 ",$C$1,"'!$C$8:$Dr$71")),'CA SIMD dist data'!$M41+VLOOKUP("Female",$I$2:$J$3,2,0),'CA SIMD dist data'!P$15+VLOOKUP($C$3,$E$2:$G$13,3,0))+INDEX(INDIRECT(CONCATENATE("'LA SIMD 10 ",$C$1,"'!$C$8:$Dr$71")),'CA SIMD dist data'!$M41+VLOOKUP("Male",$I$2:$J$3,2,0),'CA SIMD dist data'!P$15+VLOOKUP($C$3,$E$2:$G$13,3,0)),INDEX(INDIRECT(CONCATENATE("'LA SIMD 10 ",$C$1,"'!$C$8:$Dr$71")),'CA SIMD dist data'!$M41+VLOOKUP($C$2,$I$2:$J$3,2,0),'CA SIMD dist data'!P$15+VLOOKUP($C$3,$E$2:$G$13,3,0))) -> 5052 | Q41: =IF($C$2="Both",INDEX(INDIRECT(CONCATENATE("'LA SIMD 10 ",$C$1,"'!$C$8:$Dr$71")),'CA SIMD dist data'!$M41+VLOOKUP("Female",$I$2:$J$3,2,0),'CA SIMD dist data'!Q$15+VLOOKUP($C$3,$E$2:$G$13,3,0))+INDEX(INDIRECT(CONCATENATE("'LA SIMD 10 ",$C$1,"'!$C$8:$Dr$71")),'CA SIMD dist data'!$M41+VLOOKUP("Male",$I$2:$J$3,2,0),'CA SIMD dist data'!Q$15+VLOOKUP($C$3,$E$2:$G$13,3,0)),INDEX(INDIRECT(CONCATENATE("'LA SIMD 10 ",$C$1,"'!$C$8:$Dr$71")),'CA SIMD dist data'!$M41+VLOOKUP($C$2,$I$2:$J$3,2,0),'CA SIMD dist data'!Q$15+VLOOKUP($C$3,$E$2:$G$13,3,0))) -> 5747 | R41: =IF($C$2="Both",INDEX(INDIRECT(CONCATENATE("'LA SIMD 10 ",$C$1,"'!$C$8:$Dr$71")),'CA SIMD dist data'!$M41+VLOOKUP("Female",$I$2:$J$3,2,0),'CA SIMD dist data'!R$15+VLOOKUP($C$3,$E$2:$G$13,3,0))+INDEX(INDIRECT(CONCATENATE("'LA SIMD 10 ",$C$1,"'!$C$8:$Dr$71")),'CA SIMD dist data'!$M41+VLOOKUP("Male",$I$2:$J$3,2,0),'CA SIMD dist data'!R$15+VLOOKUP($C$3,$E$2:$G$13,3,0)),INDEX(INDIRECT(CONCATENATE("'LA SIMD 10 ",$C$1,"'!$C$8:$Dr$71")),'CA SIMD dist data'!$M41+VLOOKUP($C$2,$I$2:$J$3,2,0),'CA SIMD dist data'!R$15+VLOOKUP($C$3,$E$2:$G$13,3,0))) -> 9663 | S41: =IF($C$2="Both",INDEX(INDIRECT(CONCATENATE("'LA SIMD 10 ",$C$1,"'!$C$8:$Dr$71")),'CA SIMD dist data'!$M41+VLOOKUP("Female",$I$2:$J$3,2,0),'CA SIMD dist data'!S$15+VLOOKUP($C$3,$E$2:$G$13,3,0))+INDEX(INDIRECT(CONCATENATE("'LA SIMD 10 ",$C$1,"'!$C$8:$Dr$71")),'CA SIMD dist data'!$M41+VLOOKUP("Male",$I$2:$J$3,2,0),'CA SIMD dist data'!S$15+VLOOKUP($C$3,$E$2:$G$13,3,0)),INDEX(INDIRECT(CONCATENATE("'LA SIMD 10 ",$C$1,"'!$C$8:$Dr$71")),'CA SIMD dist data'!$M41+VLOOKUP($C$2,$I$2:$J$3,2,0),'CA SIMD dist data'!S$15+VLOOKUP($C$3,$E$2:$G$13,3,0))) -> 24052 | T41: =IF($C$2="Both",INDEX(INDIRECT(CONCATENATE("'LA SIMD 10 ",$C$1,"'!$C$8:$Dr$71")),'CA SIMD dist data'!$M41+VLOOKUP("Female",$I$2:$J$3,2,0),'CA SIMD dist data'!T$15+VLOOKUP($C$3,$E$2:$G$13,3,0))+INDEX(INDIRECT(CONCATENATE("'LA SIMD 10 ",$C$1,"'!$C$8:$Dr$71")),'CA SIMD dist data'!$M41+VLOOKUP("Male",$I$2:$J$3,2,0),'CA SIMD dist data'!T$15+VLOOKUP($C$3,$E$2:$G$13,3,0)),INDEX(INDIRECT(CONCATENATE("'LA SIMD 10 ",$C$1,"'!$C$8:$Dr$71")),'CA SIMD dist data'!$M41+VLOOKUP($C$2,$I$2:$J$3,2,0),'CA SIMD dist data'!T$15+VLOOKUP($C$3,$E$2:$G$13,3,0))) -> 16854 | U41: =IF($C$2="Both",INDEX(INDIRECT(CONCATENATE("'LA SIMD 10 ",$C$1,"'!$C$8:$Dr$71")),'CA SIMD dist data'!$M41+VLOOKUP("Female",$I$2:$J$3,2,0),'CA SIMD dist data'!U$15+VLOOKUP($C$3,$E$2:$G$13,3,0))+INDEX(INDIRECT(CONCATENATE("'LA SIMD 10 ",$C$1,"'!$C$8:$Dr$71")),'CA SIMD dist data'!$M41+VLOOKUP("Male",$I$2:$J$3,2,0),'CA SIMD dist data'!U$15+VLOOKUP($C$3,$E$2:$G$13,3,0)),INDEX(INDIRECT(CONCATENATE("'LA SIMD 10 ",$C$1,"'!$C$8:$Dr$71")),'CA SIMD dist data'!$M41+VLOOKUP($C$2,$I$2:$J$3,2,0),'CA SIMD dist data'!U$15+VLOOKUP($C$3,$E$2:$G$13,3,0))) -> 27712 | V41: =IF($C$2="Both",INDEX(INDIRECT(CONCATENATE("'LA SIMD 10 ",$C$1,"'!$C$8:$Dr$71")),'CA SIMD dist data'!$M41+VLOOKUP("Female",$I$2:$J$3,2,0),'CA SIMD dist data'!V$15+VLOOKUP($C$3,$E$2:$G$13,3,0))+INDEX(INDIRECT(CONCATENATE("'LA SIMD 10 ",$C$1,"'!$C$8:$Dr$71")),'CA SIMD dist data'!$M41+VLOOKUP("Male",$I$2:$J$3,2,0),'CA SIMD dist data'!V$15+VLOOKUP($C$3,$E$2:$G$13,3,0)),INDEX(INDIRECT(CONCATENATE("'LA SIMD 10 ",$C$1,"'!$C$8:$Dr$71")),'CA SIMD dist data'!$M41+VLOOKUP($C$2,$I$2:$J$3,2,0),'CA SIMD dist data'!V$15+VLOOKUP($C$3,$E$2:$G$13,3,0))) -> 11174 | W41: =IF($C$2="Both",INDEX(INDIRECT(CONCATENATE("'LA SIMD 10 ",$C$1,"'!$C$8:$Dr$71")),'CA SIMD dist data'!$M41+VLOOKUP("Female",$I$2:$J$3,2,0),'CA SIMD dist data'!W$15+VLOOKUP($C$3,$E$2:$G$13,3,0))+INDEX(INDIRECT(CONCATENATE("'LA SIMD 10 ",$C$1,"'!$C$8:$Dr$71")),'CA SIMD dist data'!$M41+VLOOKUP("Male",$I$2:$J$3,2,0),'CA SIMD dist data'!W$15+VLOOKUP($C$3,$E$2:$G$13,3,0)),INDEX(INDIRECT(CONCATENATE("'LA SIMD 10 ",$C$1,"'!$C$8:$Dr$71")),'CA SIMD dist data'!$M41+VLOOKUP($C$2,$I$2:$J$3,2,0),'CA SIMD dist data'!W$15+VLOOKUP($C$3,$E$2:$G$13,3,0))) -> 7959 | X41: =IF($C$2="Both",INDEX(INDIRECT(CONCATENATE("'LA SIMD 10 ",$C$1,"'!$C$8:$Dr$71")),'CA SIMD dist data'!$M41+VLOOKUP("Female",$I$2:$J$3,2,0),'CA SIMD dist data'!X$15+VLOOKUP($C$3,$E$2:$G$13,3,0))+INDEX(INDIRECT(CONCATENATE("'LA SIMD 10 ",$C$1,"'!$C$8:$Dr$71")),'CA SIMD dist data'!$M41+VLOOKUP("Male",$I$2:$J$3,2,0),'CA SIMD dist data'!X$15+VLOOKUP($C$3,$E$2:$G$13,3,0)),INDEX(INDIRECT(CONCATENATE("'LA SIMD 10 ",$C$1,"'!$C$8:$Dr$71")),'CA SIMD dist data'!$M41+VLOOKUP($C$2,$I$2:$J$3,2,0),'CA SIMD dist data'!X$15+VLOOKUP($C$3,$E$2:$G$13,3,0))) -> 3748 | Z41: Scottish Borders | AA41: 0.05402160864 | AB41: 0.01649899396 | AC41: -0.02725118483 | AD41: 0.0003105590062 | AE41: 0.02370717174 | AF41: -0.0107413277 | AG41: -0.02150347798 | AH41: -0.01385579384 | AI41: -0.03969594595 | AJ41: -0.02750389206
A42: Shetland Islands | B42: 0 | C42: 0 | D42: 0 | E42: 749 | F42: 3706 | G42: 2266 | H42: 11403 | I42: 5076 | J42: 0 | K42: 0 | M42: 27 | N42: Shetland Islands | O42: =IF($C$2="Both",INDEX(INDIRECT(CONCATENATE("'LA SIMD 10 ",$C$1,"'!$C$8:$Dr$71")),'CA SIMD dist data'!$M42+VLOOKUP("Female",$I$2:$J$3,2,0),'CA SIMD dist data'!O$15+VLOOKUP($C$3,$E$2:$G$13,3,0))+INDEX(INDIRECT(CONCATENATE("'LA SIMD 10 ",$C$1,"'!$C$8:$Dr$71")),'CA SIMD dist data'!$M42+VLOOKUP("Male",$I$2:$J$3,2,0),'CA SIMD dist data'!O$15+VLOOKUP($C$3,$E$2:$G$13,3,0)),INDEX(INDIRECT(CONCATENATE("'LA SIMD 10 ",$C$1,"'!$C$8:$Dr$71")),'CA SIMD dist data'!$M42+VLOOKUP($C$2,$I$2:$J$3,2,0),'CA SIMD dist data'!O$15+VLOOKUP($C$3,$E$2:$G$13,3,0))) -> 0 | P42: =IF($C$2="Both",INDEX(INDIRECT(CONCATENATE("'LA SIMD 10 ",$C$1,"'!$C$8:$Dr$71")),'CA SIMD dist data'!$M42+VLOOKUP("Female",$I$2:$J$3,2,0),'CA SIMD dist data'!P$15+VLOOKUP($C$3,$E$2:$G$13,3,0))+INDEX(INDIRECT(CONCATENATE("'LA SIMD 10 ",$C$1,"'!$C$8:$Dr$71")),'CA SIMD dist data'!$M42+VLOOKUP("Male",$I$2:$J$3,2,0),'CA SIMD dist data'!P$15+VLOOKUP($C$3,$E$2:$G$13,3,0)),INDEX(INDIRECT(CONCATENATE("'LA SIMD 10 ",$C$1,"'!$C$8:$Dr$71")),'CA SIMD dist data'!$M42+VLOOKUP($C$2,$I$2:$J$3,2,0),'CA SIMD dist data'!P$15+VLOOKUP($C$3,$E$2:$G$13,3,0))) -> 0 | Q42: =IF($C$2="Both",INDEX(INDIRECT(CONCATENATE("'LA SIMD 10 ",$C$1,"'!$C$8:$Dr$71")),'CA SIMD dist data'!$M42+VLOOKUP("Female",$I$2:$J$3,2,0),'CA SIMD dist data'!Q$15+VLOOKUP($C$3,$E$2:$G$13,3,0))+INDEX(INDIRECT(CONCATENATE("'LA SIMD 10 ",$C$1,"'!$C$8:$Dr$71")),'CA SIMD dist data'!$M42+VLOOKUP("Male",$I$2:$J$3,2,0),'CA SIMD dist data'!Q$15+VLOOKUP($C$3,$E$2:$G$13,3,0)),INDEX(INDIRECT(CONCATENATE("'LA SIMD 10 ",$C$1,"'!$C$8:$Dr$71")),'CA SIMD dist data'!$M42+VLOOKUP($C$2,$I$2:$J$3,2,0),'CA SIMD dist data'!Q$15+VLOOKUP($C$3,$E$2:$G$13,3,0))) -> 0 | R42: =IF($C$2="Both",INDEX(INDIRECT(CONCATENATE("'LA SIMD 10 ",$C$1,"'!$C$8:$Dr$71")),'CA SIMD dist data'!$M42+VLOOKUP("Female",$I$2:$J$3,2,0),'CA SIMD dist data'!R$15+VLOOKUP($C$3,$E$2:$G$13,3,0))+INDEX(INDIRECT(CONCATENATE("'LA SIMD 10 ",$C$1,"'!$C$8:$Dr$71")),'CA SIMD dist data'!$M42+VLOOKUP("Male",$I$2:$J$3,2,0),'CA SIMD dist data'!R$15+VLOOKUP($C$3,$E$2:$G$13,3,0)),INDEX(INDIRECT(CONCATENATE("'LA SIMD 10 ",$C$1,"'!$C$8:$Dr$71")),'CA SIMD dist data'!$M42+VLOOKUP($C$2,$I$2:$J$3,2,0),'CA SIMD dist data'!R$15+VLOOKUP($C$3,$E$2:$G$13,3,0))) -> 731 | S42: =IF($C$2="Both",INDEX(INDIRECT(CONCATENATE("'LA SIMD 10 ",$C$1,"'!$C$8:$Dr$71")),'CA SIMD dist data'!$M42+VLOOKUP("Female",$I$2:$J$3,2,0),'CA SIMD dist data'!S$15+VLOOKUP($C$3,$E$2:$G$13,3,0))+INDEX(INDIRECT(CONCATENATE("'LA SIMD 10 ",$C$1,"'!$C$8:$Dr$71")),'CA SIMD dist data'!$M42+VLOOKUP("Male",$I$2:$J$3,2,0),'CA SIMD dist data'!S$15+VLOOKUP($C$3,$E$2:$G$13,3,0)),INDEX(INDIRECT(CONCATENATE("'LA SIMD 10 ",$C$1,"'!$C$8:$Dr$71")),'CA SIMD dist data'!$M42+VLOOKUP($C$2,$I$2:$J$3,2,0),'CA SIMD dist data'!S$15+VLOOKUP($C$3,$E$2:$G$13,3,0))) -> 3692 | T42: =IF($C$2="Both",INDEX(INDIRECT(CONCATENATE("'LA SIMD 10 ",$C$1,"'!$C$8:$Dr$71")),'CA SIMD dist data'!$M42+VLOOKUP("Female",$I$2:$J$3,2,0),'CA SIMD dist data'!T$15+VLOOKUP($C$3,$E$2:$G$13,3,0))+INDEX(INDIRECT(CONCATENATE("'LA SIMD 10 ",$C$1,"'!$C$8:$Dr$71")),'CA SIMD dist data'!$M42+VLOOKUP("Male",$I$2:$J$3,2,0),'CA SIMD dist data'!T$15+VLOOKUP($C$3,$E$2:$G$13,3,0)),INDEX(INDIRECT(CONCATENATE("'LA SIMD 10 ",$C$1,"'!$C$8:$Dr$71")),'CA SIMD dist data'!$M42+VLOOKUP($C$2,$I$2:$J$3,2,0),'CA SIMD dist data'!T$15+VLOOKUP($C$3,$E$2:$G$13,3,0))) -> 2111 | U42: =IF($C$2="Both",INDEX(INDIRECT(CONCATENATE("'LA SIMD 10 ",$C$1,"'!$C$8:$Dr$71")),'CA SIMD dist data'!$M42+VLOOKUP("Female",$I$2:$J$3,2,0),'CA SIMD dist data'!U$15+VLOOKUP($C$3,$E$2:$G$13,3,0))+INDEX(INDIRECT(CONCATENATE("'LA SIMD 10 ",$C$1,"'!$C$8:$Dr$71")),'CA SIMD dist data'!$M42+VLOOKUP("Male",$I$2:$J$3,2,0),'CA SIMD dist data'!U$15+VLOOKUP($C$3,$E$2:$G$13,3,0)),INDEX(INDIRECT(CONCATENATE("'LA SIMD 10 ",$C$1,"'!$C$8:$Dr$71")),'CA SIMD dist data'!$M42+VLOOKUP($C$2,$I$2:$J$3,2,0),'CA SIMD dist data'!U$15+VLOOKUP($C$3,$E$2:$G$13,3,0))) -> 11076 | V42: =IF($C$2="Both",INDEX(INDIRECT(CONCATENATE("'LA SIMD 10 ",$C$1,"'!$C$8:$Dr$71")),'CA SIMD dist data'!$M42+VLOOKUP("Female",$I$2:$J$3,2,0),'CA SIMD dist data'!V$15+VLOOKUP($C$3,$E$2:$G$13,3,0))+INDEX(INDIRECT(CONCATENATE("'LA SIMD 10 ",$C$1,"'!$C$8:$Dr$71")),'CA SIMD dist data'!$M42+VLOOKUP("Male",$I$2:$J$3,2,0),'CA SIMD dist data'!V$15+VLOOKUP($C$3,$E$2:$G$13,3,0)),INDEX(INDIRECT(CONCATENATE("'LA SIMD 10 ",$C$1,"'!$C$8:$Dr$71")),'CA SIMD dist data'!$M42+VLOOKUP($C$2,$I$2:$J$3,2,0),'CA SIMD dist data'!V$15+VLOOKUP($C$3,$E$2:$G$13,3,0))) -> 4944 | W42: =IF($C$2="Both",INDEX(INDIRECT(CONCATENATE("'LA SIMD 10 ",$C$1,"'!$C$8:$Dr$71")),'CA SIMD dist data'!$M42+VLOOKUP("Female",$I$2:$J$3,2,0),'CA SIMD dist data'!W$15+VLOOKUP($C$3,$E$2:$G$13,3,0))+INDEX(INDIRECT(CONCATENATE("'LA SIMD 10 ",$C$1,"'!$C$8:$Dr$71")),'CA SIMD dist data'!$M42+VLOOKUP("Male",$I$2:$J$3,2,0),'CA SIMD dist data'!W$15+VLOOKUP($C$3,$E$2:$G$13,3,0)),INDEX(INDIRECT(CONCATENATE("'LA SIMD 10 ",$C$1,"'!$C$8:$Dr$71")),'CA SIMD dist data'!$M42+VLOOKUP($C$2,$I$2:$J$3,2,0),'CA SIMD dist data'!W$15+VLOOKUP($C$3,$E$2:$G$13,3,0))) -> 0 | X42: =IF($C$2="Both",INDEX(INDIRECT(CONCATENATE("'LA SIMD 10 ",$C$1,"'!$C$8:$Dr$71")),'CA SIMD dist data'!$M42+VLOOKUP("Female",$I$2:$J$3,2,0),'CA SIMD dist data'!X$15+VLOOKUP($C$3,$E$2:$G$13,3,0))+INDEX(INDIRECT(CONCATENATE("'LA SIMD 10 ",$C$1,"'!$C$8:$Dr$71")),'CA SIMD dist data'!$M42+VLOOKUP("Male",$I$2:$J$3,2,0),'CA SIMD dist data'!X$15+VLOOKUP($C$3,$E$2:$G$13,3,0)),INDEX(INDIRECT(CONCATENATE("'LA SIMD 10 ",$C$1,"'!$C$8:$Dr$71")),'CA SIMD dist data'!$M42+VLOOKUP($C$2,$I$2:$J$3,2,0),'CA SIMD dist data'!X$15+VLOOKUP($C$3,$E$2:$G$13,3,0))) -> 0 | Z42: Shetland Islands | AD42: -0.02403204272 | AE42: -0.003777657852 | AF42: -0.06840247132 | AG42: -0.02867666404 | AH42: -0.02600472813
A43: South Ayrshire | B43: 8968 | C43: 10710 | D43: 11115 | E43: 18742 | F43: 14348 | G43: 10269 | H43: 3997 | I43: 11262 | J43: 12708 | K43: 10351 | M43: 28 | N43: South Ayrshire | O43: =IF($C$2="Both",INDEX(INDIRECT(CONCATENATE("'LA SIMD 10 ",$C$1,"'!$C$8:$Dr$71")),'CA SIMD dist data'!$M43+VLOOKUP("Female",$I$2:$J$3,2,0),'CA SIMD dist data'!O$15+VLOOKUP($C$3,$E$2:$G$13,3,0))+INDEX(INDIRECT(CONCATENATE("'LA SIMD 10 ",$C$1,"'!$C$8:$Dr$71")),'CA SIMD dist data'!$M43+VLOOKUP("Male",$I$2:$J$3,2,0),'CA SIMD dist data'!O$15+VLOOKUP($C$3,$E$2:$G$13,3,0)),INDEX(INDIRECT(CONCATENATE("'LA SIMD 10 ",$C$1,"'!$C$8:$Dr$71")),'CA SIMD dist data'!$M43+VLOOKUP($C$2,$I$2:$J$3,2,0),'CA SIMD dist data'!O$15+VLOOKUP($C$3,$E$2:$G$13,3,0))) -> 9379 | P43: =IF($C$2="Both",INDEX(INDIRECT(CONCATENATE("'LA SIMD 10 ",$C$1,"'!$C$8:$Dr$71")),'CA SIMD dist data'!$M43+VLOOKUP("Female",$I$2:$J$3,2,0),'CA SIMD dist data'!P$15+VLOOKUP($C$3,$E$2:$G$13,3,0))+INDEX(INDIRECT(CONCATENATE("'LA SIMD 10 ",$C$1,"'!$C$8:$Dr$71")),'CA SIMD dist data'!$M43+VLOOKUP("Male",$I$2:$J$3,2,0),'CA SIMD dist data'!P$15+VLOOKUP($C$3,$E$2:$G$13,3,0)),INDEX(INDIRECT(CONCATENATE("'LA SIMD 10 ",$C$1,"'!$C$8:$Dr$71")),'CA SIMD dist data'!$M43+VLOOKUP($C$2,$I$2:$J$3,2,0),'CA SIMD dist data'!P$15+VLOOKUP($C$3,$E$2:$G$13,3,0))) -> 10995 | Q43: =IF($C$2="Both",INDEX(INDIRECT(CONCATENATE("'LA SIMD 10 ",$C$1,"'!$C$8:$Dr$71")),'CA SIMD dist data'!$M43+VLOOKUP("Female",$I$2:$J$3,2,0),'CA SIMD dist data'!Q$15+VLOOKUP($C$3,$E$2:$G$13,3,0))+INDEX(INDIRECT(CONCATENATE("'LA SIMD 10 ",$C$1,"'!$C$8:$Dr$71")),'CA SIMD dist data'!$M43+VLOOKUP("Male",$I$2:$J$3,2,0),'CA SIMD dist data'!Q$15+VLOOKUP($C$3,$E$2:$G$13,3,0)),INDEX(INDIRECT(CONCATENATE("'LA SIMD 10 ",$C$1,"'!$C$8:$Dr$71")),'CA SIMD dist data'!$M43+VLOOKUP($C$2,$I$2:$J$3,2,0),'CA SIMD dist data'!Q$15+VLOOKUP($C$3,$E$2:$G$13,3,0))) -> 11132 | R43: =IF($C$2="Both",INDEX(INDIRECT(CONCATENATE("'LA SIMD 10 ",$C$1,"'!$C$8:$Dr$71")),'CA SIMD dist data'!$M43+VLOOKUP("Female",$I$2:$J$3,2,0),'CA SIMD dist data'!R$15+VLOOKUP($C$3,$E$2:$G$13,3,0))+INDEX(INDIRECT(CONCATENATE("'LA SIMD 10 ",$C$1,"'!$C$8:$Dr$71")),'CA SIMD dist data'!$M43+VLOOKUP("Male",$I$2:$J$3,2,0),'CA SIMD dist data'!R$15+VLOOKUP($C$3,$E$2:$G$13,3,0)),INDEX(INDIRECT(CONCATENATE("'LA SIMD 10 ",$C$1,"'!$C$8:$Dr$71")),'CA SIMD dist data'!$M43+VLOOKUP($C$2,$I$2:$J$3,2,0),'CA SIMD dist data'!R$15+VLOOKUP($C$3,$E$2:$G$13,3,0))) -> 18929 | S43: =IF($C$2="Both",INDEX(INDIRECT(CONCATENATE("'LA SIMD 10 ",$C$1,"'!$C$8:$Dr$71")),'CA SIMD dist data'!$M43+VLOOKUP("Female",$I$2:$J$3,2,0),'CA SIMD dist data'!S$15+VLOOKUP($C$3,$E$2:$G$13,3,0))+INDEX(INDIRECT(CONCATENATE("'LA SIMD 10 ",$C$1,"'!$C$8:$Dr$71")),'CA SIMD dist data'!$M43+VLOOKUP("Male",$I$2:$J$3,2,0),'CA SIMD dist data'!S$15+VLOOKUP($C$3,$E$2:$G$13,3,0)),INDEX(INDIRECT(CONCATENATE("'LA SIMD 10 ",$C$1,"'!$C$8:$Dr$71")),'CA SIMD dist data'!$M43+VLOOKUP($C$2,$I$2:$J$3,2,0),'CA SIMD dist data'!S$15+VLOOKUP($C$3,$E$2:$G$13,3,0))) -> 14384 | T43: =IF($C$2="Both",INDEX(INDIRECT(CONCATENATE("'LA SIMD 10 ",$C$1,"'!$C$8:$Dr$71")),'CA SIMD dist data'!$M43+VLOOKUP("Female",$I$2:$J$3,2,0),'CA SIMD dist data'!T$15+VLOOKUP($C$3,$E$2:$G$13,3,0))+INDEX(INDIRECT(CONCATENATE("'LA SIMD 10 ",$C$1,"'!$C$8:$Dr$71")),'CA SIMD dist data'!$M43+VLOOKUP("Male",$I$2:$J$3,2,0),'CA SIMD dist data'!T$15+VLOOKUP($C$3,$E$2:$G$13,3,0)),INDEX(INDIRECT(CONCATENATE("'LA SIMD 10 ",$C$1,"'!$C$8:$Dr$71")),'CA SIMD dist data'!$M43+VLOOKUP($C$2,$I$2:$J$3,2,0),'CA SIMD dist data'!T$15+VLOOKUP($C$3,$E$2:$G$13,3,0))) -> 10381 | U43: =IF($C$2="Both",INDEX(INDIRECT(CONCATENATE("'LA SIMD 10 ",$C$1,"'!$C$8:$Dr$71")),'CA SIMD dist data'!$M43+VLOOKUP("Female",$I$2:$J$3,2,0),'CA SIMD dist data'!U$15+VLOOKUP($C$3,$E$2:$G$13,3,0))+INDEX(INDIRECT(CONCATENATE("'LA SIMD 10 ",$C$1,"'!$C$8:$Dr$71")),'CA SIMD dist data'!$M43+VLOOKUP("Male",$I$2:$J$3,2,0),'CA SIMD dist data'!U$15+VLOOKUP($C$3,$E$2:$G$13,3,0)),INDEX(INDIRECT(CONCATENATE("'LA SIMD 10 ",$C$1,"'!$C$8:$Dr$71")),'CA SIMD dist data'!$M43+VLOOKUP($C$2,$I$2:$J$3,2,0),'CA SIMD dist data'!U$15+VLOOKUP($C$3,$E$2:$G$13,3,0))) -> 3870 | V43: =IF($C$2="Both",INDEX(INDIRECT(CONCATENATE("'LA SIMD 10 ",$C$1,"'!$C$8:$Dr$71")),'CA SIMD dist data'!$M43+VLOOKUP("Female",$I$2:$J$3,2,0),'CA SIMD dist data'!V$15+VLOOKUP($C$3,$E$2:$G$13,3,0))+INDEX(INDIRECT(CONCATENATE("'LA SIMD 10 ",$C$1,"'!$C$8:$Dr$71")),'CA SIMD dist data'!$M43+VLOOKUP("Male",$I$2:$J$3,2,0),'CA SIMD dist data'!V$15+VLOOKUP($C$3,$E$2:$G$13,3,0)),INDEX(INDIRECT(CONCATENATE("'LA SIMD 10 ",$C$1,"'!$C$8:$Dr$71")),'CA SIMD dist data'!$M43+VLOOKUP($C$2,$I$2:$J$3,2,0),'CA SIMD dist data'!V$15+VLOOKUP($C$3,$E$2:$G$13,3,0))) -> 11097 | W43: =IF($C$2="Both",INDEX(INDIRECT(CONCATENATE("'LA SIMD 10 ",$C$1,"'!$C$8:$Dr$71")),'CA SIMD dist data'!$M43+VLOOKUP("Female",$I$2:$J$3,2,0),'CA SIMD dist data'!W$15+VLOOKUP($C$3,$E$2:$G$13,3,0))+INDEX(INDIRECT(CONCATENATE("'LA SIMD 10 ",$C$1,"'!$C$8:$Dr$71")),'CA SIMD dist data'!$M43+VLOOKUP("Male",$I$2:$J$3,2,0),'CA SIMD dist data'!W$15+VLOOKUP($C$3,$E$2:$G$13,3,0)),INDEX(INDIRECT(CONCATENATE("'LA SIMD 10 ",$C$1,"'!$C$8:$Dr$71")),'CA SIMD dist data'!$M43+VLOOKUP($C$2,$I$2:$J$3,2,0),'CA SIMD dist data'!W$15+VLOOKUP($C$3,$E$2:$G$13,3,0))) -> 12938 | X43: =IF($C$2="Both",INDEX(INDIRECT(CONCATENATE("'LA SIMD 10 ",$C$1,"'!$C$8:$Dr$71")),'CA SIMD dist data'!$M43+VLOOKUP("Female",$I$2:$J$3,2,0),'CA SIMD dist data'!X$15+VLOOKUP($C$3,$E$2:$G$13,3,0))+INDEX(INDIRECT(CONCATENATE("'LA SIMD 10 ",$C$1,"'!$C$8:$Dr$71")),'CA SIMD dist data'!$M43+VLOOKUP("Male",$I$2:$J$3,2,0),'CA SIMD dist data'!X$15+VLOOKUP($C$3,$E$2:$G$13,3,0)),INDEX(INDIRECT(CONCATENATE("'LA SIMD 10 ",$C$1,"'!$C$8:$Dr$71")),'CA SIMD dist data'!$M43+VLOOKUP($C$2,$I$2:$J$3,2,0),'CA SIMD dist data'!X$15+VLOOKUP($C$3,$E$2:$G$13,3,0))) -> 10587 | Z43: South Ayrshire | AA43: 0.04582961641 | AB43: 0.02661064426 | AC43: 0.001529464687 | AD43: 0.009977590439 | AE43: 0.002509060496 | AF43: 0.01090661213 | AG43: -0.03177383037 | AH43: -0.01465103889 | AI43: 0.01809883538 | AJ43: 0.02279972949
A44: South Lanarkshire | B44: 31933 | C44: 31046 | D44: 40949 | E44: 41585 | F44: 36293 | G44: 24534 | H44: 32390 | I44: 32942 | J44: 32402 | K44: 13026 | M44: 29 | N44: South Lanarkshire | O44: =IF($C$2="Both",INDEX(INDIRECT(CONCATENATE("'LA SIMD 10 ",$C$1,"'!$C$8:$Dr$71")),'CA SIMD dist data'!$M44+VLOOKUP("Female",$I$2:$J$3,2,0),'CA SIMD dist data'!O$15+VLOOKUP($C$3,$E$2:$G$13,3,0))+INDEX(INDIRECT(CONCATENATE("'LA SIMD 10 ",$C$1,"'!$C$8:$Dr$71")),'CA SIMD dist data'!$M44+VLOOKUP("Male",$I$2:$J$3,2,0),'CA SIMD dist data'!O$15+VLOOKUP($C$3,$E$2:$G$13,3,0)),INDEX(INDIRECT(CONCATENATE("'LA SIMD 10 ",$C$1,"'!$C$8:$Dr$71")),'CA SIMD dist data'!$M44+VLOOKUP($C$2,$I$2:$J$3,2,0),'CA SIMD dist data'!O$15+VLOOKUP($C$3,$E$2:$G$13,3,0))) -> 34039 | P44: =IF($C$2="Both",INDEX(INDIRECT(CONCATENATE("'LA SIMD 10 ",$C$1,"'!$C$8:$Dr$71")),'CA SIMD dist data'!$M44+VLOOKUP("Female",$I$2:$J$3,2,0),'CA SIMD dist data'!P$15+VLOOKUP($C$3,$E$2:$G$13,3,0))+INDEX(INDIRECT(CONCATENATE("'LA SIMD 10 ",$C$1,"'!$C$8:$Dr$71")),'CA SIMD dist data'!$M44+VLOOKUP("Male",$I$2:$J$3,2,0),'CA SIMD dist data'!P$15+VLOOKUP($C$3,$E$2:$G$13,3,0)),INDEX(INDIRECT(CONCATENATE("'LA SIMD 10 ",$C$1,"'!$C$8:$Dr$71")),'CA SIMD dist data'!$M44+VLOOKUP($C$2,$I$2:$J$3,2,0),'CA SIMD dist data'!P$15+VLOOKUP($C$3,$E$2:$G$13,3,0))) -> 31977 | Q44: =IF($C$2="Both",INDEX(INDIRECT(CONCATENATE("'LA SIMD 10 ",$C$1,"'!$C$8:$Dr$71")),'CA SIMD dist data'!$M44+VLOOKUP("Female",$I$2:$J$3,2,0),'CA SIMD dist data'!Q$15+VLOOKUP($C$3,$E$2:$G$13,3,0))+INDEX(INDIRECT(CONCATENATE("'LA SIMD 10 ",$C$1,"'!$C$8:$Dr$71")),'CA SIMD dist data'!$M44+VLOOKUP("Male",$I$2:$J$3,2,0),'CA SIMD dist data'!Q$15+VLOOKUP($C$3,$E$2:$G$13,3,0)),INDEX(INDIRECT(CONCATENATE("'LA SIMD 10 ",$C$1,"'!$C$8:$Dr$71")),'CA SIMD dist data'!$M44+VLOOKUP($C$2,$I$2:$J$3,2,0),'CA SIMD dist data'!Q$15+VLOOKUP($C$3,$E$2:$G$13,3,0))) -> 42589 | R44: =IF($C$2="Both",INDEX(INDIRECT(CONCATENATE("'LA SIMD 10 ",$C$1,"'!$C$8:$Dr$71")),'CA SIMD dist data'!$M44+VLOOKUP("Female",$I$2:$J$3,2,0),'CA SIMD dist data'!R$15+VLOOKUP($C$3,$E$2:$G$13,3,0))+INDEX(INDIRECT(CONCATENATE("'LA SIMD 10 ",$C$1,"'!$C$8:$Dr$71")),'CA SIMD dist data'!$M44+VLOOKUP("Male",$I$2:$J$3,2,0),'CA SIMD dist data'!R$15+VLOOKUP($C$3,$E$2:$G$13,3,0)),INDEX(INDIRECT(CONCATENATE("'LA SIMD 10 ",$C$1,"'!$C$8:$Dr$71")),'CA SIMD dist data'!$M44+VLOOKUP($C$2,$I$2:$J$3,2,0),'CA SIMD dist data'!R$15+VLOOKUP($C$3,$E$2:$G$13,3,0))) -> 42744 | S44: =IF($C$2="Both",INDEX(INDIRECT(CONCATENATE("'LA SIMD 10 ",$C$1,"'!$C$8:$Dr$71")),'CA SIMD dist data'!$M44+VLOOKUP("Female",$I$2:$J$3,2,0),'CA SIMD dist data'!S$15+VLOOKUP($C$3,$E$2:$G$13,3,0))+INDEX(INDIRECT(CONCATENATE("'LA SIMD 10 ",$C$1,"'!$C$8:$Dr$71")),'CA SIMD dist data'!$M44+VLOOKUP("Male",$I$2:$J$3,2,0),'CA SIMD dist data'!S$15+VLOOKUP($C$3,$E$2:$G$13,3,0)),INDEX(INDIRECT(CONCATENATE("'LA SIMD 10 ",$C$1,"'!$C$8:$Dr$71")),'CA SIMD dist data'!$M44+VLOOKUP($C$2,$I$2:$J$3,2,0),'CA SIMD dist data'!S$15+VLOOKUP($C$3,$E$2:$G$13,3,0))) -> 36594 | T44: =IF($C$2="Both",INDEX(INDIRECT(CONCATENATE("'LA SIMD 10 ",$C$1,"'!$C$8:$Dr$71")),'CA SIMD dist data'!$M44+VLOOKUP("Female",$I$2:$J$3,2,0),'CA SIMD dist data'!T$15+VLOOKUP($C$3,$E$2:$G$13,3,0))+INDEX(INDIRECT(CONCATENATE("'LA SIMD 10 ",$C$1,"'!$C$8:$Dr$71")),'CA SIMD dist data'!$M44+VLOOKUP("Male",$I$2:$J$3,2,0),'CA SIMD dist data'!T$15+VLOOKUP($C$3,$E$2:$G$13,3,0)),INDEX(INDIRECT(CONCATENATE("'LA SIMD 10 ",$C$1,"'!$C$8:$Dr$71")),'CA SIMD dist data'!$M44+VLOOKUP($C$2,$I$2:$J$3,2,0),'CA SIMD dist data'!T$15+VLOOKUP($C$3,$E$2:$G$13,3,0))) -> 25040 | U44: =IF($C$2="Both",INDEX(INDIRECT(CONCATENATE("'LA SIMD 10 ",$C$1,"'!$C$8:$Dr$71")),'CA SIMD dist data'!$M44+VLOOKUP("Female",$I$2:$J$3,2,0),'CA SIMD dist data'!U$15+VLOOKUP($C$3,$E$2:$G$13,3,0))+INDEX(INDIRECT(CONCATENATE("'LA SIMD 10 ",$C$1,"'!$C$8:$Dr$71")),'CA SIMD dist data'!$M44+VLOOKUP("Male",$I$2:$J$3,2,0),'CA SIMD dist data'!U$15+VLOOKUP($C$3,$E$2:$G$13,3,0)),INDEX(INDIRECT(CONCATENATE("'LA SIMD 10 ",$C$1,"'!$C$8:$Dr$71")),'CA SIMD dist data'!$M44+VLOOKUP($C$2,$I$2:$J$3,2,0),'CA SIMD dist data'!U$15+VLOOKUP($C$3,$E$2:$G$13,3,0))) -> 32373 | V44: =IF($C$2="Both",INDEX(INDIRECT(CONCATENATE("'LA SIMD 10 ",$C$1,"'!$C$8:$Dr$71")),'CA SIMD dist data'!$M44+VLOOKUP("Female",$I$2:$J$3,2,0),'CA SIMD dist data'!V$15+VLOOKUP($C$3,$E$2:$G$13,3,0))+INDEX(INDIRECT(CONCATENATE("'LA SIMD 10 ",$C$1,"'!$C$8:$Dr$71")),'CA SIMD dist data'!$M44+VLOOKUP("Male",$I$2:$J$3,2,0),'CA SIMD dist data'!V$15+VLOOKUP($C$3,$E$2:$G$13,3,0)),INDEX(INDIRECT(CONCATENATE("'LA SIMD 10 ",$C$1,"'!$C$8:$Dr$71")),'CA SIMD dist data'!$M44+VLOOKUP($C$2,$I$2:$J$3,2,0),'CA SIMD dist data'!V$15+VLOOKUP($C$3,$E$2:$G$13,3,0))) -> 33363 | W44: =IF($C$2="Both",INDEX(INDIRECT(CONCATENATE("'LA SIMD 10 ",$C$1,"'!$C$8:$Dr$71")),'CA SIMD dist data'!$M44+VLOOKUP("Female",$I$2:$J$3,2,0),'CA SIMD dist data'!W$15+VLOOKUP($C$3,$E$2:$G$13,3,0))+INDEX(INDIRECT(CONCATENATE("'LA SIMD 10 ",$C$1,"'!$C$8:$Dr$71")),'CA SIMD dist data'!$M44+VLOOKUP("Male",$I$2:$J$3,2,0),'CA SIMD dist data'!W$15+VLOOKUP($C$3,$E$2:$G$13,3,0)),INDEX(INDIRECT(CONCATENATE("'LA SIMD 10 ",$C$1,"'!$C$8:$Dr$71")),'CA SIMD dist data'!$M44+VLOOKUP($C$2,$I$2:$J$3,2,0),'CA SIMD dist data'!W$15+VLOOKUP($C$3,$E$2:$G$13,3,0))) -> 32577 | X44: =IF($C$2="Both",INDEX(INDIRECT(CONCATENATE("'LA SIMD 10 ",$C$1,"'!$C$8:$Dr$71")),'CA SIMD dist data'!$M44+VLOOKUP("Female",$I$2:$J$3,2,0),'CA SIMD dist data'!X$15+VLOOKUP($C$3,$E$2:$G$13,3,0))+INDEX(INDIRECT(CONCATENATE("'LA SIMD 10 ",$C$1,"'!$C$8:$Dr$71")),'CA SIMD dist data'!$M44+VLOOKUP("Male",$I$2:$J$3,2,0),'CA SIMD dist data'!X$15+VLOOKUP($C$3,$E$2:$G$13,3,0)),INDEX(INDIRECT(CONCATENATE("'LA SIMD 10 ",$C$1,"'!$C$8:$Dr$71")),'CA SIMD dist data'!$M44+VLOOKUP($C$2,$I$2:$J$3,2,0),'CA SIMD dist data'!X$15+VLOOKUP($C$3,$E$2:$G$13,3,0))) -> 13417 | Z44: South Lanarkshire | AA44: 0.06595058404 | AB44: 0.0299877601 | AC44: 0.04004981807 | AD44: 0.02787062643 | AE44: 0.008293610338 | AF44: 0.02062443955 | AG44: -0.0005248533498 | AH44: 0.01278003764 | AI44: 0.005400901179 | AJ44: 0.0300168893
A45: Stirling | B45: 4261 | C45: 6080 | D45: 5844 | E45: 8356 | F45: 6715 | G45: 8896 | H45: 9483 | I45: 16941 | J45: 8903 | K45: 18271 | M45: 30 | N45: Stirling | O45: =IF($C$2="Both",INDEX(INDIRECT(CONCATENATE("'LA SIMD 10 ",$C$1,"'!$C$8:$Dr$71")),'CA SIMD dist data'!$M45+VLOOKUP("Female",$I$2:$J$3,2,0),'CA SIMD dist data'!O$15+VLOOKUP($C$3,$E$2:$G$13,3,0))+INDEX(INDIRECT(CONCATENATE("'LA SIMD 10 ",$C$1,"'!$C$8:$Dr$71")),'CA SIMD dist data'!$M45+VLOOKUP("Male",$I$2:$J$3,2,0),'CA SIMD dist data'!O$15+VLOOKUP($C$3,$E$2:$G$13,3,0)),INDEX(INDIRECT(CONCATENATE("'LA SIMD 10 ",$C$1,"'!$C$8:$Dr$71")),'CA SIMD dist data'!$M45+VLOOKUP($C$2,$I$2:$J$3,2,0),'CA SIMD dist data'!O$15+VLOOKUP($C$3,$E$2:$G$13,3,0))) -> 4510 | P45: =IF($C$2="Both",INDEX(INDIRECT(CONCATENATE("'LA SIMD 10 ",$C$1,"'!$C$8:$Dr$71")),'CA SIMD dist data'!$M45+VLOOKUP("Female",$I$2:$J$3,2,0),'CA SIMD dist data'!P$15+VLOOKUP($C$3,$E$2:$G$13,3,0))+INDEX(INDIRECT(CONCATENATE("'LA SIMD 10 ",$C$1,"'!$C$8:$Dr$71")),'CA SIMD dist data'!$M45+VLOOKUP("Male",$I$2:$J$3,2,0),'CA SIMD dist data'!P$15+VLOOKUP($C$3,$E$2:$G$13,3,0)),INDEX(INDIRECT(CONCATENATE("'LA SIMD 10 ",$C$1,"'!$C$8:$Dr$71")),'CA SIMD dist data'!$M45+VLOOKUP($C$2,$I$2:$J$3,2,0),'CA SIMD dist data'!P$15+VLOOKUP($C$3,$E$2:$G$13,3,0))) -> 6130 | Q45: =IF($C$2="Both",INDEX(INDIRECT(CONCATENATE("'LA SIMD 10 ",$C$1,"'!$C$8:$Dr$71")),'CA SIMD dist data'!$M45+VLOOKUP("Female",$I$2:$J$3,2,0),'CA SIMD dist data'!Q$15+VLOOKUP($C$3,$E$2:$G$13,3,0))+INDEX(INDIRECT(CONCATENATE("'LA SIMD 10 ",$C$1,"'!$C$8:$Dr$71")),'CA SIMD dist data'!$M45+VLOOKUP("Male",$I$2:$J$3,2,0),'CA SIMD dist data'!Q$15+VLOOKUP($C$3,$E$2:$G$13,3,0)),INDEX(INDIRECT(CONCATENATE("'LA SIMD 10 ",$C$1,"'!$C$8:$Dr$71")),'CA SIMD dist data'!$M45+VLOOKUP($C$2,$I$2:$J$3,2,0),'CA SIMD dist data'!Q$15+VLOOKUP($C$3,$E$2:$G$13,3,0))) -> 5851 | R45: =IF($C$2="Both",INDEX(INDIRECT(CONCATENATE("'LA SIMD 10 ",$C$1,"'!$C$8:$Dr$71")),'CA SIMD dist data'!$M45+VLOOKUP("Female",$I$2:$J$3,2,0),'CA SIMD dist data'!R$15+VLOOKUP($C$3,$E$2:$G$13,3,0))+INDEX(INDIRECT(CONCATENATE("'LA SIMD 10 ",$C$1,"'!$C$8:$Dr$71")),'CA SIMD dist data'!$M45+VLOOKUP("Male",$I$2:$J$3,2,0),'CA SIMD dist data'!R$15+VLOOKUP($C$3,$E$2:$G$13,3,0)),INDEX(INDIRECT(CONCATENATE("'LA SIMD 10 ",$C$1,"'!$C$8:$Dr$71")),'CA SIMD dist data'!$M45+VLOOKUP($C$2,$I$2:$J$3,2,0),'CA SIMD dist data'!R$15+VLOOKUP($C$3,$E$2:$G$13,3,0))) -> 8304 | S45: =IF($C$2="Both",INDEX(INDIRECT(CONCATENATE("'LA SIMD 10 ",$C$1,"'!$C$8:$Dr$71")),'CA SIMD dist data'!$M45+VLOOKUP("Female",$I$2:$J$3,2,0),'CA SIMD dist data'!S$15+VLOOKUP($C$3,$E$2:$G$13,3,0))+INDEX(INDIRECT(CONCATENATE("'LA SIMD 10 ",$C$1,"'!$C$8:$Dr$71")),'CA SIMD dist data'!$M45+VLOOKUP("Male",$I$2:$J$3,2,0),'CA SIMD dist data'!S$15+VLOOKUP($C$3,$E$2:$G$13,3,0)),INDEX(INDIRECT(CONCATENATE("'LA SIMD 10 ",$C$1,"'!$C$8:$Dr$71")),'CA SIMD dist data'!$M45+VLOOKUP($C$2,$I$2:$J$3,2,0),'CA SIMD dist data'!S$15+VLOOKUP($C$3,$E$2:$G$13,3,0))) -> 6520 | T45: =IF($C$2="Both",INDEX(INDIRECT(CONCATENATE("'LA SIMD 10 ",$C$1,"'!$C$8:$Dr$71")),'CA SIMD dist data'!$M45+VLOOKUP("Female",$I$2:$J$3,2,0),'CA SIMD dist data'!T$15+VLOOKUP($C$3,$E$2:$G$13,3,0))+INDEX(INDIRECT(CONCATENATE("'LA SIMD 10 ",$C$1,"'!$C$8:$Dr$71")),'CA SIMD dist data'!$M45+VLOOKUP("Male",$I$2:$J$3,2,0),'CA SIMD dist data'!T$15+VLOOKUP($C$3,$E$2:$G$13,3,0)),INDEX(INDIRECT(CONCATENATE("'LA SIMD 10 ",$C$1,"'!$C$8:$Dr$71")),'CA SIMD dist data'!$M45+VLOOKUP($C$2,$I$2:$J$3,2,0),'CA SIMD dist data'!T$15+VLOOKUP($C$3,$E$2:$G$13,3,0))) -> 8567 | U45: =IF($C$2="Both",INDEX(INDIRECT(CONCATENATE("'LA SIMD 10 ",$C$1,"'!$C$8:$Dr$71")),'CA SIMD dist data'!$M45+VLOOKUP("Female",$I$2:$J$3,2,0),'CA SIMD dist data'!U$15+VLOOKUP($C$3,$E$2:$G$13,3,0))+INDEX(INDIRECT(CONCATENATE("'LA SIMD 10 ",$C$1,"'!$C$8:$Dr$71")),'CA SIMD dist data'!$M45+VLOOKUP("Male",$I$2:$J$3,2,0),'CA SIMD dist data'!U$15+VLOOKUP($C$3,$E$2:$G$13,3,0)),INDEX(INDIRECT(CONCATENATE("'LA SIMD 10 ",$C$1,"'!$C$8:$Dr$71")),'CA SIMD dist data'!$M45+VLOOKUP($C$2,$I$2:$J$3,2,0),'CA SIMD dist data'!U$15+VLOOKUP($C$3,$E$2:$G$13,3,0))) -> 9121 | V45: =IF($C$2="Both",INDEX(INDIRECT(CONCATENATE("'LA SIMD 10 ",$C$1,"'!$C$8:$Dr$71")),'CA SIMD dist data'!$M45+VLOOKUP("Female",$I$2:$J$3,2,0),'CA SIMD dist data'!V$15+VLOOKUP($C$3,$E$2:$G$13,3,0))+INDEX(INDIRECT(CONCATENATE("'LA SIMD 10 ",$C$1,"'!$C$8:$Dr$71")),'CA SIMD dist data'!$M45+VLOOKUP("Male",$I$2:$J$3,2,0),'CA SIMD dist data'!V$15+VLOOKUP($C$3,$E$2:$G$13,3,0)),INDEX(INDIRECT(CONCATENATE("'LA SIMD 10 ",$C$1,"'!$C$8:$Dr$71")),'CA SIMD dist data'!$M45+VLOOKUP($C$2,$I$2:$J$3,2,0),'CA SIMD dist data'!V$15+VLOOKUP($C$3,$E$2:$G$13,3,0))) -> 16533 | W45: =IF($C$2="Both",INDEX(INDIRECT(CONCATENATE("'LA SIMD 10 ",$C$1,"'!$C$8:$Dr$71")),'CA SIMD dist data'!$M45+VLOOKUP("Female",$I$2:$J$3,2,0),'CA SIMD dist data'!W$15+VLOOKUP($C$3,$E$2:$G$13,3,0))+INDEX(INDIRECT(CONCATENATE("'LA SIMD 10 ",$C$1,"'!$C$8:$Dr$71")),'CA SIMD dist data'!$M45+VLOOKUP("Male",$I$2:$J$3,2,0),'CA SIMD dist data'!W$15+VLOOKUP($C$3,$E$2:$G$13,3,0)),INDEX(INDIRECT(CONCATENATE("'LA SIMD 10 ",$C$1,"'!$C$8:$Dr$71")),'CA SIMD dist data'!$M45+VLOOKUP($C$2,$I$2:$J$3,2,0),'CA SIMD dist data'!W$15+VLOOKUP($C$3,$E$2:$G$13,3,0))) -> 8638 | X45: =IF($C$2="Both",INDEX(INDIRECT(CONCATENATE("'LA SIMD 10 ",$C$1,"'!$C$8:$Dr$71")),'CA SIMD dist data'!$M45+VLOOKUP("Female",$I$2:$J$3,2,0),'CA SIMD dist data'!X$15+VLOOKUP($C$3,$E$2:$G$13,3,0))+INDEX(INDIRECT(CONCATENATE("'LA SIMD 10 ",$C$1,"'!$C$8:$Dr$71")),'CA SIMD dist data'!$M45+VLOOKUP("Male",$I$2:$J$3,2,0),'CA SIMD dist data'!X$15+VLOOKUP($C$3,$E$2:$G$13,3,0)),INDEX(INDIRECT(CONCATENATE("'LA SIMD 10 ",$C$1,"'!$C$8:$Dr$71")),'CA SIMD dist data'!$M45+VLOOKUP($C$2,$I$2:$J$3,2,0),'CA SIMD dist data'!X$15+VLOOKUP($C$3,$E$2:$G$13,3,0))) -> 18260 | Z45: Stirling | AA45: 0.05843698662 | AB45: 0.008223684211 | AC45: 0.001197809719 | AD45: -0.006223073241 | AE45: -0.02903946389 | AF45: -0.03698291367 | AG45: -0.03817357376 | AH45: -0.0240835842 | AI45: -0.02976524767 | AJ45: -0.0006020469597
A46: West Dunbartonshire | B46: 13789 | C46: 21414 | D46: 14332 | E46: 12133 | F46: 7354 | G46: 5965 | H46: 7241 | I46: 4059 | J46: 2254 | K46: 1319 | M46: 31 | N46: West Dunbartonshire | O46: =IF($C$2="Both",INDEX(INDIRECT(CONCATENATE("'LA SIMD 10 ",$C$1,"'!$C$8:$Dr$71")),'CA SIMD dist data'!$M46+VLOOKUP("Female",$I$2:$J$3,2,0),'CA SIMD dist data'!O$15+VLOOKUP($C$3,$E$2:$G$13,3,0))+INDEX(INDIRECT(CONCATENATE("'LA SIMD 10 ",$C$1,"'!$C$8:$Dr$71")),'CA SIMD dist data'!$M46+VLOOKUP("Male",$I$2:$J$3,2,0),'CA SIMD dist data'!O$15+VLOOKUP($C$3,$E$2:$G$13,3,0)),INDEX(INDIRECT(CONCATENATE("'LA SIMD 10 ",$C$1,"'!$C$8:$Dr$71")),'CA SIMD dist data'!$M46+VLOOKUP($C$2,$I$2:$J$3,2,0),'CA SIMD dist data'!O$15+VLOOKUP($C$3,$E$2:$G$13,3,0))) -> 14884 | P46: =IF($C$2="Both",INDEX(INDIRECT(CONCATENATE("'LA SIMD 10 ",$C$1,"'!$C$8:$Dr$71")),'CA SIMD dist data'!$M46+VLOOKUP("Female",$I$2:$J$3,2,0),'CA SIMD dist data'!P$15+VLOOKUP($C$3,$E$2:$G$13,3,0))+INDEX(INDIRECT(CONCATENATE("'LA SIMD 10 ",$C$1,"'!$C$8:$Dr$71")),'CA SIMD dist data'!$M46+VLOOKUP("Male",$I$2:$J$3,2,0),'CA SIMD dist data'!P$15+VLOOKUP($C$3,$E$2:$G$13,3,0)),INDEX(INDIRECT(CONCATENATE("'LA SIMD 10 ",$C$1,"'!$C$8:$Dr$71")),'CA SIMD dist data'!$M46+VLOOKUP($C$2,$I$2:$J$3,2,0),'CA SIMD dist data'!P$15+VLOOKUP($C$3,$E$2:$G$13,3,0))) -> 22164 | Q46: =IF($C$2="Both",INDEX(INDIRECT(CONCATENATE("'LA SIMD 10 ",$C$1,"'!$C$8:$Dr$71")),'CA SIMD dist data'!$M46+VLOOKUP("Female",$I$2:$J$3,2,0),'CA SIMD dist data'!Q$15+VLOOKUP($C$3,$E$2:$G$13,3,0))+INDEX(INDIRECT(CONCATENATE("'LA SIMD 10 ",$C$1,"'!$C$8:$Dr$71")),'CA SIMD dist data'!$M46+VLOOKUP("Male",$I$2:$J$3,2,0),'CA SIMD dist data'!Q$15+VLOOKUP($C$3,$E$2:$G$13,3,0)),INDEX(INDIRECT(CONCATENATE("'LA SIMD 10 ",$C$1,"'!$C$8:$Dr$71")),'CA SIMD dist data'!$M46+VLOOKUP($C$2,$I$2:$J$3,2,0),'CA SIMD dist data'!Q$15+VLOOKUP($C$3,$E$2:$G$13,3,0))) -> 14436 | R46: =IF($C$2="Both",INDEX(INDIRECT(CONCATENATE("'LA SIMD 10 ",$C$1,"'!$C$8:$Dr$71")),'CA SIMD dist data'!$M46+VLOOKUP("Female",$I$2:$J$3,2,0),'CA SIMD dist data'!R$15+VLOOKUP($C$3,$E$2:$G$13,3,0))+INDEX(INDIRECT(CONCATENATE("'LA SIMD 10 ",$C$1,"'!$C$8:$Dr$71")),'CA SIMD dist data'!$M46+VLOOKUP("Male",$I$2:$J$3,2,0),'CA SIMD dist data'!R$15+VLOOKUP($C$3,$E$2:$G$13,3,0)),INDEX(INDIRECT(CONCATENATE("'LA SIMD 10 ",$C$1,"'!$C$8:$Dr$71")),'CA SIMD dist data'!$M46+VLOOKUP($C$2,$I$2:$J$3,2,0),'CA SIMD dist data'!R$15+VLOOKUP($C$3,$E$2:$G$13,3,0))) -> 12643 | S46: =IF($C$2="Both",INDEX(INDIRECT(CONCATENATE("'LA SIMD 10 ",$C$1,"'!$C$8:$Dr$71")),'CA SIMD dist data'!$M46+VLOOKUP("Female",$I$2:$J$3,2,0),'CA SIMD dist data'!S$15+VLOOKUP($C$3,$E$2:$G$13,3,0))+INDEX(INDIRECT(CONCATENATE("'LA SIMD 10 ",$C$1,"'!$C$8:$Dr$71")),'CA SIMD dist data'!$M46+VLOOKUP("Male",$I$2:$J$3,2,0),'CA SIMD dist data'!S$15+VLOOKUP($C$3,$E$2:$G$13,3,0)),INDEX(INDIRECT(CONCATENATE("'LA SIMD 10 ",$C$1,"'!$C$8:$Dr$71")),'CA SIMD dist data'!$M46+VLOOKUP($C$2,$I$2:$J$3,2,0),'CA SIMD dist data'!S$15+VLOOKUP($C$3,$E$2:$G$13,3,0))) -> 7688 | T46: =IF($C$2="Both",INDEX(INDIRECT(CONCATENATE("'LA SIMD 10 ",$C$1,"'!$C$8:$Dr$71")),'CA SIMD dist data'!$M46+VLOOKUP("Female",$I$2:$J$3,2,0),'CA SIMD dist data'!T$15+VLOOKUP($C$3,$E$2:$G$13,3,0))+INDEX(INDIRECT(CONCATENATE("'LA SIMD 10 ",$C$1,"'!$C$8:$Dr$71")),'CA SIMD dist data'!$M46+VLOOKUP("Male",$I$2:$J$3,2,0),'CA SIMD dist data'!T$15+VLOOKUP($C$3,$E$2:$G$13,3,0)),INDEX(INDIRECT(CONCATENATE("'LA SIMD 10 ",$C$1,"'!$C$8:$Dr$71")),'CA SIMD dist data'!$M46+VLOOKUP($C$2,$I$2:$J$3,2,0),'CA SIMD dist data'!T$15+VLOOKUP($C$3,$E$2:$G$13,3,0))) -> 5850 | U46: =IF($C$2="Both",INDEX(INDIRECT(CONCATENATE("'LA SIMD 10 ",$C$1,"'!$C$8:$Dr$71")),'CA SIMD dist data'!$M46+VLOOKUP("Female",$I$2:$J$3,2,0),'CA SIMD dist data'!U$15+VLOOKUP($C$3,$E$2:$G$13,3,0))+INDEX(INDIRECT(CONCATENATE("'LA SIMD 10 ",$C$1,"'!$C$8:$Dr$71")),'CA SIMD dist data'!$M46+VLOOKUP("Male",$I$2:$J$3,2,0),'CA SIMD dist data'!U$15+VLOOKUP($C$3,$E$2:$G$13,3,0)),INDEX(INDIRECT(CONCATENATE("'LA SIMD 10 ",$C$1,"'!$C$8:$Dr$71")),'CA SIMD dist data'!$M46+VLOOKUP($C$2,$I$2:$J$3,2,0),'CA SIMD dist data'!U$15+VLOOKUP($C$3,$E$2:$G$13,3,0))) -> 7422 | V46: =IF($C$2="Both",INDEX(INDIRECT(CONCATENATE("'LA SIMD 10 ",$C$1,"'!$C$8:$Dr$71")),'CA SIMD dist data'!$M46+VLOOKUP("Female",$I$2:$J$3,2,0),'CA SIMD dist data'!V$15+VLOOKUP($C$3,$E$2:$G$13,3,0))+INDEX(INDIRECT(CONCATENATE("'LA SIMD 10 ",$C$1,"'!$C$8:$Dr$71")),'CA SIMD dist data'!$M46+VLOOKUP("Male",$I$2:$J$3,2,0),'CA SIMD dist data'!V$15+VLOOKUP($C$3,$E$2:$G$13,3,0)),INDEX(INDIRECT(CONCATENATE("'LA SIMD 10 ",$C$1,"'!$C$8:$Dr$71")),'CA SIMD dist data'!$M46+VLOOKUP($C$2,$I$2:$J$3,2,0),'CA SIMD dist data'!V$15+VLOOKUP($C$3,$E$2:$G$13,3,0))) -> 4170 | W46: =IF($C$2="Both",INDEX(INDIRECT(CONCATENATE("'LA SIMD 10 ",$C$1,"'!$C$8:$Dr$71")),'CA SIMD dist data'!$M46+VLOOKUP("Female",$I$2:$J$3,2,0),'CA SIMD dist data'!W$15+VLOOKUP($C$3,$E$2:$G$13,3,0))+INDEX(INDIRECT(CONCATENATE("'LA SIMD 10 ",$C$1,"'!$C$8:$Dr$71")),'CA SIMD dist data'!$M46+VLOOKUP("Male",$I$2:$J$3,2,0),'CA SIMD dist data'!W$15+VLOOKUP($C$3,$E$2:$G$13,3,0)),INDEX(INDIRECT(CONCATENATE("'LA SIMD 10 ",$C$1,"'!$C$8:$Dr$71")),'CA SIMD dist data'!$M46+VLOOKUP($C$2,$I$2:$J$3,2,0),'CA SIMD dist data'!W$15+VLOOKUP($C$3,$E$2:$G$13,3,0))) -> 2238 | X46: =IF($C$2="Both",INDEX(INDIRECT(CONCATENATE("'LA SIMD 10 ",$C$1,"'!$C$8:$Dr$71")),'CA SIMD dist data'!$M46+VLOOKUP("Female",$I$2:$J$3,2,0),'CA SIMD dist data'!X$15+VLOOKUP($C$3,$E$2:$G$13,3,0))+INDEX(INDIRECT(CONCATENATE("'LA SIMD 10 ",$C$1,"'!$C$8:$Dr$71")),'CA SIMD dist data'!$M46+VLOOKUP("Male",$I$2:$J$3,2,0),'CA SIMD dist data'!X$15+VLOOKUP($C$3,$E$2:$G$13,3,0)),INDEX(INDIRECT(CONCATENATE("'LA SIMD 10 ",$C$1,"'!$C$8:$Dr$71")),'CA SIMD dist data'!$M46+VLOOKUP($C$2,$I$2:$J$3,2,0),'CA SIMD dist data'!X$15+VLOOKUP($C$3,$E$2:$G$13,3,0))) -> 1319 | Z46: West Dunbartonshire | AA46: 0.07941112481 | AB46: 0.0350238162 | AC46: 0.007256488976 | AD46: 0.04203412182 | AE46: 0.04541745989 | AF46: -0.01927912825 | AG46: 0.02499654744 | AH46: 0.0273466371 | AI46: -0.007098491571 | AJ46: 0
A47: West Lothian | B47: 9190 | C47: 19420 | D47: 28178 | E47: 20393 | F47: 20157 | G47: 16976 | H47: 19443 | I47: 12307 | J47: 21553 | K47: 12513 | M47: 32 | N47: West Lothian | O47: =IF($C$2="Both",INDEX(INDIRECT(CONCATENATE("'LA SIMD 10 ",$C$1,"'!$C$8:$Dr$71")),'CA SIMD dist data'!$M47+VLOOKUP("Female",$I$2:$J$3,2,0),'CA SIMD dist data'!O$15+VLOOKUP($C$3,$E$2:$G$13,3,0))+INDEX(INDIRECT(CONCATENATE("'LA SIMD 10 ",$C$1,"'!$C$8:$Dr$71")),'CA SIMD dist data'!$M47+VLOOKUP("Male",$I$2:$J$3,2,0),'CA SIMD dist data'!O$15+VLOOKUP($C$3,$E$2:$G$13,3,0)),INDEX(INDIRECT(CONCATENATE("'LA SIMD 10 ",$C$1,"'!$C$8:$Dr$71")),'CA SIMD dist data'!$M47+VLOOKUP($C$2,$I$2:$J$3,2,0),'CA SIMD dist data'!O$15+VLOOKUP($C$3,$E$2:$G$13,3,0))) -> 9340 | P47: =IF($C$2="Both",INDEX(INDIRECT(CONCATENATE("'LA SIMD 10 ",$C$1,"'!$C$8:$Dr$71")),'CA SIMD dist data'!$M47+VLOOKUP("Female",$I$2:$J$3,2,0),'CA SIMD dist data'!P$15+VLOOKUP($C$3,$E$2:$G$13,3,0))+INDEX(INDIRECT(CONCATENATE("'LA SIMD 10 ",$C$1,"'!$C$8:$Dr$71")),'CA SIMD dist data'!$M47+VLOOKUP("Male",$I$2:$J$3,2,0),'CA SIMD dist data'!P$15+VLOOKUP($C$3,$E$2:$G$13,3,0)),INDEX(INDIRECT(CONCATENATE("'LA SIMD 10 ",$C$1,"'!$C$8:$Dr$71")),'CA SIMD dist data'!$M47+VLOOKUP($C$2,$I$2:$J$3,2,0),'CA SIMD dist data'!P$15+VLOOKUP($C$3,$E$2:$G$13,3,0))) -> 19933 | Q47: =IF($C$2="Both",INDEX(INDIRECT(CONCATENATE("'LA SIMD 10 ",$C$1,"'!$C$8:$Dr$71")),'CA SIMD dist data'!$M47+VLOOKUP("Female",$I$2:$J$3,2,0),'CA SIMD dist data'!Q$15+VLOOKUP($C$3,$E$2:$G$13,3,0))+INDEX(INDIRECT(CONCATENATE("'LA SIMD 10 ",$C$1,"'!$C$8:$Dr$71")),'CA SIMD dist data'!$M47+VLOOKUP("Male",$I$2:$J$3,2,0),'CA SIMD dist data'!Q$15+VLOOKUP($C$3,$E$2:$G$13,3,0)),INDEX(INDIRECT(CONCATENATE("'LA SIMD 10 ",$C$1,"'!$C$8:$Dr$71")),'CA SIMD dist data'!$M47+VLOOKUP($C$2,$I$2:$J$3,2,0),'CA SIMD dist data'!Q$15+VLOOKUP($C$3,$E$2:$G$13,3,0))) -> 28841 | R47: =IF($C$2="Both",INDEX(INDIRECT(CONCATENATE("'LA SIMD 10 ",$C$1,"'!$C$8:$Dr$71")),'CA SIMD dist data'!$M47+VLOOKUP("Female",$I$2:$J$3,2,0),'CA SIMD dist data'!R$15+VLOOKUP($C$3,$E$2:$G$13,3,0))+INDEX(INDIRECT(CONCATENATE("'LA SIMD 10 ",$C$1,"'!$C$8:$Dr$71")),'CA SIMD dist data'!$M47+VLOOKUP("Male",$I$2:$J$3,2,0),'CA SIMD dist data'!R$15+VLOOKUP($C$3,$E$2:$G$13,3,0)),INDEX(INDIRECT(CONCATENATE("'LA SIMD 10 ",$C$1,"'!$C$8:$Dr$71")),'CA SIMD dist data'!$M47+VLOOKUP($C$2,$I$2:$J$3,2,0),'CA SIMD dist data'!R$15+VLOOKUP($C$3,$E$2:$G$13,3,0))) -> 20468 | S47: =IF($C$2="Both",INDEX(INDIRECT(CONCATENATE("'LA SIMD 10 ",$C$1,"'!$C$8:$Dr$71")),'CA SIMD dist data'!$M47+VLOOKUP("Female",$I$2:$J$3,2,0),'CA SIMD dist data'!S$15+VLOOKUP($C$3,$E$2:$G$13,3,0))+INDEX(INDIRECT(CONCATENATE("'LA SIMD 10 ",$C$1,"'!$C$8:$Dr$71")),'CA SIMD dist data'!$M47+VLOOKUP("Male",$I$2:$J$3,2,0),'CA SIMD dist data'!S$15+VLOOKUP($C$3,$E$2:$G$13,3,0)),INDEX(INDIRECT(CONCATENATE("'LA SIMD 10 ",$C$1,"'!$C$8:$Dr$71")),'CA SIMD dist data'!$M47+VLOOKUP($C$2,$I$2:$J$3,2,0),'CA SIMD dist data'!S$15+VLOOKUP($C$3,$E$2:$G$13,3,0))) -> 20131 | T47: =IF($C$2="Both",INDEX(INDIRECT(CONCATENATE("'LA SIMD 10 ",$C$1,"'!$C$8:$Dr$71")),'CA SIMD dist data'!$M47+VLOOKUP("Female",$I$2:$J$3,2,0),'CA SIMD dist data'!T$15+VLOOKUP($C$3,$E$2:$G$13,3,0))+INDEX(INDIRECT(CONCATENATE("'LA SIMD 10 ",$C$1,"'!$C$8:$Dr$71")),'CA SIMD dist data'!$M47+VLOOKUP("Male",$I$2:$J$3,2,0),'CA SIMD dist data'!T$15+VLOOKUP($C$3,$E$2:$G$13,3,0)),INDEX(INDIRECT(CONCATENATE("'LA SIMD 10 ",$C$1,"'!$C$8:$Dr$71")),'CA SIMD dist data'!$M47+VLOOKUP($C$2,$I$2:$J$3,2,0),'CA SIMD dist data'!T$15+VLOOKUP($C$3,$E$2:$G$13,3,0))) -> 17058 | U47: =IF($C$2="Both",INDEX(INDIRECT(CONCATENATE("'LA SIMD 10 ",$C$1,"'!$C$8:$Dr$71")),'CA SIMD dist data'!$M47+VLOOKUP("Female",$I$2:$J$3,2,0),'CA SIMD dist data'!U$15+VLOOKUP($C$3,$E$2:$G$13,3,0))+INDEX(INDIRECT(CONCATENATE("'LA SIMD 10 ",$C$1,"'!$C$8:$Dr$71")),'CA SIMD dist data'!$M47+VLOOKUP("Male",$I$2:$J$3,2,0),'CA SIMD dist data'!U$15+VLOOKUP($C$3,$E$2:$G$13,3,0)),INDEX(INDIRECT(CONCATENATE("'LA SIMD 10 ",$C$1,"'!$C$8:$Dr$71")),'CA SIMD dist data'!$M47+VLOOKUP($C$2,$I$2:$J$3,2,0),'CA SIMD dist data'!U$15+VLOOKUP($C$3,$E$2:$G$13,3,0))) -> 19164 | V47: =IF($C$2="Both",INDEX(INDIRECT(CONCATENATE("'LA SIMD 10 ",$C$1,"'!$C$8:$Dr$71")),'CA SIMD dist data'!$M47+VLOOKUP("Female",$I$2:$J$3,2,0),'CA SIMD dist data'!V$15+VLOOKUP($C$3,$E$2:$G$13,3,0))+INDEX(INDIRECT(CONCATENATE("'LA SIMD 10 ",$C$1,"'!$C$8:$Dr$71")),'CA SIMD dist data'!$M47+VLOOKUP("Male",$I$2:$J$3,2,0),'CA SIMD dist data'!V$15+VLOOKUP($C$3,$E$2:$G$13,3,0)),INDEX(INDIRECT(CONCATENATE("'LA SIMD 10 ",$C$1,"'!$C$8:$Dr$71")),'CA SIMD dist data'!$M47+VLOOKUP($C$2,$I$2:$J$3,2,0),'CA SIMD dist data'!V$15+VLOOKUP($C$3,$E$2:$G$13,3,0))) -> 12141 | W47: =IF($C$2="Both",INDEX(INDIRECT(CONCATENATE("'LA SIMD 10 ",$C$1,"'!$C$8:$Dr$71")),'CA SIMD dist data'!$M47+VLOOKUP("Female",$I$2:$J$3,2,0),'CA SIMD dist data'!W$15+VLOOKUP($C$3,$E$2:$G$13,3,0))+INDEX(INDIRECT(CONCATENATE("'LA SIMD 10 ",$C$1,"'!$C$8:$Dr$71")),'CA SIMD dist data'!$M47+VLOOKUP("Male",$I$2:$J$3,2,0),'CA SIMD dist data'!W$15+VLOOKUP($C$3,$E$2:$G$13,3,0)),INDEX(INDIRECT(CONCATENATE("'LA SIMD 10 ",$C$1,"'!$C$8:$Dr$71")),'CA SIMD dist data'!$M47+VLOOKUP($C$2,$I$2:$J$3,2,0),'CA SIMD dist data'!W$15+VLOOKUP($C$3,$E$2:$G$13,3,0))) -> 21075 | X47: =IF($C$2="Both",INDEX(INDIRECT(CONCATENATE("'LA SIMD 10 ",$C$1,"'!$C$8:$Dr$71")),'CA SIMD dist data'!$M47+VLOOKUP("Female",$I$2:$J$3,2,0),'CA SIMD dist data'!X$15+VLOOKUP($C$3,$E$2:$G$13,3,0))+INDEX(INDIRECT(CONCATENATE("'LA SIMD 10 ",$C$1,"'!$C$8:$Dr$71")),'CA SIMD dist data'!$M47+VLOOKUP("Male",$I$2:$J$3,2,0),'CA SIMD dist data'!X$15+VLOOKUP($C$3,$E$2:$G$13,3,0)),INDEX(INDIRECT(CONCATENATE("'LA SIMD 10 ",$C$1,"'!$C$8:$Dr$71")),'CA SIMD dist data'!$M47+VLOOKUP($C$2,$I$2:$J$3,2,0),'CA SIMD dist data'!X$15+VLOOKUP($C$3,$E$2:$G$13,3,0))) -> 12512 | Z47: West Lothian | AA47: 0.01632208923 | AB47: 0.02641606591 | AC47: 0.02352899425 | AD47: 0.003677732555 | AE47: -0.001289874485 | AF47: 0.004830348728 | AG47: -0.0143496374 | AH47: -0.01348825871 | AI47: -0.02217788707 | AJ47: -7.991688644e-05
A50: Box plot data
A52: CA | C52: SIMD | D52: Percentage difference between ABPE and MYE
A53: 1 | B53: 1 | C53: =IF(B53=1,"SIMD 1 - Most deprived",IF(B53=10,"SIMD 10 - Least deprived",CONCATENATE("SIMD ",B53))) -> SIMD 1 - Most deprived | D53: =IF(INDEX($AA$16:$AJ$47,A53,B53)="",NA(),INDEX($AA$16:$AJ$47,A53,B53)) -> 0.1111636708
A54: =A53+1 -> 2 | B54: 1 | C54: =IF(B54=1,"SIMD 1 - Most deprived",IF(B54=10,"SIMD 10 - Least deprived",CONCATENATE("SIMD ",B54))) -> SIMD 1 - Most deprived | D54: =IF(INDEX($AA$16:$AJ$47,A54,B54)="",NA(),INDEX($AA$16:$AJ$47,A54,B54)) -> 0.1271975181
A55: =A54+1 -> 3 | B55: 1 | C55: SIMD 1 - Most deprived | D55: 0.04142857143
A56: 4 | B56: 1 | C56: SIMD 1 - Most deprived | D56: 0.02246139448
A57: 5 | B57: 1 | C57: SIMD 1 - Most deprived | D57: 0.05278314192
A58: 6 | B58: 1 | C58: SIMD 1 - Most deprived | D58: 0.1675491033
A59: 7 | B59: 1 | C59: SIMD 1 - Most deprived | D59: 0.03702702703
A60: 8 | B60: 1 | C60: SIMD 1 - Most deprived | D60: 0.04182675788
A61: 9 | B61: 1 | C61: SIMD 1 - Most deprived | D61: 0.04549718574
A62: 10 | B62: 1 | C62: SIMD 1 - Most deprived | D62: 0.09204545455
A63: 11 | B63: 1 | C63: SIMD 1 - Most deprived
A64: 12 | B64: 1 | C64: SIMD 1 - Most deprived | D64: 0.01204819277
A65: 13 | B65: 1 | C65: SIMD 1 - Most deprived | D65: 0.02457636629
